Workbook

Sheet Contents
C3: Sheet Tab | D3: Description | E3: Author
B4: 1 | C4: Contents
B5: 2 | C5: Summary DCF
B6: 3 | C6: Tornado Diagram
B7: 4 | C7: Master Scenario
B8: 5 | C8: Historic Financial Statements
B9: 6 | C9: Financial Model Assumptions
B10: 7 | C10: Financial Model
B11: 8 | C11: Valuation and ROIC
B12: 9 | C12: EV to EBITDA and Stable Ratios
B13: 10 | C13: PE Ratio
B14: 11 | C14: Acquisition Model
B15: 12 | C15: Break-even Chart
B16: 13 | C16: Shipments and Capacity
B17: 14 | C17: Simple Scenario
B18: 15 | C18: Basic Model
B19: 16 | C19: Offset Chart
B20: 17 | C20: Stock Prices
B21: 18 | C21: NOL
B23: File Name: | D23: C:\Users\Nelson Mandela\Documents\Suntech Acquisition Analysis.xlsm
B25: Colour Codes
B27: Last Save Date | D27: 2012-05-20T12:13:38
B28: Last Save By | D28: Monica Lewinski
B30: Courses | D30: www.FinanceEnergyInstitute.com

Sheet Acquisition Summary
C3: Date of Transaction | E3: ='Transaction Assumptions'!F4 -> 2011-05-01
C4: Holding Period - Years | E4: ='Transaction Assumptions'!F5 -> 5
C5: Exit EV/EBITDA Multiple | E5: ='Transaction Assumptions'!F6 -> 12
C6: Premium | E6: ='Transaction Assumptions'!F12 -> 0.22 | I6: Equity IRR | J6: ='Acquisition Model'!E226 -> 0.2255316317
C7: Revenue Sensitivity | E7: ='Transaction Assumptions'!F79 -> 1 | I7: Sub Debt IRR | J7: ='Acquisition Model'!E231 -> 0.1003878772
I8: Senior Debt IRR
A10: Sources and Uses
G11: Sources
B12: Uses | H12: A- Amortising Debt | J12: ='Transaction Assumptions'!F32 -> 200
C13: Consideration | E13: ='Transaction Assumptions'!F15 -> 551.196 | H13: B - Bullet Debt | J13: ='Transaction Assumptions'!F43 -> 100
C14: Debt repayment - short-term | E14: ='Transaction Assumptions'!F24 -> 1573.400024 | H14: C - Capitalising Debt | J14: ='Transaction Assumptions'!F55 -> 100
C15: Debt repayment - Long-term | E15: ='Transaction Assumptions'!F25 -> 300 | H15: Use Target Company Cash | J15: ='Transaction Assumptions'!F29 -> 400
C16: Debt Fees | E16: =SUM(J12:J13)*'Transaction Assumptions'!F51 -> 15 | H16: Asset Sale | J16: ='Transaction Assumptions'!F27 -> 531.4000111
C17: Advisory Fees | E17: =E13*'Transaction Assumptions'!F62 -> 5.51196 | H17: Equity | J17: =E18-SUM(J12:J16) -> 1113.707973
D18: Total Uses | E18: =SUM(E13:E17) -> 2445.107984 | I18: Total | J18: =SUM(J12:J17) -> 2445.107984

Sheet Transaction Assumptions
A1: Assumptions for Acquistion Model
B3: Transaction Assumptions
C4: Date of Transaction | F4: 2011-05-01
C5: Holding Period - Years | F5: 5
C6: Exit EV/EBITDA Multiple | F6: =I6/10 -> 12 | I6: 120
C7: Exit Date | F7: =EDATE(F4,F5*12) -> 2016-05-01
C8: Year of Transation | F8: =YEAR(F4) -> 2011
C10: Consideration
D11: Current Share Price | F11: 2.51
D12: Premium | F12: =I12/100 -> 0.22 | I12: 22
D13: Number of Shares | F13: 180
D15: Total Consideration for Equity | F15: =F11*(1+F12)*F13 -> 551.196
D16: EV versus Equity Bridge | F16: =-'Valuation and ROIC'!G37 -> 1372.554834
D17: Enterprise Value | F17: =F15+F16 -> 1923.750834
D19: Column Number for Year | F19: =MATCH(F8,'Financial Model Assumptions'!2:2) -> 16
D20: EBITDA | F20: =INDEX('Financial Model'!285:285,'Transaction Assumptions'!F19) -> 78.20015471
D21: EV/EBITDA Multiple | F21: =F17/F20 -> 24.60034563
B23: Financing of Transaction
C24: Debt Retirement - Short-term | F24: ='Pro-forma Balance'!F52 -> 1573.400024
C25: Debt Retirement - Long-term | F25: 300
C27: Asset Sales (Associates) | F27: ='Valuation and ROIC'!G34 -> 531.4000111
C29: Cash Used to Finance transtion | F29: 400
C31: Debt Issued for Transaction
D32: Amortising Debt | F32: 200
D33: Tenor of Amortising Debt | F33: 5
D35: Euribor Rate | E35: Pct | F35: 0.02
D37: Credit Spread | E37: Debt/EBTIDA | F37: Credit Spread
E38: 2 | F38: 0.03
E39: 3 | F39: 0.035
E40: 4 | F40: 0.04
E41: 5 | F41: 0.05
D43: Bullet Debt | F43: 100
D45: Cash Sweep | E45: Debt/EBTIDA | F45: Cash Sweep
E46: 2 | F46: 0.5
E47: 3 | F47: 0.7
E48: 4 | F48: 1
E49: 5 | F49: 1
D51: Fees | F51: =F41 -> 0.05
D53: Revloving Commitment | F53: 300
D55: Subordinated Debt | F55: 100
D57: Margin on Sub Debt | F57: 0.08
D58: Total Senior Debt | F58: =F43+F32 -> 300
D59: Senior Debt to EBITDA | F59: =F58/F20 -> 3.836309546
D62: Advisory Fees as Pct of Consideration | F62: 0.01
B64: Accounting Assumptions
C66: Asset Write-downs - Plant | F66: 500
C67: Inventory Write-downs | F67: 20
C69: Intangible Assets | F69: 100
C71: Tax Rate | F71: 0.25
C72: Increase in Deferred Tax Liability | F72: =(F66+F69)*F71 -> 150
C74: Intangible Amortisation Rate | F74: 0.03
C75: Issuance Cost Amortisation Rate | F75: 0.2
B77: Synergy and Break Even Assumptions
C78: Synergies | F78: 80
C79: Revenue Percent | F79: =P79/100 -> 1 | P79: 100
B82: J-Curve
D84: Equity IRR | E84: ='Acquisition Model'!E226 -> 0.2255316317

Sheet Pro-forma Balance
A3: Sources and Uses | E3: ='Transaction Assumptions'!F4 -> 2011-05-01
B4: Uses
C5: Consideration | E5: ='Transaction Assumptions'!F15 -> 551.196
C6: Debt repayment - short-term | E6: ='Transaction Assumptions'!F24 -> 1573.400024
C7: Debt repayment - Long-term | E7: ='Transaction Assumptions'!F25 -> 300
C8: Debt Fees | E8: =SUM(E13:E14)*'Transaction Assumptions'!F51 -> 15
C9: Advisory Fees | E9: =E5*'Transaction Assumptions'!F62 -> 5.51196
D10: Total Uses | E10: =SUM(E5:E9) -> 2445.107984
B12: Sources
C13: A- Amortising Debt | E13: ='Transaction Assumptions'!F32 -> 200
C14: B - Bullet Debt | E14: ='Transaction Assumptions'!F43 -> 100
C15: C - Capitalising Debt | E15: ='Transaction Assumptions'!F55 -> 100
C16: Use Target Company Cash | E16: ='Transaction Assumptions'!F29 -> 400
C17: Asset Sale | E17: ='Transaction Assumptions'!F27 -> 531.4000111
C18: Equity | E18: =E10-SUM(E13:E17) -> 1113.707973
D19: Total | E19: =SUM(E13:E18) -> 2445.107984
D21: Sources - Uses | E21: =E19-E10 -> 0
D22: Test | E22: =E21=0 -> TRUE
A24: Goodwill Analysis
C26: Consideration | E26: =E5 -> 551.196
C27: Less: Equity of Target | E27: =F63 -> 946.3999877
C28: Plus: Write-down of Fixed Assets | E28: ='Transaction Assumptions'!F66 -> 500
C29: Add: Write-down of Inventories | E29: ='Transaction Assumptions'!F67 -> 20
C30: Less: Intangibles | E30: ='Transaction Assumptions'!F69 -> 100
C31: Add: Deferred Tax Liability Increase | E31: ='Transaction Assumptions'!F72 -> 150
D32: Total Goodwill | E32: =E26-E27+E28+E29-E30+E31 -> 174.7960123
C34: Column Number | F34: =MATCH('Transaction Assumptions'!F8,'Financial Model Assumptions'!2:2) -> 16
A36: Pro-forma Balance | F36: Opening | G36: Cash Chg | H36: Asset Value | I36: Goodwill | J36: Asset Sale | K36: Debt Issued | L36: Debt Retire | M36: Equity Issued | N36: Equity Retired | O36: Total Adj | P36: Pro-forma
B38: Assets
C39: Cash and Financial Assets | F39: =INDEX('Financial Model'!255:255,'Transaction Assumptions'!$F$19) -> 768.1000023 | G39: =-E16 -> -400 | O39: =SUM(G39:N39) -> -400 | P39: =O39+F39 -> 368.1000023
C40: Other Current Assets | F40: =INDEX('Financial Model'!256:256,'Transaction Assumptions'!$F$19) -> 1318.199967 | H40: =-E29 -> -20 | O40: -20 | P40: 1298.199967
C41: Net Plant | F41: =INDEX('Financial Model'!257:257,'Transaction Assumptions'!$F$19) -> 1569.199951 | H41: =-E28 -> -500 | O41: -500 | P41: 1069.199951
C42: Goodwill | F42: =INDEX('Financial Model'!258:258,'Transaction Assumptions'!$F$19) -> 0 | I42: =E32 -> 174.7960123 | O42: 174.7960123 | P42: 174.7960123
C43: Intangible Assets | F43: =INDEX('Financial Model'!259:259,'Transaction Assumptions'!$F$19) -> 23 | H43: =E30 -> 100 | O43: 100 | P43: 123
C44: Debt Issue Costs | K44: =E8 -> 15 | O44: 15 | P44: 15
C45: Affililates | F45: =INDEX('Financial Model'!261:261,'Transaction Assumptions'!$F$19) -> 531.4000111 | J45: =-E17 -> -531.4000111 | O45: -531.4000111 | P45: 0
C46: Deferred taxes | F46: =INDEX('Financial Model'!262:262,'Transaction Assumptions'!$F$19) -> 70.99999809 | O46: 0 | P46: 70.99999809
C47: Prepayments | F47: =INDEX('Financial Model'!263:263,'Transaction Assumptions'!$F$19) -> 256.4000053 | O47: 0 | P47: 256.4000053
C49: Total Assets | F49: =INDEX('Financial Model'!264:264,'Transaction Assumptions'!$F$19) -> 4537.299935 | O49: =SUM(O39:O47) -> -1161.603999 | P49: =O49+F49 -> 3375.695936
B51: Liabilities and Equity
C52: Short-term Debt | F52: =INDEX('Financial Model'!267:267,'Transaction Assumptions'!$F$19) -> 1573.400024 | L52: =-E6 -> -1573.400024 | O52: =SUM(G52:N52) -> -1573.400024 | P52: =O52+F52 -> 0
C53: Other Current Liabilites | F53: =INDEX('Financial Model'!268:268,'Transaction Assumptions'!$F$19) -> 1035.49995 | L53: =-E7 -> -300 | O53: -300 | P53: 735.4999496
C54: Long-term Debt | F54: =INDEX('Financial Model'!269:269,'Transaction Assumptions'!$F$19) -> 714.2000275 | O54: 0 | P54: 714.2000275
C55: A Debt | K55: =E13 -> 200 | O55: 200 | P55: 200
C56: B Debt | K56: =E14 -> 100 | O56: 100 | P56: 100
C57: C Debt | K57: =E15 -> 100 | O57: 100 | P57: 100
C58: Accrued Warranty Costs | F58: =INDEX('Financial Model'!270:270,'Transaction Assumptions'!$F$19) -> 94.09999847 | O58: 0 | P58: 94.09999847
C59: Deferred tax liabilities | F59: =INDEX('Financial Model'!271:271,'Transaction Assumptions'!$F$19) -> 0 | H59: =E31 -> 150 | O59: 150 | P59: 150
C60: Retirement benefit obligations | F60: =INDEX('Financial Model'!272:272,'Transaction Assumptions'!$F$19) -> 0 | O60: 0 | P60: 0
C61: Other long-term liabilities | F61: =INDEX('Financial Model'!273:273,'Transaction Assumptions'!$F$19) -> 167.3000031 | O61: 0 | P61: 167.3000031
C62: Minority Interest | F62: =INDEX('Financial Model'!274:274,'Transaction Assumptions'!$F$19) -> 6.400000095 | O62: 0 | P62: 6.400000095
C63: Equity | F63: =INDEX('Financial Model'!275:275,'Transaction Assumptions'!$F$19) -> 946.3999877 | M63: =E18 -> 1113.707973 | N63: =-E27-E9 -> -951.9119477 | O63: 161.7960257 | P63: 1108.196013
C65: Total Liabilities and Capital | F65: =INDEX('Financial Model'!277:277,'Transaction Assumptions'!$F$19) -> 4537.299991 | O65: =SUM(O52:O64) -> -1161.603999 | P65: =O65+F65 -> 3375.695992
F67: =F65-F49 -> 5.558331213e-05 | O67: =O65-O49 -> 0 | P67: =P65-P49 -> 5.558331168e-05
F68: =ROUND(F67,0)=0 -> TRUE | P68: =ROUND(P67,0)=0 -> TRUE

Sheet Acquisition Model
A2: Dates
B3: Start Date | F3: ='Transaction Assumptions'!F4 -> 2011-05-01 | G3: =F4+1 -> 2012-01-01 | H3: 2013-01-01 | I3: 2014-01-01 | J3: 2015-01-01 | K3: 2016-01-01 | L3: 2016-05-02 | M3: 2016-05-02 | N3: 2016-05-02 | O3: 2016-05-02 | P3: 2016-05-02 | Q3: 2016-05-02 | R3: 2016-05-02 | S3: 2016-05-02 | T3: 2016-05-02 | U3: 2016-05-02 | V3: 2016-05-02
B4: End Date | E4: ='Transaction Assumptions'!F4 -> 2011-05-01 | F4: =DATE(YEAR(F3),12,31) -> 2011-12-31 | G4: =MIN(DATE(YEAR(G3),12,31),'Transaction Assumptions'!$F$7) -> 2012-12-31 | H4: =MIN(DATE(YEAR(H3),12,31),'Transaction Assumptions'!$F$7) -> 2013-12-31 | I4: =MIN(DATE(YEAR(I3),12,31),'Transaction Assumptions'!$F$7) -> 2014-12-31 | J4: =MIN(DATE(YEAR(J3),12,31),'Transaction Assumptions'!$F$7) -> 2015-12-31 | K4: =MIN(DATE(YEAR(K3),12,31),'Transaction Assumptions'!$F$7) -> 2016-05-01 | L4: =MIN(DATE(YEAR(L3),12,31),'Transaction Assumptions'!$F$7) -> 2016-05-01 | M4: =MIN(DATE(YEAR(M3),12,31),'Transaction Assumptions'!$F$7) -> 2016-05-01 | N4: =MIN(DATE(YEAR(N3),12,31),'Transaction Assumptions'!$F$7) -> 2016-05-01 | O4: =MIN(DATE(YEAR(O3),12,31),'Transaction Assumptions'!$F$7) -> 2016-05-01 | P4: =MIN(DATE(YEAR(P3),12,31),'Transaction Assumptions'!$F$7) -> 2016-05-01 | Q4: =MIN(DATE(YEAR(Q3),12,31),'Transaction Assumptions'!$F$7) -> 2016-05-01 | R4: =MIN(DATE(YEAR(R3),12,31),'Transaction Assumptions'!$F$7) -> 2016-05-01 | S4: =MIN(DATE(YEAR(S3),12,31),'Transaction Assumptions'!$F$7) -> 2016-05-01 | T4: =MIN(DATE(YEAR(T3),12,31),'Transaction Assumptions'!$F$7) -> 2016-05-01 | U4: =MIN(DATE(YEAR(U3),12,31),'Transaction Assumptions'!$F$7) -> 2016-05-01 | V4: =MIN(DATE(YEAR(V3),12,31),'Transaction Assumptions'!$F$7) -> 2016-05-01
B5: Year | F5: =YEAR(F4) -> 2011 | G5: =YEAR(G4) -> 2012 | H5: 2013 | I5: 2014 | J5: 2015 | K5: 2016 | L5: 2016 | M5: 2016 | N5: 2016 | O5: 2016 | P5: 2016 | Q5: 2016 | R5: 2016 | S5: 2016 | T5: 2016 | U5: 2016 | V5: 2016
B6: Column from MATCH | F6: =MATCH(F5,'Financial Model Assumptions'!2:2) -> 16 | G6: =MATCH(G5,'Financial Model Assumptions'!2:2) -> 17 | H6: =MATCH(H5,'Financial Model Assumptions'!2:2) -> 18 | I6: =MATCH(I5,'Financial Model Assumptions'!2:2) -> 19 | J6: =MATCH(J5,'Financial Model Assumptions'!2:2) -> 20 | K6: =MATCH(K5,'Financial Model Assumptions'!2:2) -> 21 | L6: =MATCH(L5,'Financial Model Assumptions'!2:2) -> 21 | M6: =MATCH(M5,'Financial Model Assumptions'!2:2) -> 21 | N6: =MATCH(N5,'Financial Model Assumptions'!2:2) -> 21 | O6: =MATCH(O5,'Financial Model Assumptions'!2:2) -> 21 | P6: =MATCH(P5,'Financial Model Assumptions'!2:2) -> 21 | Q6: =MATCH(Q5,'Financial Model Assumptions'!2:2) -> 21 | R6: =MATCH(R5,'Financial Model Assumptions'!2:2) -> 21 | S6: =MATCH(S5,'Financial Model Assumptions'!2:2) -> 21 | T6: =MATCH(T5,'Financial Model Assumptions'!2:2) -> 21 | U6: =MATCH(U5,'Financial Model Assumptions'!2:2) -> 21 | V6: =MATCH(V5,'Financial Model Assumptions'!2:2) -> 21
B7: Holding Period Switch | F7: =F3<='Transaction Assumptions'!$F$7 -> TRUE | G7: =G3<='Transaction Assumptions'!$F$7 -> TRUE | H7: =H3<='Transaction Assumptions'!$F$7 -> TRUE | I7: =I3<='Transaction Assumptions'!$F$7 -> TRUE | J7: =J3<='Transaction Assumptions'!$F$7 -> TRUE | K7: =K3<='Transaction Assumptions'!$F$7 -> TRUE | L7: =L3<='Transaction Assumptions'!$F$7 -> FALSE | M7: =M3<='Transaction Assumptions'!$F$7 -> FALSE | N7: =N3<='Transaction Assumptions'!$F$7 -> FALSE | O7: =O3<='Transaction Assumptions'!$F$7 -> FALSE | P7: =P3<='Transaction Assumptions'!$F$7 -> FALSE | Q7: =Q3<='Transaction Assumptions'!$F$7 -> FALSE | R7: =R3<='Transaction Assumptions'!$F$7 -> FALSE | S7: =S3<='Transaction Assumptions'!$F$7 -> FALSE | T7: =T3<='Transaction Assumptions'!$F$7 -> FALSE | U7: =U3<='Transaction Assumptions'!$F$7 -> FALSE | V7: =V3<='Transaction Assumptions'!$F$7 -> FALSE
B8: Terminal Period Switch | F8: =AND(F4='Transaction Assumptions'!$F$7,E7) -> FALSE | G8: =AND(G4='Transaction Assumptions'!$F$7,F7) -> FALSE | H8: =AND(H4='Transaction Assumptions'!$F$7,G7) -> FALSE | I8: =AND(I4='Transaction Assumptions'!$F$7,H7) -> FALSE | J8: =AND(J4='Transaction Assumptions'!$F$7,I7) -> FALSE | K8: =AND(K4='Transaction Assumptions'!$F$7,J7) -> TRUE | L8: =AND(L4='Transaction Assumptions'!$F$7,K7) -> TRUE | M8: =AND(M4='Transaction Assumptions'!$F$7,L7) -> FALSE | N8: =AND(N4='Transaction Assumptions'!$F$7,M7) -> FALSE | O8: =AND(O4='Transaction Assumptions'!$F$7,N7) -> FALSE | P8: =AND(P4='Transaction Assumptions'!$F$7,O7) -> FALSE | Q8: =AND(Q4='Transaction Assumptions'!$F$7,P7) -> FALSE | R8: =AND(R4='Transaction Assumptions'!$F$7,Q7) -> FALSE | S8: =AND(S4='Transaction Assumptions'!$F$7,R7) -> FALSE | T8: =AND(T4='Transaction Assumptions'!$F$7,S7) -> FALSE | U8: =AND(U4='Transaction Assumptions'!$F$7,T7) -> FALSE | V8: =AND(V4='Transaction Assumptions'!$F$7,U7) -> FALSE
B9: Fraction of Year | F9: =YEARFRAC(F3,F4+1) -> 0.6666666667 | G9: =YEARFRAC(G3,G4+1) -> 1 | H9: 1 | I9: 1 | J9: 1 | K9: 0.3361111111 | L9: 0 | M9: 0 | N9: 0 | O9: 0 | P9: 0 | Q9: 0 | R9: 0 | S9: 0 | T9: 0 | U9: 0 | V9: 0
A10: Operating Section
B12: Annual
C13: Revenues using INDEX function | F13: =INDEX('Financial Model'!292:292,'Acquisition Model'!F6)*F7*'Transaction Assumptions'!$F$79 -> 3146.600006 | G13: =INDEX('Financial Model'!292:292,'Acquisition Model'!G6)*G7*'Transaction Assumptions'!$F$79 -> 1515.163607 | H13: =INDEX('Financial Model'!292:292,'Acquisition Model'!H6)*H7*'Transaction Assumptions'!$F$79 -> 1640.820112 | I13: =INDEX('Financial Model'!292:292,'Acquisition Model'!I6)*I7*'Transaction Assumptions'!$F$79 -> 1842.940519 | J13: =INDEX('Financial Model'!292:292,'Acquisition Model'!J6)*J7*'Transaction Assumptions'!$F$79 -> 2973.311269 | K13: =INDEX('Financial Model'!292:292,'Acquisition Model'!K6)*K7*'Transaction Assumptions'!$F$79 -> 3612.254623 | L13: =INDEX('Financial Model'!292:292,'Acquisition Model'!L6)*L7*'Transaction Assumptions'!$F$79 -> 0 | M13: =INDEX('Financial Model'!292:292,'Acquisition Model'!M6)*M7*'Transaction Assumptions'!$F$79 -> 0 | N13: =INDEX('Financial Model'!292:292,'Acquisition Model'!N6)*N7*'Transaction Assumptions'!$F$79 -> 0 | O13: =INDEX('Financial Model'!292:292,'Acquisition Model'!O6)*O7*'Transaction Assumptions'!$F$79 -> 0 | P13: =INDEX('Financial Model'!292:292,'Acquisition Model'!P6)*P7*'Transaction Assumptions'!$F$79 -> 0 | Q13: =INDEX('Financial Model'!292:292,'Acquisition Model'!Q6)*Q7*'Transaction Assumptions'!$F$79 -> 0 | R13: =INDEX('Financial Model'!292:292,'Acquisition Model'!R6)*R7*'Transaction Assumptions'!$F$79 -> 0 | S13: =INDEX('Financial Model'!292:292,'Acquisition Model'!S6)*S7*'Transaction Assumptions'!$F$79 -> 0 | T13: =INDEX('Financial Model'!292:292,'Acquisition Model'!T6)*T7*'Transaction Assumptions'!$F$79 -> 0 | U13: =INDEX('Financial Model'!292:292,'Acquisition Model'!U6)*U7*'Transaction Assumptions'!$F$79 -> 0 | V13: =INDEX('Financial Model'!292:292,'Acquisition Model'!V6)*V7*'Transaction Assumptions'!$F$79 -> 0
C14: Expeses using INDEX function | F14: =INDEX('Financial Model'!294:294,'Acquisition Model'!F6)*'Acquisition Model'!F7 -> 3068.399851 | G14: =INDEX('Financial Model'!294:294,'Acquisition Model'!G6)*'Acquisition Model'!G7 -> 1520.935061 | H14: =INDEX('Financial Model'!294:294,'Acquisition Model'!H6)*'Acquisition Model'!H7 -> 1542.005044 | I14: =INDEX('Financial Model'!294:294,'Acquisition Model'!I6)*'Acquisition Model'!I7 -> 1701.195624 | J14: =INDEX('Financial Model'!294:294,'Acquisition Model'!J6)*'Acquisition Model'!J7 -> 2781.631344 | K14: =INDEX('Financial Model'!294:294,'Acquisition Model'!K6)*'Acquisition Model'!K7 -> 3273.643894 | L14: =INDEX('Financial Model'!294:294,'Acquisition Model'!L6)*'Acquisition Model'!L7 -> 0 | M14: =INDEX('Financial Model'!294:294,'Acquisition Model'!M6)*'Acquisition Model'!M7 -> 0 | N14: =INDEX('Financial Model'!294:294,'Acquisition Model'!N6)*'Acquisition Model'!N7 -> 0 | O14: =INDEX('Financial Model'!294:294,'Acquisition Model'!O6)*'Acquisition Model'!O7 -> 0 | P14: =INDEX('Financial Model'!294:294,'Acquisition Model'!P6)*'Acquisition Model'!P7 -> 0 | Q14: =INDEX('Financial Model'!294:294,'Acquisition Model'!Q6)*'Acquisition Model'!Q7 -> 0 | R14: =INDEX('Financial Model'!294:294,'Acquisition Model'!R6)*'Acquisition Model'!R7 -> 0 | S14: =INDEX('Financial Model'!294:294,'Acquisition Model'!S6)*'Acquisition Model'!S7 -> 0 | T14: =INDEX('Financial Model'!294:294,'Acquisition Model'!T6)*'Acquisition Model'!T7 -> 0 | U14: =INDEX('Financial Model'!294:294,'Acquisition Model'!U6)*'Acquisition Model'!U7 -> 0 | V14: =INDEX('Financial Model'!294:294,'Acquisition Model'!V6)*'Acquisition Model'!V7 -> 0
C15: Capital Expenditures | F15: =INDEX('Financial Model'!289:289,'Acquisition Model'!F6)*'Acquisition Model'!F7 -> 366.7999878 | G15: =INDEX('Financial Model'!289:289,'Acquisition Model'!G6)*'Acquisition Model'!G7 -> 72.72 | H15: =INDEX('Financial Model'!289:289,'Acquisition Model'!H6)*'Acquisition Model'!H7 -> 73.4472 | I15: =INDEX('Financial Model'!289:289,'Acquisition Model'!I6)*'Acquisition Model'!I7 -> 74.548908 | J15: =INDEX('Financial Model'!289:289,'Acquisition Model'!J6)*'Acquisition Model'!J7 -> 688.8232125 | K15: =INDEX('Financial Model'!289:289,'Acquisition Model'!K6)*'Acquisition Model'!K7 -> 104.7725076 | L15: =INDEX('Financial Model'!289:289,'Acquisition Model'!L6)*'Acquisition Model'!L7 -> 0 | M15: =INDEX('Financial Model'!289:289,'Acquisition Model'!M6)*'Acquisition Model'!M7 -> 0 | N15: =INDEX('Financial Model'!289:289,'Acquisition Model'!N6)*'Acquisition Model'!N7 -> 0 | O15: =INDEX('Financial Model'!289:289,'Acquisition Model'!O6)*'Acquisition Model'!O7 -> 0 | P15: =INDEX('Financial Model'!289:289,'Acquisition Model'!P6)*'Acquisition Model'!P7 -> 0 | Q15: =INDEX('Financial Model'!289:289,'Acquisition Model'!Q6)*'Acquisition Model'!Q7 -> 0 | R15: =INDEX('Financial Model'!289:289,'Acquisition Model'!R6)*'Acquisition Model'!R7 -> 0 | S15: =INDEX('Financial Model'!289:289,'Acquisition Model'!S6)*'Acquisition Model'!S7 -> 0 | T15: =INDEX('Financial Model'!289:289,'Acquisition Model'!T6)*'Acquisition Model'!T7 -> 0 | U15: =INDEX('Financial Model'!289:289,'Acquisition Model'!U6)*'Acquisition Model'!U7 -> 0 | V15: =INDEX('Financial Model'!289:289,'Acquisition Model'!V6)*'Acquisition Model'!V7 -> 0
C16: Synergies | F16: ='Transaction Assumptions'!$F$78*F7 -> 80 | G16: ='Transaction Assumptions'!$F$78*G7 -> 80 | H16: ='Transaction Assumptions'!$F$78*H7 -> 80 | I16: ='Transaction Assumptions'!$F$78*I7 -> 80 | J16: ='Transaction Assumptions'!$F$78*J7 -> 80 | K16: ='Transaction Assumptions'!$F$78*K7 -> 80 | L16: ='Transaction Assumptions'!$F$78*L7 -> 0 | M16: ='Transaction Assumptions'!$F$78*M7 -> 0 | N16: ='Transaction Assumptions'!$F$78*N7 -> 0 | O16: ='Transaction Assumptions'!$F$78*O7 -> 0 | P16: ='Transaction Assumptions'!$F$78*P7 -> 0 | Q16: ='Transaction Assumptions'!$F$78*Q7 -> 0 | R16: ='Transaction Assumptions'!$F$78*R7 -> 0 | S16: ='Transaction Assumptions'!$F$78*S7 -> 0 | T16: ='Transaction Assumptions'!$F$78*T7 -> 0 | U16: ='Transaction Assumptions'!$F$78*U7 -> 0 | V16: ='Transaction Assumptions'!$F$78*V7 -> 0
C17: EBITDA | F17: =F13-F14+F16 -> 158.2001547 | G17: =G13-G14+G16 -> 74.22854634 | H17: 178.8150686 | I17: 221.7448951 | J17: 271.6799253 | K17: 418.6107285 | L17: 0 | M17: 0 | N17: 0 | O17: 0 | P17: 0 | Q17: 0 | R17: 0 | S17: 0 | T17: 0 | U17: 0 | V17: 0
B19: Periodic
C20: Revenues | F20: =F13*F9 -> 2097.733337 | G20: 1515.163607 | H20: 1640.820112 | I20: 1842.940519 | J20: 2973.311269 | K20: 1214.118915 | L20: 0 | M20: 0 | N20: 0 | O20: 0 | P20: 0 | Q20: 0 | R20: 0 | S20: 0 | T20: 0 | U20: 0 | V20: 0
C21: Expeses | F21: =F14*F9 -> 2045.599901 | G21: 1520.935061 | H21: 1542.005044 | I21: 1701.195624 | J21: 2781.631344 | K21: 1100.308087 | L21: 0 | M21: 0 | N21: 0 | O21: 0 | P21: 0 | Q21: 0 | R21: 0 | S21: 0 | T21: 0 | U21: 0 | V21: 0
C22: Capital Expenditures | F22: =F15*F9 -> 244.5333252 | G22: 72.72 | H22: 73.4472 | I22: 74.548908 | J22: 688.8232125 | K22: 35.21520396 | L22: 0 | M22: 0 | N22: 0 | O22: 0 | P22: 0 | Q22: 0 | R22: 0 | S22: 0 | T22: 0 | U22: 0 | V22: 0
C23: Synergies | F23: =F16*F9*F7 -> 53.33333333 | G23: 80 | H23: 80 | I23: 80 | J23: 80 | K23: 26.88888889 | L23: 0 | M23: 0 | N23: 0 | O23: 0 | P23: 0 | Q23: 0 | R23: 0 | S23: 0 | T23: 0 | U23: 0 | V23: 0
B25: Terminal Proceeds
C26: Exit EV/EBITDA | F26: ='Transaction Assumptions'!$F$6 -> 12 | G26: ='Transaction Assumptions'!$F$6 -> 12 | H26: ='Transaction Assumptions'!$F$6 -> 12 | I26: ='Transaction Assumptions'!$F$6 -> 12 | J26: ='Transaction Assumptions'!$F$6 -> 12 | K26: ='Transaction Assumptions'!$F$6 -> 12 | L26: ='Transaction Assumptions'!$F$6 -> 12 | M26: ='Transaction Assumptions'!$F$6 -> 12 | N26: ='Transaction Assumptions'!$F$6 -> 12 | O26: ='Transaction Assumptions'!$F$6 -> 12 | P26: ='Transaction Assumptions'!$F$6 -> 12 | Q26: ='Transaction Assumptions'!$F$6 -> 12 | R26: ='Transaction Assumptions'!$F$6 -> 12 | S26: ='Transaction Assumptions'!$F$6 -> 12 | T26: ='Transaction Assumptions'!$F$6 -> 12 | U26: ='Transaction Assumptions'!$F$6 -> 12 | V26: ='Transaction Assumptions'!$F$6 -> 12
C27: Exit Proceeds | F27: =F26*F17*F8 -> 0 | G27: 0 | H27: 0 | I27: 0 | J27: 0 | K27: 5023.328742 | L27: 0 | M27: 0 | N27: 0 | O27: 0 | P27: 0 | Q27: 0 | R27: 0 | S27: 0 | T27: 0 | U27: 0 | V27: 0
A29: Working Capital
C30: Total Non-Cash Current Asset
D31: Current Assets as Pct of Revenue | F31: =INDEX('Financial Model'!293:293,'Acquisition Model'!F6) -> 0.4189283559 | G31: =INDEX('Financial Model'!293:293,'Acquisition Model'!G6) -> 0.4531666667 | H31: =INDEX('Financial Model'!293:293,'Acquisition Model'!H6) -> 0.4388880071 | I31: =INDEX('Financial Model'!293:293,'Acquisition Model'!I6) -> 0.4356428571 | J31: =INDEX('Financial Model'!293:293,'Acquisition Model'!J6) -> 0.4403367347 | K31: =INDEX('Financial Model'!293:293,'Acquisition Model'!K6) -> 0.4341321839 | L31: =INDEX('Financial Model'!293:293,'Acquisition Model'!L6) -> 0.4341321839 | M31: =INDEX('Financial Model'!293:293,'Acquisition Model'!M6) -> 0.4341321839 | N31: =INDEX('Financial Model'!293:293,'Acquisition Model'!N6) -> 0.4341321839 | O31: =INDEX('Financial Model'!293:293,'Acquisition Model'!O6) -> 0.4341321839 | P31: =INDEX('Financial Model'!293:293,'Acquisition Model'!P6) -> 0.4341321839 | Q31: =INDEX('Financial Model'!293:293,'Acquisition Model'!Q6) -> 0.4341321839 | R31: =INDEX('Financial Model'!293:293,'Acquisition Model'!R6) -> 0.4341321839 | S31: =INDEX('Financial Model'!293:293,'Acquisition Model'!S6) -> 0.4341321839 | T31: =INDEX('Financial Model'!293:293,'Acquisition Model'!T6) -> 0.4341321839 | U31: =INDEX('Financial Model'!293:293,'Acquisition Model'!U6) -> 0.4341321839 | V31: =INDEX('Financial Model'!293:293,'Acquisition Model'!V6) -> 0.4341321839
D32: Level of Current Assets | E32: ='Pro-forma Balance'!P40 -> 1298.199967 | F32: =F31*F13 -> 1318.199967 | G32: =G31*G13 -> 686.6216412 | H32: 720.1362689 | I32: 802.8638731 | J32: 1309.258175 | K32: 1568.195988 | L32: 0 | M32: 0 | N32: 0 | O32: 0 | P32: 0 | Q32: 0 | R32: 0 | S32: 0 | T32: 0 | U32: 0 | V32: 0
C35: Total Non-Cash Current Liab
D36: Current Liab as Pct of Expenses | F36: =INDEX('Financial Model'!295:295,'Acquisition Model'!F6) -> 0.3374722982 | G36: =INDEX('Financial Model'!295:295,'Acquisition Model'!G6) -> 0.3384749087 | H36: =INDEX('Financial Model'!295:295,'Acquisition Model'!H6) -> 0.3357446478 | I36: =INDEX('Financial Model'!295:295,'Acquisition Model'!I6) -> 0.3291756115 | J36: =INDEX('Financial Model'!295:295,'Acquisition Model'!J6) -> 0.3614698396 | K36: =INDEX('Financial Model'!295:295,'Acquisition Model'!K6) -> 0.3020661596 | L36: =INDEX('Financial Model'!295:295,'Acquisition Model'!L6) -> 0.3020661596 | M36: =INDEX('Financial Model'!295:295,'Acquisition Model'!M6) -> 0.3020661596 | N36: =INDEX('Financial Model'!295:295,'Acquisition Model'!N6) -> 0.3020661596 | O36: =INDEX('Financial Model'!295:295,'Acquisition Model'!O6) -> 0.3020661596 | P36: =INDEX('Financial Model'!295:295,'Acquisition Model'!P6) -> 0.3020661596 | Q36: =INDEX('Financial Model'!295:295,'Acquisition Model'!Q6) -> 0.3020661596 | R36: =INDEX('Financial Model'!295:295,'Acquisition Model'!R6) -> 0.3020661596 | S36: =INDEX('Financial Model'!295:295,'Acquisition Model'!S6) -> 0.3020661596 | T36: =INDEX('Financial Model'!295:295,'Acquisition Model'!T6) -> 0.3020661596 | U36: =INDEX('Financial Model'!295:295,'Acquisition Model'!U6) -> 0.3020661596 | V36: =INDEX('Financial Model'!295:295,'Acquisition Model'!V6) -> 0.3020661596
D37: Level of Current Liab | E37: ='Pro-forma Balance'!P53 -> 735.4999496 | F37: =F36*F14 -> 1035.49995 | G37: =G36*G14 -> 514.7983558 | H37: 517.7199403 | I37: 559.9921097 | J37: 1005.475836 | K37: 988.8570389 | L37: 0 | M37: 0 | N37: 0 | O37: 0 | P37: 0 | Q37: 0 | R37: 0 | S37: 0 | T37: 0 | U37: 0 | V37: 0
D39: Total Working Capital | E39: =E32-E37 -> 562.7000177 | F39: =F32-F37 -> 282.7000177 | G39: 171.8232854 | H39: 202.4163286 | I39: 242.8717634 | J39: 303.7823399 | K39: 579.3389493 | L39: 0 | M39: 0 | N39: 0 | O39: 0 | P39: 0 | Q39: 0 | R39: 0 | S39: 0 | T39: 0 | U39: 0 | V39: 0
D40: Working Capital Change | F40: =(F39-E39)*F7 -> -280 | G40: -110.8767323 | H40: 30.59304325 | I40: 40.45543474 | J40: 60.91057654 | K40: 275.5566094 | L40: 0 | M40: 0 | N40: 0 | O40: 0 | P40: 0 | Q40: 0 | R40: 0 | S40: 0 | T40: 0 | U40: 0 | V40: 0
A42: Fixed Assets
B44: Net Plant Assets
C45: Opening Balance | F45: =E49 -> 1069.199951 | G45: =F49 -> 1339.518468 | H45: 1318.472175 | I45: 1299.626323 | J45: 1283.201388 | K45: 1882.200504 | L45: -3168.109766 | M45: -3168.109766 | N45: -3168.109766 | O45: -3168.109766 | P45: -3168.109766 | Q45: -3168.109766 | R45: -3168.109766 | S45: -3168.109766 | T45: -3168.109766 | U45: -3168.109766 | V45: -3168.109766
C46: Add: Cap Exp | F46: =F15 -> 366.7999878 | G46: =G15 -> 72.72 | H46: 73.4472 | I46: 74.548908 | J46: 688.8232125 | K46: 104.7725076 | L46: 0 | M46: 0 | N46: 0 | O46: 0 | P46: 0 | Q46: 0 | R46: 0 | S46: 0 | T46: 0 | U46: 0 | V46: 0
C47: Less: Depreciation | F47: =F52 -> 96.48147102 | G47: =G52 -> 93.76629276 | H47: 92.29305226 | I47: 90.9738426 | J47: 89.82409718 | K47: 131.7540353 | L47: 0 | M47: 0 | N47: 0 | O47: 0 | P47: 0 | Q47: 0 | R47: 0 | S47: 0 | T47: 0 | U47: 0 | V47: 0
C48: Less: Exit Proceeds | F48: =F27 -> 0 | G48: =G27 -> 0 | H48: 0 | I48: 0 | J48: 0 | K48: 5023.328742 | L48: 0 | M48: 0 | N48: 0 | O48: 0 | P48: 0 | Q48: 0 | R48: 0 | S48: 0 | T48: 0 | U48: 0 | V48: 0
C49: Closing Balance | E49: ='Pro-forma Balance'!P41 -> 1069.199951 | F49: =F45+F46-F47-F48 -> 1339.518468 | G49: =G45+G46-G47-G48 -> 1318.472175 | H49: 1299.626323 | I49: 1283.201388 | J49: 1882.200504 | K49: -3168.109766 | L49: -3168.109766 | M49: -3168.109766 | N49: -3168.109766 | O49: -3168.109766 | P49: -3168.109766 | Q49: -3168.109766 | R49: -3168.109766 | S49: -3168.109766 | T49: -3168.109766 | U49: -3168.109766 | V49: -3168.109766
C51: Depreciation Rate | F51: =INDEX('Financial Model'!297:297,'Acquisition Model'!F6) -> 0.09023707017 | G51: =INDEX('Financial Model'!297:297,'Acquisition Model'!G6) -> 0.07 | H51: =INDEX('Financial Model'!297:297,'Acquisition Model'!H6) -> 0.07 | I51: =INDEX('Financial Model'!297:297,'Acquisition Model'!I6) -> 0.07 | J51: =INDEX('Financial Model'!297:297,'Acquisition Model'!J6) -> 0.07 | K51: =INDEX('Financial Model'!297:297,'Acquisition Model'!K6) -> 0.07 | L51: =INDEX('Financial Model'!297:297,'Acquisition Model'!L6) -> 0.07 | M51: =INDEX('Financial Model'!297:297,'Acquisition Model'!M6) -> 0.07 | N51: =INDEX('Financial Model'!297:297,'Acquisition Model'!N6) -> 0.07 | O51: =INDEX('Financial Model'!297:297,'Acquisition Model'!O6) -> 0.07 | P51: =INDEX('Financial Model'!297:297,'Acquisition Model'!P6) -> 0.07 | Q51: =INDEX('Financial Model'!297:297,'Acquisition Model'!Q6) -> 0.07 | R51: =INDEX('Financial Model'!297:297,'Acquisition Model'!R6) -> 0.07 | S51: =INDEX('Financial Model'!297:297,'Acquisition Model'!S6) -> 0.07 | T51: =INDEX('Financial Model'!297:297,'Acquisition Model'!T6) -> 0.07 | U51: =INDEX('Financial Model'!297:297,'Acquisition Model'!U6) -> 0.07 | V51: =INDEX('Financial Model'!297:297,'Acquisition Model'!V6) -> 0.07
C52: Depreciation Expense | F52: =F51*F45*F7 -> 96.48147102 | G52: 93.76629276 | H52: 92.29305226 | I52: 90.9738426 | J52: 89.82409718 | K52: 131.7540353 | L52: 0 | M52: 0 | N52: 0 | O52: 0 | P52: 0 | Q52: 0 | R52: 0 | S52: 0 | T52: 0 | U52: 0 | V52: 0
C54: Tax Depreciaiton | F54: =INDEX('Financial Model'!148:148,'Acquisition Model'!F6)*F9 -> 94.40000407 | G54: =INDEX('Financial Model'!148:148,'Acquisition Model'!G6)*G9 -> 109.8439966 | H54: =INDEX('Financial Model'!148:148,'Acquisition Model'!H6)*H9 -> 107.2453168 | I54: =INDEX('Financial Model'!148:148,'Acquisition Model'!I6)*I9 -> 104.8794486 | J54: =INDEX('Financial Model'!148:148,'Acquisition Model'!J6)*J9 -> 102.7563108 | K54: =INDEX('Financial Model'!148:148,'Acquisition Model'!K6)*K9 -> 48.32638962 | L54: =INDEX('Financial Model'!148:148,'Acquisition Model'!L6)*L9 -> 0 | M54: =INDEX('Financial Model'!148:148,'Acquisition Model'!M6)*M9 -> 0 | N54: =INDEX('Financial Model'!148:148,'Acquisition Model'!N6)*N9 -> 0 | O54: =INDEX('Financial Model'!148:148,'Acquisition Model'!O6)*O9 -> 0 | P54: =INDEX('Financial Model'!148:148,'Acquisition Model'!P6)*P9 -> 0 | Q54: =INDEX('Financial Model'!148:148,'Acquisition Model'!Q6)*Q9 -> 0 | R54: =INDEX('Financial Model'!148:148,'Acquisition Model'!R6)*R9 -> 0 | S54: =INDEX('Financial Model'!148:148,'Acquisition Model'!S6)*S9 -> 0 | T54: =INDEX('Financial Model'!148:148,'Acquisition Model'!T6)*T9 -> 0 | U54: =INDEX('Financial Model'!148:148,'Acquisition Model'!U6)*U9 -> 0 | V54: =INDEX('Financial Model'!148:148,'Acquisition Model'!V6)*V9 -> 0
B56: Intangible Asset
C57: Base Level of Intangible Assets | E57: ='Pro-forma Balance'!P43 -> 123 | F57: =E57 -> 123 | G57: =F57 -> 123 | H57: 123 | I57: 123 | J57: 123 | K57: 123 | L57: 123 | M57: 123 | N57: 123 | O57: 123 | P57: 123 | Q57: 123 | R57: 123 | S57: 123 | T57: 123 | U57: 123 | V57: 123
C58: Amortisation Rate | F58: ='Transaction Assumptions'!$F$74 -> 0.03 | G58: ='Transaction Assumptions'!$F$74 -> 0.03 | H58: ='Transaction Assumptions'!$F$74 -> 0.03 | I58: ='Transaction Assumptions'!$F$74 -> 0.03 | J58: ='Transaction Assumptions'!$F$74 -> 0.03 | K58: ='Transaction Assumptions'!$F$74 -> 0.03 | L58: ='Transaction Assumptions'!$F$74 -> 0.03 | M58: ='Transaction Assumptions'!$F$74 -> 0.03 | N58: ='Transaction Assumptions'!$F$74 -> 0.03 | O58: ='Transaction Assumptions'!$F$74 -> 0.03 | P58: ='Transaction Assumptions'!$F$74 -> 0.03 | Q58: ='Transaction Assumptions'!$F$74 -> 0.03 | R58: ='Transaction Assumptions'!$F$74 -> 0.03 | S58: ='Transaction Assumptions'!$F$74 -> 0.03 | T58: ='Transaction Assumptions'!$F$74 -> 0.03 | U58: ='Transaction Assumptions'!$F$74 -> 0.03 | V58: ='Transaction Assumptions'!$F$74 -> 0.03
C59: Amortisation | F59: =MIN(F57*F58*F7,E60) -> 3.69 | G59: 3.69 | H59: 3.69 | I59: 3.69 | J59: 3.69 | K59: 3.69 | L59: 0 | M59: 0 | N59: 0 | O59: 0 | P59: 0 | Q59: 0 | R59: 0 | S59: 0 | T59: 0 | U59: 0 | V59: 0
C60: Net Unamortised Amount | E60: =E57 -> 123 | F60: =E60-F59 -> 119.31 | G60: =F60-G59 -> 115.62 | H60: 111.93 | I60: 108.24 | J60: 104.55 | K60: 100.86 | L60: 100.86 | M60: 100.86 | N60: 100.86 | O60: 100.86 | P60: 100.86 | Q60: 100.86 | R60: 100.86 | S60: 100.86 | T60: 100.86 | U60: 100.86 | V60: 100.86
B62: Debt Issue Cost
C63: Base Level of Debt Issue Cost | E63: ='Pro-forma Balance'!P44 -> 15 | F63: =E63 -> 15 | G63: =F63 -> 15 | H63: 15 | I63: 15 | J63: 15 | K63: 15 | L63: 15 | M63: 15 | N63: 15 | O63: 15 | P63: 15 | Q63: 15 | R63: 15 | S63: 15 | T63: 15 | U63: 15 | V63: 15
C64: Amortisation Rate | F64: ='Transaction Assumptions'!$F$75 -> 0.2 | G64: ='Transaction Assumptions'!$F$75 -> 0.2 | H64: ='Transaction Assumptions'!$F$75 -> 0.2 | I64: ='Transaction Assumptions'!$F$75 -> 0.2 | J64: ='Transaction Assumptions'!$F$75 -> 0.2 | K64: ='Transaction Assumptions'!$F$75 -> 0.2 | L64: ='Transaction Assumptions'!$F$75 -> 0.2 | M64: ='Transaction Assumptions'!$F$75 -> 0.2 | N64: ='Transaction Assumptions'!$F$75 -> 0.2 | O64: ='Transaction Assumptions'!$F$75 -> 0.2 | P64: ='Transaction Assumptions'!$F$75 -> 0.2 | Q64: ='Transaction Assumptions'!$F$75 -> 0.2 | R64: ='Transaction Assumptions'!$F$75 -> 0.2 | S64: ='Transaction Assumptions'!$F$75 -> 0.2 | T64: ='Transaction Assumptions'!$F$75 -> 0.2 | U64: ='Transaction Assumptions'!$F$75 -> 0.2 | V64: ='Transaction Assumptions'!$F$75 -> 0.2
C65: Amortisation | F65: =MIN(F63*F64*F7,E66) -> 3 | G65: 3 | H65: 3 | I65: 3 | J65: 3 | K65: 0 | L65: 0 | M65: 0 | N65: 0 | O65: 0 | P65: 0 | Q65: 0 | R65: 0 | S65: 0 | T65: 0 | U65: 0 | V65: 0
C66: Net Unamortised Amount | E66: =E63 -> 15 | F66: =E66-F65 -> 12 | G66: =F66-G65 -> 9 | H66: 6 | I66: 3 | J66: 0 | K66: 0 | L66: 0 | M66: 0 | N66: 0 | O66: 0 | P66: 0 | Q66: 0 | R66: 0 | S66: 0 | T66: 0 | U66: 0 | V66: 0
B68: Goodwill | E68: ='Pro-forma Balance'!P42 -> 174.7960123 | F68: =E68 -> 174.7960123 | G68: =F68 -> 174.7960123 | H68: 174.7960123 | I68: 174.7960123 | J68: 174.7960123 | K68: 174.7960123 | L68: 174.7960123 | M68: 174.7960123 | N68: 174.7960123 | O68: 174.7960123 | P68: 174.7960123 | Q68: 174.7960123 | R68: 174.7960123 | S68: 174.7960123 | T68: 174.7960123 | U68: 174.7960123 | V68: 174.7960123
B70: Affiliates | E70: ='Pro-forma Balance'!P45 -> 0 | F70: =E70 -> 0 | G70: =F70 -> 0 | H70: 0 | I70: 0 | J70: 0 | K70: 0 | L70: 0 | M70: 0 | N70: 0 | O70: 0 | P70: 0 | Q70: 0 | R70: 0 | S70: 0 | T70: 0 | U70: 0 | V70: 0
B71: Deferred taxes | E71: ='Pro-forma Balance'!P46 -> 70.99999809 | F71: =E71 -> 70.99999809 | G71: =F71 -> 70.99999809 | H71: 70.99999809 | I71: 70.99999809 | J71: 70.99999809 | K71: 70.99999809 | L71: 70.99999809 | M71: 70.99999809 | N71: 70.99999809 | O71: 70.99999809 | P71: 70.99999809 | Q71: 70.99999809 | R71: 70.99999809 | S71: 70.99999809 | T71: 70.99999809 | U71: 70.99999809 | V71: 70.99999809
B72: Prepayments | E72: ='Pro-forma Balance'!P47 -> 256.4000053 | F72: =E72 -> 256.4000053 | G72: =F72 -> 256.4000053 | H72: 256.4000053 | I72: 256.4000053 | J72: 256.4000053 | K72: 256.4000053 | L72: 256.4000053 | M72: 256.4000053 | N72: 256.4000053 | O72: 256.4000053 | P72: 256.4000053 | Q72: 256.4000053 | R72: 256.4000053 | S72: 256.4000053 | T72: 256.4000053 | U72: 256.4000053 | V72: 256.4000053
A74: Debt Schedule
B76: Existing Long-term Debt
C77: Repayment Percent | F77: =INDEX('Financial Model Assumptions'!160:160,'Acquisition Model'!F6)*'Acquisition Model'!F9 -> 0.1333333333 | G77: =INDEX('Financial Model Assumptions'!160:160,'Acquisition Model'!G6)*'Acquisition Model'!G9 -> 0.2 | H77: =INDEX('Financial Model Assumptions'!160:160,'Acquisition Model'!H6)*'Acquisition Model'!H9 -> 0.2 | I77: =INDEX('Financial Model Assumptions'!160:160,'Acquisition Model'!I6)*'Acquisition Model'!I9 -> 0.2 | J77: =INDEX('Financial Model Assumptions'!160:160,'Acquisition Model'!J6)*'Acquisition Model'!J9 -> 0.2 | K77: =INDEX('Financial Model Assumptions'!160:160,'Acquisition Model'!K6)*'Acquisition Model'!K9 -> 0.06722222222 | L77: =INDEX('Financial Model Assumptions'!160:160,'Acquisition Model'!L6)*'Acquisition Model'!L9 -> 0 | M77: =INDEX('Financial Model Assumptions'!160:160,'Acquisition Model'!M6)*'Acquisition Model'!M9 -> 0 | N77: =INDEX('Financial Model Assumptions'!160:160,'Acquisition Model'!N6)*'Acquisition Model'!N9 -> 0 | O77: =INDEX('Financial Model Assumptions'!160:160,'Acquisition Model'!O6)*'Acquisition Model'!O9 -> 0 | P77: =INDEX('Financial Model Assumptions'!160:160,'Acquisition Model'!P6)*'Acquisition Model'!P9 -> 0 | Q77: =INDEX('Financial Model Assumptions'!160:160,'Acquisition Model'!Q6)*'Acquisition Model'!Q9 -> 0 | R77: =INDEX('Financial Model Assumptions'!160:160,'Acquisition Model'!R6)*'Acquisition Model'!R9 -> 0 | S77: =INDEX('Financial Model Assumptions'!160:160,'Acquisition Model'!S6)*'Acquisition Model'!S9 -> 0 | T77: =INDEX('Financial Model Assumptions'!160:160,'Acquisition Model'!T6)*'Acquisition Model'!T9 -> 0 | U77: =INDEX('Financial Model Assumptions'!160:160,'Acquisition Model'!U6)*'Acquisition Model'!U9 -> 0 | V77: =INDEX('Financial Model Assumptions'!160:160,'Acquisition Model'!V6)*'Acquisition Model'!V9 -> 0
C78: Interest Rate | F78: =G78 -> 0.08 | G78: =INDEX('Financial Model'!177:177,'Acquisition Model'!G6) -> 0.08 | H78: =INDEX('Financial Model'!177:177,'Acquisition Model'!H6) -> 0.08 | I78: =INDEX('Financial Model'!177:177,'Acquisition Model'!I6) -> 0.07 | J78: =INDEX('Financial Model'!177:177,'Acquisition Model'!J6) -> 0.07 | K78: =INDEX('Financial Model'!177:177,'Acquisition Model'!K6) -> 0.06 | L78: =INDEX('Financial Model'!177:177,'Acquisition Model'!L6) -> 0.06 | M78: =INDEX('Financial Model'!177:177,'Acquisition Model'!M6) -> 0.06 | N78: =INDEX('Financial Model'!177:177,'Acquisition Model'!N6) -> 0.06 | O78: =INDEX('Financial Model'!177:177,'Acquisition Model'!O6) -> 0.06 | P78: =INDEX('Financial Model'!177:177,'Acquisition Model'!P6) -> 0.06 | Q78: =INDEX('Financial Model'!177:177,'Acquisition Model'!Q6) -> 0.06 | R78: =INDEX('Financial Model'!177:177,'Acquisition Model'!R6) -> 0.06 | S78: =INDEX('Financial Model'!177:177,'Acquisition Model'!S6) -> 0.06 | T78: =INDEX('Financial Model'!177:177,'Acquisition Model'!T6) -> 0.06 | U78: =INDEX('Financial Model'!177:177,'Acquisition Model'!U6) -> 0.06 | V78: =INDEX('Financial Model'!177:177,'Acquisition Model'!V6) -> 0.06
C81: Opeing Balance | F81: =E84 -> 714.2000275 | G81: =F84 -> 618.9733571 | H81: 476.1333516 | I81: 333.2933462 | J81: 190.4533407 | K81: 47.61333516 | L81: 0 | M81: 0 | N81: 0 | O81: 0 | P81: 0 | Q81: 0 | R81: 0 | S81: 0 | T81: 0 | U81: 0 | V81: 0
C82: Less: Repayments | F82: =$E$84*F77 -> 95.22667033 | G82: =$E$84*G77 -> 142.8400055 | H82: 142.8400055 | I82: 142.8400055 | J82: 142.8400055 | K82: 48.01011296 | L82: 0 | M82: 0 | N82: 0 | O82: 0 | P82: 0 | Q82: 0 | R82: 0 | S82: 0 | T82: 0 | U82: 0 | V82: 0
C83: Less: Repayment at Exit | F83: =(F81-F82)*F8 -> 0 | G83: 0 | H83: 0 | I83: 0 | J83: 0 | K83: -0.396777793 | L83: 0 | M83: 0 | N83: 0 | O83: 0 | P83: 0 | Q83: 0 | R83: 0 | S83: 0 | T83: 0 | U83: 0 | V83: 0
C84: Closing Balance | E84: ='Pro-forma Balance'!P54 -> 714.2000275 | F84: =F81-F82-F83 -> 618.9733571 | G84: =G81-G82-G83 -> 476.1333516 | H84: 333.2933462 | I84: 190.4533407 | J84: 47.61333516 | K84: 0 | L84: 0 | M84: 0 | N84: 0 | O84: 0 | P84: 0 | Q84: 0 | R84: 0 | S84: 0 | T84: 0 | U84: 0 | V84: 0
C86: Interest Rate | F86: =F78*F9 -> 0.05333333333 | G86: 0.08 | H86: 0.08 | I86: 0.07 | J86: 0.07 | K86: 0.02016666667 | L86: 0 | M86: 0 | N86: 0 | O86: 0 | P86: 0 | Q86: 0 | R86: 0 | S86: 0 | T86: 0 | U86: 0 | V86: 0
C87: Interest Expense | F87: =F86*F81 -> 38.09066813 | G87: =G86*G81 -> 49.51786857 | H87: 38.09066813 | I87: 23.33053423 | J87: 13.33173385 | K87: 0.9602022591 | L87: 0 | M87: 0 | N87: 0 | O87: 0 | P87: 0 | Q87: 0 | R87: 0 | S87: 0 | T87: 0 | U87: 0 | V87: 0
B89: Amortising Debt
C90: Opening Balance | F90: =E93 -> 200 | G90: =F93 -> 160 | H90: 120 | I90: 80 | J90: 40 | K90: 0 | L90: 0 | M90: 0 | N90: 0 | O90: 0 | P90: 0 | Q90: 0 | R90: 0 | S90: 0 | T90: 0 | U90: 0 | V90: 0
C91: Less: Amortisiation | F91: =MIN(F90,$E$93/'Transaction Assumptions'!$F$33) -> 40 | G91: =MIN(G90,$E$93/'Transaction Assumptions'!$F$33) -> 40 | H91: =MIN(H90,$E$93/'Transaction Assumptions'!$F$33) -> 40 | I91: =MIN(I90,$E$93/'Transaction Assumptions'!$F$33) -> 40 | J91: =MIN(J90,$E$93/'Transaction Assumptions'!$F$33) -> 40 | K91: =MIN(K90,$E$93/'Transaction Assumptions'!$F$33) -> 0 | L91: =MIN(L90,$E$93/'Transaction Assumptions'!$F$33) -> 0 | M91: =MIN(M90,$E$93/'Transaction Assumptions'!$F$33) -> 0 | N91: =MIN(N90,$E$93/'Transaction Assumptions'!$F$33) -> 0 | O91: =MIN(O90,$E$93/'Transaction Assumptions'!$F$33) -> 0 | P91: =MIN(P90,$E$93/'Transaction Assumptions'!$F$33) -> 0 | Q91: =MIN(Q90,$E$93/'Transaction Assumptions'!$F$33) -> 0 | R91: =MIN(R90,$E$93/'Transaction Assumptions'!$F$33) -> 0 | S91: =MIN(S90,$E$93/'Transaction Assumptions'!$F$33) -> 0 | T91: =MIN(T90,$E$93/'Transaction Assumptions'!$F$33) -> 0 | U91: =MIN(U90,$E$93/'Transaction Assumptions'!$F$33) -> 0 | V91: =MIN(V90,$E$93/'Transaction Assumptions'!$F$33) -> 0
C92: Less: Repayment at Exit | F92: =(F90-F91)*F8 -> 0 | G92: 0 | H92: 0 | I92: 0 | J92: 0 | K92: 0 | L92: 0 | M92: 0 | N92: 0 | O92: 0 | P92: 0 | Q92: 0 | R92: 0 | S92: 0 | T92: 0 | U92: 0 | V92: 0
C93: Closing Balance | E93: ='Pro-forma Balance'!P55 -> 200 | F93: =F90-F91-F92 -> 160 | G93: =G90-G91-G92 -> 120 | H93: 80 | I93: 40 | J93: 0 | K93: 0 | L93: 0 | M93: 0 | N93: 0 | O93: 0 | P93: 0 | Q93: 0 | R93: 0 | S93: 0 | T93: 0 | U93: 0 | V93: 0
C95: Interest Rate - EURIBOR | F95: ='Transaction Assumptions'!$F$35 -> 0.02 | G95: ='Transaction Assumptions'!$F$35 -> 0.02 | H95: ='Transaction Assumptions'!$F$35 -> 0.02 | I95: ='Transaction Assumptions'!$F$35 -> 0.02 | J95: ='Transaction Assumptions'!$F$35 -> 0.02 | K95: ='Transaction Assumptions'!$F$35 -> 0.02 | L95: ='Transaction Assumptions'!$F$35 -> 0.02 | M95: ='Transaction Assumptions'!$F$35 -> 0.02 | N95: ='Transaction Assumptions'!$F$35 -> 0.02 | O95: ='Transaction Assumptions'!$F$35 -> 0.02 | P95: ='Transaction Assumptions'!$F$35 -> 0.02 | Q95: ='Transaction Assumptions'!$F$35 -> 0.02 | R95: ='Transaction Assumptions'!$F$35 -> 0.02 | S95: ='Transaction Assumptions'!$F$35 -> 0.02 | T95: ='Transaction Assumptions'!$F$35 -> 0.02 | U95: ='Transaction Assumptions'!$F$35 -> 0.02 | V95: ='Transaction Assumptions'!$F$35 -> 0.02
C96: Credit Spread | F96: =LOOKUP(F234,'Transaction Assumptions'!$E$38:$F$41) -> 0.05 | G96: =LOOKUP(G234,'Transaction Assumptions'!$E$38:$F$41) -> 0.05 | H96: =LOOKUP(H234,'Transaction Assumptions'!$E$38:$F$41) -> 0.04 | I96: =LOOKUP(I234,'Transaction Assumptions'!$E$38:$F$41) -> 0.035 | J96: =LOOKUP(J234,'Transaction Assumptions'!$E$38:$F$41) -> 0.05 | K96: =LOOKUP(K234,'Transaction Assumptions'!$E$38:$F$41) -> 0.05 | L96: =LOOKUP(L234,'Transaction Assumptions'!$E$38:$F$41) -> 0.05 | M96: =LOOKUP(M234,'Transaction Assumptions'!$E$38:$F$41) -> 0.05 | N96: =LOOKUP(N234,'Transaction Assumptions'!$E$38:$F$41) -> 0.05 | O96: =LOOKUP(O234,'Transaction Assumptions'!$E$38:$F$41) -> 0.05 | P96: =LOOKUP(P234,'Transaction Assumptions'!$E$38:$F$41) -> 0.05 | Q96: =LOOKUP(Q234,'Transaction Assumptions'!$E$38:$F$41) -> 0.05 | R96: =LOOKUP(R234,'Transaction Assumptions'!$E$38:$F$41) -> 0.05 | S96: =LOOKUP(S234,'Transaction Assumptions'!$E$38:$F$41) -> 0.05 | T96: =LOOKUP(T234,'Transaction Assumptions'!$E$38:$F$41) -> 0.05 | U96: =LOOKUP(U234,'Transaction Assumptions'!$E$38:$F$41) -> 0.05 | V96: =LOOKUP(V234,'Transaction Assumptions'!$E$38:$F$41) -> 0.05
C97: Total Interest Rate | F97: =F95+F96 -> 0.07 | G97: =G95+G96 -> 0.07 | H97: 0.06 | I97: 0.055 | J97: 0.07 | K97: 0.07 | L97: 0.07 | M97: 0.07 | N97: 0.07 | O97: 0.07 | P97: 0.07 | Q97: 0.07 | R97: 0.07 | S97: 0.07 | T97: 0.07 | U97: 0.07 | V97: 0.07
C98: Periodic Interest Rate | F98: =F97*F9 -> 0.04666666667 | G98: 0.07 | H98: 0.06 | I98: 0.055 | J98: 0.07 | K98: 0.02352777778 | L98: 0 | M98: 0 | N98: 0 | O98: 0 | P98: 0 | Q98: 0 | R98: 0 | S98: 0 | T98: 0 | U98: 0 | V98: 0
C100: Interest Expense | F100: =F98*F90 -> 9.333333333 | G100: =G98*G90 -> 11.2 | H100: 7.2 | I100: 4.4 | J100: 2.8 | K100: 0 | L100: 0 | M100: 0 | N100: 0 | O100: 0 | P100: 0 | Q100: 0 | R100: 0 | S100: 0 | T100: 0 | U100: 0 | V100: 0
B102: Bullet Debt
C103: Opening Balance | F103: =E105 -> 100 | G103: =F105 -> 100 | H103: 100 | I103: 100 | J103: 100 | K103: 100 | L103: 0 | M103: 0 | N103: 0 | O103: 0 | P103: 0 | Q103: 0 | R103: 0 | S103: 0 | T103: 0 | U103: 0 | V103: 0
C104: Less: Repayment at Exit | F104: =F103*F8 -> 0 | G104: 0 | H104: 0 | I104: 0 | J104: 0 | K104: 100 | L104: 0 | M104: 0 | N104: 0 | O104: 0 | P104: 0 | Q104: 0 | R104: 0 | S104: 0 | T104: 0 | U104: 0 | V104: 0
C105: Closing Balance | E105: ='Pro-forma Balance'!P56 -> 100 | F105: =F103-F104 -> 100 | G105: =G103-G104 -> 100 | H105: 100 | I105: 100 | J105: 100 | K105: 0 | L105: 0 | M105: 0 | N105: 0 | O105: 0 | P105: 0 | Q105: 0 | R105: 0 | S105: 0 | T105: 0 | U105: 0 | V105: 0
C107: Total Interest Rate | F107: =F98 -> 0.04666666667 | G107: =G98 -> 0.07 | H107: 0.06 | I107: 0.055 | J107: 0.07 | K107: 0.02352777778 | L107: 0 | M107: 0 | N107: 0 | O107: 0 | P107: 0 | Q107: 0 | R107: 0 | S107: 0 | T107: 0 | U107: 0 | V107: 0
C108: Interest Expense | F108: =F107*F103 -> 4.666666667 | G108: =G107*G103 -> 7 | H108: 6 | I108: 5.5 | J108: 7 | K108: 2.352777778 | L108: 0 | M108: 0 | N108: 0 | O108: 0 | P108: 0 | Q108: 0 | R108: 0 | S108: 0 | T108: 0 | U108: 0 | V108: 0
B110: Sinking Fund
C111: Total Requirement for Sinking Fund | E111: =$E$105 -> 100 | F111: =$E$105 -> 100 | G111: 100 | H111: 100 | I111: 100 | J111: 100 | K111: 100 | L111: 100 | M111: 100 | N111: 100 | O111: 100 | P111: 100 | Q111: 100 | R111: 100 | S111: 100 | T111: 100 | U111: 100 | V111: 100
C112: Amount already Deposted | F112: =F115 -> 0 | G112: =G115 -> 0 | H112: 0 | I112: 0 | J112: 0 | K112: 0 | L112: 100 | M112: 0 | N112: 0 | O112: 0 | P112: 0 | Q112: 0 | R112: 0 | S112: 0 | T112: 0 | U112: 0 | V112: 0
C113: Remaining Amout Required | F113: =F111-F112 -> 100 | G113: =G111-G112 -> 100 | H113: 100 | I113: 100 | J113: 100 | K113: 100 | L113: 0 | M113: 100 | N113: 100 | O113: 100 | P113: 100 | Q113: 100 | R113: 100 | S113: 100 | T113: 100 | U113: 100 | V113: 100
C115: Opeing Balance | F115: =E119 -> 0 | G115: =F119 -> 0 | H115: 0 | I115: 0 | J115: 0 | K115: 0 | L115: 100 | M115: 0 | N115: 0 | O115: 0 | P115: 0 | Q115: 0 | R115: 0 | S115: 0 | T115: 0 | U115: 0 | V115: 0
C116: Add: Cash Sweep | F116: =F212 -> 0 | G116: =G212 -> 0 | H116: 0 | I116: 0 | J116: 0 | K116: 100 | L116: 0 | M116: 0 | N116: 0 | O116: 0 | P116: 0 | Q116: 0 | R116: 0 | S116: 0 | T116: 0 | U116: 0 | V116: 0
C117: Less: Cash Used for Negative Cash Flow | F117: =F213 -> 0 | G117: =G213 -> 0 | H117: 0 | I117: 0 | J117: 0 | K117: 0 | L117: 0 | M117: 0 | N117: 0 | O117: 0 | P117: 0 | Q117: 0 | R117: 0 | S117: 0 | T117: 0 | U117: 0 | V117: 0
C118: Less: Cash Used at Terminal Period | F118: =F115*F8 -> 0 | G118: 0 | H118: 0 | I118: 0 | J118: 0 | K118: 0 | L118: 100 | M118: 0 | N118: 0 | O118: 0 | P118: 0 | Q118: 0 | R118: 0 | S118: 0 | T118: 0 | U118: 0 | V118: 0
C119: Closing Balance | F119: =F115+F116-F117-F118 -> 0 | G119: =G115+G116-G117-G118 -> 0 | H119: 0 | I119: 0 | J119: 0 | K119: 100 | L119: 0 | M119: 0 | N119: 0 | O119: 0 | P119: 0 | Q119: 0 | R119: 0 | S119: 0 | T119: 0 | U119: 0 | V119: 0
C121: Interest Income Rate
C122: Interest Income
B124: Revolving Credit Faciliaty
C125: Commitment | E125: ='Transaction Assumptions'!$F$53 -> 300 | F125: ='Transaction Assumptions'!$F$53 -> 300 | G125: ='Transaction Assumptions'!$F$53 -> 300 | H125: ='Transaction Assumptions'!$F$53 -> 300 | I125: ='Transaction Assumptions'!$F$53 -> 300 | J125: ='Transaction Assumptions'!$F$53 -> 300 | K125: ='Transaction Assumptions'!$F$53 -> 300 | L125: ='Transaction Assumptions'!$F$53 -> 300 | M125: ='Transaction Assumptions'!$F$53 -> 300 | N125: ='Transaction Assumptions'!$F$53 -> 300 | O125: ='Transaction Assumptions'!$F$53 -> 300 | P125: ='Transaction Assumptions'!$F$53 -> 300 | Q125: ='Transaction Assumptions'!$F$53 -> 300 | R125: ='Transaction Assumptions'!$F$53 -> 300 | S125: ='Transaction Assumptions'!$F$53 -> 300 | T125: ='Transaction Assumptions'!$F$53 -> 300 | U125: ='Transaction Assumptions'!$F$53 -> 300 | V125: ='Transaction Assumptions'!$F$53 -> 300
C126: Less: Amount Already Borrowed | F126: =F129 -> 0 | G126: =G129 -> 168.6505564 | H126: 300 | I126: 300 | J126: 300 | K126: 300 | L126: 0 | M126: 0 | N126: 0 | O126: 0 | P126: 0 | Q126: 0 | R126: 0 | S126: 0 | T126: 0 | U126: 0 | V126: 0
C127: Remaing Amount to Borrow | F127: =F125-F126 -> 300 | G127: =G125-G126 -> 131.3494436 | H127: 0 | I127: 0 | J127: 0 | K127: 0 | L127: 300 | M127: 300 | N127: 300 | O127: 300 | P127: 300 | Q127: 300 | R127: 300 | S127: 300 | T127: 300 | U127: 300 | V127: 300
C129: Opening Balance | F129: =E132 -> 0 | G129: =F132 -> 168.6505564 | H129: 300 | I129: 300 | J129: 300 | K129: 300 | L129: 0 | M129: 0 | N129: 0 | O129: 0 | P129: 0 | Q129: 0 | R129: 0 | S129: 0 | T129: 0 | U129: 0 | V129: 0
C130: Add: Borrwings | F130: =F215 -> 168.6505564 | G130: =G215 -> 131.3494436 | H130: 0 | I130: 0 | J130: 0 | K130: 0 | L130: 0 | M130: 0 | N130: 0 | O130: 0 | P130: 0 | Q130: 0 | R130: 0 | S130: 0 | T130: 0 | U130: 0 | V130: 0
C131: Less: Repayment | F131: =F216 -> 0 | G131: =G216 -> 0 | H131: 0 | I131: 0 | J131: 0 | K131: 300 | L131: 0 | M131: 0 | N131: 0 | O131: 0 | P131: 0 | Q131: 0 | R131: 0 | S131: 0 | T131: 0 | U131: 0 | V131: 0
C132: Closing Balance | F132: =F129+F130-F131 -> 168.6505564 | G132: =G129+G130-G131 -> 300 | H132: 300 | I132: 300 | J132: 300 | K132: 0 | L132: 0 | M132: 0 | N132: 0 | O132: 0 | P132: 0 | Q132: 0 | R132: 0 | S132: 0 | T132: 0 | U132: 0 | V132: 0
C134: Interest Rate | F134: =F107 -> 0.04666666667 | G134: =G107 -> 0.07 | H134: 0.06 | I134: 0.055 | J134: 0.07 | K134: 0.02352777778 | L134: 0 | M134: 0 | N134: 0 | O134: 0 | P134: 0 | Q134: 0 | R134: 0 | S134: 0 | T134: 0 | U134: 0 | V134: 0
C135: Interest Expense | F135: =F134*F129 -> 0 | G135: =G134*G129 -> 11.80553895 | H135: 18 | I135: 16.5 | J135: 21 | K135: 7.058333333 | L135: 0 | M135: 0 | N135: 0 | O135: 0 | P135: 0 | Q135: 0 | R135: 0 | S135: 0 | T135: 0 | U135: 0 | V135: 0
B137: Defaulted Debt
C138: Opening Balance | F138: =E141 -> 0 | G138: =F141 -> 0 | H138: 6.82315188 | I138: 166.1790002 | J138: 275.5089875 | K138: 968.0790878 | L138: 0 | M138: 0 | N138: 0 | O138: 0 | P138: 0 | Q138: 0 | R138: 0 | S138: 0 | T138: 0 | U138: 0 | V138: 0
C139: Add: Defaults | F139: =F218 -> 0 | G139: =G218 -> 6.82315188 | H139: 159.3558483 | I139: 109.3299873 | J139: 692.5701003 | K139: 0 | L139: 0 | M139: 0 | N139: 0 | O139: 0 | P139: 0 | Q139: 0 | R139: 0 | S139: 0 | T139: 0 | U139: 0 | V139: 0
C140: Less: Repayments of Default | F140: =F219 -> 0 | G140: =G219 -> 0 | H140: 0 | I140: 0 | J140: 0 | K140: 968.0790878 | L140: 0 | M140: 0 | N140: 0 | O140: 0 | P140: 0 | Q140: 0 | R140: 0 | S140: 0 | T140: 0 | U140: 0 | V140: 0
C141: Closing Balance | F141: =F138+F139-F140 -> 0 | G141: =G138+G139-G140 -> 6.82315188 | H141: 166.1790002 | I141: 275.5089875 | J141: 968.0790878 | K141: 0 | L141: 0 | M141: 0 | N141: 0 | O141: 0 | P141: 0 | Q141: 0 | R141: 0 | S141: 0 | T141: 0 | U141: 0 | V141: 0
B143: Sub Debt
C144: Opening Balance | F144: =E147 -> 100 | G144: =F147 -> 106.6666667 | H144: 117.3333333 | I144: 129.0666667 | J144: 141.9733333 | K144: 156.1706667 | L144: 0 | M144: 0 | N144: 0 | O144: 0 | P144: 0 | Q144: 0 | R144: 0 | S144: 0 | T144: 0 | U144: 0 | V144: 0
C145: Add: Interest Capitalised | F145: =F153 -> 6.666666667 | G145: =G153 -> 10.66666667 | H145: 11.73333333 | I145: 12.90666667 | J145: 14.19733333 | K145: 5.24906963 | L145: 0 | M145: 0 | N145: 0 | O145: 0 | P145: 0 | Q145: 0 | R145: 0 | S145: 0 | T145: 0 | U145: 0 | V145: 0
C146: Less: Repayment at Exit | F146: =(F144+F145)*F8 -> 0 | G146: 0 | H146: 0 | I146: 0 | J146: 0 | K146: 161.4197363 | L146: 0 | M146: 0 | N146: 0 | O146: 0 | P146: 0 | Q146: 0 | R146: 0 | S146: 0 | T146: 0 | U146: 0 | V146: 0
C147: Closing Balance | E147: ='Pro-forma Balance'!P57 -> 100 | F147: =F144+F145-F146 -> 106.6666667 | G147: =G144+G145-G146 -> 117.3333333 | H147: 129.0666667 | I147: 141.9733333 | J147: 156.1706667 | K147: 0 | L147: 0 | M147: 0 | N147: 0 | O147: 0 | P147: 0 | Q147: 0 | R147: 0 | S147: 0 | T147: 0 | U147: 0 | V147: 0
C149: Euribor Rate | F149: =F95 -> 0.02 | G149: =G95 -> 0.02 | H149: 0.02 | I149: 0.02 | J149: 0.02 | K149: 0.02 | L149: 0.02 | M149: 0.02 | N149: 0.02 | O149: 0.02 | P149: 0.02 | Q149: 0.02 | R149: 0.02 | S149: 0.02 | T149: 0.02 | U149: 0.02 | V149: 0.02
C150: Margin | F150: ='Transaction Assumptions'!$F$57 -> 0.08 | G150: ='Transaction Assumptions'!$F$57 -> 0.08 | H150: ='Transaction Assumptions'!$F$57 -> 0.08 | I150: ='Transaction Assumptions'!$F$57 -> 0.08 | J150: ='Transaction Assumptions'!$F$57 -> 0.08 | K150: ='Transaction Assumptions'!$F$57 -> 0.08 | L150: ='Transaction Assumptions'!$F$57 -> 0.08 | M150: ='Transaction Assumptions'!$F$57 -> 0.08 | N150: ='Transaction Assumptions'!$F$57 -> 0.08 | O150: ='Transaction Assumptions'!$F$57 -> 0.08 | P150: ='Transaction Assumptions'!$F$57 -> 0.08 | Q150: ='Transaction Assumptions'!$F$57 -> 0.08 | R150: ='Transaction Assumptions'!$F$57 -> 0.08 | S150: ='Transaction Assumptions'!$F$57 -> 0.08 | T150: ='Transaction Assumptions'!$F$57 -> 0.08 | U150: ='Transaction Assumptions'!$F$57 -> 0.08 | V150: ='Transaction Assumptions'!$F$57 -> 0.08
C151: Total Rate | F151: =(F149+F150)*F9 -> 0.06666666667 | G151: 0.1 | H151: 0.1 | I151: 0.1 | J151: 0.1 | K151: =(K149+K150)*K9 -> 0.03361111111 | L151: 0 | M151: 0 | N151: 0 | O151: 0 | P151: 0 | Q151: 0 | R151: 0 | S151: 0 | T151: 0 | U151: 0 | V151: 0
C153: Interest Expense | F153: =F151*F144 -> 6.666666667 | G153: =G151*G144 -> 10.66666667 | H153: 11.73333333 | I153: 12.90666667 | J153: 14.19733333 | K153: =K151*K144 -> 5.24906963 | L153: 0 | M153: 0 | N153: 0 | O153: 0 | P153: 0 | Q153: 0 | R153: 0 | S153: 0 | T153: 0 | U153: 0 | V153: 0
B155: Other Long-term Liabilities | E155: ='Pro-forma Balance'!P61 -> 167.3000031 | F155: =E155 -> 167.3000031 | G155: =F155 -> 167.3000031 | H155: 167.3000031 | I155: 167.3000031 | J155: 167.3000031 | K155: 167.3000031 | L155: 167.3000031 | M155: 167.3000031 | N155: 167.3000031 | O155: 167.3000031 | P155: 167.3000031 | Q155: 167.3000031 | R155: 167.3000031 | S155: 167.3000031 | T155: 167.3000031 | U155: 167.3000031 | V155: 167.3000031
B156: Accrued Warranty Cost | E156: ='Pro-forma Balance'!P58 -> 94.09999847 | F156: =E156 -> 94.09999847 | G156: =F156 -> 94.09999847 | H156: 94.09999847 | I156: 94.09999847 | J156: 94.09999847 | K156: 94.09999847 | L156: 94.09999847 | M156: 94.09999847 | N156: 94.09999847 | O156: 94.09999847 | P156: 94.09999847 | Q156: 94.09999847 | R156: 94.09999847 | S156: 94.09999847 | T156: 94.09999847 | U156: 94.09999847 | V156: 94.09999847
B157: Retirement Benefit Obligations | E157: ='Pro-forma Balance'!P60 -> 0 | F157: =E157 -> 0 | G157: =F157 -> 0 | H157: 0 | I157: 0 | J157: 0 | K157: 0 | L157: 0 | M157: 0 | N157: 0 | O157: 0 | P157: 0 | Q157: 0 | R157: 0 | S157: 0 | T157: 0 | U157: 0 | V157: 0
A160: Profit and Loss
C161: Revenues | F161: =F20 -> 2097.733337 | G161: =G20 -> 1515.163607 | H161: 1640.820112 | I161: 1842.940519 | J161: 2973.311269 | K161: 1214.118915 | L161: 0 | M161: 0 | N161: 0 | O161: 0 | P161: 0 | Q161: 0 | R161: 0 | S161: 0 | T161: 0 | U161: 0 | V161: 0
C162: Less: Operating Expense | F162: =F21 -> 2045.599901 | G162: =G21 -> 1520.935061 | H162: 1542.005044 | I162: 1701.195624 | J162: 2781.631344 | K162: 1100.308087 | L162: 0 | M162: 0 | N162: 0 | O162: 0 | P162: 0 | Q162: 0 | R162: 0 | S162: 0 | T162: 0 | U162: 0 | V162: 0
C163: Add: Synergies | F163: =F23 -> 53.33333333 | G163: =G23 -> 80 | H163: 80 | I163: 80 | J163: 80 | K163: 26.88888889 | L163: 0 | M163: 0 | N163: 0 | O163: 0 | P163: 0 | Q163: 0 | R163: 0 | S163: 0 | T163: 0 | U163: 0 | V163: 0
D164: EBITDA | F164: =F161-F162+F163 -> 105.4667698 | G164: =G161-G162+G163 -> 74.22854634 | H164: 178.8150686 | I164: 221.7448951 | J164: 271.6799253 | K164: 140.6997171 | L164: 0 | M164: 0 | N164: 0 | O164: 0 | P164: 0 | Q164: 0 | R164: 0 | S164: 0 | T164: 0 | U164: 0 | V164: 0
C165: Less: Depreciation | F165: =F52 -> 96.48147102 | G165: =G52 -> 93.76629276 | H165: 92.29305226 | I165: 90.9738426 | J165: 89.82409718 | K165: 131.7540353 | L165: 0 | M165: 0 | N165: 0 | O165: 0 | P165: 0 | Q165: 0 | R165: 0 | S165: 0 | T165: 0 | U165: 0 | V165: 0
C166: Less: Amortisation | F166: =F59+F65 -> 6.69 | G166: =G59+G65 -> 6.69 | H166: 6.69 | I166: 6.69 | J166: 6.69 | K166: 3.69 | L166: 0 | M166: 0 | N166: 0 | O166: 0 | P166: 0 | Q166: 0 | R166: 0 | S166: 0 | T166: 0 | U166: 0 | V166: 0
D167: EBIT | F167: =F164-F165-F166 -> 2.295298785 | G167: =G164-G165-G166 -> -26.22774641 | H167: 79.83201632 | I167: 124.0810525 | J167: 175.1658281 | K167: 5.255681827 | L167: 0 | M167: 0 | N167: 0 | O167: 0 | P167: 0 | Q167: 0 | R167: 0 | S167: 0 | T167: 0 | U167: 0 | V167: 0
C168: Less: Interest on Exiting Senior Debt | F168: =F87 -> 38.09066813 | G168: =G87 -> 49.51786857 | H168: 38.09066813 | I168: 23.33053423 | J168: 13.33173385 | K168: 0.9602022591 | L168: 0 | M168: 0 | N168: 0 | O168: 0 | P168: 0 | Q168: 0 | R168: 0 | S168: 0 | T168: 0 | U168: 0 | V168: 0
C169: Less: Interest on A Debt | F169: =F100 -> 9.333333333 | G169: =G100 -> 11.2 | H169: 7.2 | I169: 4.4 | J169: 2.8 | K169: 0 | L169: 0 | M169: 0 | N169: 0 | O169: 0 | P169: 0 | Q169: 0 | R169: 0 | S169: 0 | T169: 0 | U169: 0 | V169: 0
C170: Less: Interest on B Debt | F170: =F108 -> 4.666666667 | G170: =G108 -> 7 | H170: 6 | I170: 5.5 | J170: 7 | K170: 2.352777778 | L170: 0 | M170: 0 | N170: 0 | O170: 0 | P170: 0 | Q170: 0 | R170: 0 | S170: 0 | T170: 0 | U170: 0 | V170: 0
C171: Less: Interest on C Debt | F171: =F153 -> 6.666666667 | G171: =G153 -> 10.66666667 | H171: 11.73333333 | I171: 12.90666667 | J171: 14.19733333 | K171: 5.24906963 | L171: 0 | M171: 0 | N171: 0 | O171: 0 | P171: 0 | Q171: 0 | R171: 0 | S171: 0 | T171: 0 | U171: 0 | V171: 0
D172: EBT | F172: =F167-F168-F169-F170-F171 -> -56.46203601 | G172: =G167-G168-G169-G170-G171 -> -104.6122817 | H172: 16.80801486 | I172: 77.94385164 | J172: 137.836761 | K172: -3.306367839 | L172: 0 | M172: 0 | N172: 0 | O172: 0 | P172: 0 | Q172: 0 | R172: 0 | S172: 0 | T172: 0 | U172: 0 | V172: 0
C173: Less: Taxes Booked | F173: =F172*'Transaction Assumptions'!$F$71 -> -14.115509 | G173: =G172*'Transaction Assumptions'!$F$71 -> -26.15307041 | H173: =H172*'Transaction Assumptions'!$F$71 -> 4.202003715 | I173: =I172*'Transaction Assumptions'!$F$71 -> 19.48596291 | J173: =J172*'Transaction Assumptions'!$F$71 -> 34.45919024 | K173: =K172*'Transaction Assumptions'!$F$71 -> -0.8265919598 | L173: =L172*'Transaction Assumptions'!$F$71 -> 0 | M173: =M172*'Transaction Assumptions'!$F$71 -> 0 | N173: =N172*'Transaction Assumptions'!$F$71 -> 0 | O173: =O172*'Transaction Assumptions'!$F$71 -> 0 | P173: =P172*'Transaction Assumptions'!$F$71 -> 0 | Q173: =Q172*'Transaction Assumptions'!$F$71 -> 0 | R173: =R172*'Transaction Assumptions'!$F$71 -> 0 | S173: =S172*'Transaction Assumptions'!$F$71 -> 0 | T173: =T172*'Transaction Assumptions'!$F$71 -> 0 | U173: =U172*'Transaction Assumptions'!$F$71 -> 0 | V173: =V172*'Transaction Assumptions'!$F$71 -> 0
D174: Earnings | F174: =F172-F173 -> -42.34652701 | G174: =G172-G173 -> -78.45921124 | H174: 12.60601114 | I174: 58.45788873 | J174: 103.3775707 | K174: -2.479775879 | L174: 0 | M174: 0 | N174: 0 | O174: 0 | P174: 0 | Q174: 0 | R174: 0 | S174: 0 | T174: 0 | U174: 0 | V174: 0
A176: Tax Analysis
C177: EBT for Books | F177: =F172 -> -56.46203601 | G177: =G172 -> -104.6122817 | H177: 16.80801486 | I177: 77.94385164 | J177: 137.836761 | K177: -3.306367839 | L177: 0 | M177: 0 | N177: 0 | O177: 0 | P177: 0 | Q177: 0 | R177: 0 | S177: 0 | T177: 0 | U177: 0 | V177: 0
C178: Add back Book Deprciation | F178: =F165 -> 96.48147102 | G178: =G165 -> 93.76629276 | H178: 92.29305226 | I178: 90.9738426 | J178: 89.82409718 | K178: 131.7540353 | L178: 0 | M178: 0 | N178: 0 | O178: 0 | P178: 0 | Q178: 0 | R178: 0 | S178: 0 | T178: 0 | U178: 0 | V178: 0
C179: Less: Tax Depreciation | F179: =F54 -> 94.40000407 | G179: =G54 -> 109.8439966 | H179: 107.2453168 | I179: 104.8794486 | J179: 102.7563108 | K179: 48.32638962 | L179: 0 | M179: 0 | N179: 0 | O179: 0 | P179: 0 | Q179: 0 | R179: 0 | S179: 0 | T179: 0 | U179: 0 | V179: 0
C180: Add: Intangible Asset Amortisation | F180: =F59 -> 3.69 | G180: =G59 -> 3.69 | H180: 3.69 | I180: 3.69 | J180: 3.69 | K180: 3.69 | L180: 0 | M180: 0 | N180: 0 | O180: 0 | P180: 0 | Q180: 0 | R180: 0 | S180: 0 | T180: 0 | U180: 0 | V180: 0
C182: Adjusted EBT | F182: =F177+F178-F179+F180 -> -50.69056906 | G182: =G177+G178-G179+G180 -> -116.9999855 | H182: 5.5457503 | I182: 67.7282456 | J182: 128.5945473 | K182: 83.8112778 | L182: 0 | M182: 0 | N182: 0 | O182: 0 | P182: 0 | Q182: 0 | R182: 0 | S182: 0 | T182: 0 | U182: 0 | V182: 0
C183: NOL Calculation
C184: Opening Balance | F184: =E187 -> 0 | G184: =F187 -> 50.69056906 | H184: 167.6905545 | I184: 162.1448042 | J184: 94.41655864 | K184: 0 | L184: 0 | M184: 0 | N184: 0 | O184: 0 | P184: 0 | Q184: 0 | R184: 0 | S184: 0 | T184: 0 | U184: 0 | V184: 0
C185: Add: Neg Taxable Income | F185: =MAX(-F182,0) -> 50.69056906 | G185: =MAX(-G182,0) -> 116.9999855 | H185: 0 | I185: 0 | J185: 0 | K185: 0 | L185: 0 | M185: 0 | N185: 0 | O185: 0 | P185: 0 | Q185: 0 | R185: 0 | S185: 0 | T185: 0 | U185: 0 | V185: 0
C186: Less: NOL Used | F186: =MIN(F184,MAX(F182,0)) -> 0 | G186: =MIN(G184,MAX(G182,0)) -> 0 | H186: 5.5457503 | I186: 67.7282456 | J186: 94.41655864 | K186: 0 | L186: 0 | M186: 0 | N186: 0 | O186: 0 | P186: 0 | Q186: 0 | R186: 0 | S186: 0 | T186: 0 | U186: 0 | V186: 0
C187: Closing Balance | F187: =F184+F185-F186 -> 50.69056906 | G187: =G184+G185-G186 -> 167.6905545 | H187: 162.1448042 | I187: 94.41655864 | J187: 0 | K187: 0 | L187: 0 | M187: 0 | N187: 0 | O187: 0 | P187: 0 | Q187: 0 | R187: 0 | S187: 0 | T187: 0 | U187: 0 | V187: 0
C189: Adjuted EBT | F189: =F182+F185-F186 -> 0 | G189: =G182+G185-G186 -> 0 | H189: 0 | I189: 0 | J189: 34.1779887 | K189: 83.8112778 | L189: 0 | M189: 0 | N189: 0 | O189: 0 | P189: 0 | Q189: 0 | R189: 0 | S189: 0 | T189: 0 | U189: 0 | V189: 0
C190: Taxes Paid | F190: =F189*'Transaction Assumptions'!$F$71 -> 0 | G190: =G189*'Transaction Assumptions'!$F$71 -> 0 | H190: =H189*'Transaction Assumptions'!$F$71 -> 0 | I190: =I189*'Transaction Assumptions'!$F$71 -> 0 | J190: =J189*'Transaction Assumptions'!$F$71 -> 8.544497175 | K190: =K189*'Transaction Assumptions'!$F$71 -> 20.95281945 | L190: =L189*'Transaction Assumptions'!$F$71 -> 0 | M190: =M189*'Transaction Assumptions'!$F$71 -> 0 | N190: =N189*'Transaction Assumptions'!$F$71 -> 0 | O190: =O189*'Transaction Assumptions'!$F$71 -> 0 | P190: =P189*'Transaction Assumptions'!$F$71 -> 0 | Q190: =Q189*'Transaction Assumptions'!$F$71 -> 0 | R190: =R189*'Transaction Assumptions'!$F$71 -> 0 | S190: =S189*'Transaction Assumptions'!$F$71 -> 0 | T190: =T189*'Transaction Assumptions'!$F$71 -> 0 | U190: =U189*'Transaction Assumptions'!$F$71 -> 0 | V190: =V189*'Transaction Assumptions'!$F$71 -> 0
C192: Taxes Deferred | F192: =F173-F190 -> -14.115509 | G192: =G173-G190 -> -26.15307041 | H192: 4.202003715 | I192: 19.48596291 | J192: 25.91469307 | K192: -21.77941141 | L192: 0 | M192: 0 | N192: 0 | O192: 0 | P192: 0 | Q192: 0 | R192: 0 | S192: 0 | T192: 0 | U192: 0 | V192: 0
C194: Accumulated Deferred Tax
D195: Opening Balance | F195: =E197 -> 150 | G195: =F197 -> 135.884491 | H195: 109.7314206 | I195: 113.9334243 | J195: 133.4193872 | K195: 159.3340803 | L195: 137.5546689 | M195: 137.5546689 | N195: 137.5546689 | O195: 137.5546689 | P195: 137.5546689 | Q195: 137.5546689 | R195: 137.5546689 | S195: 137.5546689 | T195: 137.5546689 | U195: 137.5546689 | V195: 137.5546689
D196: Add: Change in Deferred Tax | F196: =F192 -> -14.115509 | G196: =G192 -> -26.15307041 | H196: 4.202003715 | I196: 19.48596291 | J196: 25.91469307 | K196: -21.77941141 | L196: 0 | M196: 0 | N196: 0 | O196: 0 | P196: 0 | Q196: 0 | R196: 0 | S196: 0 | T196: 0 | U196: 0 | V196: 0
D197: Closing Balance | E197: ='Pro-forma Balance'!P59 -> 150 | F197: =F195+F196 -> 135.884491 | G197: =G195+G196 -> 109.7314206 | H197: 113.9334243 | I197: 133.4193872 | J197: 159.3340803 | K197: 137.5546689 | L197: 137.5546689 | M197: 137.5546689 | N197: 137.5546689 | O197: 137.5546689 | P197: 137.5546689 | Q197: 137.5546689 | R197: 137.5546689 | S197: 137.5546689 | T197: 137.5546689 | U197: 137.5546689 | V197: 137.5546689
A200: Cash Flow
B202: EBITDA | F202: =F164 -> 105.4667698 | G202: =G164 -> 74.22854634 | H202: 178.8150686 | I202: 221.7448951 | J202: 271.6799253 | K202: 140.6997171 | L202: 0 | M202: 0 | N202: 0 | O202: 0 | P202: 0 | Q202: 0 | R202: 0 | S202: 0 | T202: 0 | U202: 0 | V202: 0
B203: Less: Taxes | F203: =F190 -> 0 | G203: =G190 -> 0 | H203: 0 | I203: 0 | J203: 8.544497175 | K203: 20.95281945 | L203: 0 | M203: 0 | N203: 0 | O203: 0 | P203: 0 | Q203: 0 | R203: 0 | S203: 0 | T203: 0 | U203: 0 | V203: 0
B204: Less: WC Change | F204: =F40 -> -280 | G204: =G40 -> -110.8767323 | H204: 30.59304325 | I204: 40.45543474 | J204: 60.91057654 | K204: 275.5566094 | L204: 0 | M204: 0 | N204: 0 | O204: 0 | P204: 0 | Q204: 0 | R204: 0 | S204: 0 | T204: 0 | U204: 0 | V204: 0
B205: Less: Capital Expenditure | F205: =F15 -> 366.7999878 | G205: =G15 -> 72.72 | H205: 73.4472 | I205: 74.548908 | J205: 688.8232125 | K205: 104.7725076 | L205: 0 | M205: 0 | N205: 0 | O205: 0 | P205: 0 | Q205: 0 | R205: 0 | S205: 0 | T205: 0 | U205: 0 | V205: 0
B206: Add: Terminal Proceeds | F206: =F27 -> 0 | G206: =G27 -> 0 | H206: 0 | I206: 0 | J206: 0 | K206: 5023.328742 | L206: 0 | M206: 0 | N206: 0 | O206: 0 | P206: 0 | Q206: 0 | R206: 0 | S206: 0 | T206: 0 | U206: 0 | V206: 0
C207: Cash Before Debt Payment | F207: =F202-F203-F204-F205+F206 -> 18.66678201 | G207: =G202-G203-G204-G205+G206 -> 112.3852786 | H207: 74.77482533 | I207: 106.7405524 | J207: -486.5983609 | K207: 4762.746523 | L207: 0 | M207: 0 | N207: 0 | O207: 0 | P207: 0 | Q207: 0 | R207: 0 | S207: 0 | T207: 0 | U207: 0 | V207: 0
B208: Less: Senior Debt Interest | F208: =F87+F100+F108 -> 52.09066813 | G208: =G87+G100+G108 -> 67.71786857 | H208: 51.29066813 | I208: 33.23053423 | J208: 23.13173385 | K208: 3.312980037 | L208: 0 | M208: 0 | N208: 0 | O208: 0 | P208: 0 | Q208: 0 | R208: 0 | S208: 0 | T208: 0 | U208: 0 | V208: 0
B209: Less: Repayment of A Debt | F209: =F82+F83+F91+F92 -> 135.2266703 | G209: =G82+G83+G91+G92 -> 182.8400055 | H209: 182.8400055 | I209: 182.8400055 | J209: 182.8400055 | K209: 47.61333516 | L209: 0 | M209: 0 | N209: 0 | O209: 0 | P209: 0 | Q209: 0 | R209: 0 | S209: 0 | T209: 0 | U209: 0 | V209: 0
B210: Less: Repayment at Exit of B Debt | F210: =F104 -> 0 | G210: =G104 -> 0 | H210: 0 | I210: 0 | J210: 0 | K210: 100 | L210: 0 | M210: 0 | N210: 0 | O210: 0 | P210: 0 | Q210: 0 | R210: 0 | S210: 0 | T210: 0 | U210: 0 | V210: 0
C211: Cash After Senior Debt | F211: =F207-F208-F209-F210 -> -168.6505564 | G211: =G207-G208-G209-G210 -> -138.1725954 | H211: -159.3558483 | I211: -109.3299873 | J211: -692.5701003 | K211: 4611.820208 | L211: 0 | M211: 0 | N211: 0 | O211: 0 | P211: 0 | Q211: 0 | R211: 0 | S211: 0 | T211: 0 | U211: 0 | V211: 0
B212: Less: Cash Flow Sweep | F212: =MIN(F113,MAX(F211,0)) -> 0 | G212: =MIN(G113,MAX(G211,0)) -> 0 | H212: 0 | I212: 0 | J212: 0 | K212: 100 | L212: 0 | M212: 0 | N212: 0 | O212: 0 | P212: 0 | Q212: 0 | R212: 0 | S212: 0 | T212: 0 | U212: 0 | V212: 0
B213: Add: Use of Sinking Fund | F213: =MIN(F115,MAX(-F211,0)) -> 0 | G213: =MIN(G115,MAX(-G211,0)) -> 0 | H213: 0 | I213: 0 | J213: 0 | K213: 0 | L213: 0 | M213: 0 | N213: 0 | O213: 0 | P213: 0 | Q213: 0 | R213: 0 | S213: 0 | T213: 0 | U213: 0 | V213: 0
C214: Cash After Sweep | F214: =F211-F212+F213 -> -168.6505564 | G214: =G211-G212+G213 -> -138.1725954 | H214: -159.3558483 | I214: -109.3299873 | J214: -692.5701003 | K214: 4511.820208 | L214: 0 | M214: 0 | N214: 0 | O214: 0 | P214: 0 | Q214: 0 | R214: 0 | S214: 0 | T214: 0 | U214: 0 | V214: 0
B215: Add: Borrwings from Revolving Credit | F215: =MIN(F127,MAX(-F214,0)) -> 168.6505564 | G215: =MIN(G127,MAX(-G214,0)) -> 131.3494436 | H215: 0 | I215: 0 | J215: 0 | K215: 0 | L215: 0 | M215: 0 | N215: 0 | O215: 0 | P215: 0 | Q215: 0 | R215: 0 | S215: 0 | T215: 0 | U215: 0 | V215: 0
B216: Less: Repayment of Revolver | F216: =MIN(F129,MAX(F214,0)) -> 0 | G216: =MIN(G129,MAX(G214,0)) -> 0 | H216: 0 | I216: 0 | J216: 0 | K216: 300 | L216: 0 | M216: 0 | N216: 0 | O216: 0 | P216: 0 | Q216: 0 | R216: 0 | S216: 0 | T216: 0 | U216: 0 | V216: 0
C217: Cash After Revolver | F217: =F214+F215-F216 -> 0 | G217: =G214+G215-G216 -> -6.82315188 | H217: -159.3558483 | I217: -109.3299873 | J217: -692.5701003 | K217: 4211.820208 | L217: 0 | M217: 0 | N217: 0 | O217: 0 | P217: 0 | Q217: 0 | R217: 0 | S217: 0 | T217: 0 | U217: 0 | V217: 0
B218: Add: Default | F218: =MAX(-F217,0) -> 0 | G218: =MAX(-G217,0) -> 6.82315188 | H218: 159.3558483 | I218: 109.3299873 | J218: 692.5701003 | K218: 0 | L218: 0 | M218: 0 | N218: 0 | O218: 0 | P218: 0 | Q218: 0 | R218: 0 | S218: 0 | T218: 0 | U218: 0 | V218: 0
B219: Less: Repayment of Default | F219: =MIN(F138,MAX(F217,0)) -> 0 | G219: =MIN(G138,MAX(G217,0)) -> 0 | H219: 0 | I219: 0 | J219: 0 | K219: 968.0790878 | L219: 0 | M219: 0 | N219: 0 | O219: 0 | P219: 0 | Q219: 0 | R219: 0 | S219: 0 | T219: 0 | U219: 0 | V219: 0
C220: Cash to Sub Debt | F220: =F217+F218-F219 -> 0 | G220: =G217+G218-G219 -> 0 | H220: 0 | I220: 0 | J220: 0 | K220: 3243.74112 | L220: 0 | M220: 0 | N220: 0 | O220: 0 | P220: 0 | Q220: 0 | R220: 0 | S220: 0 | T220: 0 | U220: 0 | V220: 0
B221: Less: Sub Debt | F221: =MIN(F146,MAX(F220,0)) -> 0 | G221: =MIN(G146,MAX(G220,0)) -> 0 | H221: 0 | I221: 0 | J221: 0 | K221: 161.4197363 | L221: 0 | M221: 0 | N221: 0 | O221: 0 | P221: 0 | Q221: 0 | R221: 0 | S221: 0 | T221: 0 | U221: 0 | V221: 0
C222: Dividends | F222: =F220-F221 -> 0 | G222: =G220-G221 -> 0 | H222: 0 | I222: 0 | J222: 0 | K222: 3082.321384 | L222: 0 | M222: 0 | N222: 0 | O222: 0 | P222: 0 | Q222: 0 | R222: 0 | S222: 0 | T222: 0 | U222: 0 | V222: 0
C224: Equity Cash Flow | E224: =-'Pro-forma Balance'!E18 -> -1113.707973 | F224: =F222 -> 0 | G224: =G222 -> 0 | H224: 0 | I224: 0 | J224: 0 | K224: 3082.321384 | L224: 0 | M224: 0 | N224: 0 | O224: 0 | P224: 0 | Q224: 0 | R224: 0 | S224: 0 | T224: 0 | U224: 0 | V224: 0
B226: Equity IRR | E226: =XIRR(E224:V224,E4:V4) -> 0.2255316317
B228: Senior Debt IRR
B230: Sub Debt Cash Flow | E230: =-'Pro-forma Balance'!E15 -> -100 | F230: =F221 -> 0 | G230: =G221 -> 0 | H230: 0 | I230: 0 | J230: 0 | K230: 161.4197363 | L230: 0 | M230: 0 | N230: 0 | O230: 0 | P230: 0 | Q230: 0 | R230: 0 | S230: 0 | T230: 0 | U230: 0 | V230: 0
B231: Sub Debt IRR | E231: =XIRR(E230:V230,E4:V4) -> 0.1003878772
B233: Debt to EBITDA
F234: 5 | G234: 5 | H234: 4.5 | I234: 3.2 | J234: 5 | K234: 5 | L234: 5 | M234: 5 | N234: 5 | O234: 5 | P234: 5 | Q234: 5 | R234: 5 | S234: 5 | T234: 5 | U234: 5 | V234: 5
A238: Balance Sheet
B239: Equity
C240: Opening Balance | F240: =E243 -> 1108.196013 | G240: =F243 -> 1065.849486 | H240: 987.3902751 | I240: 999.9962862 | J240: 1058.454175 | K240: 1161.831746 | L240: -1922.969414 | M240: -1922.969414 | N240: -1922.969414 | O240: -1922.969414 | P240: -1922.969414 | Q240: -1922.969414 | R240: -1922.969414 | S240: -1922.969414 | T240: -1922.969414 | U240: -1922.969414 | V240: -1922.969414
C241: Add: Income | F241: =F174 -> -42.34652701 | G241: =G174 -> -78.45921124 | H241: 12.60601114 | I241: 58.45788873 | J241: 103.3775707 | K241: -2.479775879 | L241: 0 | M241: 0 | N241: 0 | O241: 0 | P241: 0 | Q241: 0 | R241: 0 | S241: 0 | T241: 0 | U241: 0 | V241: 0
C242: Less: Dividends | F242: =F222 -> 0 | G242: =G222 -> 0 | H242: 0 | I242: 0 | J242: 0 | K242: 3082.321384 | L242: 0 | M242: 0 | N242: 0 | O242: 0 | P242: 0 | Q242: 0 | R242: 0 | S242: 0 | T242: 0 | U242: 0 | V242: 0
C243: Closing Balance | E243: ='Pro-forma Balance'!P63 -> 1108.196013 | F243: =F240+F241-F242 -> 1065.849486 | G243: =G240+G241-G242 -> 987.3902751 | H243: 999.9962862 | I243: 1058.454175 | J243: 1161.831746 | K243: -1922.969414 | L243: -1922.969414 | M243: -1922.969414 | N243: -1922.969414 | O243: -1922.969414 | P243: -1922.969414 | Q243: -1922.969414 | R243: -1922.969414 | S243: -1922.969414 | T243: -1922.969414 | U243: -1922.969414 | V243: -1922.969414
C245: Minority Interest | E245: ='Pro-forma Balance'!F62 -> 6.400000095 | F245: =E245 -> 6.400000095 | G245: =F245 -> 6.400000095 | H245: 6.400000095 | I245: 6.400000095 | J245: 6.400000095 | K245: 6.400000095 | L245: 6.400000095 | M245: 6.400000095 | N245: 6.400000095 | O245: 6.400000095 | P245: 6.400000095 | Q245: 6.400000095 | R245: 6.400000095 | S245: 6.400000095 | T245: 6.400000095 | U245: 6.400000095 | V245: 6.400000095
A248: Assets
B249: Cash and Financial Assets | E249: ='Pro-forma Balance'!P39 -> 368.1000023 | F249: =E249 -> 368.1000023 | G249: =F249 -> 368.1000023 | H249: 368.1000023 | I249: 368.1000023 | J249: 368.1000023 | K249: 368.1000023 | L249: 368.1000023 | M249: 368.1000023 | N249: 368.1000023 | O249: 368.1000023 | P249: 368.1000023 | Q249: 368.1000023 | R249: 368.1000023 | S249: 368.1000023 | T249: 368.1000023 | U249: 368.1000023 | V249: 368.1000023
B250: Cash Sweep Sinking Fund | E250: =E119 -> 0 | F250: =F119 -> 0 | G250: =G119 -> 0 | H250: 0 | I250: 0 | J250: 0 | K250: 100 | L250: 0 | M250: 0 | N250: 0 | O250: 0 | P250: 0 | Q250: 0 | R250: 0 | S250: 0 | T250: 0 | U250: 0 | V250: 0
B251: Other Current Assets | E251: =E32 -> 1298.199967 | F251: =F32 -> 1318.199967 | G251: =G32 -> 686.6216412 | H251: 720.1362689 | I251: 802.8638731 | J251: 1309.258175 | K251: 1568.195988 | L251: 0 | M251: 0 | N251: 0 | O251: 0 | P251: 0 | Q251: 0 | R251: 0 | S251: 0 | T251: 0 | U251: 0 | V251: 0
B252: Net Plant | E252: =E49 -> 1069.199951 | F252: =F49 -> 1339.518468 | G252: =G49 -> 1318.472175 | H252: 1299.626323 | I252: 1283.201388 | J252: 1882.200504 | K252: -3168.109766 | L252: -3168.109766 | M252: -3168.109766 | N252: -3168.109766 | O252: -3168.109766 | P252: -3168.109766 | Q252: -3168.109766 | R252: -3168.109766 | S252: -3168.109766 | T252: -3168.109766 | U252: -3168.109766 | V252: -3168.109766
B253: Goodwill | E253: =E68 -> 174.7960123 | F253: =F68 -> 174.7960123 | G253: =G68 -> 174.7960123 | H253: 174.7960123 | I253: 174.7960123 | J253: 174.7960123 | K253: 174.7960123 | L253: 174.7960123 | M253: 174.7960123 | N253: 174.7960123 | O253: 174.7960123 | P253: 174.7960123 | Q253: 174.7960123 | R253: 174.7960123 | S253: 174.7960123 | T253: 174.7960123 | U253: 174.7960123 | V253: 174.7960123
B254: Intangible Assets | E254: =E60 -> 123 | F254: =F60 -> 119.31 | G254: =G60 -> 115.62 | H254: 111.93 | I254: 108.24 | J254: 104.55 | K254: 100.86 | L254: 100.86 | M254: 100.86 | N254: 100.86 | O254: 100.86 | P254: 100.86 | Q254: 100.86 | R254: 100.86 | S254: 100.86 | T254: 100.86 | U254: 100.86 | V254: 100.86
B255: Debt Issue Costs | E255: =E66 -> 15 | F255: =F66 -> 12 | G255: =G66 -> 9 | H255: 6 | I255: 3 | J255: 0 | K255: 0 | L255: 0 | M255: 0 | N255: 0 | O255: 0 | P255: 0 | Q255: 0 | R255: 0 | S255: 0 | T255: 0 | U255: 0 | V255: 0
B256: Affililates | E256: =E70 -> 0 | F256: 0 | G256: =G70 -> 0 | H256: 0 | I256: 0 | J256: 0 | K256: 0 | L256: 0 | M256: 0 | N256: 0 | O256: 0 | P256: 0 | Q256: 0 | R256: 0 | S256: 0 | T256: 0 | U256: 0 | V256: 0
B257: Deferred taxes | E257: 70.99999809 | F257: 70.99999809 | G257: =G71 -> 70.99999809 | H257: 70.99999809 | I257: 70.99999809 | J257: 70.99999809 | K257: 70.99999809 | L257: 70.99999809 | M257: 70.99999809 | N257: 70.99999809 | O257: 70.99999809 | P257: 70.99999809 | Q257: 70.99999809 | R257: 70.99999809 | S257: 70.99999809 | T257: 70.99999809 | U257: 70.99999809 | V257: 70.99999809
B258: Prepayments | E258: 256.4000053 | F258: 256.4000053 | G258: =G72 -> 256.4000053 | H258: 256.4000053 | I258: 256.4000053 | J258: 256.4000053 | K258: 256.4000053 | L258: 256.4000053 | M258: 256.4000053 | N258: 256.4000053 | O258: 256.4000053 | P258: 256.4000053 | Q258: 256.4000053 | R258: 256.4000053 | S258: 256.4000053 | T258: 256.4000053 | U258: 256.4000053 | V258: 256.4000053
... 18 more rows

Sheet Summary DCF
A2: Main Scenario Case
B5: Terminal Period | E5: ='Financial Model Assumptions'!$F$13 -> 2020
B7: Valuation Start Period | E7: ='Financial Model Assumptions'!F12 -> 2014
A12: Sensitivity Analysis
A13: Only Applies when Main Scenario is set to SENSITIVITY
B21: WACC | E21: ='Financial Model Assumptions'!G191 -> 0.12
B22: Terminal Growth Rate | E22: ='Financial Model Assumptions'!G192 -> 0.05
B23: ROIC/WACC Spread | E23: ='Financial Model Assumptions'!G193 -> 0.01

Sheet Master Scenario
C2: Scenario Number | F2: 1
Q3: Growth Rate | R3: Value Drivers | S3: EV/EBITDA | T3: P/E Ratio
C4: Demand Growth | D4: Price of PV Modules | E4: Industry Capacity | F4: Capital Expenditure | G4: Cash Cost of Production | H4: Selling Expense Pct | I4: G&A Expense Percent | J4: A/R to Revenues | K4: A/P to CGS | L4: WACC | M4: Terminal Growth Rate | N4: Long-term ROIC/WACC Spread | Q4: ='Valuation and ROIC'!F43 -> 6.301245825 | R4: ='Valuation and ROIC'!F60 -> 1.921994692 | S4: =R4 -> 1.921994692 | T4: ='Valuation and ROIC'!F93 -> 9.833461316 | Y4: Equity IRR | Z4: Debt IRR
B5: Base Case | C5: 1 | D5: 1 | E5: 1 | F5: 1 | G5: 1 | H5: 0.05 | I5: 0.045 | J5: 0.2 | K5: 0.3 | L5: 0.12 | M5: 0.05 | N5: 0.01 | P5: 1 | Q5: 6.301245825 | R5: 1.921994692 | S5: 1.921994692 | T5: 9.833461316
B6: Downside Case | C6: 2 | D6: 2 | E6: 1 | F6: 3 | G6: 1 | H6: 0.04 | I6: 0.06 | J6: 0.25 | K6: 0.35 | L6: 0.12 | M6: 0.05 | N6: 0.01 | P6: 2 | Q6: -16.46331419 | R6: -14.61017677 | S6: -14.61017677 | T6: -8.968525197
B7: Worst Case | C7: 5 | D7: 5 | E7: 2 | F7: 3 | G7: 3 | H7: 0.04 | I7: 0.065 | J7: 0.25 | K7: 0.35 | L7: 0.12 | M7: 0.05 | N7: 0.01 | P7: 3 | Q7: -40.33675431 | R7: -31.37495452 | S7: -31.37495452 | T7: -25.93570838
B8: Upside Case | C8: 3 | D8: 3 | E8: 3 | F8: 2 | G8: 2 | H8: 0.06 | I8: 0.045 | J8: 0.15 | K8: 0.25 | L8: 0.12 | M8: 0.05 | N8: 0.01 | P8: 4 | Q8: 45.14312489 | R8: 30.31146177 | S8: 30.31146177 | T8: 40.24519664
B9: Demand Growth Downside | C9: 2 | D9: 1 | E9: 1 | F9: 1 | G9: 1 | H9: 0.05 | I9: 0.045 | J9: 0.2 | K9: 0.3 | L9: 0.12 | M9: 0.05 | N9: 0.01 | P9: 5 | Q9: -4.686323637 | R9: -5.676784525 | S9: -5.676784525 | T9: 0.1877408986
B10: Price | C10: 1 | D10: 2 | E10: 1 | F10: 1 | G10: 1 | H10: 0.05 | I10: 0.045 | J10: 0.2 | K10: 0.3 | L10: 0.12 | M10: 0.05 | N10: 0.01 | P10: 6 | Q10: -12.45763013 | R10: -11.77465273 | S10: -11.77465273 | T10: -5.508060759
B11: Industry Capacity | C11: 1 | D11: 1 | E11: 2 | F11: 1 | G11: 1 | H11: 0.05 | I11: 0.045 | J11: 0.2 | K11: 0.3 | L11: 0.12 | M11: 0.05 | N11: 0.01 | P11: 7 | Q11: 3.444831937 | R11: -0.5337248295 | S11: -0.5337248295 | T11: 8.294937592
B12: Capital Expenditure | C12: 1 | D12: 1 | E12: 1 | F12: 3 | G12: 1 | H12: 0.05 | I12: 0.045 | J12: 0.2 | K12: 0.3 | L12: 0.12 | M12: 0.05 | N12: 0.01 | P12: 8 | Q12: 5.487383073 | R12: 1.222916883 | S12: 1.222916883 | T12: 9.400335807
B13: Cost of Production | C13: 1 | D13: 1 | E13: 1 | F13: 1 | G13: 3 | H13: 0.05 | I13: 0.045 | J13: 0.2 | K13: 0.3 | L13: 0.12 | M13: 0.05 | N13: 0.01 | P13: 9 | Q13: -3.804123211 | R13: -5.951083893 | S13: -5.951083893 | T13: 2.853705137
B14: Selling Expense | C14: 1 | D14: 1 | E14: 1 | F14: 1 | G14: 1 | H14: 0.06 | I14: 0.045 | J14: 0.2 | K14: 0.3 | L14: 0.12 | M14: 0.05 | N14: 0.01 | P14: 10 | Q14: 3.404427734 | R14: -0.2006955861 | S14: -0.2006955861 | T14: 7.70662455
B15: G&A Expense | C15: 1 | D15: 1 | E15: 1 | F15: 1 | G15: 1 | H15: 0.05 | I15: =I7 -> 0.065 | J15: 0.2 | K15: 0.3 | L15: 0.12 | M15: 0.05 | N15: 0.01 | P15: 11 | Q15: 0.5082574557 | R15: -2.323345376 | S15: -2.323345376 | T15: 5.579787784
B16: A/R to Revenues | C16: 1 | D16: 1 | E16: 1 | F16: 1 | G16: 1 | H16: 0.05 | I16: 0.045 | J16: 0.3 | K16: 0.3 | L16: 0.12 | M16: 0.05 | N16: 0.01 | P16: 12 | Q16: 3.84698907 | R16: -0.5322620623 | S16: -0.5322620623 | T16: 8.742615258
B17: WACC | C17: 1 | D17: 1 | E17: 1 | F17: 1 | G17: 1 | H17: 0.05 | I17: 0.045 | J17: 0.2 | K17: 0.3 | L17: 0.13 | M17: 0.05 | N17: 0.01 | P17: 13 | Q17: 3.746701009 | R17: 0.4948958087 | S17: 0.4948958087 | T17: 9.833461316
B18: Terminal Growth | C18: 1 | D18: 1 | E18: 1 | F18: 1 | G18: 1 | H18: 0.05 | I18: 0.045 | J18: 0.2 | K18: 0.3 | L18: 0.12 | M18: 0.02 | N18: 0.01 | P18: 14 | Q18: 2.660695334 | R18: 1.637203892 | S18: 1.637203892 | T18: 9.833461316
B19: ROIC/WACC Spread | C19: 1 | D19: 1 | E19: 1 | F19: 1 | G19: 1 | H19: 0.05 | I19: 0.045 | J19: 0.2 | K19: 0.3 | L19: 0.12 | M19: 0.05 | N19: -0.01 | P19: 15 | Q19: 6.301245825 | R19: 0.8419187395 | S19: 0.8419187395 | T19: 9.833461316
B20: Demand Growth Upside | C20: 3 | D20: 1 | E20: 1 | F20: 1 | G20: 1 | H20: 0.05 | I20: 0.045 | J20: 0.2 | K20: 0.3 | L20: 0.12 | M20: 0.05 | N20: 0.01 | P20: 16 | Q20: 16.72597864 | R20: 8.285569803 | S20: 8.285569803 | T20: 20.7206491
B21: Price | C21: 1 | D21: 3 | E21: 1 | F21: 1 | G21: 1 | H21: 0.05 | I21: 0.045 | J21: 0.2 | K21: 0.3 | L21: 0.12 | M21: 0.05 | N21: 0.01 | P21: 17 | Q21: 20.36660478 | R21: 14.01342406 | S21: 14.01342406 | T21: 18.40522077
B22: Industry Capacity | C22: 1 | D22: 1 | E22: 3 | F22: 1 | G22: 1 | H22: 0.05 | I22: 0.045 | J22: 0.2 | K22: 0.3 | L22: 0.12 | M22: 0.05 | N22: 0.01 | P22: 18 | Q22: 8.415598146 | R22: 3.835688306 | S22: 3.835688306 | T22: 10.86784854
B23: Capital Expenditure | C23: 1 | D23: 1 | E23: 1 | F23: 2 | G23: 1 | H23: 0.05 | I23: 0.045 | J23: 0.2 | K23: 0.3 | L23: 0.12 | M23: 0.05 | N23: 0.01 | P23: 19 | Q23: 7.115108577 | R23: 2.621072501 | S23: 2.621072501 | T23: 10.26658683
B24: Cost of Production | C24: 1 | D24: 1 | E24: 1 | F24: 1 | G24: 2 | H24: 0.05 | I24: 0.045 | J24: 0.2 | K24: 0.3 | L24: 0.12 | M24: 0.05 | N24: 0.01 | P24: 20 | Q24: 11.5527376 | R24: 4.937186942 | S24: 4.937186942 | T24: 14.4976471
B25: Selling Expense | C25: 1 | D25: 1 | E25: 1 | F25: 1 | G25: 1 | H25: 0.04 | I25: 0.045 | J25: 0.2 | K25: 0.3 | L25: 0.12 | M25: 0.05 | N25: 0.01 | P25: 21 | Q25: 9.198543037 | R25: 4.044714915 | S25: 4.044714915 | T25: 11.96029808
B26: G&A Expense | C26: 1 | D26: 1 | E26: 1 | F26: 1 | G26: 1 | H26: 0.05 | I26: 0.03 | J26: 0.2 | K26: 0.3 | L26: 0.12 | M26: 0.05 | N26: 0.01 | P26: 22 | Q26: 10.64733395 | R26: 5.106083921 | S26: 5.106083921 | T26: 13.02371647
B27: A/R to Revenues | C27: 1 | D27: 1 | E27: 1 | F27: 1 | G27: 1 | H27: 0.05 | I27: 0.045 | J27: 0.15 | K27: 0.3 | L27: 0.12 | M27: 0.05 | N27: 0.01 | P27: 23 | Q27: 7.528374202 | R27: 3.149123069 | S27: 3.149123069 | T27: 10.37888435
B28: WACC | C28: 1 | D28: 1 | E28: 1 | F28: 1 | G28: 1 | H28: 0.05 | I28: 0.045 | J28: 0.2 | K28: 0.3 | L28: 0.1 | M28: 0.05 | N28: 0.01 | P28: 24 | Q28: 14.66295249 | R28: 5.992445092 | S28: 5.992445092 | T28: 9.833461316
B29: Terminal Growth | C29: 1 | D29: 1 | E29: 1 | F29: 1 | G29: 1 | H29: 0.05 | I29: 0.045 | J29: 0.2 | K29: 0.3 | L29: 0.12 | M29: 0.08 | N29: 0.01 | P29: 25 | Q29: 15.51405313 | R29: 2.745402771 | S29: 2.745402771 | T29: 9.833461316
B30: ROIC/WACC Spread | C30: 1 | D30: 1 | E30: 1 | F30: 1 | G30: 1 | H30: 0.05 | I30: 0.045 | J30: 0.2 | K30: 0.3 | L30: 0.12 | M30: 0.05 | N30: 0.03 | P30: 26 | Q30: 6.301245825 | R30: 2.714050391 | S30: 2.714050391 | T30: 9.833461316
B31: Sensitivity | C31: 1 | D31: 1 | E31: 1 | F31: 1 | G31: 1 | H31: 0.05 | I31: 0.045 | J31: 0.2 | K31: 0.3 | L31: =L37/1000 -> 0.105 | M31: =M37/1000 -> 0.05 | N31: =N37/1000 -> 0.018
B32: Forms for Senstivity
B34: =INDEX(B5:B31,$F$2) -> Base Case | C34: 1 | D34: 1 | E34: 1 | F34: 1 | G34: 1 | H34: 0.05 | I34: 0.045 | J34: 0.2 | K34: 0.3 | L34: 0.12 | M34: 0.05 | N34: 0.01
B35: Description | C35: =INDEX('Financial Model Assumptions'!$D$22:$D$26,C34) -> Base Demand Case | E35: =INDEX('Financial Model Assumptions'!$D$35:$D$37,E34) -> Base Capacity Case | F35: =INDEX('Financial Model Assumptions'!E74:E76,'Master Scenario'!F34) -> Base Cost per New kW of Capacity | G35: =INDEX('Financial Model Assumptions'!E116:E119,'Master Scenario'!G34) -> Base Cost
A37: Fixed Data for Spinner Boxes | H37: 20 | I37: 20 | J37: 20 | K37: 300 | L37: 105 | M37: 50 | N37: 18
A40: Analysis for Senstivity Graphs
E42: Data from Table | H42: Presentation for Tornado Diagram
E45: Low Case | F45: Low | G45: Total | H45: Small | I45: Match | K45: High | L45: Low
B46: 1 | C46: Demand Growth | E46: =$S$5-S9 -> 7.598779218 | F46: =$S$5-S20 -> -6.363575111 | G46: =ABS(E46)+ABS(F46)+RAND()*0.00001 -> 13.962363 | H46: =SMALL($G$46:$G$56,B46) -> 1.108201679 | I46: =MATCH(H46,$G$46:$G$56,0) -> 10 | J46: =INDEX($C$46:$C$56,I46) -> Terminal Growth | K46: =INDEX($E$46:$E$56,I46) -> 0.2847908006 | L46: =INDEX($F$46:$F$56,I46) -> -0.8234080785
B47: 2 | C47: Price | E47: =$S$5-S10 -> 13.69664742 | F47: =$S$5-S21 -> -12.09142937 | G47: =ABS(E47)+ABS(F47)+RAND()*0.00001 -> 25.78807982 | H47: =SMALL($G$46:$G$56,B47) -> 1.398159747 | I47: =MATCH(H47,$G$46:$G$56,0) -> 4 | J47: =INDEX($C$46:$C$56,I47) -> Capital Expenditure | K47: =INDEX($E$46:$E$56,I47) -> 0.6990778091 | L47: =INDEX($F$46:$F$56,I47) -> -0.6990778091
B48: 3 | C48: Industry Capacity | E48: 2.455719522 | F48: -1.913693614 | G48: 4.369416689 | H48: 1.872133059 | I48: 11 | J48: ROIC/WACC Spread | K48: 1.080075953 | L48: -0.7920556986
B49: 4 | C49: Capital Expenditure | E49: 0.6990778091 | F49: -0.6990778091 | G49: 1.398159747 | H49: 3.681389404 | I49: 8 | J49: A/R to Revenues | K49: 2.454256754 | L49: -1.227128377
B50: 5 | C50: Cost of Production | E50: 7.873078585 | F50: -3.01519225 | G50: 10.888273 | H50: 4.245418319 | I50: 6 | J50: Selling Expense | K50: 2.122690278 | L50: -2.122720223
B51: 6 | C51: Selling Expense | E51: 2.122690278 | F51: -2.122720223 | G51: 4.245418319 | H51: 4.369416689 | I51: 3 | J51: Industry Capacity | K51: 2.455719522 | L51: -1.913693614
B52: 7 | C52: G&A Expense | E52: 4.245340068 | F52: -3.184089229 | G52: 7.429431315 | H52: 5.497559154 | I52: 9 | J52: WACC | K52: 1.427098883 | L52: -4.0704504
B53: 8 | C53: A/R to Revenues | E53: 2.454256754 | F53: -1.227128377 | G53: =ABS(E53)+ABS(F53)+RAND()*0.00001 -> 3.681389404 | H53: 7.429431315 | I53: 7 | J53: G&A Expense | K53: 4.245340068 | L53: -3.184089229
B54: 9 | C54: WACC | E54: 1.427098883 | F54: -4.0704504 | G54: 5.497559154 | H54: 10.888273 | I54: 5 | J54: Cost of Production | K54: 7.873078585 | L54: -3.01519225
B55: 10 | C55: Terminal Growth | E55: 0.2847908006 | F55: -0.8234080785 | G55: 1.108201679 | H55: 13.962363 | I55: 1 | J55: Demand Growth | K55: 7.598779218 | L55: -6.363575111
B56: 11 | C56: ROIC/WACC Spread | E56: 1.080075953 | F56: -0.7920556986 | G56: =ABS(E56)+ABS(F56)+RAND()*0.00001 -> 1.872133059 | H56: 25.78807982 | I56: 2 | J56: Price | K56: 13.69664742 | L56: -12.09142937

Sheet Historic Financial Statements
G2: 2002 | H2: 2003 | I2: 2004 | J2: 2005 | K2: 2006 | L2: 2007 | M2: 2008 | N2: 2009 | O2: 2010 | P2: 2011 | Q2: 2012 | R2: 2013 | S2: 2014 | T2: 2015 | U2: 2016 | V2: 2017 | W2: 2018 | X2: 2019 | Y2: 2020 | Z2: 2021 | AA2: 2022 | AB2: 2023
B4: Income Statement
E5: Net revenues
E6: PV Modules
E7: Investee companies of GSF | G7: 0 | H7: 0 | J7: 0 | K7: 0 | L7: 0 | M7: 0 | N7: 115.8000031 | O7: 197.3999939 | P7: 33.59999847
E8: Others | G8: 0 | H8: 0 | J8: 0 | K8: 0 | L8: 0 | M8: 0 | N8: 1490.5 | O8: 2568.899902 | P8: 2980.399902
E9: Revenues
E10: Revenues from PV Modules | G10: 2.851 | H10: 4.104 | I10: 78 | J10: 170.1000061 | K10: 471.8999939 | L10: 1331.699951 | M10: 1785.800049 | N10: 1606.300049 | O10: 2766.300049 | P10: 3014
E11: PV cells | G11: 0.174 | H11: 9.741 | I11: 7.300000191 | J11: 54.70000076
E12: PV system integrations | G12: 0 | H12: 0.043 | I12: 0 | J12: 1.200000048
E13: Others | G13: 0 | H13: 0 | I13: 0 | J13: 0 | K13: 127 | L13: 16.60000038 | M13: 137.6999969 | N13: 87 | O13: 135.6000061 | P13: 132.6000061
E14: Other Revenues | G14: =G15-G10 -> 0.174 | H14: 9.784 | I14: 7.300003052 | J14: 55.8999939 | K14: 127.0000305 | L14: 16.60009766 | M14: 137.6999512 | N14: 87 | O14: 135.5998535 | P14: 132.6000977
E15: Total net revenues | G15: 3.025 | H15: 13.888 | I15: 85.30000305 | J15: 226 | K15: 598.9000244 | L15: 1348.300049 | M15: 1923.5 | N15: 1693.300049 | O15: 2901.899902 | P15: 3146.600098
E16: Cost of Revenues
E17: PV modules | G17: ='Financial Model Assumptions'!G109 -> 0.139 | H17: ='Financial Model Assumptions'!H109 -> 6.51261 | I17: ='Financial Model Assumptions'!I109 -> 52.91337553 | J17: ='Financial Model Assumptions'!J109 -> 117.0062849 | K17: ='Financial Model Assumptions'!K109 -> 346.3999943 | L17: ='Financial Model Assumptions'!L109 -> 1031.1 | M17: ='Financial Model Assumptions'!M109 -> 1398.70005 | N17: ='Financial Model Assumptions'!N109 -> 1169.199974 | O17: ='Financial Model Assumptions'!O109 -> 2125.899901 | P17: ='Financial Model Assumptions'!P109 -> 2484.599945
E18: PV cells | G18: 2.729 | H18: 3.467 | I18: 5.300000191 | J18: 35.40000153
E19: PV system integrations | G19: 0 | H19: 0.033 | I19: 0 | J19: 0.8000000119
E20: Others | G20: 0 | H20: 0 | I20: 0 | J20: 0 | K20: 92.09999847 | L20: 16.60000038 | M20: 132.3999939 | N20: 95.69999695 | O20: 146.8999939 | P20: 133.8000031
E21: Cost of Revenues - Other | G21: ='Financial Model Assumptions'!G103 -> 2.729 | H21: ='Financial Model Assumptions'!H103 -> 3.5 | I21: ='Financial Model Assumptions'!I103 -> 5.300000191 | J21: ='Financial Model Assumptions'!J103 -> 36.20000154 | K21: ='Financial Model Assumptions'!K103 -> 92.09999847 | L21: ='Financial Model Assumptions'!L103 -> 16.60000038 | M21: ='Financial Model Assumptions'!M103 -> 132.3999939 | N21: ='Financial Model Assumptions'!N103 -> 95.69999695 | O21: ='Financial Model Assumptions'!O103 -> 146.8999939 | P21: ='Financial Model Assumptions'!P103 -> 133.8000031
E22: Total cost of revenues | G22: =SUM(G17:G20) -> 2.868 | H22: 10.01261 | I22: 58.21337572 | J22: 153.2062865 | K22: 438.4999928 | L22: 1047.7 | M22: 1531.100044 | N22: 1264.899971 | O22: 2272.799895 | P22: 2618.399948
E23: Gross profit | G23: =G15-G22 -> 0.157 | H23: 3.87539 | I23: 27.08662734 | J23: 72.79371351 | K23: 160.4000317 | L23: 300.6000485 | M23: 392.3999557 | N23: 428.4000778 | O23: 629.1000077 | P23: 528.2001495
E24: Operating expenses
E25: Selling expenses(1) | G25: 0.157 | H25: 0.559 | I25: 1.700000048 | J25: 3.700000048 | K25: 9 | L25: 36.20000076 | M25: 66.19999695 | N25: 82.09999847 | O25: 118 | P25: 162.6000061
E26: General and administrative expenses | G26: 0.98 | H26: 1.234 | I26: 2.799999952 | J26: 17.5 | K26: 26.79999924 | L26: 44.5 | M26: 85.80000305 | N26: 76.90000153 | O26: 133.1000061 | P26: 248.8000031
E27: Research and development expenses | G27: 0.062 | H27: 0.148 | I27: 0.5 | J27: 3.400000095 | K27: 8.399999619 | L27: 15 | M27: 15.30000019 | N27: 29 | O27: 40.20000076 | P27: 38.59999847
E28: EBITDA | G28: =G23-G25-G26-G27 -> -1.042 | H28: 1.93439 | I28: 22.08662734 | J28: 48.19371337 | K28: 116.2000328 | L28: 204.9000477 | M28: 225.0999556 | N28: 240.4000778 | O28: 337.8000008 | P28: 78.20014191
E29: Depreciation and Impairment | G29: ='Financial Model Assumptions'!G106 -> 0 | H29: ='Financial Model Assumptions'!H106 -> 1.18239 | I29: ='Financial Model Assumptions'!I106 -> 1.986626 | J29: ='Financial Model Assumptions'!J106 -> 4.193712 | K29: ='Financial Model Assumptions'!K106 -> 11.49999962 | L29: ='Financial Model Assumptions'!L106 -> 20.90000001 | M29: ='Financial Model Assumptions'!M106 -> 42.59999847 | N29: ='Financial Model Assumptions'!N106 -> 66.40000153 | O29: ='Financial Model Assumptions'!O106 -> 86.00000155 | P29: ='Financial Model Assumptions'!P106 -> 141.6000061
E30: EBIT | G30: =G28-G29 -> -1.042 | H30: 0.752 | I30: 20.10000134 | J30: 44.00000137 | K30: 104.7000332 | L30: 184.0000477 | M30: 182.4999571 | N30: 174.0000763 | O30: 251.7999992 | P30: -63.3998642
E31: Interest paid | G31: =-G248 -> 0 | H31: -0.226593 | I31: -0.997946 | J31: -2.254371 | K31: -5.800000191 | L31: -39.40000153 | M31: -55.70000076 | N31: -122.3000031 | O31: -98.90000153 | P31: -98.80000305
E32: Other Financial Charges and Income | G32: -0.084 | H32: 0.005593 | I32: -0.002054 | J32: -5.345628905 | K32: 11.30000019 | L32: 21.20000076 | M32: -17.79999924 | N32: 28.6000061 | O32: 7 | P32: -37.09999084
E33: Earnings Before Other Income | G33: =G30+G31+G32 -> -1.126 | H33: 0.531 | I33: 19.10000134 | J33: 36.40000147 | K33: 110.2000332 | L33: 165.8000469 | M33: 108.9999571 | N33: 80.30007935 | O33: 159.8999977 | P33: -199.2998581
E34: Foreign currency exchange (loss) gain, net | G34: 0 | H34: 0 | J34: -2.099999905 | L34: -8.899999619 | M34: -14.39999962 | N34: 8.600000381 | O34: -46.70000076 | P34: -38.20000076
E35: Other income (expense), net | G35: 0.168 | H35: 0.093 | I35: 0.1000000015 | K35: 0.6000000238 | L35: 0.200000003 | M35: -62.29999924 | N35: 2.599999905 | O35: -47.70000076 | P35: -133.1000061
E36: MEMC settlement charges | L36: 0 | M36: 0 | N36: 0 | O36: 0 | P36: 120
E37: Impairment of goodwill | K37: 0 | L37: 0 | M37: 0 | N37: 0 | O37: 0 | P37: 281.5
E38: Impairment of long-lived assets and indefinite lived intangible assets | K38: 0 | L38: 0 | M38: 0 | N38: 0 | O38: 54.59999847 | P38: 180.3000031
E39: Equity in net earnings (loss) of affiliates | G39: 0 | H39: 0 | L39: -0.6999999881 | M39: 0.3000000119 | N39: -3.299999952 | O39: 250.8000031 | P39: -98.69999695
E40: EBT | G40: =G33+G34+G35-G36-G37-G38+G39 -> -0.958 | H40: 0.624 | I40: 19.20000134 | J40: 34.30000156 | K40: 110.8000332 | L40: 156.4000473 | M40: 32.59995824 | N40: 88.20007968 | O40: 261.7000008 | P40: -1051.099865
E41: Tax (expense) benefit | G41: 0.061 | H41: 0.301 | I41: 0.6000000238 | J41: -3.799999952 | K41: -7.199999809 | L41: -13.19999981 | M41: -1.600000024 | N41: -2.5 | O41: -23.79999924 | P41: 47.20000076
E42: Income (loss) from continuing operations, net of tax | G42: =G40+G41 -> -0.897 | H42: 0.925 | I42: 19.80000136 | J42: 30.50000161 | K42: 103.6000334 | L42: 143.2000475 | M42: 30.99995822 | N42: 85.70007968 | O42: 237.9000015 | P42: -1003.899864
E43: Loss from discontinued operations, net of tax | G43: 0 | H43: 0 | L43: 0 | M43: 0 | N43: 0 | O43: 0 | P43: -14.10000038
E44: EARNINGS (Loss) | G44: =G42+G43 -> -0.897 | H44: 0.925 | I44: 19.80000136 | J44: 30.50000161 | K44: 103.6000334 | L44: 143.2000475 | M44: 30.99995822 | N44: 85.70007968 | O44: 237.9000015 | P44: -1017.999865
E45: Less: Net income attributable to the noncontrolling interest | G45: 0 | H45: 0 | I45: 0 | J45: 0.1000000015 | K45: 1 | L45: 2.700000048 | M45: 1.399999976 | N45: -0.1000000015 | O45: -1 | P45: -0.6000000238
E46: Deemed dividend on Series A redeemable convertible preferred shares | I46: 0 | J46: -2.400000095
E47: Net income attributable to holders of ordinary shares | G47: =G44+G45 -> -0.897 | H47: 0.925 | I47: 19.80000136 | J47: 30.60000161 | K47: 104.6000334 | L47: 145.9000476 | M47: 32.39995819 | N47: 85.60007968 | O47: 236.9000015 | P47: -1018.599865
E48: Net Income Fixed | G48: -0.897 | H48: 0.925 | I48: 19.79999924 | J48: 30.60000038 | K48: 104.5999985 | L48: 145.8999939 | M48: 32.40000153 | N48: 85.59999847 | O48: 236.8999939 | P48: -1018.599976
E49: Net Income Difference | G49: =G47-G48 -> 0 | H49: -8.881784197e-16 | I49: 2.12341547e-06 | J49: 1.229345806e-06 | K49: 3.492832184e-05 | L49: 5.365908146e-05 | M49: -4.333257675e-05 | N49: 8.120387793e-05 | O49: 7.629394531e-06 | P49: 0.0001109838486
E51: Weighted average number of Shares used in computation
E52: Basic | G52: 90 | H52: 90 | I52: 90 | J52: 92 | K52: 148.6999969 | L52: 151.6999969 | M52: 154.6999969 | N52: 169.6999969 | O52: 179.6000061 | P52: 180.5
E53: Diluted | G53: 90 | H53: 90 | I53: 90 | J53: 116.8000031 | K53: 156.1000061 | L53: 160.1999969 | M53: 160.3000031 | N53: 172.5 | O53: 181.6000061 | P53: 180.5
E55: Net income (loss) per ordinary share - Basic:
E56: Continuing operations | G56: =G47/G52 -> -0.009966666667 | H56: =H42/H52 -> 0.01027777778 | I56: 0.2200000151 | J56: 0.3315217566 | K56: 0.6967050136 | L56: 0.9439686908 | M56: 0.2003875813 | N56: 0.5050093177 | O56: 1.324610208 | P56: -5.561772101
E57: Discontinued operations | L57: 0 | M57: 0 | N57: 0 | O57: 0 | P57: -0.07999999821
E58: Net income (loss) | G58: =G47/G52 -> -0.009966666667 | H58: 0.01027777778 | I58: 0.2200000151 | J58: 0.3326087132 | K58: 0.7034299633 | L58: 0.9617669775 | M58: 0.2094373551 | N58: 0.5044200425 | O58: 1.31904228 | P58: -5.643212546
E59: Net income (loss) per ordinary share 0 Diluted:
E60: Continuing operations | G60: =G42/G53 -> -0.009966666667 | H60: 0.01027777778 | I60: 0.2200000151 | J60: 0.2611301439 | K60: 0.6636773181 | L60: 0.8938829603 | M60: 0.1933871343 | N60: 0.4968120561 | O60: 1.310021991 | P60: -5.561772101
E61: Discontinued operations | G61: 0 | H61: 0 | L61: 0 | M61: 0 | N61: 0 | O61: 0 | P61: -0.07999999821
E62: Net income (loss) | G62: =G47/G53 -> -0.009966666667 | H62: 0.01027777778 | I62: 0.2200000151 | J62: 0.2619863083 | K62: 0.6700834677 | L62: 0.9107368935 | M62: 0.2021207584 | N62: 0.496232346 | O62: 1.304515383 | P62: -5.643212546
B64: Balance Sheet
D65: ASSETS
E66: Current assets:
E67: Cash and cash equivalents | G67: 0.287 | H67: 1.559 | I67: 19.12209 | J67: 359.324288 | K67: 225.529968 | L67: 521 | M67: 507.7999878 | N67: 833.2000122 | O67: 872.5 | P67: 492.3999939
E68: Restricted cash | I68: 5.995477 | J68: 7.997225 | K68: 78.855384 | L68: 94.69999695 | M68: 70.69999695 | N68: 124.9000015 | O68: 142.5 | P68: 216.6000061
E69: Short-term investments | I69: 0 | J69: 0 | K69: 0 | L69: 51.09999847 | M69: 0 | N69: 200.8000031
E70: Other financial assets | I70: 0.265199 | J70: 0 | K70: 1.521604 | L70: 10.5 | M70: 5.099999905 | N70: 0.3000000119 | O70: 15.39999962 | P70: 37.40000153
E71: Restricted cash - non-current | I71: 0 | J71: 0 | K71: 0 | O71: 0 | P71: 21.70000076
E72: Total Financial Assets | G72: =SUM(G67:G71) -> 0.287 | H72: 1.559 | I72: 25.382766 | J72: 367.321513 | K72: 305.906956 | L72: 677.2999954 | M72: 583.5999846 | N72: 1159.200017 | O72: 1030.4 | P72: 768.1000023
E73: Inventories | G73: 1.209 | H73: 3.347 | I73: 17.472428 | J73: 40.427816 | K73: 200.291888 | L73: 176.1999969 | M73: 231.8999939 | N73: 280.1000061 | O73: 558.2000122 | P73: 516.5
E74: Accounts receivable, net of allowance for doubtful accounts of $4.4 and $4.8, respectively | G74: 1.656 | H74: 2.488 | I74: 5.252725 | J74: 1.659445 | K74: 98.855424 | L74: 237.6000061 | M74: 213.1000061 | N74: 384.3999939 | O74: 515.9000244 | P74: 466.6000061
E75: - Investee companies of GSF
E76: - Others
E77: Other receivables, net of allowance for doubtful accounts of $12.1 and $11.7, respectively | I77: 0.233165 | J77: 2.407875 | K77: 5.298104 | L77: 30.70000076 | M77: 46.79999924 | N77: 39.29999924 | O77: 19 | P77: 14.30000019
E78: Amounts due from related parties - current | I78: 0 | J78: 0 | K78: 0 | L78: 0 | M78: 101 | N78: 185.5 | O78: 55.09999847 | P78: 67.69999695
E79: Total Accounts Receivabe | G79: =SUM(G74:G78) -> 1.656 | H79: 2.488 | I79: 5.48589 | J79: 4.06732 | K79: 104.153528 | L79: 268.3000069 | M79: 360.9000053 | N79: 609.1999931 | O79: 590.0000229 | P79: 548.6000032
E80: Advances to suppliers | I80: 2.195265 | J80: 24.001202 | K80: 79.443536 | L80: 61.40000153 | M80: 56.90000153 | N80: 48.79999924 | O80: 84.40000153 | P80: 84.40000153
E81: Value-added tax recoverable | I81: 1.222634 | J81: 0.338998 | K81: 26.21836 | L81: 72.09999847 | M81: 75.69999695 | N81: 41.20000076 | O81: 92.40000153 | P81: 90.80000305
E82: Misc Current Assets | I82: 0 | J82: 0 | K82: 0 | L82: 0.5 | M82: 5.699999809 | N82: 6.699999809 | O82: 34.40000153 | P82: 77.90000153
E83: Other Current Assets | I83: =SUM(I81:I82) -> 1.222634 | J83: 0.338998 | K83: 26.21836 | L83: 72.59999847 | M83: 81.39999676 | N83: 47.90000057 | O83: 126.8000031 | P83: 168.7000046
E84: Total current assets | G84: =G73+G79+G80+G83 -> 2.865 | H84: 5.835 | I84: 26.376217 | J84: 68.835336 | K84: 410.107312 | L84: 578.5000038 | M84: 731.0999975 | N84: 985.999999 | O84: 1359.40004 | P84: 1318.200009
E85: Property, plant and equipment, net | G85: 5.367 | H85: 6.912 | I85: 13.211346 | J85: 39.717332 | K85: 113.749856 | L85: 293 | M85: 684.5 | N85: 777.5999756 | O85: 1326.199951 | P85: 1569.199951
E86: Intangible assets, net | I86: 2.412754 | J86: 2.922989 | K86: 75.751432 | L86: 86 | M86: 176.6999969 | N86: 166.6999969 | O86: 156 | P86: 23
E87: Goodwill | I87: 0 | J87: 0.135343 | K87: 28.551652 | L87: 29.79999924 | M87: 87.59999847 | N87: 86.09999847 | O87: 278 | P87: 0
E88: Fixed Plant, Goodwill and Intangible Assets | G88: =G85+G86+G87 -> 5.367 | H88: 6.912 | I88: 15.6241 | J88: 42.775664 | K88: 218.05294 | L88: 408.7999992 | M88: 948.7999954 | N88: 1030.399971 | O88: 1760.199951 | P88: 1592.199951
E89: Long-term investments | I89: 0 | J89: 0 | K89: 0.573754 | L89: 0.3000000119 | M89: 54.5 | N89: 53.79999924 | O89: 53.59999847 | P89: 9.600000381
E90: Amounts due from related parties deemed to be financial assets | I90: 0 | J90: 0 | K90: 1.209557 | L90: 0 | M90: 278 | N90: 193.6000061 | O90: 94.09999847 | P90: 67.59999847
E91: Investments in affiliates | I91: 0.069402 | J91: 1.059103 | K91: 2.207656 | L91: 1 | M91: 221.1000061 | N91: 251.3999939 | O91: 545.9000244 | P91: 454.2000122
E92: Long-term loans to suppliers | I92: 0 | J92: 0 | K92: 22.245544 | L92: 103.3000031 | M92: 84 | N92: 54.70000076 | O92: 53 | P92: 0
E93: Investments including affiliates | I93: =SUM(I89:I92) -> 0.069402 | J93: 1.059103 | K93: 26.236511 | L93: 104.6000031 | M93: 637.6000061 | N93: 553.5 | O93: 746.6000214 | P93: 531.4000111
E94: Deferred tax assets, Long-term | I94: 0.818854 | J94: 1.350368 | K94: 3.704916 | O94: 0 | P94: 49.59999847
E95: Deferred tax assets, Short-term | I95: 0.154504 | J95: 0.322481 | K95: 0.393518 | L95: 1.700000048 | M95: 7.199999809 | N95: 10.80000019 | O95: 22.60000038 | P95: 21.39999962
E96: Deferred tax assets Total | I96: =SUM(I94:I95) -> 0.973358 | J96: 1.672849 | K96: 4.098434 | L96: 1.700000048 | M96: 7.199999809 | N96: 10.80000019 | O96: 22.60000038 | P96: 70.99999809
E97: Long-term prepayments | I97: 0 | J97: 0 | K97: 132.314016 | L97: 161.6999969 | M97: 248.8000031 | N97: 188.1000061 | O97: 213.8000031 | P97: 185.1000061
E98: Long-term deferred expenses | I98: 0 | J98: 0 | K98: 0 | L98: 10.39999962 | M98: 62.79999924 | N98: 39 | O98: 32.40000153 | P98: 24.20000076
E99: Other non-current assets | G99: 1.73 | H99: 2.725 | I99: 0.042233 | J99: 0 | K99: 1.238983 | L99: 14 | M99: 3.900000095 | N99: 16.70000076 | O99: 51.70000076 | P99: 47.09999847
E100: Preayments and Other | G100: =SUM(G97:G99) -> 1.73 | H100: 2.725 | I100: 0.042233 | J100: 0 | K100: 133.552999 | L100: 186.0999966 | M100: 315.5000024 | N100: 243.8000069 | O100: 297.9000053 | P100: 256.4000053
E101: Total Other Assets | G101: =G93+G96+G100 -> 1.73 | H101: 2.725 | I101: 1.084993 | J101: 2.731952 | K101: 163.887944 | L101: 292.3999997 | M101: 960.3000083 | N101: 808.1000071 | O101: 1067.100027 | P101: 858.8000145
E102: TOTAL ASSETS | G102: =G101+G88+G84+G72 -> 10.249 | H102: 17.031 | I102: 68.468076 | J102: 481.664465 | K102: 1097.955152 | L102: 1956.999998 | M102: 3223.799986 | N102: 3983.699994 | O102: 5217.100018 | P102: 4537.299977
E103: ASSETS CHECK | G103: 10.251 | H103: 17.031 | I103: 68.46808 | J103: 481.66448 | K103: 1097.9552 | L103: 1957 | M103: 3223.800049 | N103: 3983.699951 | O103: 5217.100098 | P103: 4537.299805
E105: LIABILITIES AND SHAREHOLDERS’ EQUITY
E106: Current liabilities:
E107: Short-term borrowings, including current portion of long-term bank borrowings | G107: 3.624 | H107: 7.206 | I107: 34.441688 | J107: 52.193048 | K107: 288.184992 | L107: 321.2000122 | M107: 638.5 | N107: 800.4000244 | O107: 1400.800049 | P107: 1573.400024
E108: Accounts payable | I108: 2.864263 | J108: 3.522221 | K108: 40.541464 | L108: 58.90000153 | M108: 117.5 | N108: 264.2000122 | O108: 457 | P108: 555.2999878
E109: Other payables | I109: 0.202307 | J109: 4.769722 | K109: 7.743239 | L109: 18 | M109: 55 | N109: 56.5 | O109: 74 | P109: 113.6999969
E110: Accrued payroll and welfare | I110: 0.057037 | J110: 1.408393 | K110: 3.06276 | L110: 6.599999905 | M110: 8.199999809 | N110: 13.30000019 | O110: 34.40000153 | P110: 30.70000076
E111: Amounts due to related parties | I111: 0.149341 | J111: 0.46822 | K111: 0.274667 | L111: 5.699999809 | M111: 24.79999924 | N111: 14 | O111: 93.90000153 | P111: 134.3999939
E112: Advances from customers | I112: 0.374139 | J112: 3.059206 | K112: 0.935114 | L112: 3 | M112: 3 | N112: 8.399999619 | O112: 31.39999962 | P112: 12.80000019
E113: Accounts payable and advances | I113: =SUM(I108:I112) -> 3.647087 | J113: 13.227762 | K113: 52.557244 | L113: 92.20000124 | M113: 208.499999 | N113: 356.400012 | O113: 690.7000027 | P113: 846.8999796
E114: Payables in respect of purchase of property, plant and equipment | I114: 0.075878 | J114: 0.550093 | K114: 3.601687 | L114: 39.40000153 | M114: 82.59999847 | N114: 70.19999695 | O114: 96.30000305 | P114: 93.5
E115: Government grants | G115: 0.03 | H115: 0.07 | I115: 2.060049 | J115: 4.106444 | K115: 4.820254 | L115: 2.799999952 | M115: 3.400000095 | N115: 6.300000191 | O115: 17.5 | P115: 13.5
E116: Income tax payable | I116: 0 | J116: 1.898435 | K116: 3.281476 | L116: 7.300000191 | M116: 12.80000019 | N116: 4.300000191 | O116: 66.69999695 | P116: 0
E117: Other financial liabilities - current | I117: 0 | J117: 0 | K117: 2.016756 | L117: 12.30000019 | M117: 12.5 | N117: 8.100000381 | O117: 56.09999847 | P117: 7.099999905
E118: Misc current liabilities | G118: 0.765 | H118: 2.997 | I118: 0 | J118: 0 | K118: 2.36011 | L118: 2.900000095 | M118: 18.39999962 | N118: 48.40000153 | O118: 41.90000153 | P118: 74.5
E119: Other current liabilities | G119: =SUM(G116:G118) -> 0.765 | H119: 2.997 | I119: 0 | J119: 1.898435 | K119: 7.658342 | L119: 22.50000048 | M119: 43.69999981 | N119: 60.8000021 | O119: 164.6999969 | P119: 81.5999999
E120: Total current liabilities | G120: =G119+G115+G114+G113+G107 -> 4.419 | H120: 10.273 | I120: 40.224702 | J120: 71.975782 | K120: 356.822519 | L120: 478.1000154 | M120: 976.6999974 | N120: 1294.100036 | O120: 2370.000051 | P120: 2608.900004
E121: Long-term bank borrowings | I121: 0 | J121: 3.71736 | K121: 19.65614 | L121: 20.70000076 | M121: 5.900000095 | N121: 138 | O121: 163.3000031 | P121: 133.3000031
E122: Long-term Debt - Convertible | I122: 0 | J122: 0 | K122: 0 | L122: 500 | M122: 981.2000122 | N122: 516.9000244 | O122: 551.2000122 | P122: 580.9000244
E123: Long-term Debt - Current | I123: 0 | J123: 0 | K123: 0 | N123: 224
E124: Total Long-term Debt | I124: =SUM(I121:I123) -> 0 | J124: 3.71736 | K124: 19.65614 | L124: 520.7000008 | M124: 987.1000123 | N124: 878.9000244 | O124: 714.5000153 | P124: 714.2000275
E125: Accrued warranty costs | I125: 0.84758 | J125: 2.619104 | K125: 8.845356 | L125: 22.5 | M125: 41.40000153 | N125: 55.20000076 | O125: 81 | P125: 94.09999847
E126: Deferred tax liabilities | I126: 0 | J126: 0 | K126: 0 | O126: 15.60000038 | P126: 0
E127: Deferred tax liabilities | I127: 0 | J127: 0 | K127: 4.774711 | L127: 22.10000038 | M127: 38.79999924 | N127: 33.09999847
E128: Deferred tax liabilities | I128: =SUM(I126:I127) -> 0 | J128: 0 | K128: 4.774711 | L128: 22.10000038 | M128: 38.79999924 | N128: 33.09999847 | O128: 15.60000038 | P128: 0
E129: Retirement benefit obligations | I129: 0 | J129: 0 | K129: 3.718394 | L129: 3.599999905 | M129: 5 | N129: 3.5
E130: Other financial liabilities - non-current | I130: 0 | J130: 0 | K130: 3.399661 | L130: 0 | M130: 7.800000191 | N130: 0 | O130: 155.8000031 | P130: 167.3000031
E131: Other long-term liabilities | I131: 0 | J131: 0 | K131: 29.73276 | L131: 4.099999905 | M131: 84.09999847 | N131: 106.0999985
E132: Other long-term liabilities | I132: =I130+I131 -> 0 | J132: 0 | K132: 33.132421 | L132: 4.099999905 | M132: 91.89999866 | N132: 106.0999985 | O132: 155.8000031 | P132: 167.3000031
E133: Total long-term liabilities | G133: =G132+G129+G128+G125 -> 0 | H133: =H132+H129+H128+H125 -> 0 | I133: =I132+I129+I128+I125+I124 -> 0.84758 | J133: 6.336464 | K133: 70.127022 | L133: 573.000001 | M133: 1164.200012 | N133: 1076.800022 | O133: 966.9000187 | P133: 975.600029
E135: Ordinary shares, par value $0.01, 500,000,000 shares authorized, 155,880,532 and 179,240,971 shares issued, respectively | I135: 0.9 | J135: 1.474877 | K135: 1.504615 | L135: 1.5 | M135: 1.600000024 | N135: 1.799999952 | O135: 1.799999952 | P135: 1.799999952
E136: Additional paid-in capital | I136: 7.108868 | J136: 364.043776 | K136: 494.018112 | L136: 530.7999878 | M136: 597.0999756 | N136: 1114.699951 | O136: 1134.800049 | P136: 1148
K137: 0
E138: Retained earnings | I138: 19.380188 | J138: 47.602672 | K138: 153.605008 | L138: 324.1000061 | M138: 412.2999878 | N138: 416.7000122 | O138: 653.5999756 | P138: -365
E139: Accumulated other comprehensive income | I139: 0.00674 | J139: 1.51794 | K139: 3.335007 | L139: 31.60000038 | M139: 63.40000153 | N139: 64.90000153 | O139: 77.5 | P139: 161.6000061
E141: Total Suntech Power Holdings Co. Ltd. equity | I141: 0 | J141: 0 | K141: 0 | N141: 1598.099976 | O141: 1867.699951 | P141: 946.4000244
E142: Noncontrolling interest | I142: 0 | J142: 1.429102 | K142: 18.542864 | L142: 17.89999962 | M142: 8.5 | N142: 14.69999981 | O142: 12.5 | P142: 6.400000095
E143: Total Equity | G143: 5.833 | H143: 6.759 | I143: 27.395796 | J143: 401.923104 | K143: 652.462784 | L143: 888 | M143: 1074.400024 | N143: =1612.80004882812-N142 -> 1598.100049 | O143: =1880.19995117187-O142 -> 1867.699951 | P143: =952.799987792968-P142 -> 946.3999877
E144: TOTAL LIABILITIES AND EQUITY | G144: =G143+G133+G120 -> 10.252 | H144: =H143+H133+H120 -> 17.032 | I144: =I143+I133+I120 -> 68.468078 | J144: =J143+J133+J120+J142 -> 481.664452 | K144: 1097.955189 | L144: 1957.000016 | M144: 3223.800034 | N144: 3983.700107 | O144: 5217.100021 | P144: 4537.300021
E145: TOTAL LIABILITIES AND EQUITY FIXED | G145: 10.251 | H145: 17.031 | I145: 68.46808 | J145: 481.66448 | K145: 1097.9552 | L145: 1957 | M145: 3223.800049 | N145: 3983.699951 | O145: 5217.100098 | P145: 4537.299805
G146: =G145-G144 -> -0.001 | H146: -0.001 | I146: 1.999999995e-06 | J146: 2.800000004e-05 | K146: 1.099999986e-05 | L146: -1.59740448e-05 | M146: 1.525878906e-05 | N146: -0.0001554489086 | O146: 7.629395077e-05 | P146: -0.0002160072318
E147: Test | G147: =ROUND(G144-G102,0)=0 -> TRUE | H147: TRUE | I147: TRUE | J147: TRUE | K147: TRUE | L147: TRUE | M147: TRUE | N147: TRUE | O147: TRUE | P147: TRUE
B148: Cash Flow Statement
E149: Operating activities:
E150: Net income | H150: 0.925348 | I150: 19.756676 | J150: 30.628484 | K150: 106 | L150: 143.1999969 | M150: 31 | N150: 85.69999695 | O150: 237.8999939 | P150: -1018
E151: Adjustments to reconcile net income to net cash (used in) provided by operating activities:
E152: Minority interest | H152: 0 | I152: 0 | J152: 0.033915 | K152: -1.399999976
E153: Share based compensation | H153: 0 | I153: 0 | J153: 16.674934 | K153: 12.89999962 | L153: 24.20000076 | M153: 11.39999962 | N153: 6.599999905 | O153: 14.89999962 | P153: 12.5
E154: Depreciation and amortization | H154: 1.18239 | I154: 1.970475 | J154: 3.873053 | K154: 11.39999962 | L154: 20.5 | M154: 41.59999847 | N154: 66.40000153 | O154: 84.90000153 | P154: 141.6000061
E155: Amortization of debt discount | H155: 0 | I155: 0 | J155: 0 | K155: 0 | L155: 29.60000038 | M155: 55.5 | N155: 47.5 | O155: 31.89999962 | P155: 33.5
E156: Deferred taxes | H156: -0.300745 | I156: -0.611465 | J156: -0.680959 | K156: -2.900000095 | L156: -6.099999905 | M156: -20.20000076 | N156: -6 | O156: -40.40000153 | P156: -72.90000153
E157: Loss on disposal of property, plant and equipment | H157: 0 | I157: 0.016151 | J157: 0.320659 | K157: 0.1000000015 | L157: 0.400000006 | M157: 1 | N157: 0 | O157: 1.100000024
E158: Provision for doubtful accounts | H158: 0.032593 | I158: 0.085415 | J158: 0.082065 | K158: 1.299999952 | L158: 1.399999976 | M158: 15.80000019 | N158: -0.1000000015 | O158: 18.5 | P158: 55.29999924
E159: Provision for inventories | H159: 0 | I159: 0 | J159: 0 | K159: 0 | L159: 1.299999952 | M159: 50 | N159: 59.09999847 | O159: 28.89999962 | P159: 37
E160: Provision for purchase commitments | H160: 0 | I160: 0 | J160: 0 | K160: 0 | L160: 0 | M160: 7 | N160: 3.099999905 | O160: -9.800000191 | P160: 11.89999962
E161: Impairment provision for long-term investments | H161: 0 | I161: 0 | J161: 0 | K161: 0 | L161: 0 | M161: 73.80000305 | N161: 0 | O161: 0 | P161: 45
E162: Gain on convertible notes repurchase | H162: 0 | I162: 0 | J162: 0 | K162: 0 | L162: 0
E163: Write-off of unamortized warrants cost for MEMC | P163: 91.90000153
E164: Impairment of long-lived assets and indefinite lived intangible assets | H164: 0 | I164: 0 | J164: 0 | M164: 0 | N164: 0 | O164: 63 | P164: 180.3000031
E165: Impairment of goodwill | P165: 281.5
E166: Gain on convertible notes repurchase | H166: 0 | I166: 0 | J166: 0 | M166: -23.79999924 | N166: -9.5 | O166: 0 | P166: 0
E167: Amortization of long-term prepayments | H167: 0 | I167: 0 | J167: 0 | K167: 0 | L167: 2.599999905 | M167: 7.599999905 | N167: 13.30000019 | O167: 13.30000019 | P167: 13.30000019
E168: Loss from discontinued operations | P168: 14.10000038
E169: Equity in net earnings (loss) of affiliates | H169: 0 | I169: 0.051421 | J169: -0.121408 | K169: -1 | L169: 0.6999999881 | M169: -0.3000000119 | N169: 3.299999952 | O169: -250.8000031 | P169: 98.69999695
E170: Loss (gain) on short-term investments | H170: 0 | I170: 0 | J170: 0 | K170: 0 | L170: -3.099999905 | M170: 5.699999809 | N170: -0.8000000119 | O170: -0.8000000119
E171: Loss on financial derivatives, net | H171: 0 | I171: 0 | J171: 0 | K171: 0.5 | L171: 3.700000048 | M171: 9.300000191 | N171: 8 | O171: 49.79999924 | P171: 93
E172: Loss on long-term securities | H172: 0 | I172: 0 | J172: 0 | K172: 0.1000000015 | L172: -0.3000000119 | M172: 0.3000000119 | N172: 0 | O172: 0 | P172: 1.200000048
E173: Imputed interest income for loan to suppliers and long-term prepayment to suppliers deemed to be financial assets | H173: 0 | I173: 0 | J173: 0 | K173: -0.400000006 | L173: -3.099999905 | M173: -17 | N173: -1.200000048 | O173: -1.200000048
E174: Amortization of imputed interest income | H174: 0 | I174: 0 | J174: 0 | K174: 0 | L174: 0 | M174: 2.400000095 | N174: 3.599999905 | O174: 3.200000048
E176: Cash from Operations | H176: =SUM(H150:H174) -> 1.839586 | I176: 21.268673 | J176: 50.810743 | K176: 126.5999991 | L176: 214.9999982 | M176: 251.1000013 | N176: 278.9999967 | O176: 244.3999889 | P176: 19.90000558
E178: Changes in operating assets and liabilities:
E179: Inventories | H179: -2.137869 | I179: -14.125206 | J179: -22.7226 | K179: -133.3000031 | L179: 22.79999924 | M179: -94 | N179: -104.4000015 | O179: -274.7999878 | P179: 2.599999905
E180: Accounts receivable | H180: -0.858075 | I180: -2.846672 | J180: 4.146524 | K180: -91.59999847 | L180: -139.6000061 | M180: 26.60000038 | N180: -171.6000061 | O180: -137.3999939 | P180: 21.10000038
E181: Other receivables | H181: -0.174466 | I181: -0.020535 | J181: -2.166103 | K181: -2.5 | L181: -26 | M181: -27 | N181: 3.900000095 | O181: 0.6999999881 | P181: -6.599999905
E182: Amounts due from related parties | H182: -0.099464 | I182: -1.088922 | J182: 0.883636 | K182: 0 | L182: 0 | M182: -353.1000061 | N182: 77.09999847 | O182: 94.59999847 | P182: -18.70000076
E183: Advances to suppliers | H183: -0.102594 | I183: -2.006768 | J183: -21.582464 | K183: -50.79999924 | L183: 17.60000038 | M183: 4.699999809 | N183: -6.599999905 | O183: -32.5 | P183: -0.400000006
E184: Amounts due from related parties
E185: Value-added tax recoverable | H185: 0 | I185: 0 | J185: 0 | K185: -21.70000076 | L185: -45.90000153 | M185: -2.900000095 | N185: 34.5 | O185: -48.40000153 | P185: 1.5
E186: Other current assets | H186: 0 | I186: 0 | J186: 0 | K186: 0 | L186: 0 | M186: -5.199999809 | N186: -0.8999999762 | O186: -27.60000038 | P186: -45.90000153
E187: Interest free loans to suppliers | H187: 0 | I187: 0 | J187: 0 | K187: -21.89999962 | L187: -78.69999695 | M187: 20.89999962 | N187: 16.70000076 | O187: 0 | P187: 53
E188: Long-term prepayments | H188: 0 | I188: 0 | J188: 0.601116 | K188: -6.5 | L188: -29.5 | M188: -103.8000031 | N188: 19 | O188: -33.59999847 | P188: -66.59999847
E189: Other non-current assets | H189: 0 | I189: 0 | J189: 4.325857 | K189: 0 | L189: -0.3000000119 | M189: 0 | N189: -6.300000191 | O189: -6 | P189: -7.199999809
E190: Accounts payable | H190: 2.054131 | I190: 0.677133 | J190: 2.681899 | K190: 30.29999924 | L190: 18.39999962 | M190: 53.29999924 | N190: 146.3000031 | O190: 178.3000031 | P190: 101.1999969
E191: Other payables | H191: 0.04241 | I191: -0.075689 | J191: 1.346955 | K191: -4.5 | L191: 10.30000019 | M191: 30.20000076 | N191: 0.200000003 | O191: 16 | P191: 45.90000153
E192: Advances from customers | H192: 0.021469 | I192: 0.187233 | J192: 1.898435 | K192: -2.099999905 | L192: 2.099999905 | M192: -1.399999976 | N192: 5.400000095 | O192: 23 | P192: -18.60000038
E193: Accrued payroll and welfare | H193: 0.007211 | I193: 0.021757 | J193: 0.318879 | K193: 1.5 | L193: 3.599999905 | M193: 0.8000000119 | N193: 4.699999809 | O193: 19.10000038 | P193: -3.700000048
E194: Income tax payable | H194: 0 | I194: 0 | J194: 1.771524 | K194: 1.399999976 | L194: 4 | M194: 5.400000095 | N194: -8.5 | O194: 47.09999847 | P194: -66.80000305
E195: Amounts due to related parties | H195: 0.086587 | I195: 0.01223 | J195: 0.042233 | K195: -0.200000003 | L195: 5.400000095 | M195: 0.6000000238 | N195: -10.89999962 | O195: -124.8000031 | P195: 49
E196: Accrued warranty costs | H196: 0.039319 | I196: 0.779236 | J196: 0 | K196: 4.400000095 | L196: 12.89999962 | M196: 18.29999924 | N196: 13.69999981 | O196: 25.79999924 | P196: 13.30000019
E197: Other long-term liabilities | H197: -0.030417 | I197: -1e-06 | J197: 0 | K197: 2 | L197: -1.100000024 | M197: 4.199999809 | N197: 1.600000024 | O197: 6.099999905 | P197: 20.29999924
E199: Net cash (used in) provided by operating activities | H199: 0.716359 | I199: 2.576272 | J199: 22.621832 | K199: -168.8999939 | L199: -9 | M199: -171.3000031 | N199: 292.8999939 | O199: -30 | P199: 93.30000305
E201: Investing activities:
E202: Acquisitions of subsidiaries, net of cash acquired | H202: 0 | I202: 0 | J202: -0.587655 | K202: -10 | L202: 0 | M202: -57.40000153 | N202: -5.400000095 | O202: -5 | P202: 0
E203: Purchases of property, plant and equipment | H203: -2.546544 | I203: -8.232571 | J203: -29.058708 | K203: -52.29999924 | L203: -162.6999969 | M203: -333.7999878 | N203: -141.3999939 | O203: -276 | P203: -366.7999878
E204: Purchases of intangible assets | H204: -0.241642 | I204: -1.144346 | J204: -0.639988 | K204: 0 | L204: -9.5 | M204: -3.700000048 | N204: -1.200000048 | O204: -0.200000003 | P204: 0
E205: Proceeds from sales of property, plant and equipment | H205: 0 | I205: 0.009605 | J205: 0.027136 | K205: 0.1000000015 | L205: 7.199999809 | M205: 0.400000006 | N205: 1.5 | O205: 2.900000095
E206: Net proceeds from redemption of investment securities | H206: 0 | I206: 0 | J206: 0 | K206: 0 | L206: 0.5 | M206: 45.59999847 | N206: 0 | O206: 201.6000061 | P206: 0
E207: Net proceeds from sales of long-term investment | H207: 0 | I207: 0 | J207: 0 | M207: 0 | N207: 0 | O207: 22.70000076 | P207: 0
E208: Purchase of investment securities | H208: 0 | I208: 0 | J208: 0 | K208: 0 | L208: -48 | M208: -20.20000076 | N208: -200 | O208: 0 | P208: 0
E209: Government grants | H209: 0 | I209: 2.060049 | J209: 2.046395 | K209: 0.6000000238 | L209: 2.299999952 | M209: 2.599999905 | N209: 6.099999905 | O209: 8.100000381 | P209: 9.100000381
E210: Purchases of financial derivatives | H210: 0 | I210: 0 | J210: 0 | K210: -4.5
E211: Net proceeds from redemption of financial derivatives | H211: 0 | I211: 0 | J211: 0 | K211: 1.600000024 | L211: -4.5 | M211: -0.6000000238 | N211: -15.5 | O211: -39.29999924 | P211: -104.8000031
E212: Purchase of long-term equity investment | H212: 0 | I212: -0.120823 | J212: -0.905837 | K212: 0 | L212: 0 | M212: -297.2999878 | N212: -31.5 | O212: -144.6999969 | P212: -16.79999924
... 76 more rows

Sheet Financial Model Assumptions
G2: 2002 | H2: 2003 | I2: 2004 | J2: 2005 | K2: 2006 | L2: 2007 | M2: 2008 | N2: 2009 | O2: 2010 | P2: 2011 | Q2: 2012 | R2: 2013 | S2: 2014 | T2: 2015 | U2: 2016 | V2: 2017 | W2: 2018 | X2: 2019 | Y2: 2020 | Z2: 2021 | AA2: 2022 | AB2: 2023
B10: Key Model Dates
C11: Last Historic Year in Model | F11: 2011
C12: Beginning of Explicit period | F12: 2014
C13: Date of Terminal Value | F13: 2020
A15: Operating Assumptions
B16: Demand in Industry
C17: Industry Demand | F17: MW | K17: 1700 | L17: 3100 | M17: 6000 | N17: 8100 | O17: 18000 | P17: 21000
C18: Percent Increase | F18: Percent | L18: =L17/K17-1 -> 0.8235294118 | M18: =M17/L17-1 -> 0.935483871 | N18: =N17/M17-1 -> 0.35 | O18: =O17/N17-1 -> 1.222222222 | P18: =P17/O17-1 -> 0.1666666667
D20: Demand Scenario | F20: ='Master Scenario'!C34 -> 1
D22: Base Demand Case | F22: Percent | Q22: 0.05 | R22: 0.1 | S22: 0.15 | T22: 0.15 | U22: 0.15 | V22: 0.1 | W22: 0.1 | X22: 0.1 | Y22: 0.1 | Z22: 0.1 | AA22: 0.1 | AB22: 0.1
D23: Low Demand Case | F23: Percent | Q23: -0.1 | R23: 0.05 | S23: 0.05 | T23: 0.05 | U23: 0.05 | V23: 0.05 | W23: 0.05 | X23: 0.05 | Y23: 0.05 | Z23: 0.05 | AA23: 0.05 | AB23: 0.05
D24: High Demand Case | F24: Percent | Q24: 0.1 | R24: 0.15 | S24: 0.2 | T24: 0.2 | U24: 0.2 | V24: 0.2 | W24: 0.2 | X24: 0.2 | Y24: 0.2 | Z24: 0.2 | AA24: 0.2 | AB24: 0.2
D25: Demand Fall-off Case | F25: Percent | Q25: -0.1 | R25: -0.05 | S25: 0 | T25: 0.05 | U25: 0.05 | V25: 0.05 | W25: 0.05 | X25: 0.05 | Y25: 0.05 | Z25: 0.05 | AA25: 0.05 | AB25: 0.05
D26: Demand Reduction and Stabalisation | F26: Percent | Q26: -0.1 | R26: -0.05 | S26: 0 | T26: 0.1 | U26: 0.15 | V26: 0.15 | W26: 0.15 | X26: 0.15 | Y26: 0.15 | Z26: 0.15 | AA26: 0.15 | AB26: 0.15
D28: =INDEX(D22:D26,$F$20) -> Base Demand Case | G28: =IF(NOT('Financial Model'!G6),INDEX(G22:G26,$F$20)) -> FALSE | H28: =IF(NOT('Financial Model'!H6),INDEX(H22:H26,$F$20)) -> FALSE | I28: =IF(NOT('Financial Model'!I6),INDEX(I22:I26,$F$20)) -> FALSE | J28: =IF(NOT('Financial Model'!J6),INDEX(J22:J26,$F$20)) -> FALSE | K28: =IF(NOT('Financial Model'!K6),INDEX(K22:K26,$F$20)) -> FALSE | L28: =IF(NOT('Financial Model'!L6),INDEX(L22:L26,$F$20)) -> FALSE | M28: =IF(NOT('Financial Model'!M6),INDEX(M22:M26,$F$20)) -> FALSE | N28: =IF(NOT('Financial Model'!N6),INDEX(N22:N26,$F$20)) -> FALSE | O28: =IF(NOT('Financial Model'!O6),INDEX(O22:O26,$F$20)) -> FALSE | P28: =IF(NOT('Financial Model'!P6),INDEX(P22:P26,$F$20)) -> FALSE | Q28: =IF(NOT('Financial Model'!Q6),INDEX(Q22:Q26,$F$20)) -> 0.05 | R28: =IF(NOT('Financial Model'!R6),INDEX(R22:R26,$F$20)) -> 0.1 | S28: =IF(NOT('Financial Model'!S6),INDEX(S22:S26,$F$20)) -> 0.15 | T28: =IF(NOT('Financial Model'!T6),INDEX(T22:T26,$F$20)) -> 0.15 | U28: =IF(NOT('Financial Model'!U6),INDEX(U22:U26,$F$20)) -> 0.15 | V28: =IF(NOT('Financial Model'!V6),INDEX(V22:V26,$F$20)) -> 0.1 | W28: =IF(NOT('Financial Model'!W6),INDEX(W22:W26,$F$20)) -> 0.1 | X28: =IF(NOT('Financial Model'!X6),INDEX(X22:X26,$F$20)) -> 0.1 | Y28: =IF(NOT('Financial Model'!Y6),INDEX(Y22:Y26,$F$20)) -> 0.1 | Z28: =IF(NOT('Financial Model'!Z6),INDEX(Z22:Z26,$F$20)) -> 0.1 | AA28: =IF(NOT('Financial Model'!AA6),INDEX(AA22:AA26,$F$20)) -> 0.1 | AB28: =IF(NOT('Financial Model'!AB6),INDEX(AB22:AB26,$F$20)) -> 0.1
B30: Capacity in Industry
C31: Historic Capacity | F31: MW | K31: 2900 | L31: 5400 | M31: 9700 | N31: 13600 | O31: 26100 | P31: 36300
C32: Increase In Capacity | F32: MW | L32: =L31-K31 -> 2500 | M32: =M31-L31 -> 4300 | N32: =N31-M31 -> 3900 | O32: =O31-N31 -> 12500 | P32: =P31-O31 -> 10200
D33: Capacity Scenario | F33: ='Master Scenario'!E34 -> 1
D35: Base Capacity Case | F35: MW | Q35: 10000 | R35: 5000 | S35: 3000
D36: Oversupply Case | F36: MW | Q36: 12000 | R36: 10000 | S36: 5000
D37: Adjusted Supply Case | F37: MW | Q37: 5000 | R37: 2000 | S37: 2000
D39: =INDEX(D35:D37,$F$33) -> Base Capacity Case | F39: =INDEX(F35:F37,$F$33) -> MW | G39: =IF('Financial Model'!G6,G32,INDEX(G35:G37,$F$33)) -> 0 | H39: =IF('Financial Model'!H6,H32,INDEX(H35:H37,$F$33)) -> 0 | I39: =IF('Financial Model'!I6,I32,INDEX(I35:I37,$F$33)) -> 0 | J39: =IF('Financial Model'!J6,J32,INDEX(J35:J37,$F$33)) -> 0 | K39: =IF('Financial Model'!K6,K32,INDEX(K35:K37,$F$33)) -> 0 | L39: =IF('Financial Model'!L6,L32,INDEX(L35:L37,$F$33)) -> 2500 | M39: =IF('Financial Model'!M6,M32,INDEX(M35:M37,$F$33)) -> 4300 | N39: =IF('Financial Model'!N6,N32,INDEX(N35:N37,$F$33)) -> 3900 | O39: =IF('Financial Model'!O6,O32,INDEX(O35:O37,$F$33)) -> 12500 | P39: =IF('Financial Model'!P6,P32,INDEX(P35:P37,$F$33)) -> 10200 | Q39: =IF('Financial Model'!Q6,Q32,INDEX(Q35:Q37,$F$33)) -> 10000 | R39: =IF('Financial Model'!R6,R32,INDEX(R35:R37,$F$33)) -> 5000 | S39: =IF('Financial Model'!S6,S32,INDEX(S35:S37,$F$33)) -> 3000 | T39: =IF('Financial Model'!T6,T32,INDEX(T35:T37,$F$33)) -> 0 | U39: =IF('Financial Model'!U6,U32,INDEX(U35:U37,$F$33)) -> 0 | V39: =IF('Financial Model'!V6,V32,INDEX(V35:V37,$F$33)) -> 0 | W39: =IF('Financial Model'!W6,W32,INDEX(W35:W37,$F$33)) -> 0 | X39: =IF('Financial Model'!X6,X32,INDEX(X35:X37,$F$33)) -> 0 | Y39: =IF('Financial Model'!Y6,Y32,INDEX(Y35:Y37,$F$33)) -> 0 | Z39: =IF('Financial Model'!Z6,Z32,INDEX(Z35:Z37,$F$33)) -> 0 | AA39: =IF('Financial Model'!AA6,AA32,INDEX(AA35:AA37,$F$33)) -> 0 | AB39: =IF('Financial Model'!AB6,AB32,INDEX(AB35:AB37,$F$33)) -> 0
B41: New Suntech Capacity
D42: Historic Cell Capacity | F42: MW | H42: 30 | I42: 60 | J42: 150 | K42: 270 | L42: 540 | M42: 1000 | N42: 1100 | O42: 1800 | P42: 2400
D43: Increase in Capaity | F43: MW | H43: =H42 -> 30 | I43: =I42-H42 -> 30 | J43: 90 | K43: 120 | L43: 270 | M43: 460 | N43: 100 | O43: 700 | P43: 600 | Q43: 0 | R43: 0 | S43: 0
D44: Percent Increase | F44: Pct | I44: =I43/H42 -> 1 | J44: 1.5 | K44: 0.8 | L44: 1 | M44: 0.8518518519 | N44: 0.1 | O44: 0.6363636364 | P44: 0.3333333333
B46: Market Share and Suntech Demand
D47: Historic Share of Capacity | F47: Percent | H47: =IFERROR(H42/H31,FALSE) -> FALSE | I47: FALSE | J47: FALSE | K47: 0.09310344828 | L47: 0.1 | M47: 0.1030927835 | N47: 0.08088235294 | O47: 0.06896551724 | P47: 0.06611570248
C49: Suntech Demand
D50: PV Modules | F50: MW | G50: ='Historic Financial Statements'!G293 -> 0.1000000015 | H50: ='Historic Financial Statements'!H293 -> 4.900000095 | I50: ='Historic Financial Statements'!I293 -> 25.89999962 | J50: ='Historic Financial Statements'!J293 -> 49.79999924 | K50: ='Historic Financial Statements'!K293 -> 121.0999985 | L50: ='Historic Financial Statements'!L293 -> 358.7999878 | M50: ='Historic Financial Statements'!M293 -> 459.3999939 | N50: ='Historic Financial Statements'!N293 -> 675.0999756 | O50: ='Historic Financial Statements'!O293 -> 1521.900024 | P50: ='Historic Financial Statements'!P293 -> 2014.599976
D51: PV Cells | F51: MW | G51: ='Historic Financial Statements'!G294 -> 0.8000000119 | H51: ='Historic Financial Statements'!H294 -> 1.5 | I51: ='Historic Financial Statements'!I294 -> 3.599999905 | J51: ='Historic Financial Statements'!J294 -> 17.89999962 | K51: ='Historic Financial Statements'!K294 -> 38.5 | L51: ='Historic Financial Statements'!L294 -> 4.5 | M51: ='Historic Financial Statements'!M294 -> 35 | N51: ='Historic Financial Statements'!N294 -> 6.800000191 | O51: ='Historic Financial Statements'!O294 -> 17.10000038 | P51: ='Historic Financial Statements'!P294 -> 51.59999847
C53: Growth
D54: PV Modules | H54: =H50/G50-1 -> 48.00000022 | I54: 4.285714105 | J54: 0.9227799216 | K54: 1.431726914 | L54: 1.962840564 | M54: 0.2803790678 | N54: 0.4695254344 | O54: 1.254332809 | P54: 0.3237400245
D55: PV Cells | H55: =H51/G51-1 -> 0.8749999721 | I55: 1.399999936 | J55: 3.972222248 | K55: 1.150838035 | L55: -0.8831168831 | M55: 6.777777778 | N55: -0.8057142803 | O55: 1.514705868 | P55: 2.017543703
D57: Historic Share of Demand | H57: =IFERROR(H50/H17,FALSE) -> FALSE | I57: FALSE | J57: FALSE | K57: 0.07123529322 | L57: 0.1157419315 | M57: 0.07656666565 | N57: 0.083345676 | O57: 0.08455000136 | P57: 0.09593333217 | Q57: FALSE | R57: FALSE | S57: FALSE | T57: FALSE | U57: FALSE | V57: FALSE | W57: FALSE | X57: FALSE | Y57: FALSE | Z57: FALSE | AA57: FALSE | AB57: FALSE
D59: Year of Simulated Capacity | F59: Year | G59: 2015
D60: Target Share of Capacity and Demand | F60: Percent | T60: 0.06 | U60: 0.06 | V60: 0.06 | W60: 0.06 | X60: 0.06 | Y60: 0.06 | Z60: 0.06 | AA60: 0.06 | AB60: 0.06
B62: Capital Expenditure
D64: Maintenance Cost/MW | F64: USD/MW | H64: 0.03 | I64: 0.03 | J64: 0.03 | K64: 0.03 | L64: 0.03 | M64: 0.03 | N64: 0.03 | O64: 0.03 | P64: 0.03 | Q64: 0.03 | R64: =Q64 -> 0.03 | S64: 0.03 | T64: 0.03 | U64: 0.03 | V64: 0.03 | W64: 0.03 | X64: 0.03 | Y64: 0.03 | Z64: 0.03 | AA64: 0.03 | AB64: 0.03
D65: Maintenance Capital Expenditures | F65: USD Millions | H65: =H64*H42 -> 0.9 | I65: 1.8 | J65: 4.5 | K65: 8.1 | L65: 16.2 | M65: 30 | N65: 33 | O65: 54 | P65: 72
D66: Prospective Maintenance Expenditures | F66: USD/MW
D68: Total Capital Expenditures and Purchases | F68: USD Millions | H68: =-'Historic Financial Statements'!H203-'Historic Financial Statements'!H202-'Historic Financial Statements'!H204 -> 2.788186 | I68: =-'Historic Financial Statements'!I203-'Historic Financial Statements'!I202-'Historic Financial Statements'!I204 -> 9.376917 | J68: =-'Historic Financial Statements'!J203-'Historic Financial Statements'!J202-'Historic Financial Statements'!J204 -> 30.286351 | K68: =-'Historic Financial Statements'!K203-'Historic Financial Statements'!K202-'Historic Financial Statements'!K204 -> 62.29999924 | L68: =-'Historic Financial Statements'!L203-'Historic Financial Statements'!L202-'Historic Financial Statements'!L204 -> 172.1999969 | M68: =-'Historic Financial Statements'!M203-'Historic Financial Statements'!M202-'Historic Financial Statements'!M204 -> 394.8999894 | N68: =-'Historic Financial Statements'!N203-'Historic Financial Statements'!N202-'Historic Financial Statements'!N204 -> 147.999994 | O68: =-'Historic Financial Statements'!O203-'Historic Financial Statements'!O202-'Historic Financial Statements'!O204 -> 281.2 | P68: =-'Historic Financial Statements'!P203-'Historic Financial Statements'!P202-'Historic Financial Statements'!P204 -> 366.7999878
D69: Capital Expenditures for New Plant | F69: USD Millions | H69: =H68-H65 -> 1.888186 | I69: 7.576917 | J69: 25.786351 | K69: 54.19999924 | L69: 155.9999969 | M69: 364.8999894 | N69: 114.999994 | O69: 227.2 | P69: 294.7999878
D71: Cost per kW of New Capacity | F71: USD/kW | H71: =H69/H43*1000 -> 62.93953333 | I71: 252.5639 | J71: 286.5150111 | K71: 451.6666603 | L71: 577.7777665 | M71: 793.2608464 | N71: 1149.99994 | O71: 324.5714286 | P71: 491.333313
E72: Capital Expenditure Scenario | F72: ='Master Scenario'!F34 -> 1
E74: Base Cost per New kW of Capacity | F74: Real USD/kW | Q74: 650 | R74: 650 | S74: 650 | T74: 650 | U74: 650 | V74: 650 | W74: 650 | X74: 650 | Y74: 650 | Z74: 650 | AA74: 650 | AB74: 650
E75: Low Case Cost per New kW of Capacity | F75: Real USD/kW | Q75: 500 | R75: 500 | S75: 500 | T75: 500 | U75: 500 | V75: 500 | W75: 500 | X75: 500 | Y75: 500 | Z75: 500 | AA75: 500 | AB75: 500
E76: High Case Cost per New kW of Capacity | F76: Real USD/kW | Q76: 800 | R76: 800 | S76: 800 | T76: 800 | U76: 800 | V76: 800 | W76: 800 | X76: 800 | Y76: 800 | Z76: 800 | AA76: 800 | AB76: 800
E78: =CHOOSE($F$72,E74,E75,E76) -> Base Cost per New kW of Capacity | F78: =CHOOSE($F$72,F74,F75,F76) -> Real USD/kW | H78: =IF('Financial Model'!H6,H71,CHOOSE($F$72,H74,H75,H76)) -> 62.93953333 | I78: =IF('Financial Model'!I6,I71,CHOOSE($F$72,I74,I75,I76)) -> 252.5639 | J78: =IF('Financial Model'!J6,J71,CHOOSE($F$72,J74,J75,J76)) -> 286.5150111 | K78: =IF('Financial Model'!K6,K71,CHOOSE($F$72,K74,K75,K76)) -> 451.6666603 | L78: =IF('Financial Model'!L6,L71,CHOOSE($F$72,L74,L75,L76)) -> 577.7777665 | M78: =IF('Financial Model'!M6,M71,CHOOSE($F$72,M74,M75,M76)) -> 793.2608464 | N78: =IF('Financial Model'!N6,N71,CHOOSE($F$72,N74,N75,N76)) -> 1149.99994 | O78: =IF('Financial Model'!O6,O71,CHOOSE($F$72,O74,O75,O76)) -> 324.5714286 | P78: =IF('Financial Model'!P6,P71,CHOOSE($F$72,P74,P75,P76)) -> 491.333313 | Q78: =IF('Financial Model'!Q6,Q71,CHOOSE($F$72,Q74,Q75,Q76)) -> 650 | R78: =IF('Financial Model'!R6,R71,CHOOSE($F$72,R74,R75,R76)) -> 650 | S78: =IF('Financial Model'!S6,S71,CHOOSE($F$72,S74,S75,S76)) -> 650 | T78: =IF('Financial Model'!T6,T71,CHOOSE($F$72,T74,T75,T76)) -> 650 | U78: =IF('Financial Model'!U6,U71,CHOOSE($F$72,U74,U75,U76)) -> 650 | V78: =IF('Financial Model'!V6,V71,CHOOSE($F$72,V74,V75,V76)) -> 650 | W78: =IF('Financial Model'!W6,W71,CHOOSE($F$72,W74,W75,W76)) -> 650 | X78: =IF('Financial Model'!X6,X71,CHOOSE($F$72,X74,X75,X76)) -> 650 | Y78: =IF('Financial Model'!Y6,Y71,CHOOSE($F$72,Y74,Y75,Y76)) -> 650 | Z78: =IF('Financial Model'!Z6,Z71,CHOOSE($F$72,Z74,Z75,Z76)) -> 650 | AA78: =IF('Financial Model'!AA6,AA71,CHOOSE($F$72,AA74,AA75,AA76)) -> 650 | AB78: =IF('Financial Model'!AB6,AB71,CHOOSE($F$72,AB74,AB75,AB76)) -> 650
B80: Price and Revenue Assumptions
D81: Historic Analysis
E82: PV Modules | F82: USD Millions | G82: ='Historic Financial Statements'!G10 -> 2.851 | H82: ='Historic Financial Statements'!H10 -> 4.104 | I82: ='Historic Financial Statements'!I10 -> 78 | J82: ='Historic Financial Statements'!J10 -> 170.1000061 | K82: ='Historic Financial Statements'!K10 -> 471.8999939 | L82: ='Historic Financial Statements'!L10 -> 1331.699951 | M82: ='Historic Financial Statements'!M10 -> 1785.800049 | N82: ='Historic Financial Statements'!N10 -> 1606.300049 | O82: ='Historic Financial Statements'!O10 -> 2766.300049 | P82: ='Historic Financial Statements'!P10 -> 3014
E83: Other | F83: USD Millions | G83: =SUM('Historic Financial Statements'!G11:G13) -> 0.174 | H83: =SUM('Historic Financial Statements'!H11:H13) -> 9.784 | I83: =SUM('Historic Financial Statements'!I11:I13) -> 7.300000191 | J83: =SUM('Historic Financial Statements'!J11:J13) -> 55.90000081 | K83: =SUM('Historic Financial Statements'!K11:K13) -> 127 | L83: =SUM('Historic Financial Statements'!L11:L13) -> 16.60000038 | M83: =SUM('Historic Financial Statements'!M11:M13) -> 137.6999969 | N83: =SUM('Historic Financial Statements'!N11:N13) -> 87 | O83: =SUM('Historic Financial Statements'!O11:O13) -> 135.6000061 | P83: =SUM('Historic Financial Statements'!P11:P13) -> 132.6000061
D85: Assumptions
E86: Other Percent | F86: Percent | G86: =G83/G82 -> 0.06103121712 | H86: 2.384015595 | I86: 0.09358974604 | J86: 0.3286302105 | K86: 0.2691248181 | L86: 0.0124652707 | M86: 0.07710829498 | N86: 0.05416173651 | O86: 0.04901854597 | P86: 0.04399469347 | Q86: 0.05 | R86: =Q86 -> 0.05 | S86: 0.05 | T86: 0.05 | U86: 0.05 | V86: 0.05 | W86: 0.05 | X86: 0.05 | Y86: 0.05 | Z86: 0.05 | AA86: 0.05 | AB86: 0.05
E88: PV Module Price | F88: USD/kW | G88: =G82*1000000/(G50*1000) -> 28509.99958 | H88: 837.5510041 | I88: 3011.583056 | J88: 3415.662825 | K88: 3896.77952 | L88: 3711.538452 | M88: 3887.24439 | N88: 2379.351366 | O88: 1817.662136 | P88: 1496.078644
E90: Price Scenario | F90: ='Master Scenario'!D34 -> 1
E92: Base Price Case | F92: USD/kW | Q92: 1250 | R92: 1350 | S92: 1375 | T92: 1400 | U92: 1450 | V92: 1500 | W92: 1550 | X92: 1600 | Y92: 1650 | Z92: 1650 | AA92: 1650 | AB92: 1650
E93: Low Price Case | F93: USD/kW | Q93: 1250 | R93: 1250 | S93: 1300 | T93: 1325 | U93: 1350 | V93: 1400 | W93: 1450 | X93: 1500 | Y93: 1500 | Z93: 1600 | AA93: 1600 | AB93: 1600
E94: High Price Case | F94: USD/kW | Q94: 1400 | R94: 1500 | S94: 1600 | T94: 1650 | U94: 1700 | V94: 1700 | W94: 1700 | X94: 1700 | Y94: 1700 | Z94: 1700 | AA94: 1700 | AB94: 1700
E95: Price Fall-off Case | F95: USD/kW | Q95: 1250 | R95: 1250 | S95: 1275 | T95: 1300 | U95: 1375 | V95: 1350 | W95: 1350 | X95: 1350 | Y95: 1350 | Z95: 1350 | AA95: 1350 | AB95: 1350
E96: Price Reduction and Stabalisation | F96: USD/kW | Q96: 1250 | R96: 1250 | S96: 1275 | T96: 1300 | U96: 1375 | V96: 1350 | W96: 1350 | X96: 1350 | Y96: 1350 | Z96: 1350 | AA96: 1350 | AB96: 1350
E98: =IF('Financial Model'!E6,E88,INDEX(E92:E96,$F$90)) -> Base Price Case | F98: =IF('Financial Model'!F6,F88,INDEX(F92:F96,$F$90)) -> USD/kW | I98: =IF('Financial Model'!I6,I88,INDEX(I92:I96,$F$90)) -> 3011.583056 | J98: =IF('Financial Model'!J6,J88,INDEX(J92:J96,$F$90)) -> 3415.662825 | K98: =IF('Financial Model'!K6,K88,INDEX(K92:K96,$F$90)) -> 3896.77952 | L98: =IF('Financial Model'!L6,L88,INDEX(L92:L96,$F$90)) -> 3711.538452 | M98: =IF('Financial Model'!M6,M88,INDEX(M92:M96,$F$90)) -> 3887.24439 | N98: =IF('Financial Model'!N6,N88,INDEX(N92:N96,$F$90)) -> 2379.351366 | O98: =IF('Financial Model'!O6,O88,INDEX(O92:O96,$F$90)) -> 1817.662136 | P98: =IF('Financial Model'!P6,P88,INDEX(P92:P96,$F$90)) -> 1496.078644 | Q98: =IF('Financial Model'!Q6,Q88,INDEX(Q92:Q96,$F$90)) -> 1250 | R98: =IF('Financial Model'!R6,R88,INDEX(R92:R96,$F$90)) -> 1350 | S98: =IF('Financial Model'!S6,S88,INDEX(S92:S96,$F$90)) -> 1375 | T98: =IF('Financial Model'!T6,T88,INDEX(T92:T96,$F$90)) -> 1400 | U98: =IF('Financial Model'!U6,U88,INDEX(U92:U96,$F$90)) -> 1450 | V98: =IF('Financial Model'!V6,V88,INDEX(V92:V96,$F$90)) -> 1500 | W98: =IF('Financial Model'!W6,W88,INDEX(W92:W96,$F$90)) -> 1550 | X98: =IF('Financial Model'!X6,X88,INDEX(X92:X96,$F$90)) -> 1600 | Y98: =IF('Financial Model'!Y6,Y88,INDEX(Y92:Y96,$F$90)) -> 1650 | Z98: =IF('Financial Model'!Z6,Z88,INDEX(Z92:Z96,$F$90)) -> 1650 | AA98: =IF('Financial Model'!AA6,AA88,INDEX(AA92:AA96,$F$90)) -> 1650 | AB98: =IF('Financial Model'!AB6,AB88,INDEX(AB92:AB96,$F$90)) -> 1650
B100: Operating Expenses
D101: Historic
E102: PV Modules | F102: USD Millions | G102: 0.139 | H102: 7.695 | I102: 54.90000153 | J102: 121.1999969 | K102: 357.8999939 | L102: 1052 | M102: 1441.300049 | N102: 1235.599976 | O102: 2211.899902 | P102: 2626.199951
E103: Other Costs | F103: USD Millions | G103: 2.729 | H103: 3.5 | I103: 5.300000191 | J103: 36.20000154 | K103: 92.09999847 | L103: 16.60000038 | M103: 132.3999939 | N103: 95.69999695 | O103: 146.8999939 | P103: 133.8000031
E104: Other Cost Percent | G104: =G103/G102 -> 19.63309353 | H104: 0.4548408057 | I104: 0.0965391629 | J104: 0.2986798882 | K104: 0.2573344511 | L104: 0.01577946804 | M104: 0.09186150656 | N104: 0.07745224898 | O104: 0.06641349084 | P104: 0.0509481401
E106: Depreciaiton and Plant Writeoff | F106: USD Millions | G106: ='Historic Financial Statements'!G154+'Historic Financial Statements'!G157 -> 0 | H106: ='Historic Financial Statements'!H154+'Historic Financial Statements'!H157 -> 1.18239 | I106: ='Historic Financial Statements'!I154+'Historic Financial Statements'!I157 -> 1.986626 | J106: ='Historic Financial Statements'!J154+'Historic Financial Statements'!J157 -> 4.193712 | K106: ='Historic Financial Statements'!K154+'Historic Financial Statements'!K157 -> 11.49999962 | L106: ='Historic Financial Statements'!L154+'Historic Financial Statements'!L157 -> 20.90000001 | M106: ='Historic Financial Statements'!M154+'Historic Financial Statements'!M157 -> 42.59999847 | N106: ='Historic Financial Statements'!N154+'Historic Financial Statements'!N157 -> 66.40000153 | O106: ='Historic Financial Statements'!O154+'Historic Financial Statements'!O157 -> 86.00000155 | P106: ='Historic Financial Statements'!P154+'Historic Financial Statements'!P157 -> 141.6000061
E107: Depreciation Assigned to Other | F107: USD Millions | G107: =G106*G104 -> 0 | H107: 0.5377992203 | I107: 0.191787211 | J107: 1.252577431 | K107: 2.95934609 | L107: 0.3297908822 | M107: 3.913300039 | N107: 5.14282945 | O107: 5.711560315 | P107: 7.21425695
E109: PV Modules Cash | F109: USD Millions | G109: =G102-G106 -> 0.139 | H109: 6.51261 | I109: 52.91337553 | J109: 117.0062849 | K109: 346.3999943 | L109: 1031.1 | M109: 1398.70005 | N109: 1169.199974 | O109: 2125.899901 | P109: 2484.599945
E110: Other Costs Cash | F110: USD Millions | G110: =G103-G107 -> 2.729 | H110: 2.96220078 | I110: 5.10821298 | J110: 34.94742411 | K110: 89.14065238 | L110: 16.2702095 | M110: 128.4866939 | N110: 90.5571675 | O110: 141.1884336 | P110: 126.5857461
E112: PV Module Cash Cost/kW | F112: USD/kW | G112: =G109/G50*1000 -> 1389.999979 | H112: 1329.104056 | I112: 2042.987502 | J112: 2349.52383 | K112: 2860.445901 | L112: 2873.745917 | M112: 3044.623572 | N112: 1731.891596 | O112: 1396.872243 | P112: 1233.29692
E113: Cost Scenario | F113: ='Master Scenario'!G34 -> 1
D115: Cash Cost of PV Modules
E116: Base Cost | F116: USD/kW | Q116: 1100 | R116: 1100 | S116: 1100 | T116: 1150 | U116: 1150 | V116: 1200 | W116: 1200 | X116: 1250 | Y116: 1300 | Z116: 1300 | AA116: 1300 | AB116: 1300
E117: Reduced Costs | F117: USD/kW | Q117: 1100 | R117: 1150 | S117: 1100 | T117: 1100 | U117: 1200 | V117: 1200 | W117: 1250 | X117: 1250 | Y117: 1250 | Z117: 1250 | AA117: 1250 | AB117: 1250
E118: Increased Costs | F118: USD/kW | Q118: 1100 | R118: 1150 | S118: 1200 | T118: 1250 | U118: 1250 | V118: 1300 | W118: 1300 | X118: 1300 | Y118: 1350 | Z118: 1350 | AA118: 1350 | AB118: 1350
E119: Flat Costs | F119: USD/kW | Q119: 1100 | R119: 1100 | S119: 1100 | T119: 1100 | U119: 1100 | V119: 1100 | W119: 1100 | X119: 1100 | Y119: 1100 | Z119: 1100 | AA119: 1100 | AB119: 1100
E121: =IF('Financial Model'!E6,E112,INDEX(E116:E119,$F$113)) -> Base Cost | G121: =IF('Financial Model'!G6,G112,INDEX(G116:G119,$F$113)) -> 1389.999979 | H121: =IF('Financial Model'!H6,H112,INDEX(H116:H119,$F$113)) -> 1329.104056 | I121: =IF('Financial Model'!I6,I112,INDEX(I116:I119,$F$113)) -> 2042.987502 | J121: =IF('Financial Model'!J6,J112,INDEX(J116:J119,$F$113)) -> 2349.52383 | K121: =IF('Financial Model'!K6,K112,INDEX(K116:K119,$F$113)) -> 2860.445901 | L121: =IF('Financial Model'!L6,L112,INDEX(L116:L119,$F$113)) -> 2873.745917 | M121: =IF('Financial Model'!M6,M112,INDEX(M116:M119,$F$113)) -> 3044.623572 | N121: =IF('Financial Model'!N6,N112,INDEX(N116:N119,$F$113)) -> 1731.891596 | O121: =IF('Financial Model'!O6,O112,INDEX(O116:O119,$F$113)) -> 1396.872243 | P121: =IF('Financial Model'!P6,P112,INDEX(P116:P119,$F$113)) -> 1233.29692 | Q121: =IF('Financial Model'!Q6,Q112,INDEX(Q116:Q119,$F$113)) -> 1100 | R121: =IF('Financial Model'!R6,R112,INDEX(R116:R119,$F$113)) -> 1100 | S121: =IF('Financial Model'!S6,S112,INDEX(S116:S119,$F$113)) -> 1100 | T121: =IF('Financial Model'!T6,T112,INDEX(T116:T119,$F$113)) -> 1150 | U121: =IF('Financial Model'!U6,U112,INDEX(U116:U119,$F$113)) -> 1150 | V121: =IF('Financial Model'!V6,V112,INDEX(V116:V119,$F$113)) -> 1200 | W121: =IF('Financial Model'!W6,W112,INDEX(W116:W119,$F$113)) -> 1200 | X121: =IF('Financial Model'!X6,X112,INDEX(X116:X119,$F$113)) -> 1250 | Y121: =IF('Financial Model'!Y6,Y112,INDEX(Y116:Y119,$F$113)) -> 1300 | Z121: =IF('Financial Model'!Z6,Z112,INDEX(Z116:Z119,$F$113)) -> 1300 | AA121: =IF('Financial Model'!AA6,AA112,INDEX(AA116:AA119,$F$113)) -> 1300 | AB121: =IF('Financial Model'!AB6,AB112,INDEX(AB116:AB119,$F$113)) -> 1300
D123: Cost of Goods Sold as Percent of Other Revenues | F123: Percent | G123: ='Historic Financial Statements'!G21/'Historic Financial Statements'!G14 -> 15.68390805 | H123: ='Historic Financial Statements'!H21/'Historic Financial Statements'!H14 -> 0.3577269011 | I123: ='Historic Financial Statements'!I21/'Historic Financial Statements'!I14 -> 0.7260271199 | J123: ='Historic Financial Statements'!J21/'Historic Financial Statements'!J14 -> 0.6475850714 | K123: ='Historic Financial Statements'!K21/'Historic Financial Statements'!K14 -> 0.7251966641 | L123: ='Historic Financial Statements'!L21/'Historic Financial Statements'!L14 -> 0.9999941401 | M123: ='Historic Financial Statements'!M21/'Historic Financial Statements'!M14 -> 0.9615108268 | N123: ='Historic Financial Statements'!N21/'Historic Financial Statements'!N14 -> 1.099999965 | O123: ='Historic Financial Statements'!O21/'Historic Financial Statements'!O14 -> 1.083334459 | P123: ='Historic Financial Statements'!P21/'Historic Financial Statements'!P14 -> 1.009049054 | Q123: 0.95 | R123: =Q123 -> 0.95 | S123: 0.95 | T123: 0.95 | U123: 0.95 | V123: 0.95 | W123: 0.95 | X123: 0.95 | Y123: 0.95 | Z123: 0.95 | AA123: 0.95 | AB123: 0.95
C125: Other Costs
D126: Historic Costs
E127: Selling Expenses | G127: ='Historic Financial Statements'!G25 -> 0.157 | H127: ='Historic Financial Statements'!H25 -> 0.559 | I127: ='Historic Financial Statements'!I25 -> 1.700000048 | J127: ='Historic Financial Statements'!J25 -> 3.700000048 | K127: ='Historic Financial Statements'!K25 -> 9 | L127: ='Historic Financial Statements'!L25 -> 36.20000076 | M127: ='Historic Financial Statements'!M25 -> 66.19999695 | N127: ='Historic Financial Statements'!N25 -> 82.09999847 | O127: ='Historic Financial Statements'!O25 -> 118 | P127: ='Historic Financial Statements'!P25 -> 162.6000061
E128: G&A Expenses | G128: ='Historic Financial Statements'!G26 -> 0.98 | H128: ='Historic Financial Statements'!H26 -> 1.234 | I128: ='Historic Financial Statements'!I26 -> 2.799999952 | J128: ='Historic Financial Statements'!J26 -> 17.5 | K128: ='Historic Financial Statements'!K26 -> 26.79999924 | L128: ='Historic Financial Statements'!L26 -> 44.5 | M128: ='Historic Financial Statements'!M26 -> 85.80000305 | N128: ='Historic Financial Statements'!N26 -> 76.90000153 | O128: ='Historic Financial Statements'!O26 -> 133.1000061 | P128: ='Historic Financial Statements'!P26 -> 248.8000031
E129: R&D Expenses | G129: ='Historic Financial Statements'!G27 -> 0.062 | H129: ='Historic Financial Statements'!H27 -> 0.148 | I129: ='Historic Financial Statements'!I27 -> 0.5 | J129: ='Historic Financial Statements'!J27 -> 3.400000095 | K129: ='Historic Financial Statements'!K27 -> 8.399999619 | L129: ='Historic Financial Statements'!L27 -> 15 | M129: ='Historic Financial Statements'!M27 -> 15.30000019 | N129: ='Historic Financial Statements'!N27 -> 29 | O129: ='Historic Financial Statements'!O27 -> 40.20000076 | P129: ='Historic Financial Statements'!P27 -> 38.59999847
D131: Prospecitve Assumptions
E132: Selling Expense as Percent of Revenue | G132: =G127/'Historic Financial Statements'!G15 -> 0.05190082645 | H132: =H127/'Historic Financial Statements'!H15 -> 0.04025057604 | I132: =I127/'Historic Financial Statements'!I15 -> 0.01992965987 | J132: =J127/'Historic Financial Statements'!J15 -> 0.01637168163 | K132: =K127/'Historic Financial Statements'!K15 -> 0.0150275499 | L132: =L127/'Historic Financial Statements'!L15 -> 0.02684862379 | M132: =M127/'Historic Financial Statements'!M15 -> 0.0344164268 | N132: =N127/'Historic Financial Statements'!N15 -> 0.0484852041 | O132: =O127/'Historic Financial Statements'!O15 -> 0.04066301526 | P132: =P127/'Historic Financial Statements'!P15 -> 0.05167482396 | Q132: ='Master Scenario'!H34 -> 0.05 | R132: =Q132 -> 0.05 | S132: 0.05 | T132: 0.05 | U132: 0.05 | V132: 0.05 | W132: 0.05 | X132: 0.05 | Y132: 0.05 | Z132: 0.05 | AA132: 0.05 | AB132: 0.05
E133: G&A as Percent of Revenue | G133: ='Historic Financial Statements'!G26/'Historic Financial Statements'!G15 -> 0.3239669421 | H133: ='Historic Financial Statements'!H26/'Historic Financial Statements'!H15 -> 0.08885368664 | I133: ='Historic Financial Statements'!I26/'Historic Financial Statements'!I15 -> 0.03282532066 | J133: ='Historic Financial Statements'!J26/'Historic Financial Statements'!J15 -> 0.07743362832 | K133: ='Historic Financial Statements'!K26/'Historic Financial Statements'!K15 -> 0.04474870286 | L133: ='Historic Financial Statements'!L26/'Historic Financial Statements'!L15 -> 0.03300452302 | M133: ='Historic Financial Statements'!M26/'Historic Financial Statements'!M15 -> 0.04460618823 | N133: ='Historic Financial Statements'!N26/'Historic Financial Statements'!N15 -> 0.0454142794 | O133: ='Historic Financial Statements'!O26/'Historic Financial Statements'!O15 -> 0.0458665049 | P133: ='Historic Financial Statements'!P26/'Historic Financial Statements'!P15 -> 0.07906947033 | Q133: ='Master Scenario'!I34 -> 0.045 | R133: =Q133 -> 0.045 | S133: 0.045 | T133: 0.045 | U133: 0.045 | V133: 0.045 | W133: 0.045 | X133: 0.045 | Y133: 0.045 | Z133: 0.045 | AA133: 0.045 | AB133: 0.045
E134: Growth in G&A | H134: =H128/G128-1 -> 0.2591836735 | I134: 1.269043721 | J134: 5.250000106 | K134: 0.5314285278 | L134: 0.6604478085 | M134: 0.9280899562 | N134: -0.1037296178 | O134: 0.7308192908 | P134: 0.8692711619
E135: R&D Growth | H135: =H129/G129-1 -> 1.387096774 | I135: 2.378378378 | J135: 5.800000191 | K135: 1.470588054 | L135: 0.7857143668 | M135: 0.02000001272 | N135: 0.895424813 | O135: 0.3862069229 | P135: -0.03980105121 | Q135: 0 | R135: =Q135 -> 0 | S135: 0 | T135: 0 | U135: 0 | V135: 0 | W135: 0 | X135: 0 | Y135: 0 | Z135: 0 | AA135: 0 | AB135: 0
C137: Other Income and Expense
D138: Other Income (Expense) | G138: ='Historic Financial Statements'!G35 -> 0.168 | H138: ='Historic Financial Statements'!H35 -> 0.093 | I138: ='Historic Financial Statements'!I35 -> 0.1000000015 | J138: ='Historic Financial Statements'!J35 -> 0 | K138: ='Historic Financial Statements'!K35 -> 0.6000000238 | L138: ='Historic Financial Statements'!L35 -> 0.200000003 | M138: ='Historic Financial Statements'!M35 -> -62.29999924 | N138: ='Historic Financial Statements'!N35 -> 2.599999905 | O138: ='Historic Financial Statements'!O35 -> -47.70000076 | P138: ='Historic Financial Statements'!P35 -> -133.1000061 | Q138: -10 | R138: =Q138 -> -10 | S138: -10 | T138: -10 | U138: -10 | V138: -10 | W138: -10 | X138: -10 | Y138: -10 | Z138: -10 | AA138: -10 | AB138: -10
D139: Income on Non-controlling Interest | G139: =-'Historic Financial Statements'!G39 -> 0 | H139: ='Historic Financial Statements'!H39 -> 0 | I139: ='Historic Financial Statements'!I39 -> 0 | J139: ='Historic Financial Statements'!J39 -> 0 | K139: ='Historic Financial Statements'!K39 -> 0 | L139: ='Historic Financial Statements'!L39 -> -0.6999999881 | M139: ='Historic Financial Statements'!M39 -> 0.3000000119 | N139: ='Historic Financial Statements'!N39 -> -3.299999952 | O139: ='Historic Financial Statements'!O39 -> 250.8000031 | P139: ='Historic Financial Statements'!P39 -> -98.69999695 | Q139: 0 | R139: =Q139 -> 0 | S139: 0 | T139: 0 | U139: 0 | V139: 0 | W139: 0 | X139: 0 | Y139: 0 | Z139: 0 | AA139: 0 | AB139: 0
B140: Working Capital
C141: Current Asset Ratios
D142: Current Assets
E143: Inventories as Percent of CGS | G143: ='Historic Financial Statements'!G73/'Historic Financial Statements'!G22 -> 0.4215481172 | H143: ='Historic Financial Statements'!H73/'Historic Financial Statements'!H22 -> 0.3342784748 | I143: ='Historic Financial Statements'!I73/'Historic Financial Statements'!I22 -> 0.3001445593 | J143: ='Historic Financial Statements'!J73/'Historic Financial Statements'!J22 -> 0.2638783103 | K143: ='Historic Financial Statements'!K73/'Historic Financial Statements'!K22 -> 0.4567660007 | L143: ='Historic Financial Statements'!L73/'Historic Financial Statements'!L22 -> 0.1681779106 | M143: ='Historic Financial Statements'!M73/'Historic Financial Statements'!M22 -> 0.1514597265 | N143: ='Historic Financial Statements'!N73/'Historic Financial Statements'!N22 -> 0.22144044 | O143: ='Historic Financial Statements'!O73/'Historic Financial Statements'!O22 -> 0.2456001575 | P143: ='Historic Financial Statements'!P73/'Historic Financial Statements'!P22 -> 0.1972578713 | Q143: 0.2 | R143: =Q143 -> 0.2 | S143: 0.2 | T143: 0.2 | U143: 0.2 | V143: 0.2 | W143: 0.2 | X143: 0.2 | Y143: 0.2 | Z143: 0.2 | AA143: 0.2 | AB143: 0.2
E144: Accounts Receivable as Percent of Revenues | G144: ='Historic Financial Statements'!G79/'Historic Financial Statements'!G15 -> 0.5474380165 | H144: ='Historic Financial Statements'!H79/'Historic Financial Statements'!H15 -> 0.1791474654 | I144: ='Historic Financial Statements'!I79/'Historic Financial Statements'!I15 -> 0.06431289336 | J144: ='Historic Financial Statements'!J79/'Historic Financial Statements'!J15 -> 0.01799699115 | K144: ='Historic Financial Statements'!K79/'Historic Financial Statements'!K15 -> 0.1739080377 | L144: ='Historic Financial Statements'!L79/'Historic Financial Statements'!L15 -> 0.1989913203 | M144: ='Historic Financial Statements'!M79/'Historic Financial Statements'!M15 -> 0.1876267249 | N144: ='Historic Financial Statements'!N79/'Historic Financial Statements'!N15 -> 0.3597708472 | O144: ='Historic Financial Statements'!O79/'Historic Financial Statements'!O15 -> 0.2033150842 | P144: ='Historic Financial Statements'!P79/'Historic Financial Statements'!P15 -> 0.1743469097 | Q144: ='Master Scenario'!J34 -> 0.2 | R144: =Q144 -> 0.2 | S144: 0.2 | T144: 0.2 | U144: 0.2 | V144: 0.2 | W144: 0.2 | X144: 0.2 | Y144: 0.2 | Z144: 0.2 | AA144: 0.2 | AB144: 0.2
E145: Advances to Suppliers as Percent of CGS | G145: ='Historic Financial Statements'!G80/'Historic Financial Statements'!G22 -> 0 | H145: ='Historic Financial Statements'!H80/'Historic Financial Statements'!H22 -> 0 | I145: ='Historic Financial Statements'!I80/'Historic Financial Statements'!I22 -> 0.03771066311 | J145: ='Historic Financial Statements'!J80/'Historic Financial Statements'!J22 -> 0.156659381 | K145: ='Historic Financial Statements'!K80/'Historic Financial Statements'!K22 -> 0.1811711227 | L145: ='Historic Financial Statements'!L80/'Historic Financial Statements'!L22 -> 0.05860456381 | M145: ='Historic Financial Statements'!M80/'Historic Financial Statements'!M22 -> 0.03716282404 | N145: ='Historic Financial Statements'!N80/'Historic Financial Statements'!N22 -> 0.03858012519 | O145: ='Historic Financial Statements'!O80/'Historic Financial Statements'!O22 -> 0.03713481408 | P145: ='Historic Financial Statements'!P80/'Historic Financial Statements'!P22 -> 0.03223342621 | Q145: 0.03 | R145: =Q145 -> 0.03 | S145: 0.03 | T145: 0.03 | U145: 0.03 | V145: 0.03 | W145: 0.03 | X145: 0.03 | Y145: 0.03 | Z145: 0.03 | AA145: 0.03 | AB145: 0.03
E146: Other Assets as Percent of Revenues | G146: ='Historic Financial Statements'!G83/'Historic Financial Statements'!G15 -> 0 | H146: ='Historic Financial Statements'!H83/'Historic Financial Statements'!H15 -> 0 | I146: ='Historic Financial Statements'!I83/'Historic Financial Statements'!I15 -> 0.01433334064 | J146: ='Historic Financial Statements'!J83/'Historic Financial Statements'!J15 -> 0.00149999115 | K146: ='Historic Financial Statements'!K83/'Historic Financial Statements'!K15 -> 0.04377752368 | L146: ='Historic Financial Statements'!L83/'Historic Financial Statements'!L15 -> 0.05384558025 | M146: ='Historic Financial Statements'!M83/'Historic Financial Statements'!M15 -> 0.0423186882 | N146: ='Historic Financial Statements'!N83/'Historic Financial Statements'!N15 -> 0.02828795795 | O146: ='Historic Financial Statements'!O83/'Historic Financial Statements'!O15 -> 0.04369551236 | P146: ='Historic Financial Statements'!P83/'Historic Financial Statements'!P15 -> 0.0536134238 | Q146: 0.05 | R146: =Q146 -> 0.05 | S146: 0.05 | T146: 0.05 | U146: 0.05 | V146: 0.05 | W146: 0.05 | X146: 0.05 | Y146: 0.05 | Z146: 0.05 | AA146: 0.05 | AB146: 0.05
D148: Current Liabilities
E149: Accounts payable and advances to CGS | G149: ='Historic Financial Statements'!G113/'Historic Financial Statements'!G22 -> 0 | H149: ='Historic Financial Statements'!H113/'Historic Financial Statements'!H22 -> 0 | I149: ='Historic Financial Statements'!I113/'Historic Financial Statements'!I22 -> 0.06265032658 | J149: ='Historic Financial Statements'!J113/'Historic Financial Statements'!J22 -> 0.08633955109 | K149: ='Historic Financial Statements'!K113/'Historic Financial Statements'!K22 -> 0.1198568868 | L149: ='Historic Financial Statements'!L113/'Historic Financial Statements'!L22 -> 0.08800229188 | M149: ='Historic Financial Statements'!M113/'Historic Financial Statements'!M22 -> 0.1361766005 | N149: ='Historic Financial Statements'!N113/'Historic Financial Statements'!N22 -> 0.28176142 | O149: ='Historic Financial Statements'!O113/'Historic Financial Statements'!O22 -> 0.3038982905 | P149: ='Historic Financial Statements'!P113/'Historic Financial Statements'!P22 -> 0.3234417951 | Q149: ='Master Scenario'!K34 -> 0.3 | R149: =Q149 -> 0.3 | S149: 0.3 | T149: 0.3 | U149: 0.3 | V149: 0.3 | W149: 0.3 | X149: 0.3 | Y149: 0.3 | Z149: 0.3 | AA149: 0.3 | AB149: 0.3
E150: Payables in respect of property/Cap Exp | G150: =IF(G68,'Historic Financial Statements'!G114/G68) -> FALSE | H150: =IF(H68,'Historic Financial Statements'!H114/H68) -> 0 | I150: =IF(I68,'Historic Financial Statements'!I114/I68) -> 0.008091998681 | J150: =IF(J68,'Historic Financial Statements'!J114/J68) -> 0.01816306626 | K150: =IF(K68,'Historic Financial Statements'!K114/K68) -> 0.05781199108 | L150: =IF(L68,'Historic Financial Statements'!L114/L68) -> 0.2288037295 | M150: =IF(M68,'Historic Financial Statements'!M114/M68) -> 0.2091668795 | N150: =IF(N68,'Historic Financial Statements'!N114/N68) -> 0.4743243228 | O150: =IF(O68,'Historic Financial Statements'!O114/O68) -> 0.3424608928 | P150: =IF(P68,'Historic Financial Statements'!P114/P68) -> 0.2549073149 | Q150: 0.25 | R150: =Q150 -> 0.25 | S150: 0.25 | T150: 0.25 | U150: 0.25 | V150: 0.25 | W150: 0.25 | X150: 0.25 | Y150: 0.25 | Z150: 0.25 | AA150: 0.25 | AB150: 0.25
E151: Government grants | G151: ='Historic Financial Statements'!G115 -> 0.03 | H151: ='Historic Financial Statements'!H115 -> 0.07 | I151: ='Historic Financial Statements'!I115 -> 2.060049 | J151: ='Historic Financial Statements'!J115 -> 4.106444 | K151: ='Historic Financial Statements'!K115 -> 4.820254 | L151: ='Historic Financial Statements'!L115 -> 2.799999952 | M151: ='Historic Financial Statements'!M115 -> 3.400000095 | N151: ='Historic Financial Statements'!N115 -> 6.300000191 | O151: ='Historic Financial Statements'!O115 -> 17.5 | P151: ='Historic Financial Statements'!P115 -> 13.5 | Q151: =P151 -> 13.5 | R151: =Q151 -> 13.5 | S151: 13.5 | T151: 13.5 | U151: 13.5 | V151: 13.5 | W151: 13.5 | X151: 13.5 | Y151: 13.5 | Z151: 13.5 | AA151: 13.5 | AB151: 13.5
E152: Other current liabilities | G152: ='Historic Financial Statements'!G119 -> 0.765 | H152: ='Historic Financial Statements'!H119 -> 2.997 | I152: ='Historic Financial Statements'!I119 -> 0 | J152: ='Historic Financial Statements'!J119 -> 1.898435 | K152: ='Historic Financial Statements'!K119 -> 7.658342 | L152: ='Historic Financial Statements'!L119 -> 22.50000048 | M152: ='Historic Financial Statements'!M119 -> 43.69999981 | N152: ='Historic Financial Statements'!N119 -> 60.8000021 | O152: ='Historic Financial Statements'!O119 -> 164.6999969 | P152: ='Historic Financial Statements'!P119 -> 81.5999999 | Q152: 81.6 | R152: =Q152 -> 81.6 | S152: 81.6 | T152: 81.6 | U152: 81.6 | V152: 81.6 | W152: 81.6 | X152: 81.6 | Y152: 81.6 | Z152: 81.6 | AA152: 81.6 | AB152: 81.6
B154: Depreciation and Tax
D155: Depreciation Expense to Net Plant | G155: ='Historic Financial Statements'!G29/'Historic Financial Statements'!G85 -> 0 | H155: ='Historic Financial Statements'!H29/'Historic Financial Statements'!H85 -> 0.1710633681 | I155: ='Historic Financial Statements'!I29/'Historic Financial Statements'!I85 -> 0.1503727175 | J155: ='Historic Financial Statements'!J29/'Historic Financial Statements'!J85 -> 0.1055889655 | K155: ='Historic Financial Statements'!K29/'Historic Financial Statements'!K85 -> 0.1010990257 | L155: ='Historic Financial Statements'!L29/'Historic Financial Statements'!L85 -> 0.07133105804 | M155: ='Historic Financial Statements'!M29/'Historic Financial Statements'!M85 -> 0.06223520595 | N155: ='Historic Financial Statements'!N29/'Historic Financial Statements'!N85 -> 0.08539095115 | O155: ='Historic Financial Statements'!O29/'Historic Financial Statements'!O85 -> 0.06484693464 | P155: ='Historic Financial Statements'!P29/'Historic Financial Statements'!P85 -> 0.09023707017 | Q155: 0.07 | R155: =Q155 -> 0.07 | S155: 0.07 | T155: 0.07 | U155: 0.07 | V155: 0.07 | W155: 0.07 | X155: 0.07 | Y155: 0.07 | Z155: 0.07 | AA155: 0.07 | AB155: 0.07
D156: Income Tax Rate | G156: ='Historic Financial Statements'!G41/-'Historic Financial Statements'!G40 -> 0.0636743215 | H156: ='Historic Financial Statements'!H41/-'Historic Financial Statements'!H40 -> -0.4823717949 | I156: ='Historic Financial Statements'!I41/-'Historic Financial Statements'!I40 -> -0.03124999907 | J156: ='Historic Financial Statements'!J41/-'Historic Financial Statements'!J40 -> 0.1107871656 | K156: ='Historic Financial Statements'!K41/-'Historic Financial Statements'!K40 -> 0.06498192826 | L156: ='Historic Financial Statements'!L41/-'Historic Financial Statements'!L40 -> 0.08439895023 | M156: ='Historic Financial Statements'!M41/-'Historic Financial Statements'!M40 -> 0.0490798182 | N156: ='Historic Financial Statements'!N41/-'Historic Financial Statements'!N40 -> 0.0283446456 | O156: ='Historic Financial Statements'!O41/-'Historic Financial Statements'!O40 -> 0.09094382563 | P156: ='Historic Financial Statements'!P41/-'Historic Financial Statements'!P40 -> 0.04490534376 | Q156: 0.05 | R156: 0.05 | S156: 0.1 | T156: 0.15 | U156: 0.2 | V156: 0.2 | W156: 0.2 | X156: 0.2 | Y156: 0.2 | Z156: 0.2 | AA156: 0.2 | AB156: 0.2
B158: Financial Inputs
C159: Long-term Debt Repayment | Q159: 0.4 | R159: 533.5 | S159: 130.3000031 | T159: 0.3000000119 | U159: 49.70000076
C160: Repayment Percent | P160: 0.2 | Q160: 0.2 | R160: 0.2 | S160: 0.2 | T160: 0.2 | U160: 0.2 | V160: 0.2 | W160: 0.2 | X160: 0.2 | Y160: 0.2 | Z160: 0.2 | AA160: 0.2 | AB160: 0.2
C161: Interest Rate on Debt | G161: =-'Historic Financial Statements'!G31/AVERAGE('Historic Financial Statements'!F107:G107,'Historic Financial Statements'!F124:G124) -> 0 | H161: =-'Historic Financial Statements'!H31/AVERAGE('Historic Financial Statements'!G107:H107,'Historic Financial Statements'!G124:H124) -> 0.04184542936 | I161: =-'Historic Financial Statements'!I31/AVERAGE('Historic Financial Statements'!H107:I107,'Historic Financial Statements'!H124:I124) -> 0.07188485469 | J161: =-'Historic Financial Statements'!J31/AVERAGE('Historic Financial Statements'!I107:J107,'Historic Financial Statements'!I124:J124) -> 0.09980381639 | K161: =-'Historic Financial Statements'!K31/AVERAGE('Historic Financial Statements'!J107:K107,'Historic Financial Statements'!J124:K124) -> 0.0637798008 | L161: =-'Historic Financial Statements'!L31/AVERAGE('Historic Financial Statements'!K107:L107,'Historic Financial Statements'!K124:L124) -> 0.1370743378 | M161: =-'Historic Financial Statements'!M31/AVERAGE('Historic Financial Statements'!L107:M107,'Historic Financial Statements'!L124:M124) -> 0.09029381997 | N161: =-'Historic Financial Statements'!N31/AVERAGE('Historic Financial Statements'!M107:N107,'Historic Financial Statements'!M124:N124) -> 0.148022634 | O161: =-'Historic Financial Statements'!O31/AVERAGE('Historic Financial Statements'!N107:O107,'Historic Financial Statements'!N124:O124) -> 0.1042534113 | P161: =-'Historic Financial Statements'!P31/AVERAGE('Historic Financial Statements'!O107:P107,'Historic Financial Statements'!O124:P124) -> 0.08975902287
C162: Interest Rate Assumptions
D163: Long Term Debt | F163: Year | G163: Rate
F164: 2010 | G164: 0.09
F165: 2014 | G165: 0.08
F166: 2016 | G166: 0.075
D168: Short-term Debt | F168: Year | G168: Rate
F169: 2012 | G169: 0.08
F170: 2014 | G170: 0.07
F171: 2016 | G171: 0.06
D173: Interest Income Rate | F173: Year | G173: Rate
F174: 2012 | G174: 0.02
F175: 2014 | G175: 0.03
F176: 2016 | G176: 0.04
D178: Minority Interest | G178: ='Historic Financial Statements'!G45+'Historic Financial Statements'!G46 -> 0 | H178: ='Historic Financial Statements'!H45+'Historic Financial Statements'!H46 -> 0 | I178: ='Historic Financial Statements'!I45+'Historic Financial Statements'!I46 -> 0 | J178: ='Historic Financial Statements'!J45 -> 0.1000000015 | K178: ='Historic Financial Statements'!K45+'Historic Financial Statements'!K46 -> 1 | L178: ='Historic Financial Statements'!L45+'Historic Financial Statements'!L46 -> 2.700000048 | M178: ='Historic Financial Statements'!M45+'Historic Financial Statements'!M46 -> 1.399999976 | N178: ='Historic Financial Statements'!N45+'Historic Financial Statements'!N46 -> -0.1000000015 | O178: ='Historic Financial Statements'!O45+'Historic Financial Statements'!O46 -> -1 | P178: ='Historic Financial Statements'!P45+'Historic Financial Statements'!P46 -> -0.6000000238 | Q178: ='Historic Financial Statements'!Q45+'Historic Financial Statements'!Q46 -> 0 | R178: ='Historic Financial Statements'!R45+'Historic Financial Statements'!R46 -> 0 | S178: ='Historic Financial Statements'!S45+'Historic Financial Statements'!S46 -> 0 | T178: ='Historic Financial Statements'!T45+'Historic Financial Statements'!T46 -> 0 | U178: ='Historic Financial Statements'!U45+'Historic Financial Statements'!U46 -> 0 | V178: ='Historic Financial Statements'!V45+'Historic Financial Statements'!V46 -> 0 | W178: ='Historic Financial Statements'!W45+'Historic Financial Statements'!W46 -> 0 | X178: ='Historic Financial Statements'!X45+'Historic Financial Statements'!X46 -> 0 | Y178: ='Historic Financial Statements'!Y45+'Historic Financial Statements'!Y46 -> 0 | Z178: ='Historic Financial Statements'!Z45+'Historic Financial Statements'!Z46 -> 0 | AA178: ='Historic Financial Statements'!AA45+'Historic Financial Statements'!AA46 -> 0 | AB178: ='Historic Financial Statements'!AB45+'Historic Financial Statements'!AB46 -> 0
D179: Minority Interest Percent | G179: =-G178/'Historic Financial Statements'!G44 -> 0 | H179: =-H178/'Historic Financial Statements'!H44 -> 0 | I179: =-I178/'Historic Financial Statements'!I44 -> 0 | J179: =-J178/'Historic Financial Statements'!J44 -> -0.0032786884 | K179: =-K178/'Historic Financial Statements'!K44 -> -0.00965250654 | L179: =-L178/'Historic Financial Statements'!L44 -> -0.01885474268 | M179: =-M178/'Historic Financial Statements'!M44 -> -0.04516135042 | N179: =-N178/'Historic Financial Statements'!N44 -> 0.001166860076 | O179: =-O178/'Historic Financial Statements'!O44 -> 0.004203446799 | P179: =-P178/'Historic Financial Statements'!P44 -> -0.0005893910645 | Q179: 0.001 | R179: =Q179 -> 0.001 | S179: 0.001 | T179: 0.001 | U179: 0.001 | V179: 0.001 | W179: 0.001 | X179: 0.001 | Y179: 0.001 | Z179: 0.001 | AA179: 0.001 | AB179: 0.001
B181: Inflation Rate
F182: Year | G182: Rate
F183: 2012 | G183: 0.01
F184: 2014 | G184: 0.015
F185: 2016 | G185: 0.02
B186: Vauation Parameters
D187: Beta | G187: 2
D188: Risk Free Rate | G188: 0.04
D189: Equity Market Risk Premium | G189: 0.05
D190: Cost of Equity | G190: =G187*G189+G188 -> 0.14
D191: WACC | G191: ='Master Scenario'!L34 -> 0.12
D192: Terminal Growth | G192: ='Master Scenario'!M34 -> 0.05
D193: ROIC/WACC Spread | G193: ='Master Scenario'!N34 -> 0.01
D194: Terminal EV/EBITDA Ratio | G194: ='EV to EBITDA and Stable Ratios'!O13 -> 6.173561015
D195: Terminal P/E Ratio | G195: 15
D196: Ratio of Cap Exp to Depreciation | G196: 1.1
D197: Ratio of WC Changes to EBITDA | G197: ='EV to EBITDA and Stable Ratios'!O9 -> 0.07208899717

Sheet Financial Model
G2: 2002 | H2: 2003 | I2: 2004 | J2: 2005 | K2: 2006 | L2: 2007 | M2: 2008 | N2: 2009 | O2: 2010 | P2: 2011 | Q2: 2012 | R2: 2013 | S2: 2014 | T2: 2015 | U2: 2016 | V2: 2017 | W2: 2018 | X2: 2019 | Y2: 2020 | Z2: 2021 | AA2: 2022 | AB2: 2023
A3: Operations
A5: Timings
B6: Historic Year Switch | G6: ='Financial Model Assumptions'!G2<='Financial Model Assumptions'!$F$11 -> TRUE | H6: ='Financial Model Assumptions'!H2<='Financial Model Assumptions'!$F$11 -> TRUE | I6: ='Financial Model Assumptions'!I2<='Financial Model Assumptions'!$F$11 -> TRUE | J6: ='Financial Model Assumptions'!J2<='Financial Model Assumptions'!$F$11 -> TRUE | K6: ='Financial Model Assumptions'!K2<='Financial Model Assumptions'!$F$11 -> TRUE | L6: ='Financial Model Assumptions'!L2<='Financial Model Assumptions'!$F$11 -> TRUE | M6: ='Financial Model Assumptions'!M2<='Financial Model Assumptions'!$F$11 -> TRUE | N6: ='Financial Model Assumptions'!N2<='Financial Model Assumptions'!$F$11 -> TRUE | O6: ='Financial Model Assumptions'!O2<='Financial Model Assumptions'!$F$11 -> TRUE | P6: ='Financial Model Assumptions'!P2<='Financial Model Assumptions'!$F$11 -> TRUE | Q6: ='Financial Model Assumptions'!Q2<='Financial Model Assumptions'!$F$11 -> FALSE | R6: ='Financial Model Assumptions'!R2<='Financial Model Assumptions'!$F$11 -> FALSE | S6: ='Financial Model Assumptions'!S2<='Financial Model Assumptions'!$F$11 -> FALSE | T6: ='Financial Model Assumptions'!T2<='Financial Model Assumptions'!$F$11 -> FALSE | U6: ='Financial Model Assumptions'!U2<='Financial Model Assumptions'!$F$11 -> FALSE | V6: ='Financial Model Assumptions'!V2<='Financial Model Assumptions'!$F$11 -> FALSE | W6: ='Financial Model Assumptions'!W2<='Financial Model Assumptions'!$F$11 -> FALSE | X6: ='Financial Model Assumptions'!X2<='Financial Model Assumptions'!$F$11 -> FALSE | Y6: ='Financial Model Assumptions'!Y2<='Financial Model Assumptions'!$F$11 -> FALSE | Z6: ='Financial Model Assumptions'!Z2<='Financial Model Assumptions'!$F$11 -> FALSE | AA6: ='Financial Model Assumptions'!AA2<='Financial Model Assumptions'!$F$11 -> FALSE | AB6: ='Financial Model Assumptions'!AB2<='Financial Model Assumptions'!$F$11 -> FALSE
B7: Transaction Switch | G7: ='Financial Model Assumptions'!G2='Financial Model Assumptions'!$F$12-1 -> FALSE | H7: ='Financial Model Assumptions'!H2='Financial Model Assumptions'!$F$12-1 -> FALSE | I7: ='Financial Model Assumptions'!I2='Financial Model Assumptions'!$F$12-1 -> FALSE | J7: ='Financial Model Assumptions'!J2='Financial Model Assumptions'!$F$12-1 -> FALSE | K7: ='Financial Model Assumptions'!K2='Financial Model Assumptions'!$F$12-1 -> FALSE | L7: ='Financial Model Assumptions'!L2='Financial Model Assumptions'!$F$12-1 -> FALSE | M7: ='Financial Model Assumptions'!M2='Financial Model Assumptions'!$F$12-1 -> FALSE | N7: ='Financial Model Assumptions'!N2='Financial Model Assumptions'!$F$12-1 -> FALSE | O7: ='Financial Model Assumptions'!O2='Financial Model Assumptions'!$F$12-1 -> FALSE | P7: ='Financial Model Assumptions'!P2='Financial Model Assumptions'!$F$12-1 -> FALSE | Q7: ='Financial Model Assumptions'!Q2='Financial Model Assumptions'!$F$12-1 -> FALSE | R7: ='Financial Model Assumptions'!R2='Financial Model Assumptions'!$F$12-1 -> TRUE | S7: ='Financial Model Assumptions'!S2='Financial Model Assumptions'!$F$12-1 -> FALSE | T7: ='Financial Model Assumptions'!T2='Financial Model Assumptions'!$F$12-1 -> FALSE | U7: ='Financial Model Assumptions'!U2='Financial Model Assumptions'!$F$12-1 -> FALSE | V7: ='Financial Model Assumptions'!V2='Financial Model Assumptions'!$F$12-1 -> FALSE | W7: ='Financial Model Assumptions'!W2='Financial Model Assumptions'!$F$12-1 -> FALSE | X7: ='Financial Model Assumptions'!X2='Financial Model Assumptions'!$F$12-1 -> FALSE | Y7: ='Financial Model Assumptions'!Y2='Financial Model Assumptions'!$F$12-1 -> FALSE | Z7: ='Financial Model Assumptions'!Z2='Financial Model Assumptions'!$F$12-1 -> FALSE | AA7: ='Financial Model Assumptions'!AA2='Financial Model Assumptions'!$F$12-1 -> FALSE | AB7: ='Financial Model Assumptions'!AB2='Financial Model Assumptions'!$F$12-1 -> FALSE
B8: Explicit Period Switch | G8: =AND('Financial Model Assumptions'!G$2>='Financial Model Assumptions'!$F$12,'Financial Model Assumptions'!G2<='Financial Model Assumptions'!$F$13) -> FALSE | H8: =AND('Financial Model Assumptions'!H$2>='Financial Model Assumptions'!$F$12,'Financial Model Assumptions'!H2<='Financial Model Assumptions'!$F$13) -> FALSE | I8: =AND('Financial Model Assumptions'!I$2>='Financial Model Assumptions'!$F$12,'Financial Model Assumptions'!I2<='Financial Model Assumptions'!$F$13) -> FALSE | J8: =AND('Financial Model Assumptions'!J$2>='Financial Model Assumptions'!$F$12,'Financial Model Assumptions'!J2<='Financial Model Assumptions'!$F$13) -> FALSE | K8: =AND('Financial Model Assumptions'!K$2>='Financial Model Assumptions'!$F$12,'Financial Model Assumptions'!K2<='Financial Model Assumptions'!$F$13) -> FALSE | L8: =AND('Financial Model Assumptions'!L$2>='Financial Model Assumptions'!$F$12,'Financial Model Assumptions'!L2<='Financial Model Assumptions'!$F$13) -> FALSE | M8: =AND('Financial Model Assumptions'!M$2>='Financial Model Assumptions'!$F$12,'Financial Model Assumptions'!M2<='Financial Model Assumptions'!$F$13) -> FALSE | N8: =AND('Financial Model Assumptions'!N$2>='Financial Model Assumptions'!$F$12,'Financial Model Assumptions'!N2<='Financial Model Assumptions'!$F$13) -> FALSE | O8: =AND('Financial Model Assumptions'!O$2>='Financial Model Assumptions'!$F$12,'Financial Model Assumptions'!O2<='Financial Model Assumptions'!$F$13) -> FALSE | P8: =AND('Financial Model Assumptions'!P$2>='Financial Model Assumptions'!$F$12,'Financial Model Assumptions'!P2<='Financial Model Assumptions'!$F$13) -> FALSE | Q8: =AND('Financial Model Assumptions'!Q$2>='Financial Model Assumptions'!$F$12,'Financial Model Assumptions'!Q2<='Financial Model Assumptions'!$F$13) -> FALSE | R8: =AND('Financial Model Assumptions'!R$2>='Financial Model Assumptions'!$F$12,'Financial Model Assumptions'!R2<='Financial Model Assumptions'!$F$13) -> FALSE | S8: =AND('Financial Model Assumptions'!S$2>='Financial Model Assumptions'!$F$12,'Financial Model Assumptions'!S2<='Financial Model Assumptions'!$F$13) -> TRUE | T8: =AND('Financial Model Assumptions'!T$2>='Financial Model Assumptions'!$F$12,'Financial Model Assumptions'!T2<='Financial Model Assumptions'!$F$13) -> TRUE | U8: =AND('Financial Model Assumptions'!U$2>='Financial Model Assumptions'!$F$12,'Financial Model Assumptions'!U2<='Financial Model Assumptions'!$F$13) -> TRUE | V8: =AND('Financial Model Assumptions'!V$2>='Financial Model Assumptions'!$F$12,'Financial Model Assumptions'!V2<='Financial Model Assumptions'!$F$13) -> TRUE | W8: =AND('Financial Model Assumptions'!W$2>='Financial Model Assumptions'!$F$12,'Financial Model Assumptions'!W2<='Financial Model Assumptions'!$F$13) -> TRUE | X8: =AND('Financial Model Assumptions'!X$2>='Financial Model Assumptions'!$F$12,'Financial Model Assumptions'!X2<='Financial Model Assumptions'!$F$13) -> TRUE | Y8: =AND('Financial Model Assumptions'!Y$2>='Financial Model Assumptions'!$F$12,'Financial Model Assumptions'!Y2<='Financial Model Assumptions'!$F$13) -> TRUE | Z8: =AND('Financial Model Assumptions'!Z$2>='Financial Model Assumptions'!$F$12,'Financial Model Assumptions'!Z2<='Financial Model Assumptions'!$F$13) -> FALSE | AA8: =AND('Financial Model Assumptions'!AA$2>='Financial Model Assumptions'!$F$12,'Financial Model Assumptions'!AA2<='Financial Model Assumptions'!$F$13) -> FALSE | AB8: =AND('Financial Model Assumptions'!AB$2>='Financial Model Assumptions'!$F$12,'Financial Model Assumptions'!AB2<='Financial Model Assumptions'!$F$13) -> FALSE
B9: Terminal Period Switch | G9: ='Financial Model Assumptions'!G$2='Financial Model Assumptions'!$F$13 -> FALSE | H9: ='Financial Model Assumptions'!H$2='Financial Model Assumptions'!$F$13 -> FALSE | I9: ='Financial Model Assumptions'!I$2='Financial Model Assumptions'!$F$13 -> FALSE | J9: ='Financial Model Assumptions'!J$2='Financial Model Assumptions'!$F$13 -> FALSE | K9: ='Financial Model Assumptions'!K$2='Financial Model Assumptions'!$F$13 -> FALSE | L9: ='Financial Model Assumptions'!L$2='Financial Model Assumptions'!$F$13 -> FALSE | M9: ='Financial Model Assumptions'!M$2='Financial Model Assumptions'!$F$13 -> FALSE | N9: ='Financial Model Assumptions'!N$2='Financial Model Assumptions'!$F$13 -> FALSE | O9: ='Financial Model Assumptions'!O$2='Financial Model Assumptions'!$F$13 -> FALSE | P9: ='Financial Model Assumptions'!P$2='Financial Model Assumptions'!$F$13 -> FALSE | Q9: ='Financial Model Assumptions'!Q$2='Financial Model Assumptions'!$F$13 -> FALSE | R9: ='Financial Model Assumptions'!R$2='Financial Model Assumptions'!$F$13 -> FALSE | S9: ='Financial Model Assumptions'!S$2='Financial Model Assumptions'!$F$13 -> FALSE | T9: ='Financial Model Assumptions'!T$2='Financial Model Assumptions'!$F$13 -> FALSE | U9: ='Financial Model Assumptions'!U$2='Financial Model Assumptions'!$F$13 -> FALSE | V9: ='Financial Model Assumptions'!V$2='Financial Model Assumptions'!$F$13 -> FALSE | W9: ='Financial Model Assumptions'!W$2='Financial Model Assumptions'!$F$13 -> FALSE | X9: ='Financial Model Assumptions'!X$2='Financial Model Assumptions'!$F$13 -> FALSE | Y9: ='Financial Model Assumptions'!Y$2='Financial Model Assumptions'!$F$13 -> TRUE | Z9: ='Financial Model Assumptions'!Z$2='Financial Model Assumptions'!$F$13 -> FALSE | AA9: ='Financial Model Assumptions'!AA$2='Financial Model Assumptions'!$F$13 -> FALSE | AB9: ='Financial Model Assumptions'!AB$2='Financial Model Assumptions'!$F$13 -> FALSE
B10: Capacity Calculation Switch | G10: ='Financial Model Assumptions'!G2>='Financial Model Assumptions'!$G$59 -> FALSE | H10: ='Financial Model Assumptions'!H2>='Financial Model Assumptions'!$G$59 -> FALSE | I10: ='Financial Model Assumptions'!I2>='Financial Model Assumptions'!$G$59 -> FALSE | J10: ='Financial Model Assumptions'!J2>='Financial Model Assumptions'!$G$59 -> FALSE | K10: ='Financial Model Assumptions'!K2>='Financial Model Assumptions'!$G$59 -> FALSE | L10: ='Financial Model Assumptions'!L2>='Financial Model Assumptions'!$G$59 -> FALSE | M10: ='Financial Model Assumptions'!M2>='Financial Model Assumptions'!$G$59 -> FALSE | N10: ='Financial Model Assumptions'!N2>='Financial Model Assumptions'!$G$59 -> FALSE | O10: ='Financial Model Assumptions'!O2>='Financial Model Assumptions'!$G$59 -> FALSE | P10: ='Financial Model Assumptions'!P2>='Financial Model Assumptions'!$G$59 -> FALSE | Q10: ='Financial Model Assumptions'!Q2>='Financial Model Assumptions'!$G$59 -> FALSE | R10: ='Financial Model Assumptions'!R2>='Financial Model Assumptions'!$G$59 -> FALSE | S10: ='Financial Model Assumptions'!S2>='Financial Model Assumptions'!$G$59 -> FALSE | T10: ='Financial Model Assumptions'!T2>='Financial Model Assumptions'!$G$59 -> TRUE | U10: ='Financial Model Assumptions'!U2>='Financial Model Assumptions'!$G$59 -> TRUE | V10: ='Financial Model Assumptions'!V2>='Financial Model Assumptions'!$G$59 -> TRUE | W10: ='Financial Model Assumptions'!W2>='Financial Model Assumptions'!$G$59 -> TRUE | X10: ='Financial Model Assumptions'!X2>='Financial Model Assumptions'!$G$59 -> TRUE | Y10: ='Financial Model Assumptions'!Y2>='Financial Model Assumptions'!$G$59 -> TRUE | Z10: ='Financial Model Assumptions'!Z2>='Financial Model Assumptions'!$G$59 -> TRUE | AA10: ='Financial Model Assumptions'!AA2>='Financial Model Assumptions'!$G$59 -> TRUE | AB10: ='Financial Model Assumptions'!AB2>='Financial Model Assumptions'!$G$59 -> TRUE
B12: Industry Demand and Capacity
C13: Projected Growth Rate | G13: ='Financial Model Assumptions'!G28 -> FALSE | H13: ='Financial Model Assumptions'!H28 -> FALSE | I13: ='Financial Model Assumptions'!I28 -> FALSE | J13: ='Financial Model Assumptions'!J28 -> FALSE | K13: ='Financial Model Assumptions'!K28 -> FALSE | L13: ='Financial Model Assumptions'!L28 -> FALSE | M13: ='Financial Model Assumptions'!M28 -> FALSE | N13: ='Financial Model Assumptions'!N28 -> FALSE | O13: ='Financial Model Assumptions'!O28 -> FALSE | P13: ='Financial Model Assumptions'!P28 -> FALSE | Q13: ='Financial Model Assumptions'!Q28 -> 0.05 | R13: ='Financial Model Assumptions'!R28 -> 0.1 | S13: ='Financial Model Assumptions'!S28 -> 0.15 | T13: ='Financial Model Assumptions'!T28 -> 0.15 | U13: ='Financial Model Assumptions'!U28 -> 0.15 | V13: ='Financial Model Assumptions'!V28 -> 0.1 | W13: ='Financial Model Assumptions'!W28 -> 0.1 | X13: ='Financial Model Assumptions'!X28 -> 0.1 | Y13: ='Financial Model Assumptions'!Y28 -> 0.1 | Z13: ='Financial Model Assumptions'!Z28 -> 0.1 | AA13: ='Financial Model Assumptions'!AA28 -> 0.1 | AB13: ='Financial Model Assumptions'!AB28 -> 0.1
C14: Industry Demand | G14: =IF(G6,'Financial Model Assumptions'!G17,F14*(1+G13)) -> 0 | H14: =IF(H6,'Financial Model Assumptions'!H17,G14*(1+H13)) -> 0 | I14: =IF(I6,'Financial Model Assumptions'!I17,H14*(1+I13)) -> 0 | J14: =IF(J6,'Financial Model Assumptions'!J17,I14*(1+J13)) -> 0 | K14: =IF(K6,'Financial Model Assumptions'!K17,J14*(1+K13)) -> 1700 | L14: =IF(L6,'Financial Model Assumptions'!L17,K14*(1+L13)) -> 3100 | M14: =IF(M6,'Financial Model Assumptions'!M17,L14*(1+M13)) -> 6000 | N14: =IF(N6,'Financial Model Assumptions'!N17,M14*(1+N13)) -> 8100 | O14: =IF(O6,'Financial Model Assumptions'!O17,N14*(1+O13)) -> 18000 | P14: =IF(P6,'Financial Model Assumptions'!P17,O14*(1+P13)) -> 21000 | Q14: =IF(Q6,'Financial Model Assumptions'!Q17,P14*(1+Q13)) -> 22050 | R14: =IF(R6,'Financial Model Assumptions'!R17,Q14*(1+R13)) -> 24255 | S14: =IF(S6,'Financial Model Assumptions'!S17,R14*(1+S13)) -> 27893.25 | T14: =IF(T6,'Financial Model Assumptions'!T17,S14*(1+T13)) -> 32077.2375 | U14: =IF(U6,'Financial Model Assumptions'!U17,T14*(1+U13)) -> 36888.82313 | V14: =IF(V6,'Financial Model Assumptions'!V17,U14*(1+V13)) -> 40577.70544 | W14: =IF(W6,'Financial Model Assumptions'!W17,V14*(1+W13)) -> 44635.47598 | X14: =IF(X6,'Financial Model Assumptions'!X17,W14*(1+X13)) -> 49099.02358 | Y14: =IF(Y6,'Financial Model Assumptions'!Y17,X14*(1+Y13)) -> 54008.92594 | Z14: =IF(Z6,'Financial Model Assumptions'!Z17,Y14*(1+Z13)) -> 59409.81853 | AA14: =IF(AA6,'Financial Model Assumptions'!AA17,Z14*(1+AA13)) -> 65350.80038 | AB14: =IF(AB6,'Financial Model Assumptions'!AB17,AA14*(1+AB13)) -> 71885.88042
C16: Industry Capacity | F16: MW
D17: Opening Balance | H17: =G19 -> 0 | I17: 0 | J17: 0 | K17: 0 | L17: 2900 | M17: 5400 | N17: 9700 | O17: 13600 | P17: 26100 | Q17: 36300 | R17: 46300 | S17: 51300 | T17: 54300 | U17: 54300 | V17: 54300 | W17: 54300 | X17: 54300 | Y17: 54300 | Z17: 54300 | AA17: 59409.81853 | AB17: 65350.80038
D18: Add: New Capacity | H18: =MAX(IF(H10,H14-H17,'Financial Model Assumptions'!H39),0) -> 0 | I18: =MAX(IF(I10,I14-I17,'Financial Model Assumptions'!I39),0) -> 0 | J18: =MAX(IF(J10,J14-J17,'Financial Model Assumptions'!J39),0) -> 0 | K18: =MAX(IF(K10,K14-K17,'Financial Model Assumptions'!K39),0) -> 0 | L18: =MAX(IF(L10,L14-L17,'Financial Model Assumptions'!L39),0) -> 2500 | M18: =MAX(IF(M10,M14-M17,'Financial Model Assumptions'!M39),0) -> 4300 | N18: =MAX(IF(N10,N14-N17,'Financial Model Assumptions'!N39),0) -> 3900 | O18: =MAX(IF(O10,O14-O17,'Financial Model Assumptions'!O39),0) -> 12500 | P18: =MAX(IF(P10,P14-P17,'Financial Model Assumptions'!P39),0) -> 10200 | Q18: =MAX(IF(Q10,Q14-Q17,'Financial Model Assumptions'!Q39),0) -> 10000 | R18: =MAX(IF(R10,R14-R17,'Financial Model Assumptions'!R39),0) -> 5000 | S18: =MAX(IF(S10,S14-S17,'Financial Model Assumptions'!S39),0) -> 3000 | T18: =MAX(IF(T10,T14-T17,'Financial Model Assumptions'!T39),0) -> 0 | U18: =MAX(IF(U10,U14-U17,'Financial Model Assumptions'!U39),0) -> 0 | V18: =MAX(IF(V10,V14-V17,'Financial Model Assumptions'!V39),0) -> 0 | W18: =MAX(IF(W10,W14-W17,'Financial Model Assumptions'!W39),0) -> 0 | X18: =MAX(IF(X10,X14-X17,'Financial Model Assumptions'!X39),0) -> 0 | Y18: =MAX(IF(Y10,Y14-Y17,'Financial Model Assumptions'!Y39),0) -> 0 | Z18: =MAX(IF(Z10,Z14-Z17,'Financial Model Assumptions'!Z39),0) -> 5109.818531 | AA18: =MAX(IF(AA10,AA14-AA17,'Financial Model Assumptions'!AA39),0) -> 5940.981853 | AB18: =MAX(IF(AB10,AB14-AB17,'Financial Model Assumptions'!AB39),0) -> 6535.080038
D19: Closing Balance | G19: =IF(G6,'Financial Model Assumptions'!G31,G17+G18) -> 0 | H19: =IF(H6,'Financial Model Assumptions'!H31,H17+H18) -> 0 | I19: =IF(I6,'Financial Model Assumptions'!I31,I17+I18) -> 0 | J19: =IF(J6,'Financial Model Assumptions'!J31,J17+J18) -> 0 | K19: =IF(K6,'Financial Model Assumptions'!K31,K17+K18) -> 2900 | L19: =IF(L6,'Financial Model Assumptions'!L31,L17+L18) -> 5400 | M19: =IF(M6,'Financial Model Assumptions'!M31,M17+M18) -> 9700 | N19: =IF(N6,'Financial Model Assumptions'!N31,N17+N18) -> 13600 | O19: =IF(O6,'Financial Model Assumptions'!O31,O17+O18) -> 26100 | P19: =IF(P6,'Financial Model Assumptions'!P31,P17+P18) -> 36300 | Q19: =IF(Q6,'Financial Model Assumptions'!Q31,Q17+Q18) -> 46300 | R19: =IF(R6,'Financial Model Assumptions'!R31,R17+R18) -> 51300 | S19: =IF(S6,'Financial Model Assumptions'!S31,S17+S18) -> 54300 | T19: =IF(T6,'Financial Model Assumptions'!T31,T17+T18) -> 54300 | U19: =IF(U6,'Financial Model Assumptions'!U31,U17+U18) -> 54300 | V19: =IF(V6,'Financial Model Assumptions'!V31,V17+V18) -> 54300 | W19: =IF(W6,'Financial Model Assumptions'!W31,W17+W18) -> 54300 | X19: =IF(X6,'Financial Model Assumptions'!X31,X17+X18) -> 54300 | Y19: =IF(Y6,'Financial Model Assumptions'!Y31,Y17+Y18) -> 54300 | Z19: =IF(Z6,'Financial Model Assumptions'!Z31,Z17+Z18) -> 59409.81853 | AA19: =IF(AA6,'Financial Model Assumptions'!AA31,AA17+AA18) -> 65350.80038 | AB19: =IF(AB6,'Financial Model Assumptions'!AB31,AB17+AB18) -> 71885.88042
B21: Suntech Capacity and Demand | F21: MW
C22: Capacity Percent | H22: =IF(H6,'Financial Model Assumptions'!H47,'Financial Model Assumptions'!H60) -> FALSE | I22: =IF(I6,'Financial Model Assumptions'!I47,'Financial Model Assumptions'!I60) -> FALSE | J22: =IF(J6,'Financial Model Assumptions'!J47,'Financial Model Assumptions'!J60) -> FALSE | K22: =IF(K6,'Financial Model Assumptions'!K47,'Financial Model Assumptions'!K60) -> 0.09310344828 | L22: =IF(L6,'Financial Model Assumptions'!L47,'Financial Model Assumptions'!L60) -> 0.1 | M22: =IF(M6,'Financial Model Assumptions'!M47,'Financial Model Assumptions'!M60) -> 0.1030927835 | N22: =IF(N6,'Financial Model Assumptions'!N47,'Financial Model Assumptions'!N60) -> 0.08088235294 | O22: =IF(O6,'Financial Model Assumptions'!O47,'Financial Model Assumptions'!O60) -> 0.06896551724 | P22: =IF(P6,'Financial Model Assumptions'!P47,'Financial Model Assumptions'!P60) -> 0.06611570248 | Q22: =IF(Q6,'Financial Model Assumptions'!Q47,'Financial Model Assumptions'!Q60) -> 0 | R22: =IF(R6,'Financial Model Assumptions'!R47,'Financial Model Assumptions'!R60) -> 0 | S22: =IF(S6,'Financial Model Assumptions'!S47,'Financial Model Assumptions'!S60) -> 0 | T22: =IF(T6,'Financial Model Assumptions'!T47,'Financial Model Assumptions'!T60) -> 0.06 | U22: =IF(U6,'Financial Model Assumptions'!U47,'Financial Model Assumptions'!U60) -> 0.06 | V22: =IF(V6,'Financial Model Assumptions'!V47,'Financial Model Assumptions'!V60) -> 0.06 | W22: =IF(W6,'Financial Model Assumptions'!W47,'Financial Model Assumptions'!W60) -> 0.06 | X22: =IF(X6,'Financial Model Assumptions'!X47,'Financial Model Assumptions'!X60) -> 0.06 | Y22: =IF(Y6,'Financial Model Assumptions'!Y47,'Financial Model Assumptions'!Y60) -> 0.06 | Z22: =IF(Z6,'Financial Model Assumptions'!Z47,'Financial Model Assumptions'!Z60) -> 0.06 | AA22: =IF(AA6,'Financial Model Assumptions'!AA47,'Financial Model Assumptions'!AA60) -> 0.06 | AB22: =IF(AB6,'Financial Model Assumptions'!AB47,'Financial Model Assumptions'!AB60) -> 0.06
C23: Target Capacity | H23: =IF(H10,H19*H22) -> FALSE | I23: FALSE | J23: FALSE | K23: FALSE | L23: FALSE | M23: FALSE | N23: FALSE | O23: FALSE | P23: FALSE | Q23: FALSE | R23: FALSE | S23: FALSE | T23: 3258 | U23: 3258 | V23: 3258 | W23: 3258 | X23: 3258 | Y23: 3258 | Z23: 3564.589112 | AA23: 3921.048023 | AB23: 4313.152825
C24: Increase in Capacity | H24: =IF(H10,H23-H27,'Financial Model Assumptions'!H43) -> 30 | I24: =IF(I10,I23-I27,'Financial Model Assumptions'!I43) -> 30 | J24: =IF(J10,J23-J27,'Financial Model Assumptions'!J43) -> 90 | K24: =IF(K10,K23-K27,'Financial Model Assumptions'!K43) -> 120 | L24: =IF(L10,L23-L27,'Financial Model Assumptions'!L43) -> 270 | M24: =IF(M10,M23-M27,'Financial Model Assumptions'!M43) -> 460 | N24: =IF(N10,N23-N27,'Financial Model Assumptions'!N43) -> 100 | O24: =IF(O10,O23-O27,'Financial Model Assumptions'!O43) -> 700 | P24: =IF(P10,P23-P27,'Financial Model Assumptions'!P43) -> 600 | Q24: =IF(Q10,Q23-Q27,'Financial Model Assumptions'!Q43) -> 0 | R24: =IF(R10,R23-R27,'Financial Model Assumptions'!R43) -> 0 | S24: =IF(S10,S23-S27,'Financial Model Assumptions'!S43) -> 0 | T24: =IF(T10,T23-T27,'Financial Model Assumptions'!T43) -> 858 | U24: =IF(U10,U23-U27,'Financial Model Assumptions'!U43) -> 0 | V24: =IF(V10,V23-V27,'Financial Model Assumptions'!V43) -> 0 | W24: =IF(W10,W23-W27,'Financial Model Assumptions'!W43) -> 0 | X24: =IF(X10,X23-X27,'Financial Model Assumptions'!X43) -> 0 | Y24: =IF(Y10,Y23-Y27,'Financial Model Assumptions'!Y43) -> 0 | Z24: =IF(Z10,Z23-Z27,'Financial Model Assumptions'!Z43) -> 306.5891119 | AA24: =IF(AA10,AA23-AA27,'Financial Model Assumptions'!AA43) -> 356.4589112 | AB24: =IF(AB10,AB23-AB27,'Financial Model Assumptions'!AB43) -> 392.1048023
C26: Suntech Capacity | F26: MW
D27: Opening Balance | H27: =G29 -> 0 | I27: 30 | J27: 60 | K27: 150 | L27: 270 | M27: 540 | N27: 1000 | O27: 1100 | P27: 1800 | Q27: 2400 | R27: 2400 | S27: 2400 | T27: 2400 | U27: 3258 | V27: 3258 | W27: 3258 | X27: 3258 | Y27: 3258 | Z27: 3258 | AA27: 3564.589112 | AB27: 3921.048023
D28: Add: New Capacity | H28: =IF(H10,H24,'Financial Model Assumptions'!H43) -> 30 | I28: =IF(I10,I24,'Financial Model Assumptions'!I43) -> 30 | J28: =IF(J10,J24,'Financial Model Assumptions'!J43) -> 90 | K28: =IF(K10,K24,'Financial Model Assumptions'!K43) -> 120 | L28: =IF(L10,L24,'Financial Model Assumptions'!L43) -> 270 | M28: =IF(M10,M24,'Financial Model Assumptions'!M43) -> 460 | N28: =IF(N10,N24,'Financial Model Assumptions'!N43) -> 100 | O28: =IF(O10,O24,'Financial Model Assumptions'!O43) -> 700 | P28: =IF(P10,P24,'Financial Model Assumptions'!P43) -> 600 | Q28: =IF(Q10,Q24,'Financial Model Assumptions'!Q43) -> 0 | R28: =IF(R10,R24,'Financial Model Assumptions'!R43) -> 0 | S28: =IF(S10,S24,'Financial Model Assumptions'!S43) -> 0 | T28: =IF(T10,T24,'Financial Model Assumptions'!T43) -> 858 | U28: =IF(U10,U24,'Financial Model Assumptions'!U43) -> 0 | V28: =IF(V10,V24,'Financial Model Assumptions'!V43) -> 0 | W28: =IF(W10,W24,'Financial Model Assumptions'!W43) -> 0 | X28: =IF(X10,X24,'Financial Model Assumptions'!X43) -> 0 | Y28: =IF(Y10,Y24,'Financial Model Assumptions'!Y43) -> 0 | Z28: =IF(Z10,Z24,'Financial Model Assumptions'!Z43) -> 306.5891119 | AA28: =IF(AA10,AA24,'Financial Model Assumptions'!AA43) -> 356.4589112 | AB28: =IF(AB10,AB24,'Financial Model Assumptions'!AB43) -> 392.1048023
D29: Closing Balance | H29: =IF(H6,'Financial Model Assumptions'!H42,H27+H28) -> 30 | I29: =IF(I6,'Financial Model Assumptions'!I42,I27+I28) -> 60 | J29: =IF(J6,'Financial Model Assumptions'!J42,J27+J28) -> 150 | K29: =IF(K6,'Financial Model Assumptions'!K42,K27+K28) -> 270 | L29: =IF(L6,'Financial Model Assumptions'!L42,L27+L28) -> 540 | M29: =IF(M6,'Financial Model Assumptions'!M42,M27+M28) -> 1000 | N29: =IF(N6,'Financial Model Assumptions'!N42,N27+N28) -> 1100 | O29: =IF(O6,'Financial Model Assumptions'!O42,O27+O28) -> 1800 | P29: =IF(P6,'Financial Model Assumptions'!P42,P27+P28) -> 2400 | Q29: =IF(Q6,'Financial Model Assumptions'!Q42,Q27+Q28) -> 2400 | R29: =IF(R6,'Financial Model Assumptions'!R42,R27+R28) -> 2400 | S29: =IF(S6,'Financial Model Assumptions'!S42,S27+S28) -> 2400 | T29: =IF(T6,'Financial Model Assumptions'!T42,T27+T28) -> 3258 | U29: =IF(U6,'Financial Model Assumptions'!U42,U27+U28) -> 3258 | V29: =IF(V6,'Financial Model Assumptions'!V42,V27+V28) -> 3258 | W29: =IF(W6,'Financial Model Assumptions'!W42,W27+W28) -> 3258 | X29: =IF(X6,'Financial Model Assumptions'!X42,X27+X28) -> 3258 | Y29: =IF(Y6,'Financial Model Assumptions'!Y42,Y27+Y28) -> 3258 | Z29: =IF(Z6,'Financial Model Assumptions'!Z42,Z27+Z28) -> 3564.589112 | AA29: =IF(AA6,'Financial Model Assumptions'!AA42,AA27+AA28) -> 3921.048023 | AB29: =IF(AB6,'Financial Model Assumptions'!AB42,AB27+AB28) -> 4313.152825
C31: Suntech Market Share | H31: =IF(H6,'Financial Model Assumptions'!H57,H29/H19) -> FALSE | I31: =IF(I6,'Financial Model Assumptions'!I57,I29/I19) -> FALSE | J31: =IF(J6,'Financial Model Assumptions'!J57,J29/J19) -> FALSE | K31: =IF(K6,'Financial Model Assumptions'!K57,K29/K19) -> 0.07123529322 | L31: =IF(L6,'Financial Model Assumptions'!L57,L29/L19) -> 0.1157419315 | M31: =IF(M6,'Financial Model Assumptions'!M57,M29/M19) -> 0.07656666565 | N31: =IF(N6,'Financial Model Assumptions'!N57,N29/N19) -> 0.083345676 | O31: =IF(O6,'Financial Model Assumptions'!O57,O29/O19) -> 0.08455000136 | P31: =IF(P6,'Financial Model Assumptions'!P57,P29/P19) -> 0.09593333217 | Q31: =IF(Q6,'Financial Model Assumptions'!Q57,Q29/Q19) -> 0.05183585313 | R31: =IF(R6,'Financial Model Assumptions'!R57,R29/R19) -> 0.04678362573 | S31: =IF(S6,'Financial Model Assumptions'!S57,S29/S19) -> 0.04419889503 | T31: =IF(T6,'Financial Model Assumptions'!T57,T29/T19) -> 0.06 | U31: =IF(U6,'Financial Model Assumptions'!U57,U29/U19) -> 0.06 | V31: =IF(V6,'Financial Model Assumptions'!V57,V29/V19) -> 0.06 | W31: =IF(W6,'Financial Model Assumptions'!W57,W29/W19) -> 0.06 | X31: =IF(X6,'Financial Model Assumptions'!X57,X29/X19) -> 0.06 | Y31: =IF(Y6,'Financial Model Assumptions'!Y57,Y29/Y19) -> 0.06 | Z31: =IF(Z6,'Financial Model Assumptions'!Z57,Z29/Z19) -> 0.06 | AA31: =IF(AA6,'Financial Model Assumptions'!AA57,AA29/AA19) -> 0.06 | AB31: =IF(AB6,'Financial Model Assumptions'!AB57,AB29/AB19) -> 0.06
C33: Suntech Production | F33: MW | G33: =IF(G6,'Financial Model Assumptions'!G50,G31*G14) -> 0.1000000015 | H33: =IF(H6,'Financial Model Assumptions'!H50,H31*H14) -> 4.900000095 | I33: =IF(I6,'Financial Model Assumptions'!I50,I31*I14) -> 25.89999962 | J33: =IF(J6,'Financial Model Assumptions'!J50,J31*J14) -> 49.79999924 | K33: =IF(K6,'Financial Model Assumptions'!K50,K31*K14) -> 121.0999985 | L33: =IF(L6,'Financial Model Assumptions'!L50,L31*L14) -> 358.7999878 | M33: =IF(M6,'Financial Model Assumptions'!M50,M31*M14) -> 459.3999939 | N33: =IF(N6,'Financial Model Assumptions'!N50,N31*N14) -> 675.0999756 | O33: =IF(O6,'Financial Model Assumptions'!O50,O31*O14) -> 1521.900024 | P33: =IF(P6,'Financial Model Assumptions'!P50,P31*P14) -> 2014.599976 | Q33: =IF(Q6,'Financial Model Assumptions'!Q50,Q31*Q14) -> 1142.980562 | R33: =IF(R6,'Financial Model Assumptions'!R50,R31*R14) -> 1134.736842 | S33: =IF(S6,'Financial Model Assumptions'!S50,S31*S14) -> 1232.850829 | T33: =IF(T6,'Financial Model Assumptions'!T50,T31*T14) -> 1924.63425 | U33: =IF(U6,'Financial Model Assumptions'!U50,U31*U14) -> 2213.329387 | V33: =IF(V6,'Financial Model Assumptions'!V50,V31*V14) -> 2434.662326 | W33: =IF(W6,'Financial Model Assumptions'!W50,W31*W14) -> 2678.128559 | X33: =IF(X6,'Financial Model Assumptions'!X50,X31*X14) -> 2945.941415 | Y33: =IF(Y6,'Financial Model Assumptions'!Y50,Y31*Y14) -> 3240.535556 | Z33: =IF(Z6,'Financial Model Assumptions'!Z50,Z31*Z14) -> 3564.589112 | AA33: =IF(AA6,'Financial Model Assumptions'!AA50,AA31*AA14) -> 3921.048023 | AB33: =IF(AB6,'Financial Model Assumptions'!AB50,AB31*AB14) -> 4313.152825
B35: Revenues
C36: Price of PV Cells - Real | F36: USD/kW | H36: ='Financial Model Assumptions'!H98 -> 0 | I36: ='Financial Model Assumptions'!I98 -> 3011.583056 | J36: ='Financial Model Assumptions'!J98 -> 3415.662825 | K36: ='Financial Model Assumptions'!K98 -> 3896.77952 | L36: ='Financial Model Assumptions'!L98 -> 3711.538452 | M36: ='Financial Model Assumptions'!M98 -> 3887.24439 | N36: ='Financial Model Assumptions'!N98 -> 2379.351366 | O36: ='Financial Model Assumptions'!O98 -> 1817.662136 | P36: ='Financial Model Assumptions'!P98 -> 1496.078644 | Q36: ='Financial Model Assumptions'!Q98 -> 1250 | R36: ='Financial Model Assumptions'!R98 -> 1350 | S36: ='Financial Model Assumptions'!S98 -> 1375 | T36: ='Financial Model Assumptions'!T98 -> 1400 | U36: ='Financial Model Assumptions'!U98 -> 1450 | V36: ='Financial Model Assumptions'!V98 -> 1500 | W36: ='Financial Model Assumptions'!W98 -> 1550 | X36: ='Financial Model Assumptions'!X98 -> 1600 | Y36: ='Financial Model Assumptions'!Y98 -> 1650 | Z36: ='Financial Model Assumptions'!Z98 -> 1650 | AA36: ='Financial Model Assumptions'!AA98 -> 1650 | AB36: ='Financial Model Assumptions'!AB98 -> 1650
C37: Inflation Rate | F37: Percent | H37: =LOOKUP('Financial Model Assumptions'!H2,'Financial Model Assumptions'!$F$183:$G$185) ->  | I37: =LOOKUP('Financial Model Assumptions'!I2,'Financial Model Assumptions'!$F$183:$G$185) ->  | J37: =LOOKUP('Financial Model Assumptions'!J2,'Financial Model Assumptions'!$F$183:$G$185) ->  | K37: =LOOKUP('Financial Model Assumptions'!K2,'Financial Model Assumptions'!$F$183:$G$185) ->  | L37: =LOOKUP('Financial Model Assumptions'!L2,'Financial Model Assumptions'!$F$183:$G$185) ->  | M37: =LOOKUP('Financial Model Assumptions'!M2,'Financial Model Assumptions'!$F$183:$G$185) ->  | N37: =LOOKUP('Financial Model Assumptions'!N2,'Financial Model Assumptions'!$F$183:$G$185) ->  | O37: =LOOKUP('Financial Model Assumptions'!O2,'Financial Model Assumptions'!$F$183:$G$185) ->  | P37: =LOOKUP('Financial Model Assumptions'!P2,'Financial Model Assumptions'!$F$183:$G$185) ->  | Q37: =LOOKUP('Financial Model Assumptions'!Q2,'Financial Model Assumptions'!$F$183:$G$185) -> 0.01 | R37: =LOOKUP('Financial Model Assumptions'!R2,'Financial Model Assumptions'!$F$183:$G$185) -> 0.01 | S37: =LOOKUP('Financial Model Assumptions'!S2,'Financial Model Assumptions'!$F$183:$G$185) -> 0.015 | T37: =LOOKUP('Financial Model Assumptions'!T2,'Financial Model Assumptions'!$F$183:$G$185) -> 0.015 | U37: =LOOKUP('Financial Model Assumptions'!U2,'Financial Model Assumptions'!$F$183:$G$185) -> 0.02 | V37: =LOOKUP('Financial Model Assumptions'!V2,'Financial Model Assumptions'!$F$183:$G$185) -> 0.02 | W37: =LOOKUP('Financial Model Assumptions'!W2,'Financial Model Assumptions'!$F$183:$G$185) -> 0.02 | X37: =LOOKUP('Financial Model Assumptions'!X2,'Financial Model Assumptions'!$F$183:$G$185) -> 0.02 | Y37: =LOOKUP('Financial Model Assumptions'!Y2,'Financial Model Assumptions'!$F$183:$G$185) -> 0.02 | Z37: =LOOKUP('Financial Model Assumptions'!Z2,'Financial Model Assumptions'!$F$183:$G$185) -> 0.02 | AA37: =LOOKUP('Financial Model Assumptions'!AA2,'Financial Model Assumptions'!$F$183:$G$185) -> 0.02 | AB37: =LOOKUP('Financial Model Assumptions'!AB2,'Financial Model Assumptions'!$F$183:$G$185) -> 0.02
C38: Inflation Index | F38: Index | G38: 1 | H38: =IFERROR(G38*(1+H37),1) -> 1 | I38: 1 | J38: 1 | K38: 1 | L38: 1 | M38: 1 | N38: 1 | O38: 1 | P38: 1 | Q38: 1.01 | R38: 1.0201 | S38: 1.0354015 | T38: 1.050932522 | U38: 1.071951173 | V38: 1.093390196 | W38: 1.115258 | X38: 1.13756316 | Y38: 1.160314424 | Z38: 1.183520712 | AA38: 1.207191126 | AB38: 1.231334949
C39: Nominal Price | H39: =H38*H36 -> 0 | I39: 3011.583056 | J39: 3415.662825 | K39: 3896.77952 | L39: 3711.538452 | M39: 3887.24439 | N39: 2379.351366 | O39: 1817.662136 | P39: 1496.078644 | Q39: 1262.5 | R39: 1377.135 | S39: 1423.677062 | T39: 1471.305531 | U39: 1554.329201 | V39: 1640.085295 | W39: 1728.649901 | X39: 1820.101057 | Y39: 1914.518799 | Z39: 1952.809175 | AA39: 1991.865358 | AB39: 2031.702665
C41: Revenue from PV Cells | F41: USD Millions | G41: =IF(G6,'Historic Financial Statements'!G10,G33*G39/1000) -> 2.851 | H41: =IF(H6,'Historic Financial Statements'!H10,H33*H39/1000) -> 4.104 | I41: =IF(I6,'Historic Financial Statements'!I10,I33*I39/1000) -> 78 | J41: =IF(J6,'Historic Financial Statements'!J10,J33*J39/1000) -> 170.1000061 | K41: =IF(K6,'Historic Financial Statements'!K10,K33*K39/1000) -> 471.8999939 | L41: =IF(L6,'Historic Financial Statements'!L10,L33*L39/1000) -> 1331.699951 | M41: =IF(M6,'Historic Financial Statements'!M10,M33*M39/1000) -> 1785.800049 | N41: =IF(N6,'Historic Financial Statements'!N10,N33*N39/1000) -> 1606.300049 | O41: =IF(O6,'Historic Financial Statements'!O10,O33*O39/1000) -> 2766.300049 | P41: =IF(P6,'Historic Financial Statements'!P10,P33*P39/1000) -> 3014 | Q41: =IF(Q6,'Historic Financial Statements'!Q10,Q33*Q39/1000) -> 1443.012959 | R41: =IF(R6,'Historic Financial Statements'!R10,R33*R39/1000) -> 1562.685821 | S41: =IF(S6,'Historic Financial Statements'!S10,S33*S39/1000) -> 1755.181446 | T41: =IF(T6,'Historic Financial Statements'!T10,T33*T39/1000) -> 2831.725018 | U41: =IF(U6,'Historic Financial Statements'!U10,U33*U39/1000) -> 3440.242498 | V41: =IF(V6,'Historic Financial Statements'!V10,V33*V39/1000) -> 3993.053879 | W41: =IF(W6,'Historic Financial Statements'!W10,W33*W39/1000) -> 4629.546667 | X41: =IF(X6,'Historic Financial Statements'!X10,X33*X39/1000) -> 5361.911082 | Y41: =IF(Y6,'Historic Financial Statements'!Y10,Y33*Y39/1000) -> 6204.066241 | Z41: =IF(Z6,'Historic Financial Statements'!Z10,Z33*Z39/1000) -> 6960.962322 | AA41: =IF(AA6,'Historic Financial Statements'!AA10,AA33*AA39/1000) -> 7810.199725 | AB41: =IF(AB6,'Historic Financial Statements'!AB10,AB33*AB39/1000) -> 8763.044092
C43: Other Revenue Percent | F43: Percent | G43: ='Financial Model Assumptions'!G86 -> 0.06103121712 | H43: ='Financial Model Assumptions'!H86 -> 2.384015595 | I43: ='Financial Model Assumptions'!I86 -> 0.09358974604 | J43: ='Financial Model Assumptions'!J86 -> 0.3286302105 | K43: ='Financial Model Assumptions'!K86 -> 0.2691248181 | L43: ='Financial Model Assumptions'!L86 -> 0.0124652707 | M43: ='Financial Model Assumptions'!M86 -> 0.07710829498 | N43: ='Financial Model Assumptions'!N86 -> 0.05416173651 | O43: ='Financial Model Assumptions'!O86 -> 0.04901854597 | P43: ='Financial Model Assumptions'!P86 -> 0.04399469347 | Q43: ='Financial Model Assumptions'!Q86 -> 0.05 | R43: ='Financial Model Assumptions'!R86 -> 0.05 | S43: ='Financial Model Assumptions'!S86 -> 0.05 | T43: ='Financial Model Assumptions'!T86 -> 0.05 | U43: ='Financial Model Assumptions'!U86 -> 0.05 | V43: ='Financial Model Assumptions'!V86 -> 0.05 | W43: ='Financial Model Assumptions'!W86 -> 0.05 | X43: ='Financial Model Assumptions'!X86 -> 0.05 | Y43: ='Financial Model Assumptions'!Y86 -> 0.05 | Z43: ='Financial Model Assumptions'!Z86 -> 0.05 | AA43: ='Financial Model Assumptions'!AA86 -> 0.05 | AB43: ='Financial Model Assumptions'!AB86 -> 0.05
C44: Other Revenues | F44: USD Millions | G44: =G43*G41 -> 0.174 | H44: 9.784 | I44: 7.300000191 | J44: 55.90000081 | K44: 127 | L44: 16.60000038 | M44: 137.6999969 | N44: 87 | O44: 135.6000061 | P44: 132.6000061 | Q44: 72.15064795 | R44: 78.13429105 | S44: 87.75907232 | T44: 141.5862509 | U44: 172.0121249 | V44: 199.6526939 | W44: 231.4773333 | X44: 268.0955541 | Y44: 310.203312 | Z44: 348.0481161 | AA44: 390.5099863 | AB44: 438.1522046
D45: Total Revenues | F45: USD Millions | G45: =G41+G44 -> 3.025 | H45: 13.888 | I45: 85.30000019 | J45: 226.0000069 | K45: 598.8999939 | L45: 1348.299952 | M45: 1923.500046 | N45: 1693.300049 | O45: 2901.900055 | P45: 3146.600006 | Q45: 1515.163607 | R45: 1640.820112 | S45: 1842.940519 | T45: 2973.311269 | U45: 3612.254623 | V45: 4192.706573 | W45: 4861.024 | X45: 5630.006636 | Y45: 6514.269553 | Z45: 7309.010438 | AA45: 8200.709712 | AB45: 9201.196297
B47: Expenses
C48: Cost of Goods Sold
D49: Cost of Production per Unit - Real | F49: USD/kW | G49: ='Financial Model Assumptions'!G121 -> 1389.999979 | H49: ='Financial Model Assumptions'!H121 -> 1329.104056 | I49: ='Financial Model Assumptions'!I121 -> 2042.987502 | J49: ='Financial Model Assumptions'!J121 -> 2349.52383 | K49: ='Financial Model Assumptions'!K121 -> 2860.445901 | L49: ='Financial Model Assumptions'!L121 -> 2873.745917 | M49: ='Financial Model Assumptions'!M121 -> 3044.623572 | N49: ='Financial Model Assumptions'!N121 -> 1731.891596 | O49: ='Financial Model Assumptions'!O121 -> 1396.872243 | P49: ='Financial Model Assumptions'!P121 -> 1233.29692 | Q49: ='Financial Model Assumptions'!Q121 -> 1100 | R49: ='Financial Model Assumptions'!R121 -> 1100 | S49: ='Financial Model Assumptions'!S121 -> 1100 | T49: ='Financial Model Assumptions'!T121 -> 1150 | U49: ='Financial Model Assumptions'!U121 -> 1150 | V49: ='Financial Model Assumptions'!V121 -> 1200 | W49: ='Financial Model Assumptions'!W121 -> 1200 | X49: ='Financial Model Assumptions'!X121 -> 1250 | Y49: ='Financial Model Assumptions'!Y121 -> 1300 | Z49: ='Financial Model Assumptions'!Z121 -> 1300 | AA49: ='Financial Model Assumptions'!AA121 -> 1300 | AB49: ='Financial Model Assumptions'!AB121 -> 1300
D50: Nominal Cost of Production | F50: USD/kW | G50: =G49*G38 -> 1389.999979 | H50: 1329.104056 | I50: 2042.987502 | J50: 2349.52383 | K50: 2860.445901 | L50: 2873.745917 | M50: 3044.623572 | N50: 1731.891596 | O50: 1396.872243 | P50: 1233.29692 | Q50: 1111 | R50: 1122.11 | S50: 1138.94165 | T50: 1208.572401 | U50: 1232.743849 | V50: 1312.068236 | W50: 1338.3096 | X50: 1421.95395 | Y50: 1508.408751 | Z50: 1538.576926 | AA50: 1569.348464 | AB50: 1600.735433
D51: Total Suntech Production | F51: MW | G51: =G33 -> 0.1000000015 | H51: 4.900000095 | I51: 25.89999962 | J51: 49.79999924 | K51: 121.0999985 | L51: 358.7999878 | M51: 459.3999939 | N51: 675.0999756 | O51: 1521.900024 | P51: 2014.599976 | Q51: 1142.980562 | R51: 1134.736842 | S51: 1232.850829 | T51: 1924.63425 | U51: 2213.329387 | V51: 2434.662326 | W51: 2678.128559 | X51: 2945.941415 | Y51: 3240.535556 | Z51: 3564.589112 | AA51: 3921.048023 | AB51: 4313.152825
D52: Cost of Goods Sold - PV Modules | F52: USD Millions | G52: =G50*G51/1000 -> 0.139 | H52: 6.51261 | I52: 52.91337553 | J52: 117.0062849 | K52: 346.3999943 | L52: 1031.1 | M52: 1398.70005 | N52: 1169.199974 | O52: 2125.899901 | P52: 2484.599945 | Q52: 1269.851404 | R52: 1273.299558 | S52: 1404.145157 | T52: 2326.059836 | U52: 2728.468188 | V52: 3194.443103 | W52: 3584.165161 | X52: 4188.993032 | Y52: 4888.05219 | Z52: 5484.394557 | AA52: 6153.490693 | AB52: 6904.216557
D53: Other Cost of Goods Sold | F53: USD Millions | G53: ='Financial Model Assumptions'!G123*G44 -> 2.729 | H53: ='Financial Model Assumptions'!H123*H44 -> 3.5 | I53: ='Financial Model Assumptions'!I123*I44 -> 5.299998114 | J53: ='Financial Model Assumptions'!J123*J44 -> 36.20000602 | K53: ='Financial Model Assumptions'!K123*K44 -> 92.09997634 | L53: ='Financial Model Assumptions'!L123*L44 -> 16.59990311 | M53: ='Financial Model Assumptions'!M123*M44 -> 132.4000379 | N53: ='Financial Model Assumptions'!N123*N44 -> 95.69999695 | O53: ='Financial Model Assumptions'!O123*O44 -> 146.9001592 | P53: ='Financial Model Assumptions'!P123*P44 -> 133.7999107 | Q53: ='Financial Model Assumptions'!Q123*Q44 -> 68.54311555 | R53: ='Financial Model Assumptions'!R123*R44 -> 74.2275765 | S53: ='Financial Model Assumptions'!S123*S44 -> 83.3711187 | T53: ='Financial Model Assumptions'!T123*T44 -> 134.5069384 | U53: ='Financial Model Assumptions'!U123*U44 -> 163.4115187 | V53: ='Financial Model Assumptions'!V123*V44 -> 189.6700592 | W53: ='Financial Model Assumptions'!W123*W44 -> 219.9034667 | X53: ='Financial Model Assumptions'!X123*X44 -> 254.6907764 | Y53: ='Financial Model Assumptions'!Y123*Y44 -> 294.6931464 | Z53: ='Financial Model Assumptions'!Z123*Z44 -> 330.6457103 | AA53: ='Financial Model Assumptions'!AA123*AA44 -> 370.984487 | AB53: ='Financial Model Assumptions'!AB123*AB44 -> 416.2445944
E54: Total Cost of Goods Sold | G54: =G52+G53 -> 2.868 | H54: 10.01261 | I54: 58.21337364 | J54: 153.206291 | K54: 438.4999706 | L54: 1047.699903 | M54: 1531.100088 | N54: 1264.899971 | O54: 2272.80006 | P54: 2618.399856 | Q54: 1338.394519 | R54: 1347.527134 | S54: 1487.516276 | T54: 2460.566775 | U54: 2891.879707 | V54: 3384.113162 | W54: 3804.068628 | X54: 4443.683809 | Y54: 5182.745336 | Z54: 5815.040267 | AA54: 6524.47518 | AB54: 7320.461152
C56: Selling Expense
D57: Selling Expense as Percent of Revenues | F57: Percent | G57: ='Financial Model Assumptions'!G132 -> 0.05190082645 | H57: ='Financial Model Assumptions'!H132 -> 0.04025057604 | I57: ='Financial Model Assumptions'!I132 -> 0.01992965987 | J57: ='Financial Model Assumptions'!J132 -> 0.01637168163 | K57: ='Financial Model Assumptions'!K132 -> 0.0150275499 | L57: ='Financial Model Assumptions'!L132 -> 0.02684862379 | M57: ='Financial Model Assumptions'!M132 -> 0.0344164268 | N57: ='Financial Model Assumptions'!N132 -> 0.0484852041 | O57: ='Financial Model Assumptions'!O132 -> 0.04066301526 | P57: ='Financial Model Assumptions'!P132 -> 0.05167482396 | Q57: ='Financial Model Assumptions'!Q132 -> 0.05 | R57: ='Financial Model Assumptions'!R132 -> 0.05 | S57: ='Financial Model Assumptions'!S132 -> 0.05 | T57: ='Financial Model Assumptions'!T132 -> 0.05 | U57: ='Financial Model Assumptions'!U132 -> 0.05 | V57: ='Financial Model Assumptions'!V132 -> 0.05 | W57: ='Financial Model Assumptions'!W132 -> 0.05 | X57: ='Financial Model Assumptions'!X132 -> 0.05 | Y57: ='Financial Model Assumptions'!Y132 -> 0.05 | Z57: ='Financial Model Assumptions'!Z132 -> 0.05 | AA57: ='Financial Model Assumptions'!AA132 -> 0.05 | AB57: ='Financial Model Assumptions'!AB132 -> 0.05
D58: Selling Expenses | F58: USD Millions | G58: =G57*G45 -> 0.157 | H58: 0.559 | I58: 1.699999991 | J58: 3.700000161 | K58: 8.999999541 | L58: 36.19999815 | M58: 66.19999852 | N58: 82.09999847 | O58: 118.0000062 | P58: 162.6000014 | Q58: 75.75818035 | R58: 82.04100561 | S58: 92.14702593 | T58: 148.6655635 | U58: 180.6127311 | V58: 209.6353286 | W58: 243.0512 | X58: 281.5003318 | Y58: 325.7134776 | Z58: 365.4505219 | AA58: 410.0354856 | AB58: 460.0598148
C60: G&A Expenses
D61: G&A as Percent of Revenues | F61: Percent | G61: ='Financial Model Assumptions'!G133 -> 0.3239669421 | H61: ='Financial Model Assumptions'!H133 -> 0.08885368664 | I61: ='Financial Model Assumptions'!I133 -> 0.03282532066 | J61: ='Financial Model Assumptions'!J133 -> 0.07743362832 | K61: ='Financial Model Assumptions'!K133 -> 0.04474870286 | L61: ='Financial Model Assumptions'!L133 -> 0.03300452302 | M61: ='Financial Model Assumptions'!M133 -> 0.04460618823 | N61: ='Financial Model Assumptions'!N133 -> 0.0454142794 | O61: ='Financial Model Assumptions'!O133 -> 0.0458665049 | P61: ='Financial Model Assumptions'!P133 -> 0.07906947033 | Q61: ='Financial Model Assumptions'!Q133 -> 0.045 | R61: ='Financial Model Assumptions'!R133 -> 0.045 | S61: ='Financial Model Assumptions'!S133 -> 0.045 | T61: ='Financial Model Assumptions'!T133 -> 0.045 | U61: ='Financial Model Assumptions'!U133 -> 0.045 | V61: ='Financial Model Assumptions'!V133 -> 0.045 | W61: ='Financial Model Assumptions'!W133 -> 0.045 | X61: ='Financial Model Assumptions'!X133 -> 0.045 | Y61: ='Financial Model Assumptions'!Y133 -> 0.045 | Z61: ='Financial Model Assumptions'!Z133 -> 0.045 | AA61: ='Financial Model Assumptions'!AA133 -> 0.045 | AB61: ='Financial Model Assumptions'!AB133 -> 0.045
D62: G&A Expenses | F62: USD Millions | G62: =G61*G45 -> 0.98 | H62: 1.234 | I62: 2.799999858 | J62: 17.50000054 | K62: 26.79999787 | L62: 44.49999679 | M62: 85.80000509 | N62: 76.90000153 | O62: 133.1000131 | P62: 248.7999958 | Q62: 68.18236231 | R62: 73.83690504 | S62: 82.93232334 | T62: 133.7990071 | U62: 162.551458 | V62: 188.6717958 | W62: 218.74608 | X62: 253.3502986 | Y62: 293.1421299 | Z62: 328.9054697 | AA62: 369.031937 | AB62: 414.0538333
C64: R&D Expenses
D65: R&D Expense Growth | F65: Percent | G65: ='Financial Model Assumptions'!G135 -> 0 | H65: ='Financial Model Assumptions'!H135 -> 1.387096774 | I65: ='Financial Model Assumptions'!I135 -> 2.378378378 | J65: ='Financial Model Assumptions'!J135 -> 5.800000191 | K65: ='Financial Model Assumptions'!K135 -> 1.470588054 | L65: ='Financial Model Assumptions'!L135 -> 0.7857143668 | M65: ='Financial Model Assumptions'!M135 -> 0.02000001272 | N65: ='Financial Model Assumptions'!N135 -> 0.895424813 | O65: ='Financial Model Assumptions'!O135 -> 0.3862069229 | P65: ='Financial Model Assumptions'!P135 -> -0.03980105121 | Q65: ='Financial Model Assumptions'!Q135 -> 0 | R65: ='Financial Model Assumptions'!R135 -> 0 | S65: ='Financial Model Assumptions'!S135 -> 0 | T65: ='Financial Model Assumptions'!T135 -> 0 | U65: ='Financial Model Assumptions'!U135 -> 0 | V65: ='Financial Model Assumptions'!V135 -> 0 | W65: ='Financial Model Assumptions'!W135 -> 0 | X65: ='Financial Model Assumptions'!X135 -> 0 | Y65: ='Financial Model Assumptions'!Y135 -> 0 | Z65: ='Financial Model Assumptions'!Z135 -> 0 | AA65: ='Financial Model Assumptions'!AA135 -> 0 | AB65: ='Financial Model Assumptions'!AB135 -> 0
D66: Total R&D Expenses | F66: USD Millions | G66: =IF(G6,'Historic Financial Statements'!G27,F66*(1+G65)) -> 0.062 | H66: =IF(H6,'Historic Financial Statements'!H27,G66*(1+H65)) -> 0.148 | I66: =IF(I6,'Historic Financial Statements'!I27,H66*(1+I65)) -> 0.5 | J66: =IF(J6,'Historic Financial Statements'!J27,I66*(1+J65)) -> 3.400000095 | K66: =IF(K6,'Historic Financial Statements'!K27,J66*(1+K65)) -> 8.399999619 | L66: =IF(L6,'Historic Financial Statements'!L27,K66*(1+L65)) -> 15 | M66: =IF(M6,'Historic Financial Statements'!M27,L66*(1+M65)) -> 15.30000019 | N66: =IF(N6,'Historic Financial Statements'!N27,M66*(1+N65)) -> 29 | O66: =IF(O6,'Historic Financial Statements'!O27,N66*(1+O65)) -> 40.20000076 | P66: =IF(P6,'Historic Financial Statements'!P27,O66*(1+P65)) -> 38.59999847 | Q66: =IF(Q6,'Historic Financial Statements'!Q27,P66*(1+Q65)) -> 38.59999847 | R66: =IF(R6,'Historic Financial Statements'!R27,Q66*(1+R65)) -> 38.59999847 | S66: =IF(S6,'Historic Financial Statements'!S27,R66*(1+S65)) -> 38.59999847 | T66: =IF(T6,'Historic Financial Statements'!T27,S66*(1+T65)) -> 38.59999847 | U66: =IF(U6,'Historic Financial Statements'!U27,T66*(1+U65)) -> 38.59999847 | V66: =IF(V6,'Historic Financial Statements'!V27,U66*(1+V65)) -> 38.59999847 | W66: =IF(W6,'Historic Financial Statements'!W27,V66*(1+W65)) -> 38.59999847 | X66: =IF(X6,'Historic Financial Statements'!X27,W66*(1+X65)) -> 38.59999847 | Y66: =IF(Y6,'Historic Financial Statements'!Y27,X66*(1+Y65)) -> 38.59999847 | Z66: =IF(Z6,'Historic Financial Statements'!Z27,Y66*(1+Z65)) -> 38.59999847 | AA66: =IF(AA6,'Historic Financial Statements'!AA27,Z66*(1+AA65)) -> 38.59999847 | AB66: =IF(AB6,'Historic Financial Statements'!AB27,AA66*(1+AB65)) -> 38.59999847
D68: Total Operating Expenses | G68: =G54+G58+G62+G66 -> 4.067 | H68: 11.95361 | I68: 63.21337349 | J68: 177.8062918 | K68: 482.6999677 | L68: 1143.399898 | M68: 1698.400092 | N68: 1452.899971 | O68: 2564.10008 | P68: 3068.399851 | Q68: 1520.935061 | R68: 1542.005044 | S68: 1701.195624 | T68: 2781.631344 | U68: 3273.643894 | V68: 3821.020285 | W68: 4304.465907 | X68: 5017.134438 | Y68: 5840.200942 | Z68: 6547.996257 | AA68: 7342.142601 | AB68: 8233.174798
D70: EBITDA | G70: =G45-G68 -> -1.042 | H70: 1.93439 | I70: 22.0866267 | J70: 48.19371516 | K70: 116.2000262 | L70: 204.9000535 | M70: 225.0999537 | N70: 240.4000778 | O70: 337.7999749 | P70: 78.20015471 | Q70: -5.771453658 | R70: 98.81506859 | S70: 141.7448951 | T70: 191.6799253 | U70: 338.6107285 | V70: 371.6862876 | W70: 556.5580936 | X70: 612.8721979 | Y70: 674.0686107 | Z70: 761.014181 | AA70: 858.5671109 | AB70: 968.0214982
B72: Other Income and Expense
D73: Other Income | F73: USD Millions | G73: ='Financial Model Assumptions'!G138 -> 0.168 | H73: ='Financial Model Assumptions'!H138 -> 0.093 | I73: ='Financial Model Assumptions'!I138 -> 0.1000000015 | J73: ='Financial Model Assumptions'!J138 -> 0 | K73: ='Financial Model Assumptions'!K138 -> 0.6000000238 | L73: ='Financial Model Assumptions'!L138 -> 0.200000003 | M73: ='Financial Model Assumptions'!M138 -> -62.29999924 | N73: ='Financial Model Assumptions'!N138 -> 2.599999905 | O73: ='Financial Model Assumptions'!O138 -> -47.70000076 | P73: ='Financial Model Assumptions'!P138 -> -133.1000061 | Q73: ='Financial Model Assumptions'!Q138 -> -10 | R73: ='Financial Model Assumptions'!R138 -> -10 | S73: ='Financial Model Assumptions'!S138 -> -10 | T73: ='Financial Model Assumptions'!T138 -> -10 | U73: ='Financial Model Assumptions'!U138 -> -10 | V73: ='Financial Model Assumptions'!V138 -> -10 | W73: ='Financial Model Assumptions'!W138 -> -10 | X73: ='Financial Model Assumptions'!X138 -> -10 | Y73: ='Financial Model Assumptions'!Y138 -> -10 | Z73: ='Financial Model Assumptions'!Z138 -> -10 | AA73: ='Financial Model Assumptions'!AA138 -> -10 | AB73: ='Financial Model Assumptions'!AB138 -> -10
D74: Income on Non-controlling Interest | F74: USD Millions | G74: ='Financial Model Assumptions'!G139 -> 0 | H74: ='Financial Model Assumptions'!H139 -> 0 | I74: ='Financial Model Assumptions'!I139 -> 0 | J74: ='Financial Model Assumptions'!J139 -> 0 | K74: ='Financial Model Assumptions'!K139 -> 0 | L74: ='Financial Model Assumptions'!L139 -> -0.6999999881 | M74: ='Financial Model Assumptions'!M139 -> 0.3000000119 | N74: ='Financial Model Assumptions'!N139 -> -3.299999952 | O74: ='Financial Model Assumptions'!O139 -> 250.8000031 | P74: ='Financial Model Assumptions'!P139 -> -98.69999695 | Q74: ='Financial Model Assumptions'!Q139 -> 0 | R74: ='Financial Model Assumptions'!R139 -> 0 | S74: ='Financial Model Assumptions'!S139 -> 0 | T74: ='Financial Model Assumptions'!T139 -> 0 | U74: ='Financial Model Assumptions'!U139 -> 0 | V74: ='Financial Model Assumptions'!V139 -> 0 | W74: ='Financial Model Assumptions'!W139 -> 0 | X74: ='Financial Model Assumptions'!X139 -> 0 | Y74: ='Financial Model Assumptions'!Y139 -> 0 | Z74: ='Financial Model Assumptions'!Z139 -> 0 | AA74: ='Financial Model Assumptions'!AA139 -> 0 | AB74: ='Financial Model Assumptions'!AB139 -> 0
D75: Foreign Currency and Other Non-Cash | F75: USD Millions | G75: ='Historic Financial Statements'!G34-'Historic Financial Statements'!G37-'Historic Financial Statements'!G38-'Historic Financial Statements'!G36 -> 0 | H75: ='Historic Financial Statements'!H34-'Historic Financial Statements'!H37-'Historic Financial Statements'!H38-'Historic Financial Statements'!H36 -> 0 | I75: ='Historic Financial Statements'!I34-'Historic Financial Statements'!I37-'Historic Financial Statements'!I38-'Historic Financial Statements'!I36 -> 0 | J75: ='Historic Financial Statements'!J34-'Historic Financial Statements'!J37-'Historic Financial Statements'!J38-'Historic Financial Statements'!J36 -> -2.099999905 | K75: ='Historic Financial Statements'!K34-'Historic Financial Statements'!K37-'Historic Financial Statements'!K38-'Historic Financial Statements'!K36 -> 0 | L75: ='Historic Financial Statements'!L34-'Historic Financial Statements'!L37-'Historic Financial Statements'!L38-'Historic Financial Statements'!L36 -> -8.899999619 | M75: ='Historic Financial Statements'!M34-'Historic Financial Statements'!M37-'Historic Financial Statements'!M38-'Historic Financial Statements'!M36 -> -14.39999962 | N75: ='Historic Financial Statements'!N34-'Historic Financial Statements'!N37-'Historic Financial Statements'!N38-'Historic Financial Statements'!N36 -> 8.600000381 | O75: ='Historic Financial Statements'!O34-'Historic Financial Statements'!O37-'Historic Financial Statements'!O38-'Historic Financial Statements'!O36 -> -101.2999992 | P75: ='Historic Financial Statements'!P34-'Historic Financial Statements'!P37-'Historic Financial Statements'!P38-'Historic Financial Statements'!P36 -> -620.0000038 | Q75: ='Historic Financial Statements'!Q34-'Historic Financial Statements'!Q37-'Historic Financial Statements'!Q38-'Historic Financial Statements'!Q36 -> 0 | R75: ='Historic Financial Statements'!R34-'Historic Financial Statements'!R37-'Historic Financial Statements'!R38-'Historic Financial Statements'!R36 -> 0 | S75: ='Historic Financial Statements'!S34-'Historic Financial Statements'!S37-'Historic Financial Statements'!S38-'Historic Financial Statements'!S36 -> 0 | T75: ='Historic Financial Statements'!T34-'Historic Financial Statements'!T37-'Historic Financial Statements'!T38-'Historic Financial Statements'!T36 -> 0 | U75: ='Historic Financial Statements'!U34-'Historic Financial Statements'!U37-'Historic Financial Statements'!U38-'Historic Financial Statements'!U36 -> 0 | V75: ='Historic Financial Statements'!V34-'Historic Financial Statements'!V37-'Historic Financial Statements'!V38-'Historic Financial Statements'!V36 -> 0 | W75: ='Historic Financial Statements'!W34-'Historic Financial Statements'!W37-'Historic Financial Statements'!W38-'Historic Financial Statements'!W36 -> 0 | X75: ='Historic Financial Statements'!X34-'Historic Financial Statements'!X37-'Historic Financial Statements'!X38-'Historic Financial Statements'!X36 -> 0 | Y75: ='Historic Financial Statements'!Y34-'Historic Financial Statements'!Y37-'Historic Financial Statements'!Y38-'Historic Financial Statements'!Y36 -> 0 | Z75: ='Historic Financial Statements'!Z34-'Historic Financial Statements'!Z37-'Historic Financial Statements'!Z38-'Historic Financial Statements'!Z36 -> 0 | AA75: ='Historic Financial Statements'!AA34-'Historic Financial Statements'!AA37-'Historic Financial Statements'!AA38-'Historic Financial Statements'!AA36 -> 0 | AB75: ='Historic Financial Statements'!AB34-'Historic Financial Statements'!AB37-'Historic Financial Statements'!AB38-'Historic Financial Statements'!AB36 -> 0
B77: Capital Expenditures
C78: Maintenance Capital Expenditure per MW - Real | F78: USD/MW | H78: ='Financial Model Assumptions'!H64 -> 0.03 | I78: ='Financial Model Assumptions'!I64 -> 0.03 | J78: ='Financial Model Assumptions'!J64 -> 0.03 | K78: ='Financial Model Assumptions'!K64 -> 0.03 | L78: ='Financial Model Assumptions'!L64 -> 0.03 | M78: ='Financial Model Assumptions'!M64 -> 0.03 | N78: ='Financial Model Assumptions'!N64 -> 0.03 | O78: ='Financial Model Assumptions'!O64 -> 0.03 | P78: ='Financial Model Assumptions'!P64 -> 0.03 | Q78: ='Financial Model Assumptions'!Q64 -> 0.03 | R78: ='Financial Model Assumptions'!R64 -> 0.03 | S78: ='Financial Model Assumptions'!S64 -> 0.03 | T78: ='Financial Model Assumptions'!T64 -> 0.03 | U78: ='Financial Model Assumptions'!U64 -> 0.03 | V78: ='Financial Model Assumptions'!V64 -> 0.03 | W78: ='Financial Model Assumptions'!W64 -> 0.03 | X78: ='Financial Model Assumptions'!X64 -> 0.03 | Y78: ='Financial Model Assumptions'!Y64 -> 0.03 | Z78: ='Financial Model Assumptions'!Z64 -> 0.03 | AA78: ='Financial Model Assumptions'!AA64 -> 0.03 | AB78: ='Financial Model Assumptions'!AB64 -> 0.03
C79: Infation Index | F79: Index | G79: =G38 -> 1 | H79: 1 | I79: 1 | J79: 1 | K79: 1 | L79: 1 | M79: 1 | N79: 1 | O79: 1 | P79: 1 | Q79: 1.01 | R79: 1.0201 | S79: 1.0354015 | T79: 1.050932522 | U79: 1.071951173 | V79: 1.093390196 | W79: 1.115258 | X79: 1.13756316 | Y79: 1.160314424 | Z79: 1.183520712 | AA79: 1.207191126 | AB79: 1.231334949
C80: Maintenance Capital Expenditure per MW - Nominal | F80: USD/MW | G80: =G79*G78 -> 0 | H80: 0.03 | I80: 0.03 | J80: 0.03 | K80: 0.03 | L80: 0.03 | M80: 0.03 | N80: 0.03 | O80: 0.03 | P80: 0.03 | Q80: 0.0303 | R80: 0.030603 | S80: 0.031062045 | T80: 0.03152797567 | U80: 0.03215853519 | V80: 0.03280170589 | W80: 0.03345774001 | X80: 0.03412689481 | Y80: 0.03480943271 | Z80: 0.03550562136 | AA80: 0.03621573379 | AB80: 0.03694004846
C81: Total Suntech Capacity | G81: =G29 -> 0 | H81: 30 | I81: 60 | J81: 150 | K81: 270 | L81: 540 | M81: 1000 | N81: 1100 | O81: 1800 | P81: 2400 | Q81: 2400 | R81: 2400 | S81: 2400 | T81: 3258 | U81: 3258 | V81: 3258 | W81: 3258 | X81: 3258 | Y81: 3258 | Z81: 3564.589112 | AA81: 3921.048023 | AB81: 4313.152825
C82: Total Maintenance Capital Expenditures | G82: =G81*G80 -> 0 | H82: 0.9 | I82: 1.8 | J82: 4.5 | K82: 8.1 | L82: 16.2 | M82: 30 | N82: 33 | O82: 54 | P82: 72 | Q82: 72.72 | R82: 73.4472 | S82: 74.548908 | T82: 102.7181447 | U82: 104.7725076 | V82: 106.8679578 | W82: 109.005317 | X82: 111.1854233 | Y82: 113.4091318 | Z82: 126.5629513 | AA82: 142.0036314 | AB82: 159.3280744
C84: Capital Expenditure per MW New Plant - Real | F84: USD/kW | H84: ='Financial Model Assumptions'!H78 -> 62.93953333 | I84: ='Financial Model Assumptions'!I78 -> 252.5639 | J84: ='Financial Model Assumptions'!J78 -> 286.5150111 | K84: ='Financial Model Assumptions'!K78 -> 451.6666603 | L84: ='Financial Model Assumptions'!L78 -> 577.7777665 | M84: ='Financial Model Assumptions'!M78 -> 793.2608464 | N84: ='Financial Model Assumptions'!N78 -> 1149.99994 | O84: ='Financial Model Assumptions'!O78 -> 324.5714286 | P84: ='Financial Model Assumptions'!P78 -> 491.333313 | Q84: ='Financial Model Assumptions'!Q78 -> 650 | R84: ='Financial Model Assumptions'!R78 -> 650 | S84: ='Financial Model Assumptions'!S78 -> 650 | T84: ='Financial Model Assumptions'!T78 -> 650 | U84: ='Financial Model Assumptions'!U78 -> 650 | V84: ='Financial Model Assumptions'!V78 -> 650 | W84: ='Financial Model Assumptions'!W78 -> 650 | X84: ='Financial Model Assumptions'!X78 -> 650 | Y84: ='Financial Model Assumptions'!Y78 -> 650 | Z84: ='Financial Model Assumptions'!Z78 -> 650 | AA84: ='Financial Model Assumptions'!AA78 -> 650 | AB84: ='Financial Model Assumptions'!AB78 -> 650
C85: Capital Expenditure per MW New Plant - Nominal | F85: USD/kW | H85: =H84*H38 -> 62.93953333 | I85: 252.5639 | J85: 286.5150111 | K85: 451.6666603 | L85: 577.7777665 | M85: 793.2608464 | N85: 1149.99994 | O85: 324.5714286 | P85: 491.333313 | Q85: 656.5 | R85: 663.065 | S85: 673.010975 | T85: 683.1061396 | U85: 696.7682624 | V85: 710.7036277 | W85: 724.9177002 | X85: 739.4160542 | Y85: 754.2043753 | Z85: 769.2884628 | AA85: 784.6742321 | AB85: 800.3677167
C86: New Suntech Capacity | F86: KW | H86: =H28*1000 -> 30000 | I86: 30000 | J86: 90000 | K86: 120000 | L86: 270000 | M86: 460000 | N86: 100000 | O86: 700000 | P86: 600000 | Q86: 0 | R86: 0 | S86: 0 | T86: 858000 | U86: 0 | V86: 0 | W86: 0 | X86: 0 | Y86: 0 | Z86: 306589.1119 | AA86: 356458.9112 | AB86: 392104.8023
C87: Capital Expenditures for New Plant | F87: USD Millions | H87: =H85*H86/1000000 -> 1.888186 | I87: 7.576917 | J87: 25.786351 | K87: 54.19999924 | L87: 155.9999969 | M87: 364.8999894 | N87: 114.999994 | O87: 227.2 | P87: 294.7999878 | Q87: 0 | R87: 0 | S87: 0 | T87: 586.1050678 | U87: 0 | V87: 0 | W87: 0 | X87: 0 | Y87: 0 | Z87: 235.8554666 | AA87: 279.7041224 | AB87: 313.8280253
D89: Total Capital Expenditures | F89: USD Millions | H89: =H87+H82 -> 2.788186 | I89: 9.376917 | J89: 30.286351 | K89: 62.29999924 | L89: 172.1999969 | M89: 394.8999894 | N89: 147.999994 | O89: 281.2 | P89: 366.7999878 | Q89: 72.72 | R89: 73.4472 | S89: 74.548908 | T89: 688.8232125 | U89: 104.7725076 | V89: 106.8679578 | W89: 109.005317 | X89: 111.1854233 | Y89: 113.4091318 | Z89: 362.4184179 | AA89: 421.7077538 | AB89: 473.1560997
A91: Working Capital
C93: A/R
D94: A/R as Pct of Sales | G94: ='Financial Model Assumptions'!G144 -> 0.5474380165 | H94: ='Financial Model Assumptions'!H144 -> 0.1791474654 | I94: ='Financial Model Assumptions'!I144 -> 0.06431289336 | J94: ='Financial Model Assumptions'!J144 -> 0.01799699115 | K94: ='Financial Model Assumptions'!K144 -> 0.1739080377 | L94: ='Financial Model Assumptions'!L144 -> 0.1989913203 | M94: ='Financial Model Assumptions'!M144 -> 0.1876267249 | N94: ='Financial Model Assumptions'!N144 -> 0.3597708472 | O94: ='Financial Model Assumptions'!O144 -> 0.2033150842 | P94: ='Financial Model Assumptions'!P144 -> 0.1743469097 | Q94: ='Financial Model Assumptions'!Q144 -> 0.2 | R94: ='Financial Model Assumptions'!R144 -> 0.2 | S94: ='Financial Model Assumptions'!S144 -> 0.2 | T94: ='Financial Model Assumptions'!T144 -> 0.2 | U94: ='Financial Model Assumptions'!U144 -> 0.2 | V94: ='Financial Model Assumptions'!V144 -> 0.2 | W94: ='Financial Model Assumptions'!W144 -> 0.2 | X94: ='Financial Model Assumptions'!X144 -> 0.2 | Y94: ='Financial Model Assumptions'!Y144 -> 0.2 | Z94: ='Financial Model Assumptions'!Z144 -> 0.2 | AA94: ='Financial Model Assumptions'!AA144 -> 0.2 | AB94: ='Financial Model Assumptions'!AB144 -> 0.2
D95: Total Level of Sales | G95: =G45 -> 3.025 | H95: 13.888 | I95: 85.30000019 | J95: 226.0000069 | K95: 598.8999939 | L95: 1348.299952 | M95: 1923.500046 | N95: 1693.300049 | O95: 2901.900055 | P95: 3146.600006 | Q95: 1515.163607 | R95: 1640.820112 | S95: 1842.940519 | T95: 2973.311269 | U95: 3612.254623 | V95: 4192.706573 | W95: 4861.024 | X95: 5630.006636 | Y95: 6514.269553 | Z95: 7309.010438 | AA95: 8200.709712 | AB95: 9201.196297
D96: Total Level of A/R | G96: =G94*G95 -> 1.656 | H96: 2.488 | I96: 5.485889816 | J96: 4.067320124 | K96: 104.1535227 | L96: 268.2999875 | M96: 360.9000139 | N96: 609.1999931 | O96: 590.0000539 | P96: 548.5999873 | Q96: 303.0327214 | R96: 328.1640224 | S96: 368.5881037 | T96: 594.6622538 | U96: 722.4509246 | V96: 838.5413145 | W96: 972.2048 | X96: 1126.001327 | Y96: 1302.853911 | Z96: 1461.802088 | AA96: 1640.141942 | AB96: 1840.239259
C98: Inventories
D99: Inventories as Percent of CGS | G99: ='Financial Model Assumptions'!G143 -> 0.4215481172 | H99: ='Financial Model Assumptions'!H143 -> 0.3342784748 | I99: ='Financial Model Assumptions'!I143 -> 0.3001445593 | J99: ='Financial Model Assumptions'!J143 -> 0.2638783103 | K99: ='Financial Model Assumptions'!K143 -> 0.4567660007 | L99: ='Financial Model Assumptions'!L143 -> 0.1681779106 | M99: ='Financial Model Assumptions'!M143 -> 0.1514597265 | N99: ='Financial Model Assumptions'!N143 -> 0.22144044 | O99: ='Financial Model Assumptions'!O143 -> 0.2456001575 | P99: ='Financial Model Assumptions'!P143 -> 0.1972578713 | Q99: ='Financial Model Assumptions'!Q143 -> 0.2 | R99: ='Financial Model Assumptions'!R143 -> 0.2 | S99: ='Financial Model Assumptions'!S143 -> 0.2 | T99: ='Financial Model Assumptions'!T143 -> 0.2 | U99: ='Financial Model Assumptions'!U143 -> 0.2 | V99: ='Financial Model Assumptions'!V143 -> 0.2 | W99: ='Financial Model Assumptions'!W143 -> 0.2 | X99: ='Financial Model Assumptions'!X143 -> 0.2 | Y99: ='Financial Model Assumptions'!Y143 -> 0.2 | Z99: ='Financial Model Assumptions'!Z143 -> 0.2 | AA99: ='Financial Model Assumptions'!AA143 -> 0.2 | AB99: ='Financial Model Assumptions'!AB143 -> 0.2
D100: Total CGS | G100: =G54 -> 2.868 | H100: 10.01261 | I100: 58.21337364 | J100: 153.206291 | K100: 438.4999706 | L100: 1047.699903 | M100: 1531.100088 | N100: 1264.899971 | O100: 2272.80006 | P100: 2618.399856 | Q100: 1338.394519 | R100: 1347.527134 | S100: 1487.516276 | T100: 2460.566775 | U100: 2891.879707 | V100: 3384.113162 | W100: 3804.068628 | X100: 4443.683809 | Y100: 5182.745336 | Z100: 5815.040267 | AA100: 6524.47518 | AB100: 7320.461152
D101: Total Level of Inventories | G101: =G99*G100 -> 1.209 | H101: 3.347 | I101: 17.47242738 | J101: 40.42781718 | K101: 200.2918779 | L101: 176.1999806 | M101: 231.9000006 | N101: 280.1000061 | O101: 558.2000528 | P101: 516.4999818 | Q101: 267.6789039 | R101: 269.5054269 | S101: 297.5032552 | T101: 492.1133549 | U101: 578.3759413 | V101: 676.8226324 | W101: 760.8137256 | X101: 888.7367618 | Y101: 1036.549067 | Z101: 1163.008053 | AA101: 1304.895036 | AB101: 1464.09223
C103: Advances to Suppliers
D104: Advances as Pct of CGS | G104: ='Financial Model Assumptions'!G145 -> 0 | H104: ='Financial Model Assumptions'!H145 -> 0 | I104: ='Financial Model Assumptions'!I145 -> 0.03771066311 | J104: ='Financial Model Assumptions'!J145 -> 0.156659381 | K104: ='Financial Model Assumptions'!K145 -> 0.1811711227 | L104: ='Financial Model Assumptions'!L145 -> 0.05860456381 | M104: ='Financial Model Assumptions'!M145 -> 0.03716282404 | N104: ='Financial Model Assumptions'!N145 -> 0.03858012519 | O104: ='Financial Model Assumptions'!O145 -> 0.03713481408 | P104: ='Financial Model Assumptions'!P145 -> 0.03223342621 | Q104: ='Financial Model Assumptions'!Q145 -> 0.03 | R104: ='Financial Model Assumptions'!R145 -> 0.03 | S104: ='Financial Model Assumptions'!S145 -> 0.03 | T104: ='Financial Model Assumptions'!T145 -> 0.03 | U104: ='Financial Model Assumptions'!U145 -> 0.03 | V104: ='Financial Model Assumptions'!V145 -> 0.03 | W104: ='Financial Model Assumptions'!W145 -> 0.03 | X104: ='Financial Model Assumptions'!X145 -> 0.03 | Y104: ='Financial Model Assumptions'!Y145 -> 0.03 | Z104: ='Financial Model Assumptions'!Z145 -> 0.03 | AA104: ='Financial Model Assumptions'!AA145 -> 0.03 | AB104: ='Financial Model Assumptions'!AB145 -> 0.03
D105: Total CGS | G105: =G100 -> 2.868 | H105: 10.01261 | I105: 58.21337364 | J105: 153.206291 | K105: 438.4999706 | L105: 1047.699903 | M105: 1531.100088 | N105: 1264.899971 | O105: 2272.80006 | P105: 2618.399856 | Q105: 1338.394519 | R105: 1347.527134 | S105: 1487.516276 | T105: 2460.566775 | U105: 2891.879707 | V105: 3384.113162 | W105: 3804.068628 | X105: 4443.683809 | Y105: 5182.745336 | Z105: 5815.040267 | AA105: 6524.47518 | AB105: 7320.461152
D106: Total Level of Advances | G106: =G104*G105 -> 0 | H106: 0 | I106: 2.195264922 | J106: 24.0012027 | K106: 79.44353199 | L106: 61.39999583 | M106: 56.90000316 | N106: 48.79999924 | O106: 84.40000766 | P106: 84.39999855 | Q106: 40.15183558 | R106: 40.42581403 | S106: 44.62548827 | T106: 73.81700324 | U106: 86.7563912 | V106: 101.5233949 | W106: 114.1220588 | X106: 133.3105143 | Y106: 155.4823601 | Z106: 174.451208 | AA106: 195.7342554 | AB106: 219.6138346
C108: Other Current Assets
D109: Other Assets as Percent of Revenues | G109: ='Financial Model Assumptions'!G146 -> 0 | H109: ='Financial Model Assumptions'!H146 -> 0 | I109: ='Financial Model Assumptions'!I146 -> 0.01433334064 | J109: ='Financial Model Assumptions'!J146 -> 0.00149999115 | K109: ='Financial Model Assumptions'!K146 -> 0.04377752368 | L109: ='Financial Model Assumptions'!L146 -> 0.05384558025 | M109: ='Financial Model Assumptions'!M146 -> 0.0423186882 | N109: ='Financial Model Assumptions'!N146 -> 0.02828795795 | O109: ='Financial Model Assumptions'!O146 -> 0.04369551236 | P109: ='Financial Model Assumptions'!P146 -> 0.0536134238 | Q109: ='Financial Model Assumptions'!Q146 -> 0.05 | R109: ='Financial Model Assumptions'!R146 -> 0.05 | S109: ='Financial Model Assumptions'!S146 -> 0.05 | T109: ='Financial Model Assumptions'!T146 -> 0.05 | U109: ='Financial Model Assumptions'!U146 -> 0.05 | V109: ='Financial Model Assumptions'!V146 -> 0.05 | W109: ='Financial Model Assumptions'!W146 -> 0.05 | X109: ='Financial Model Assumptions'!X146 -> 0.05 | Y109: ='Financial Model Assumptions'!Y146 -> 0.05 | Z109: ='Financial Model Assumptions'!Z146 -> 0.05 | AA109: ='Financial Model Assumptions'!AA146 -> 0.05 | AB109: ='Financial Model Assumptions'!AB146 -> 0.05
D110: Total Revenues | G110: =G95 -> 3.025 | H110: 13.888 | I110: 85.30000019 | J110: 226.0000069 | K110: 598.8999939 | L110: 1348.299952 | M110: 1923.500046 | N110: 1693.300049 | O110: 2901.900055 | P110: 3146.600006 | Q110: 1515.163607 | R110: 1640.820112 | S110: 1842.940519 | T110: 2973.311269 | U110: 3612.254623 | V110: 4192.706573 | W110: 4861.024 | X110: 5630.006636 | Y110: 6514.269553 | Z110: 7309.010438 | AA110: 8200.709712 | AB110: 9201.196297
D111: Total Level of Other Assets | G111: =G109*G110 -> 0 | H111: 0 | I111: 1.222633959 | J111: 0.3389980104 | K111: 26.21835866 | L111: 72.59999324 | M111: 81.39999869 | N111: 47.90000057 | O111: 126.8000097 | P111: 168.6999997 | Q111: 75.75818035 | R111: 82.04100561 | S111: 92.14702593 | T111: 148.6655635 | U111: 180.6127311 | V111: 209.6353286 | W111: 243.0512 | X111: 281.5003318 | Y111: 325.7134776 | Z111: 365.4505219 | AA111: 410.0354856 | AB111: 460.0598148
D113: Total Non-Financial Current Assets | G113: =G96+G101+G106+G111 -> 2.865 | H113: 5.835 | I113: 26.37621607 | J113: 68.83533802 | K113: 410.1072912 | L113: 578.4999572 | M113: 731.1000163 | N113: 985.999999 | O113: 1359.400124 | P113: 1318.199967 | Q113: 686.6216412 | R113: 720.1362689 | S113: 802.8638731 | T113: 1309.258175 | U113: 1568.195988 | V113: 1826.52267 | W113: 2090.191785 | X113: 2429.548935 | Y113: 2820.598816 | Z113: 3164.711871 | AA113: 3550.806719 | AB113: 3984.005139
C115: Verification
D116: Balance Sheet Other Current Assets | G116: ='Historic Financial Statements'!G84 -> 2.865 | H116: ='Historic Financial Statements'!H84 -> 5.835 | I116: ='Historic Financial Statements'!I84 -> 26.376217 | J116: ='Historic Financial Statements'!J84 -> 68.835336 | K116: ='Historic Financial Statements'!K84 -> 410.107312 | L116: ='Historic Financial Statements'!L84 -> 578.5000038 | M116: ='Historic Financial Statements'!M84 -> 731.0999975 | N116: ='Historic Financial Statements'!N84 -> 985.999999 | O116: ='Historic Financial Statements'!O84 -> 1359.40004 | P116: ='Historic Financial Statements'!P84 -> 1318.200009 | Q116: ='Historic Financial Statements'!Q84 -> 0 | R116: ='Historic Financial Statements'!R84 -> 0 | S116: ='Historic Financial Statements'!S84 -> 0 | T116: ='Historic Financial Statements'!T84 -> 0 | U116: ='Historic Financial Statements'!U84 -> 0 | V116: ='Historic Financial Statements'!V84 -> 0 | W116: ='Historic Financial Statements'!W84 -> 0 | X116: ='Historic Financial Statements'!X84 -> 0 | Y116: ='Historic Financial Statements'!Y84 -> 0 | Z116: ='Historic Financial Statements'!Z84 -> 0 | AA116: ='Historic Financial Statements'!AA84 -> 0 | AB116: ='Historic Financial Statements'!AB84 -> 0
D117: Current Asset Check | G117: =IF(G6,ROUND(G113-G116,1)=0,TRUE) -> TRUE | H117: TRUE | I117: TRUE | J117: TRUE | K117: TRUE | L117: TRUE | M117: TRUE | N117: TRUE | O117: TRUE | P117: TRUE | Q117: TRUE | R117: TRUE | S117: TRUE | T117: TRUE | U117: TRUE | V117: TRUE | W117: TRUE | X117: TRUE | Y117: TRUE | Z117: TRUE | AA117: TRUE | AB117: TRUE
D118: Aggregate Check | F118: =AND(G117:AB117) -> TRUE
C120: Accounts Payable
D121: A/P and Advances | G121: ='Financial Model Assumptions'!G149 -> 0 | H121: ='Financial Model Assumptions'!H149 -> 0 | I121: ='Financial Model Assumptions'!I149 -> 0.06265032658 | J121: ='Financial Model Assumptions'!J149 -> 0.08633955109 | K121: ='Financial Model Assumptions'!K149 -> 0.1198568868 | L121: ='Financial Model Assumptions'!L149 -> 0.08800229188 | M121: ='Financial Model Assumptions'!M149 -> 0.1361766005 | N121: ='Financial Model Assumptions'!N149 -> 0.28176142 | O121: ='Financial Model Assumptions'!O149 -> 0.3038982905 | P121: ='Financial Model Assumptions'!P149 -> 0.3234417951 | Q121: ='Financial Model Assumptions'!Q149 -> 0.3 | R121: ='Financial Model Assumptions'!R149 -> 0.3 | S121: ='Financial Model Assumptions'!S149 -> 0.3 | T121: ='Financial Model Assumptions'!T149 -> 0.3 | U121: ='Financial Model Assumptions'!U149 -> 0.3 | V121: ='Financial Model Assumptions'!V149 -> 0.3 | W121: ='Financial Model Assumptions'!W149 -> 0.3 | X121: ='Financial Model Assumptions'!X149 -> 0.3 | Y121: ='Financial Model Assumptions'!Y149 -> 0.3 | Z121: ='Financial Model Assumptions'!Z149 -> 0.3 | AA121: ='Financial Model Assumptions'!AA149 -> 0.3 | AB121: ='Financial Model Assumptions'!AB149 -> 0.3
D122: Total Expense | G122: =G105 -> 2.868 | H122: 10.01261 | I122: 58.21337364 | J122: 153.206291 | K122: 438.4999706 | L122: 1047.699903 | M122: 1531.100088 | N122: 1264.899971 | O122: 2272.80006 | P122: 2618.399856 | Q122: 1338.394519 | R122: 1347.527134 | S122: 1487.516276 | T122: 2460.566775 | U122: 2891.879707 | V122: 3384.113162 | W122: 3804.068628 | X122: 4443.683809 | Y122: 5182.745336 | Z122: 5815.040267 | AA122: 6524.47518 | AB122: 7320.461152
D123: Total Level of A/P | G123: =G121*G122 -> 0 | H123: 0 | I123: 3.64708687 | J123: 13.22776239 | K123: 52.55724135 | L123: 92.19999268 | M123: 208.500005 | N123: 356.400012 | O123: 690.7000529 | P123: 846.8999497 | Q123: 401.5183558 | R123: 404.2581403 | S123: 446.2548827 | T123: 738.1700324 | U123: 867.563912 | V123: 1015.233949 | W123: 1141.220588 | X123: 1333.105143 | Y123: 1554.823601 | Z123: 1744.51208 | AA123: 1957.342554 | AB123: 2196.138346
C125: Payables for Property
D126: Payable Percent | G126: ='Financial Model Assumptions'!G150 -> FALSE | H126: ='Financial Model Assumptions'!H150 -> 0 | I126: ='Financial Model Assumptions'!I150 -> 0.008091998681 | J126: ='Financial Model Assumptions'!J150 -> 0.01816306626 | K126: ='Financial Model Assumptions'!K150 -> 0.05781199108 | L126: ='Financial Model Assumptions'!L150 -> 0.2288037295 | M126: ='Financial Model Assumptions'!M150 -> 0.2091668795 | N126: ='Financial Model Assumptions'!N150 -> 0.4743243228 | O126: ='Financial Model Assumptions'!O150 -> 0.3424608928 | P126: ='Financial Model Assumptions'!P150 -> 0.2549073149 | Q126: ='Financial Model Assumptions'!Q150 -> 0.25 | R126: ='Financial Model Assumptions'!R150 -> 0.25 | S126: ='Financial Model Assumptions'!S150 -> 0.25 | T126: ='Financial Model Assumptions'!T150 -> 0.25 | U126: ='Financial Model Assumptions'!U150 -> 0.25 | V126: ='Financial Model Assumptions'!V150 -> 0.25 | W126: ='Financial Model Assumptions'!W150 -> 0.25 | X126: ='Financial Model Assumptions'!X150 -> 0.25 | Y126: ='Financial Model Assumptions'!Y150 -> 0.25 | Z126: ='Financial Model Assumptions'!Z150 -> 0.25 | AA126: ='Financial Model Assumptions'!AA150 -> 0.25 | AB126: ='Financial Model Assumptions'!AB150 -> 0.25
D127: Total Capital Expenditure | G127: =G89 -> 0 | H127: 2.788186 | I127: 9.376917 | J127: 30.286351 | K127: 62.29999924 | L127: 172.1999969 | M127: 394.8999894 | N127: 147.999994 | O127: 281.2 | P127: 366.7999878 | Q127: 72.72 | R127: 73.4472 | S127: 74.548908 | T127: 688.8232125 | U127: 104.7725076 | V127: 106.8679578 | W127: 109.005317 | X127: 111.1854233 | Y127: 113.4091318 | Z127: 362.4184179 | AA127: 421.7077538 | AB127: 473.1560997
D128: Total Level of Cap Exp A/P | G128: =G126*G127 -> 0 | H128: 0 | I128: 0.075878 | J128: 0.550093 | K128: 3.601687 | L128: 39.40000153 | M128: 82.59999847 | N128: 70.19999695 | O128: 96.30000305 | P128: 93.5 | Q128: 18.18 | R128: 18.3618 | S128: 18.637227 | T128: 172.2058031 | U128: 26.19312691 | V128: 26.71698945 | W128: 27.25132924 | X128: 27.79635582 | Y128: 28.35228294 | Z128: 90.60460447 | AA128: 105.4269384 | AB128: 118.2890249
C130: Government Grant | G130: ='Financial Model Assumptions'!G151 -> 0.03 | H130: ='Financial Model Assumptions'!H151 -> 0.07 | I130: ='Financial Model Assumptions'!I151 -> 2.060049 | J130: ='Financial Model Assumptions'!J151 -> 4.106444 | K130: ='Financial Model Assumptions'!K151 -> 4.820254 | L130: ='Financial Model Assumptions'!L151 -> 2.799999952 | M130: ='Financial Model Assumptions'!M151 -> 3.400000095 | N130: ='Financial Model Assumptions'!N151 -> 6.300000191 | O130: ='Financial Model Assumptions'!O151 -> 17.5 | P130: ='Financial Model Assumptions'!P151 -> 13.5 | Q130: ='Financial Model Assumptions'!Q151 -> 13.5 | R130: ='Financial Model Assumptions'!R151 -> 13.5 | S130: ='Financial Model Assumptions'!S151 -> 13.5 | T130: ='Financial Model Assumptions'!T151 -> 13.5 | U130: ='Financial Model Assumptions'!U151 -> 13.5 | V130: ='Financial Model Assumptions'!V151 -> 13.5 | W130: ='Financial Model Assumptions'!W151 -> 13.5 | X130: ='Financial Model Assumptions'!X151 -> 13.5 | Y130: ='Financial Model Assumptions'!Y151 -> 13.5 | Z130: ='Financial Model Assumptions'!Z151 -> 13.5 | AA130: ='Financial Model Assumptions'!AA151 -> 13.5 | AB130: ='Financial Model Assumptions'!AB151 -> 13.5
C131: Other current Liabilities | G131: ='Financial Model Assumptions'!G152 -> 0.765 | H131: ='Financial Model Assumptions'!H152 -> 2.997 | I131: ='Financial Model Assumptions'!I152 -> 0 | J131: ='Financial Model Assumptions'!J152 -> 1.898435 | K131: ='Financial Model Assumptions'!K152 -> 7.658342 | L131: ='Financial Model Assumptions'!L152 -> 22.50000048 | M131: ='Financial Model Assumptions'!M152 -> 43.69999981 | N131: ='Financial Model Assumptions'!N152 -> 60.8000021 | O131: ='Financial Model Assumptions'!O152 -> 164.6999969 | P131: ='Financial Model Assumptions'!P152 -> 81.5999999 | Q131: ='Financial Model Assumptions'!Q152 -> 81.6 | R131: ='Financial Model Assumptions'!R152 -> 81.6 | S131: ='Financial Model Assumptions'!S152 -> 81.6 | T131: ='Financial Model Assumptions'!T152 -> 81.6 | U131: ='Financial Model Assumptions'!U152 -> 81.6 | V131: ='Financial Model Assumptions'!V152 -> 81.6 | W131: ='Financial Model Assumptions'!W152 -> 81.6 | X131: ='Financial Model Assumptions'!X152 -> 81.6 | Y131: ='Financial Model Assumptions'!Y152 -> 81.6 | Z131: ='Financial Model Assumptions'!Z152 -> 81.6 | AA131: ='Financial Model Assumptions'!AA152 -> 81.6 | AB131: ='Financial Model Assumptions'!AB152 -> 81.6
D133: Total Non-Debt Current Liabilities | G133: =G130+G131+G128+G123 -> 0.795 | H133: 3.067 | I133: 5.78301387 | J133: 19.78273439 | K133: 68.63752435 | L133: 156.8999946 | M133: 338.2000034 | N133: 493.7000113 | O133: 969.2000529 | P133: 1035.49995 | Q133: 514.7983558 | R133: 517.7199403 | S133: 559.9921097 | T133: 1005.475836 | U133: 988.8570389 | V133: 1137.050938 | W133: 1263.571918 | X133: 1456.001498 | Y133: 1678.275884 | Z133: 1930.216685 | AA133: 2157.869492 | AB133: 2409.52737
D134: Historic Non-Debt Current Liabilities | G134: ='Historic Financial Statements'!G120-'Historic Financial Statements'!G107 -> 0.795 | H134: ='Historic Financial Statements'!H120-'Historic Financial Statements'!H107 -> 3.067 | I134: ='Historic Financial Statements'!I120-'Historic Financial Statements'!I107 -> 5.783014 | J134: ='Historic Financial Statements'!J120-'Historic Financial Statements'!J107 -> 19.782734 | K134: ='Historic Financial Statements'!K120-'Historic Financial Statements'!K107 -> 68.637527 | L134: ='Historic Financial Statements'!L120-'Historic Financial Statements'!L107 -> 156.9000032 | M134: ='Historic Financial Statements'!M120-'Historic Financial Statements'!M107 -> 338.1999974 | N134: ='Historic Financial Statements'!N120-'Historic Financial Statements'!N107 -> 493.7000113 | O134: ='Historic Financial Statements'!O120-'Historic Financial Statements'!O107 -> 969.2000027 | P134: ='Historic Financial Statements'!P120-'Historic Financial Statements'!P107 -> 1035.499979 | Q134: ='Historic Financial Statements'!Q120-'Historic Financial Statements'!Q107 -> 0 | R134: ='Historic Financial Statements'!R120-'Historic Financial Statements'!R107 -> 0 | S134: ='Historic Financial Statements'!S120-'Historic Financial Statements'!S107 -> 0 | T134: ='Historic Financial Statements'!T120-'Historic Financial Statements'!T107 -> 0 | U134: ='Historic Financial Statements'!U120-'Historic Financial Statements'!U107 -> 0 | V134: ='Historic Financial Statements'!V120-'Historic Financial Statements'!V107 -> 0 | W134: ='Historic Financial Statements'!W120-'Historic Financial Statements'!W107 -> 0 | X134: ='Historic Financial Statements'!X120-'Historic Financial Statements'!X107 -> 0 | Y134: ='Historic Financial Statements'!Y120-'Historic Financial Statements'!Y107 -> 0 | Z134: ='Historic Financial Statements'!Z120-'Historic Financial Statements'!Z107 -> 0 | AA134: ='Historic Financial Statements'!AA120-'Historic Financial Statements'!AA107 -> 0 | AB134: ='Historic Financial Statements'!AB120-'Historic Financial Statements'!AB107 -> 0
C136: Total Level of Working Capital | G136: =G113-G133 -> 2.07 | H136: 2.768 | I136: 20.5932022 | J136: 49.05260363 | K136: 341.4697669 | L136: 421.5999625 | M136: 392.9000129 | N136: 492.2999878 | O136: 390.2000712 | P136: 282.7000177 | Q136: 171.8232854 | R136: 202.4163286 | S136: 242.8717634 | T136: 303.7823399 | U136: 579.3389493 | V136: 689.4717323 | W136: 826.6198668 | X136: 973.5474365 | Y136: 1142.322932 | Z136: 1234.495186 | AA136: 1392.937227 | AB136: 1574.477769
C137: Change in Working Capital | H137: =H136-G136 -> 0.698 | I137: 17.8252022 | J137: 28.45940143 | K137: 292.4171633 | L137: 80.13019563 | M137: -28.6999496 | N137: 99.39997486 | O137: -102.0999166 | P137: -107.5000535 | Q137: -110.8767323 | R137: 30.59304325 | S137: 40.45543474 | T137: 60.91057654 | U137: 275.5566094 | V137: 110.132783 | W137: 137.1481345 | X137: 146.9275696 | Y137: 168.7754953 | Z137: 92.17225466 | AA137: 158.4420405 | AB137: 181.5405417
A139: Fixed and Other Long-term Assets
B141: Net Plant
C142: Opening Balance | G142: =F145 -> 0 | H142: 5.367 | I142: 6.912 | J142: 13.211346 | K142: 39.717332 | L142: 113.749856 | M142: 293 | N142: 684.5 | O142: 777.5999756 | P142: 1326.199951 | Q142: 1569.199951 | R142: 1532.075955 | S142: 1498.277838 | T142: 1467.947297 | U142: 2054.014199 | V142: 2015.005713 | W142: 1980.823271 | X142: 1951.170959 | Y142: 1925.774415 | Z142: 1904.379337 | AA142: 2133.491202 | AB142: 2405.854571
C143: Add: Capital Expenditures | G143: =G89 -> 0 | H143: 2.788186 | I143: 9.376917 | J143: 30.286351 | K143: 62.29999924 | L143: 172.1999969 | M143: 394.8999894 | N143: 147.999994 | O143: 281.2 | P143: 366.7999878 | Q143: 72.72 | R143: 73.4472 | S143: 74.548908 | T143: 688.8232125 | U143: 104.7725076 | V143: 106.8679578 | W143: 109.005317 | X143: 111.1854233 | Y143: 113.4091318 | Z143: 362.4184179 | AA143: 421.7077538 | AB143: 473.1560997
C144: Less: Deprecation Expense | G144: =G148 -> 0 | H144: 1.18239 | I144: 1.986626 | J144: 4.193712 | K144: 11.49999962 | L144: 20.90000001 | M144: 42.59999847 | N144: 66.40000153 | O144: 86.00000155 | P144: 141.6000061 | Q144: 109.8439966 | R144: 107.2453168 | S144: 104.8794486 | T144: 102.7563108 | U144: 143.7809939 | V144: 141.0503999 | W144: 138.6576289 | X144: 136.5819671 | Y144: 134.804209 | Z144: 133.3065536 | AA144: 149.3443841 | AB144: 168.40982
C145: Closing Balance | G145: =IF(G6,'Historic Financial Statements'!G85,G142+G143-G144) -> 5.367 | H145: =IF(H6,'Historic Financial Statements'!H85,H142+H143-H144) -> 6.912 | I145: =IF(I6,'Historic Financial Statements'!I85,I142+I143-I144) -> 13.211346 | J145: =IF(J6,'Historic Financial Statements'!J85,J142+J143-J144) -> 39.717332 | K145: =IF(K6,'Historic Financial Statements'!K85,K142+K143-K144) -> 113.749856 | L145: =IF(L6,'Historic Financial Statements'!L85,L142+L143-L144) -> 293 | M145: =IF(M6,'Historic Financial Statements'!M85,M142+M143-M144) -> 684.5 | N145: =IF(N6,'Historic Financial Statements'!N85,N142+N143-N144) -> 777.5999756 | O145: =IF(O6,'Historic Financial Statements'!O85,O142+O143-O144) -> 1326.199951 | P145: =IF(P6,'Historic Financial Statements'!P85,P142+P143-P144) -> 1569.199951 | Q145: =IF(Q6,'Historic Financial Statements'!Q85,Q142+Q143-Q144) -> 1532.075955 | R145: =IF(R6,'Historic Financial Statements'!R85,R142+R143-R144) -> 1498.277838 | S145: =IF(S6,'Historic Financial Statements'!S85,S142+S143-S144) -> 1467.947297 | T145: =IF(T6,'Historic Financial Statements'!T85,T142+T143-T144) -> 2054.014199 | U145: =IF(U6,'Historic Financial Statements'!U85,U142+U143-U144) -> 2015.005713 | V145: =IF(V6,'Historic Financial Statements'!V85,V142+V143-V144) -> 1980.823271 | W145: =IF(W6,'Historic Financial Statements'!W85,W142+W143-W144) -> 1951.170959 | X145: =IF(X6,'Historic Financial Statements'!X85,X142+X143-X144) -> 1925.774415 | Y145: =IF(Y6,'Historic Financial Statements'!Y85,Y142+Y143-Y144) -> 1904.379337 | Z145: =IF(Z6,'Historic Financial Statements'!Z85,Z142+Z143-Z144) -> 2133.491202 | AA145: =IF(AA6,'Historic Financial Statements'!AA85,AA142+AA143-AA144) -> 2405.854571 | AB145: =IF(AB6,'Historic Financial Statements'!AB85,AB142+AB143-AB144) -> 2710.600851
C147: Depreciation Rate - Net Plant Balace | G147: ='Financial Model Assumptions'!G155 -> 0 | H147: ='Financial Model Assumptions'!H155 -> 0.1710633681 | I147: ='Financial Model Assumptions'!I155 -> 0.1503727175 | J147: ='Financial Model Assumptions'!J155 -> 0.1055889655 | K147: ='Financial Model Assumptions'!K155 -> 0.1010990257 | L147: ='Financial Model Assumptions'!L155 -> 0.07133105804 | M147: ='Financial Model Assumptions'!M155 -> 0.06223520595 | N147: ='Financial Model Assumptions'!N155 -> 0.08539095115 | O147: ='Financial Model Assumptions'!O155 -> 0.06484693464 | P147: ='Financial Model Assumptions'!P155 -> 0.09023707017 | Q147: ='Financial Model Assumptions'!Q155 -> 0.07 | R147: ='Financial Model Assumptions'!R155 -> 0.07 | S147: ='Financial Model Assumptions'!S155 -> 0.07 | T147: ='Financial Model Assumptions'!T155 -> 0.07 | U147: ='Financial Model Assumptions'!U155 -> 0.07 | V147: ='Financial Model Assumptions'!V155 -> 0.07 | W147: ='Financial Model Assumptions'!W155 -> 0.07 | X147: ='Financial Model Assumptions'!X155 -> 0.07 | Y147: ='Financial Model Assumptions'!Y155 -> 0.07 | Z147: ='Financial Model Assumptions'!Z155 -> 0.07 | AA147: ='Financial Model Assumptions'!AA155 -> 0.07 | AB147: ='Financial Model Assumptions'!AB155 -> 0.07
C148: Depreciation Expense | G148: =IF(G6,'Financial Model Assumptions'!G106,G147*G142) -> 0 | H148: =IF(H6,'Financial Model Assumptions'!H106,H147*H142) -> 1.18239 | I148: =IF(I6,'Financial Model Assumptions'!I106,I147*I142) -> 1.986626 | J148: =IF(J6,'Financial Model Assumptions'!J106,J147*J142) -> 4.193712 | K148: =IF(K6,'Financial Model Assumptions'!K106,K147*K142) -> 11.49999962 | L148: =IF(L6,'Financial Model Assumptions'!L106,L147*L142) -> 20.90000001 | M148: =IF(M6,'Financial Model Assumptions'!M106,M147*M142) -> 42.59999847 | N148: =IF(N6,'Financial Model Assumptions'!N106,N147*N142) -> 66.40000153 | O148: =IF(O6,'Financial Model Assumptions'!O106,O147*O142) -> 86.00000155 | P148: =IF(P6,'Financial Model Assumptions'!P106,P147*P142) -> 141.6000061 | Q148: =IF(Q6,'Financial Model Assumptions'!Q106,Q147*Q142) -> 109.8439966 | R148: =IF(R6,'Financial Model Assumptions'!R106,R147*R142) -> 107.2453168 | S148: =IF(S6,'Financial Model Assumptions'!S106,S147*S142) -> 104.8794486 | T148: =IF(T6,'Financial Model Assumptions'!T106,T147*T142) -> 102.7563108 | U148: =IF(U6,'Financial Model Assumptions'!U106,U147*U142) -> 143.7809939 | V148: =IF(V6,'Financial Model Assumptions'!V106,V147*V142) -> 141.0503999 | W148: =IF(W6,'Financial Model Assumptions'!W106,W147*W142) -> 138.6576289 | X148: =IF(X6,'Financial Model Assumptions'!X106,X147*X142) -> 136.5819671 | Y148: =IF(Y6,'Financial Model Assumptions'!Y106,Y147*Y142) -> 134.804209 | Z148: =IF(Z6,'Financial Model Assumptions'!Z106,Z147*Z142) -> 133.3065536 | AA148: =IF(AA6,'Financial Model Assumptions'!AA106,AA147*AA142) -> 149.3443841 | AB148: =IF(AB6,'Financial Model Assumptions'!AB106,AB147*AB142) -> 168.40982
C150: Goodwill | G150: =IF(G6,'Historic Financial Statements'!G87,F150) -> 0 | H150: =IF(H6,'Historic Financial Statements'!H87,G150) -> 0 | I150: =IF(I6,'Historic Financial Statements'!I87,H150) -> 0 | J150: =IF(J6,'Historic Financial Statements'!J87,I150) -> 0.135343 | K150: =IF(K6,'Historic Financial Statements'!K87,J150) -> 28.551652 | L150: =IF(L6,'Historic Financial Statements'!L87,K150) -> 29.79999924 | M150: =IF(M6,'Historic Financial Statements'!M87,L150) -> 87.59999847 | N150: =IF(N6,'Historic Financial Statements'!N87,M150) -> 86.09999847 | O150: =IF(O6,'Historic Financial Statements'!O87,N150) -> 278 | P150: =IF(P6,'Historic Financial Statements'!P87,O150) -> 0 | Q150: =IF(Q6,'Historic Financial Statements'!Q87,P150) -> 0 | R150: =IF(R6,'Historic Financial Statements'!R87,Q150) -> 0 | S150: =IF(S6,'Historic Financial Statements'!S87,R150) -> 0 | T150: =IF(T6,'Historic Financial Statements'!T87,S150) -> 0 | U150: =IF(U6,'Historic Financial Statements'!U87,T150) -> 0 | V150: =IF(V6,'Historic Financial Statements'!V87,U150) -> 0 | W150: =IF(W6,'Historic Financial Statements'!W87,V150) -> 0 | X150: =IF(X6,'Historic Financial Statements'!X87,W150) -> 0 | Y150: =IF(Y6,'Historic Financial Statements'!Y87,X150) -> 0 | Z150: =IF(Z6,'Historic Financial Statements'!Z87,Y150) -> 0 | AA150: =IF(AA6,'Historic Financial Statements'!AA87,Z150) -> 0 | AB150: =IF(AB6,'Historic Financial Statements'!AB87,AA150) -> 0
C151: Intangible Assets | G151: =IF(G6,'Historic Financial Statements'!G86,F151) -> 0 | H151: =IF(H6,'Historic Financial Statements'!H86,G151) -> 0 | I151: =IF(I6,'Historic Financial Statements'!I86,H151) -> 2.412754 | J151: =IF(J6,'Historic Financial Statements'!J86,I151) -> 2.922989 | K151: =IF(K6,'Historic Financial Statements'!K86,J151) -> 75.751432 | L151: =IF(L6,'Historic Financial Statements'!L86,K151) -> 86 | M151: =IF(M6,'Historic Financial Statements'!M86,L151) -> 176.6999969 | N151: =IF(N6,'Historic Financial Statements'!N86,M151) -> 166.6999969 | O151: =IF(O6,'Historic Financial Statements'!O86,N151) -> 156 | P151: =IF(P6,'Historic Financial Statements'!P86,O151) -> 23 | Q151: =IF(Q6,'Historic Financial Statements'!Q86,P151) -> 23 | R151: =IF(R6,'Historic Financial Statements'!R86,Q151) -> 23 | S151: =IF(S6,'Historic Financial Statements'!S86,R151) -> 23 | T151: =IF(T6,'Historic Financial Statements'!T86,S151) -> 23 | U151: =IF(U6,'Historic Financial Statements'!U86,T151) -> 23 | V151: =IF(V6,'Historic Financial Statements'!V86,U151) -> 23 | W151: =IF(W6,'Historic Financial Statements'!W86,V151) -> 23 | X151: =IF(X6,'Historic Financial Statements'!X86,W151) -> 23 | Y151: =IF(Y6,'Historic Financial Statements'!Y86,X151) -> 23 | Z151: =IF(Z6,'Historic Financial Statements'!Z86,Y151) -> 23 | AA151: =IF(AA6,'Historic Financial Statements'!AA86,Z151) -> 23 | AB151: =IF(AB6,'Historic Financial Statements'!AB86,AA151) -> 23
C153: Affililates | G153: =IF(G6,'Historic Financial Statements'!G93,F153) -> 0 | H153: =IF(H6,'Historic Financial Statements'!H93,G153) -> 0 | I153: =IF(I6,'Historic Financial Statements'!I93,H153) -> 0.069402 | J153: =IF(J6,'Historic Financial Statements'!J93,I153) -> 1.059103 | K153: =IF(K6,'Historic Financial Statements'!K93,J153) -> 26.236511 | L153: =IF(L6,'Historic Financial Statements'!L93,K153) -> 104.6000031 | M153: =IF(M6,'Historic Financial Statements'!M93,L153) -> 637.6000061 | N153: =IF(N6,'Historic Financial Statements'!N93,M153) -> 553.5 | O153: =IF(O6,'Historic Financial Statements'!O93,N153) -> 746.6000214 | P153: =IF(P6,'Historic Financial Statements'!P93,O153) -> 531.4000111 | Q153: =IF(Q6,'Historic Financial Statements'!Q93,P153) -> 531.4000111 | R153: =IF(R6,'Historic Financial Statements'!R93,Q153) -> 531.4000111 | S153: =IF(S6,'Historic Financial Statements'!S93,R153) -> 531.4000111 | T153: =IF(T6,'Historic Financial Statements'!T93,S153) -> 531.4000111 | U153: =IF(U6,'Historic Financial Statements'!U93,T153) -> 531.4000111 | V153: =IF(V6,'Historic Financial Statements'!V93,U153) -> 531.4000111 | W153: =IF(W6,'Historic Financial Statements'!W93,V153) -> 531.4000111 | X153: =IF(X6,'Historic Financial Statements'!X93,W153) -> 531.4000111 | Y153: =IF(Y6,'Historic Financial Statements'!Y93,X153) -> 531.4000111 | Z153: =IF(Z6,'Historic Financial Statements'!Z93,Y153) -> 531.4000111 | AA153: =IF(AA6,'Historic Financial Statements'!AA93,Z153) -> 531.4000111 | AB153: =IF(AB6,'Historic Financial Statements'!AB93,AA153) -> 531.4000111
C154: Deferred taxes | G154: =IF(G6,'Historic Financial Statements'!G96,F154) -> 0 | H154: =IF(H6,'Historic Financial Statements'!H96,G154) -> 0 | I154: =IF(I6,'Historic Financial Statements'!I96,H154) -> 0.973358 | J154: =IF(J6,'Historic Financial Statements'!J96,I154) -> 1.672849 | K154: =IF(K6,'Historic Financial Statements'!K96,J154) -> 4.098434 | L154: =IF(L6,'Historic Financial Statements'!L96,K154) -> 1.700000048 | M154: =IF(M6,'Historic Financial Statements'!M96,L154) -> 7.199999809 | N154: =IF(N6,'Historic Financial Statements'!N96,M154) -> 10.80000019 | O154: =IF(O6,'Historic Financial Statements'!O96,N154) -> 22.60000038 | P154: =IF(P6,'Historic Financial Statements'!P96,O154) -> 70.99999809 | Q154: =IF(Q6,'Historic Financial Statements'!Q96,P154) -> 70.99999809 | R154: =IF(R6,'Historic Financial Statements'!R96,Q154) -> 70.99999809 | S154: =IF(S6,'Historic Financial Statements'!S96,R154) -> 70.99999809 | T154: =IF(T6,'Historic Financial Statements'!T96,S154) -> 70.99999809 | U154: =IF(U6,'Historic Financial Statements'!U96,T154) -> 70.99999809 | V154: =IF(V6,'Historic Financial Statements'!V96,U154) -> 70.99999809 | W154: =IF(W6,'Historic Financial Statements'!W96,V154) -> 70.99999809 | X154: =IF(X6,'Historic Financial Statements'!X96,W154) -> 70.99999809 | Y154: =IF(Y6,'Historic Financial Statements'!Y96,X154) -> 70.99999809 | Z154: =IF(Z6,'Historic Financial Statements'!Z96,Y154) -> 70.99999809 | AA154: =IF(AA6,'Historic Financial Statements'!AA96,Z154) -> 70.99999809 | AB154: =IF(AB6,'Historic Financial Statements'!AB96,AA154) -> 70.99999809
C155: Prepayments | G155: =IF(G6,'Historic Financial Statements'!G100,F155) -> 1.73 | H155: =IF(H6,'Historic Financial Statements'!H100,G155) -> 2.725 | I155: =IF(I6,'Historic Financial Statements'!I100,H155) -> 0.042233 | J155: =IF(J6,'Historic Financial Statements'!J100,I155) -> 0 | K155: =IF(K6,'Historic Financial Statements'!K100,J155) -> 133.552999 | L155: =IF(L6,'Historic Financial Statements'!L100,K155) -> 186.0999966 | M155: =IF(M6,'Historic Financial Statements'!M100,L155) -> 315.5000024 | N155: =IF(N6,'Historic Financial Statements'!N100,M155) -> 243.8000069 | O155: =IF(O6,'Historic Financial Statements'!O100,N155) -> 297.9000053 | P155: =IF(P6,'Historic Financial Statements'!P100,O155) -> 256.4000053 | Q155: =IF(Q6,'Historic Financial Statements'!Q100,P155) -> 256.4000053 | R155: =IF(R6,'Historic Financial Statements'!R100,Q155) -> 256.4000053 | S155: =IF(S6,'Historic Financial Statements'!S100,R155) -> 256.4000053 | T155: =IF(T6,'Historic Financial Statements'!T100,S155) -> 256.4000053 | U155: =IF(U6,'Historic Financial Statements'!U100,T155) -> 256.4000053 | V155: =IF(V6,'Historic Financial Statements'!V100,U155) -> 256.4000053 | W155: =IF(W6,'Historic Financial Statements'!W100,V155) -> 256.4000053 | X155: =IF(X6,'Historic Financial Statements'!X100,W155) -> 256.4000053 | Y155: =IF(Y6,'Historic Financial Statements'!Y100,X155) -> 256.4000053 | Z155: =IF(Z6,'Historic Financial Statements'!Z100,Y155) -> 256.4000053 | AA155: =IF(AA6,'Historic Financial Statements'!AA100,Z155) -> 256.4000053 | AB155: =IF(AB6,'Historic Financial Statements'!AB100,AA155) -> 256.4000053
D156: Total Other Assets | G156: =SUM(G150:G155) -> 1.73 | H156: 2.725 | I156: 3.497747 | J156: 5.790284 | K156: 268.191028 | L156: 408.1999989 | M156: 1224.600004 | N156: 1060.900002 | O156: 1501.100027 | P156: 881.8000145 | Q156: 881.8000145 | R156: 881.8000145 | S156: 881.8000145 | T156: 881.8000145 | U156: 881.8000145 | V156: 881.8000145 | W156: 881.8000145 | X156: 881.8000145 | Y156: 881.8000145 | Z156: 881.8000145 | AA156: 881.8000145 | AB156: 881.8000145
A158: Debt and Liabilities
C160: Long-term Debt
D161: Opening Balance | G161: =F163 -> 0 | H161: 0 | I161: 0 | J161: 0 | K161: 3.71736 | L161: 19.65614 | M161: 520.7000008 | N161: 987.1000123 | O161: 878.9000244 | P161: 714.5000153 | Q161: 714.2000275 | R161: 713.8000275 | S161: 180.3000275 | T161: 50.00002441 | U161: 49.7000244 | V161: 2.363920214e-05 | W161: 2.363920214e-05 | X161: 2.363920214e-05 | Y161: 2.363920214e-05 | Z161: 2.363920214e-05 | AA161: 2.363920214e-05 | AB161: 2.363920214e-05
D162: Less: Scheduled Repayments | G162: ='Financial Model Assumptions'!G159 -> 0 | H162: ='Financial Model Assumptions'!H159 -> 0 | I162: ='Financial Model Assumptions'!I159 -> 0 | J162: ='Financial Model Assumptions'!J159 -> 0 | K162: ='Financial Model Assumptions'!K159 -> 0 | L162: ='Financial Model Assumptions'!L159 -> 0 | M162: ='Financial Model Assumptions'!M159 -> 0 | N162: ='Financial Model Assumptions'!N159 -> 0 | O162: ='Financial Model Assumptions'!O159 -> 0 | P162: ='Financial Model Assumptions'!P159 -> 0 | Q162: ='Financial Model Assumptions'!Q159 -> 0.4 | R162: ='Financial Model Assumptions'!R159 -> 533.5 | S162: ='Financial Model Assumptions'!S159 -> 130.3000031 | T162: ='Financial Model Assumptions'!T159 -> 0.3000000119 | U162: ='Financial Model Assumptions'!U159 -> 49.70000076 | V162: ='Financial Model Assumptions'!V159 -> 0 | W162: ='Financial Model Assumptions'!W159 -> 0 | X162: ='Financial Model Assumptions'!X159 -> 0 | Y162: ='Financial Model Assumptions'!Y159 -> 0 | Z162: ='Financial Model Assumptions'!Z159 -> 0 | AA162: ='Financial Model Assumptions'!AA159 -> 0 | AB162: ='Financial Model Assumptions'!AB159 -> 0
D163: Closing Balance | G163: =IF(G6,'Historic Financial Statements'!G124,G161-G162) -> 0 | H163: =IF(H6,'Historic Financial Statements'!H124,H161-H162) -> 0 | I163: =IF(I6,'Historic Financial Statements'!I124,I161-I162) -> 0 | J163: =IF(J6,'Historic Financial Statements'!J124,J161-J162) -> 3.71736 | K163: =IF(K6,'Historic Financial Statements'!K124,K161-K162) -> 19.65614 | L163: =IF(L6,'Historic Financial Statements'!L124,L161-L162) -> 520.7000008 | M163: =IF(M6,'Historic Financial Statements'!M124,M161-M162) -> 987.1000123 | N163: =IF(N6,'Historic Financial Statements'!N124,N161-N162) -> 878.9000244 | O163: =IF(O6,'Historic Financial Statements'!O124,O161-O162) -> 714.5000153 | P163: =IF(P6,'Historic Financial Statements'!P124,P161-P162) -> 714.2000275 | Q163: =IF(Q6,'Historic Financial Statements'!Q124,Q161-Q162) -> 713.8000275 | R163: =IF(R6,'Historic Financial Statements'!R124,R161-R162) -> 180.3000275 | S163: =IF(S6,'Historic Financial Statements'!S124,S161-S162) -> 50.00002441 | T163: =IF(T6,'Historic Financial Statements'!T124,T161-T162) -> 49.7000244 | U163: =IF(U6,'Historic Financial Statements'!U124,U161-U162) -> 2.363920214e-05 | V163: =IF(V6,'Historic Financial Statements'!V124,V161-V162) -> 2.363920214e-05 | W163: =IF(W6,'Historic Financial Statements'!W124,W161-W162) -> 2.363920214e-05 | X163: =IF(X6,'Historic Financial Statements'!X124,X161-X162) -> 2.363920214e-05 | Y163: =IF(Y6,'Historic Financial Statements'!Y124,Y161-Y162) -> 2.363920214e-05 | Z163: =IF(Z6,'Historic Financial Statements'!Z124,Z161-Z162) -> 2.363920214e-05 | AA163: =IF(AA6,'Historic Financial Statements'!AA124,AA161-AA162) -> 2.363920214e-05 | AB163: =IF(AB6,'Historic Financial Statements'!AB124,AB161-AB162) -> 2.363920214e-05
D165: Interest Rate | G165: =LOOKUP('Financial Model Assumptions'!G2,'Financial Model Assumptions'!$F$164:$G$166) ->  | H165: =LOOKUP('Financial Model Assumptions'!H2,'Financial Model Assumptions'!$F$164:$G$166) ->  | I165: =LOOKUP('Financial Model Assumptions'!I2,'Financial Model Assumptions'!$F$164:$G$166) ->  | J165: =LOOKUP('Financial Model Assumptions'!J2,'Financial Model Assumptions'!$F$164:$G$166) ->  | K165: =LOOKUP('Financial Model Assumptions'!K2,'Financial Model Assumptions'!$F$164:$G$166) ->  | L165: =LOOKUP('Financial Model Assumptions'!L2,'Financial Model Assumptions'!$F$164:$G$166) ->  | M165: =LOOKUP('Financial Model Assumptions'!M2,'Financial Model Assumptions'!$F$164:$G$166) ->  | N165: =LOOKUP('Financial Model Assumptions'!N2,'Financial Model Assumptions'!$F$164:$G$166) ->  | O165: =LOOKUP('Financial Model Assumptions'!O2,'Financial Model Assumptions'!$F$164:$G$166) -> 0.09 | P165: =LOOKUP('Financial Model Assumptions'!P2,'Financial Model Assumptions'!$F$164:$G$166) -> 0.09 | Q165: =LOOKUP('Financial Model Assumptions'!Q2,'Financial Model Assumptions'!$F$164:$G$166) -> 0.09 | R165: =LOOKUP('Financial Model Assumptions'!R2,'Financial Model Assumptions'!$F$164:$G$166) -> 0.09 | S165: =LOOKUP('Financial Model Assumptions'!S2,'Financial Model Assumptions'!$F$164:$G$166) -> 0.08 | T165: =LOOKUP('Financial Model Assumptions'!T2,'Financial Model Assumptions'!$F$164:$G$166) -> 0.08 | U165: =LOOKUP('Financial Model Assumptions'!U2,'Financial Model Assumptions'!$F$164:$G$166) -> 0.075 | V165: =LOOKUP('Financial Model Assumptions'!V2,'Financial Model Assumptions'!$F$164:$G$166) -> 0.075 | W165: =LOOKUP('Financial Model Assumptions'!W2,'Financial Model Assumptions'!$F$164:$G$166) -> 0.075 | X165: =LOOKUP('Financial Model Assumptions'!X2,'Financial Model Assumptions'!$F$164:$G$166) -> 0.075 | Y165: =LOOKUP('Financial Model Assumptions'!Y2,'Financial Model Assumptions'!$F$164:$G$166) -> 0.075 | Z165: =LOOKUP('Financial Model Assumptions'!Z2,'Financial Model Assumptions'!$F$164:$G$166) -> 0.075 | AA165: =LOOKUP('Financial Model Assumptions'!AA2,'Financial Model Assumptions'!$F$164:$G$166) -> 0.075 | AB165: =LOOKUP('Financial Model Assumptions'!AB2,'Financial Model Assumptions'!$F$164:$G$166) -> 0.075
D166: Intrest Expense - Long-term | G166: =IF(G6,-'Historic Financial Statements'!G31,G165*G161) -> 0 | H166: =IF(H6,-'Historic Financial Statements'!H31,H165*H161) -> 0.226593 | I166: =IF(I6,-'Historic Financial Statements'!I31,I165*I161) -> 0.997946 | J166: =IF(J6,-'Historic Financial Statements'!J31,J165*J161) -> 2.254371 | K166: =IF(K6,-'Historic Financial Statements'!K31,K165*K161) -> 5.800000191 | L166: =IF(L6,-'Historic Financial Statements'!L31,L165*L161) -> 39.40000153 | M166: =IF(M6,-'Historic Financial Statements'!M31,M165*M161) -> 55.70000076 | N166: =IF(N6,-'Historic Financial Statements'!N31,N165*N161) -> 122.3000031 | O166: =IF(O6,-'Historic Financial Statements'!O31,O165*O161) -> 98.90000153 | P166: =IF(P6,-'Historic Financial Statements'!P31,P165*P161) -> 98.80000305 | Q166: =IF(Q6,-'Historic Financial Statements'!Q31,Q165*Q161) -> 64.27800247 | R166: =IF(R6,-'Historic Financial Statements'!R31,R165*R161) -> 64.24200247 | S166: =IF(S6,-'Historic Financial Statements'!S31,S165*S161) -> 14.4240022 | T166: =IF(T6,-'Historic Financial Statements'!T31,T165*T161) -> 4.000001953 | U166: =IF(U6,-'Historic Financial Statements'!U31,U165*U161) -> 3.72750183 | V166: =IF(V6,-'Historic Financial Statements'!V31,V165*V161) -> 1.772940161e-06 | W166: =IF(W6,-'Historic Financial Statements'!W31,W165*W161) -> 1.772940161e-06 | X166: =IF(X6,-'Historic Financial Statements'!X31,X165*X161) -> 1.772940161e-06 | Y166: =IF(Y6,-'Historic Financial Statements'!Y31,Y165*Y161) -> 1.772940161e-06 | Z166: =IF(Z6,-'Historic Financial Statements'!Z31,Z165*Z161) -> 1.772940161e-06 | AA166: =IF(AA6,-'Historic Financial Statements'!AA31,AA165*AA161) -> 1.772940161e-06 | AB166: =IF(AB6,-'Historic Financial Statements'!AB31,AB165*AB161) -> 1.772940161e-06
C168: Cash and Financial Assets less Short-term Debt
D169: Opening Balance | G169: =F171 -> 0 | H169: -3.337 | I169: -5.647 | J169: -9.058922 | K169: 315.128465 | L169: 17.721964 | M169: 356.0999832 | N169: -54.90001535 | O169: 358.7999924 | P169: -370.4000492 | Q169: -805.3000221 | R169: -943.0825751 | S169: -1623.590415 | T169: -1855.104209 | U169: -2549.075317 | V169: -2812.79727 | W169: -2847.253171 | X169: -2765.096775 | Y169: -2646.320263 | Z169: -2497.312534 | AA169: -2444.301554 | AB169: -2433.055259
D170: Add: Net Cash Flow | H170: =H238 -> -1.378796 | I170: -5.415492496 | J170: -24.05203723 | K170: -239.6171356 | L170: -88.23013974 | M170: -292.6000848 | N170: -95.2998877 | O170: 144.7998961 | P170: -1121.59978 | Q170: -137.782553 | R170: -680.5078403 | S170: -231.5137935 | T170: -693.971108 | U170: -263.7219529 | V170: -34.45590116 | W170: 82.15639558 | X170: 118.7765122 | Y170: 149.0077293 | Z170: 53.01097993 | AA170: 11.24629524 | AB170: 28.61586734
D171: Closing Balance | G171: =IF(G6,G173-G174,G169+G170) -> -3.337 | H171: -5.647 | I171: -9.058922 | J171: 315.128465 | K171: 17.721964 | L171: 356.0999832 | M171: -54.90001535 | N171: 358.7999924 | O171: -370.4000492 | P171: -805.3000221 | Q171: -943.0825751 | R171: -1623.590415 | S171: -1855.104209 | T171: -2549.075317 | U171: -2812.79727 | V171: -2847.253171 | W171: -2765.096775 | X171: -2646.320263 | Y171: -2497.312534 | Z171: -2444.301554 | AA171: -2433.055259 | AB171: -2404.439391
D173: Cash and Financial Assets | G173: =IF(G6,'Historic Financial Statements'!G72,MAX(G171,0)) -> 0.287 | H173: =IF(H6,'Historic Financial Statements'!H72,MAX(H171,0)) -> 1.559 | I173: =IF(I6,'Historic Financial Statements'!I72,MAX(I171,0)) -> 25.382766 | J173: =IF(J6,'Historic Financial Statements'!J72,MAX(J171,0)) -> 367.321513 | K173: =IF(K6,'Historic Financial Statements'!K72,MAX(K171,0)) -> 305.906956 | L173: =IF(L6,'Historic Financial Statements'!L72,MAX(L171,0)) -> 677.2999954 | M173: =IF(M6,'Historic Financial Statements'!M72,MAX(M171,0)) -> 583.5999846 | N173: =IF(N6,'Historic Financial Statements'!N72,MAX(N171,0)) -> 1159.200017 | O173: =IF(O6,'Historic Financial Statements'!O72,MAX(O171,0)) -> 1030.4 | P173: =IF(P6,'Historic Financial Statements'!P72,MAX(P171,0)) -> 768.1000023 | Q173: =IF(Q6,'Historic Financial Statements'!Q72,MAX(Q171,0)) -> 0 | R173: =IF(R6,'Historic Financial Statements'!R72,MAX(R171,0)) -> 0 | S173: =IF(S6,'Historic Financial Statements'!S72,MAX(S171,0)) -> 0 | T173: =IF(T6,'Historic Financial Statements'!T72,MAX(T171,0)) -> 0 | U173: =IF(U6,'Historic Financial Statements'!U72,MAX(U171,0)) -> 0 | V173: =IF(V6,'Historic Financial Statements'!V72,MAX(V171,0)) -> 0 | W173: =IF(W6,'Historic Financial Statements'!W72,MAX(W171,0)) -> 0 | X173: =IF(X6,'Historic Financial Statements'!X72,MAX(X171,0)) -> 0 | Y173: =IF(Y6,'Historic Financial Statements'!Y72,MAX(Y171,0)) -> 0 | Z173: =IF(Z6,'Historic Financial Statements'!Z72,MAX(Z171,0)) -> 0 | AA173: =IF(AA6,'Historic Financial Statements'!AA72,MAX(AA171,0)) -> 0 | AB173: =IF(AB6,'Historic Financial Statements'!AB72,MAX(AB171,0)) -> 0
D174: Short-term Debt | G174: =IF(G6,'Historic Financial Statements'!G107,MAX(-G171,0)) -> 3.624 | H174: =IF(H6,'Historic Financial Statements'!H107,MAX(-H171,0)) -> 7.206 | I174: =IF(I6,'Historic Financial Statements'!I107,MAX(-I171,0)) -> 34.441688 | J174: =IF(J6,'Historic Financial Statements'!J107,MAX(-J171,0)) -> 52.193048 | K174: =IF(K6,'Historic Financial Statements'!K107,MAX(-K171,0)) -> 288.184992 | L174: =IF(L6,'Historic Financial Statements'!L107,MAX(-L171,0)) -> 321.2000122 | M174: =IF(M6,'Historic Financial Statements'!M107,MAX(-M171,0)) -> 638.5 | N174: =IF(N6,'Historic Financial Statements'!N107,MAX(-N171,0)) -> 800.4000244 | O174: =IF(O6,'Historic Financial Statements'!O107,MAX(-O171,0)) -> 1400.800049 | P174: =IF(P6,'Historic Financial Statements'!P107,MAX(-P171,0)) -> 1573.400024 | Q174: =IF(Q6,'Historic Financial Statements'!Q107,MAX(-Q171,0)) -> 943.0825751 | R174: =IF(R6,'Historic Financial Statements'!R107,MAX(-R171,0)) -> 1623.590415 | S174: =IF(S6,'Historic Financial Statements'!S107,MAX(-S171,0)) -> 1855.104209 | T174: =IF(T6,'Historic Financial Statements'!T107,MAX(-T171,0)) -> 2549.075317 | U174: =IF(U6,'Historic Financial Statements'!U107,MAX(-U171,0)) -> 2812.79727 | V174: =IF(V6,'Historic Financial Statements'!V107,MAX(-V171,0)) -> 2847.253171 | W174: =IF(W6,'Historic Financial Statements'!W107,MAX(-W171,0)) -> 2765.096775 | X174: =IF(X6,'Historic Financial Statements'!X107,MAX(-X171,0)) -> 2646.320263 | Y174: =IF(Y6,'Historic Financial Statements'!Y107,MAX(-Y171,0)) -> 2497.312534 | Z174: =IF(Z6,'Historic Financial Statements'!Z107,MAX(-Z171,0)) -> 2444.301554 | AA174: =IF(AA6,'Historic Financial Statements'!AA107,MAX(-AA171,0)) -> 2433.055259 | AB174: =IF(AB6,'Historic Financial Statements'!AB107,MAX(-AB171,0)) -> 2404.439391
D176: Interest Income Rate | G176: =LOOKUP('Financial Model Assumptions'!G2,'Financial Model Assumptions'!$F$174:$G$176) ->  | H176: =LOOKUP('Financial Model Assumptions'!H2,'Financial Model Assumptions'!$F$174:$G$176) ->  | I176: =LOOKUP('Financial Model Assumptions'!I2,'Financial Model Assumptions'!$F$174:$G$176) ->  | J176: =LOOKUP('Financial Model Assumptions'!J2,'Financial Model Assumptions'!$F$174:$G$176) ->  | K176: =LOOKUP('Financial Model Assumptions'!K2,'Financial Model Assumptions'!$F$174:$G$176) ->  | L176: =LOOKUP('Financial Model Assumptions'!L2,'Financial Model Assumptions'!$F$174:$G$176) ->  | M176: =LOOKUP('Financial Model Assumptions'!M2,'Financial Model Assumptions'!$F$174:$G$176) ->  | N176: =LOOKUP('Financial Model Assumptions'!N2,'Financial Model Assumptions'!$F$174:$G$176) ->  | O176: =LOOKUP('Financial Model Assumptions'!O2,'Financial Model Assumptions'!$F$174:$G$176) ->  | P176: =LOOKUP('Financial Model Assumptions'!P2,'Financial Model Assumptions'!$F$174:$G$176) ->  | Q176: =LOOKUP('Financial Model Assumptions'!Q2,'Financial Model Assumptions'!$F$174:$G$176) -> 0.02 | R176: =LOOKUP('Financial Model Assumptions'!R2,'Financial Model Assumptions'!$F$174:$G$176) -> 0.02 | S176: =LOOKUP('Financial Model Assumptions'!S2,'Financial Model Assumptions'!$F$174:$G$176) -> 0.03 | T176: =LOOKUP('Financial Model Assumptions'!T2,'Financial Model Assumptions'!$F$174:$G$176) -> 0.03 | U176: =LOOKUP('Financial Model Assumptions'!U2,'Financial Model Assumptions'!$F$174:$G$176) -> 0.04 | V176: =LOOKUP('Financial Model Assumptions'!V2,'Financial Model Assumptions'!$F$174:$G$176) -> 0.04 | W176: =LOOKUP('Financial Model Assumptions'!W2,'Financial Model Assumptions'!$F$174:$G$176) -> 0.04 | X176: =LOOKUP('Financial Model Assumptions'!X2,'Financial Model Assumptions'!$F$174:$G$176) -> 0.04 | Y176: =LOOKUP('Financial Model Assumptions'!Y2,'Financial Model Assumptions'!$F$174:$G$176) -> 0.04 | Z176: =LOOKUP('Financial Model Assumptions'!Z2,'Financial Model Assumptions'!$F$174:$G$176) -> 0.04 | AA176: =LOOKUP('Financial Model Assumptions'!AA2,'Financial Model Assumptions'!$F$174:$G$176) -> 0.04 | AB176: =LOOKUP('Financial Model Assumptions'!AB2,'Financial Model Assumptions'!$F$174:$G$176) -> 0.04
D177: Interest Expense Rate | G177: =LOOKUP('Financial Model Assumptions'!G2,'Financial Model Assumptions'!$F$169:$G$171) ->  | H177: =LOOKUP('Financial Model Assumptions'!H2,'Financial Model Assumptions'!$F$169:$G$171) ->  | I177: =LOOKUP('Financial Model Assumptions'!I2,'Financial Model Assumptions'!$F$169:$G$171) ->  | J177: =LOOKUP('Financial Model Assumptions'!J2,'Financial Model Assumptions'!$F$169:$G$171) ->  | K177: =LOOKUP('Financial Model Assumptions'!K2,'Financial Model Assumptions'!$F$169:$G$171) ->  | L177: =LOOKUP('Financial Model Assumptions'!L2,'Financial Model Assumptions'!$F$169:$G$171) ->  | M177: =LOOKUP('Financial Model Assumptions'!M2,'Financial Model Assumptions'!$F$169:$G$171) ->  | N177: =LOOKUP('Financial Model Assumptions'!N2,'Financial Model Assumptions'!$F$169:$G$171) ->  | O177: =LOOKUP('Financial Model Assumptions'!O2,'Financial Model Assumptions'!$F$169:$G$171) ->  | P177: =LOOKUP('Financial Model Assumptions'!P2,'Financial Model Assumptions'!$F$169:$G$171) ->  | Q177: =LOOKUP('Financial Model Assumptions'!Q2,'Financial Model Assumptions'!$F$169:$G$171) -> 0.08 | R177: =LOOKUP('Financial Model Assumptions'!R2,'Financial Model Assumptions'!$F$169:$G$171) -> 0.08 | S177: =LOOKUP('Financial Model Assumptions'!S2,'Financial Model Assumptions'!$F$169:$G$171) -> 0.07 | T177: =LOOKUP('Financial Model Assumptions'!T2,'Financial Model Assumptions'!$F$169:$G$171) -> 0.07 | U177: =LOOKUP('Financial Model Assumptions'!U2,'Financial Model Assumptions'!$F$169:$G$171) -> 0.06 | V177: =LOOKUP('Financial Model Assumptions'!V2,'Financial Model Assumptions'!$F$169:$G$171) -> 0.06 | W177: =LOOKUP('Financial Model Assumptions'!W2,'Financial Model Assumptions'!$F$169:$G$171) -> 0.06 | X177: =LOOKUP('Financial Model Assumptions'!X2,'Financial Model Assumptions'!$F$169:$G$171) -> 0.06 | Y177: =LOOKUP('Financial Model Assumptions'!Y2,'Financial Model Assumptions'!$F$169:$G$171) -> 0.06 | Z177: =LOOKUP('Financial Model Assumptions'!Z2,'Financial Model Assumptions'!$F$169:$G$171) -> 0.06 | AA177: =LOOKUP('Financial Model Assumptions'!AA2,'Financial Model Assumptions'!$F$169:$G$171) -> 0.06 | AB177: =LOOKUP('Financial Model Assumptions'!AB2,'Financial Model Assumptions'!$F$169:$G$171) -> 0.06
D179: Interest Income | G179: =IF(G6,'Historic Financial Statements'!G32,G176*F173) -> -0.084 | H179: =IF(H6,'Historic Financial Statements'!H32,H176*G173) -> 0.005593 | I179: =IF(I6,'Historic Financial Statements'!I32,I176*H173) -> -0.002054 | J179: =IF(J6,'Historic Financial Statements'!J32,J176*I173) -> -5.345628905 | K179: =IF(K6,'Historic Financial Statements'!K32,K176*J173) -> 11.30000019 | L179: =IF(L6,'Historic Financial Statements'!L32,L176*K173) -> 21.20000076 | M179: =IF(M6,'Historic Financial Statements'!M32,M176*L173) -> -17.79999924 | N179: =IF(N6,'Historic Financial Statements'!N32,N176*M173) -> 28.6000061 | O179: =IF(O6,'Historic Financial Statements'!O32,O176*N173) -> 7 | P179: =IF(P6,'Historic Financial Statements'!P32,P176*O173) -> -37.09999084 | Q179: =IF(Q6,'Historic Financial Statements'!Q32,Q176*P173) -> 15.36200005 | R179: =IF(R6,'Historic Financial Statements'!R32,R176*Q173) -> 0 | S179: =IF(S6,'Historic Financial Statements'!S32,S176*R173) -> 0 | T179: =IF(T6,'Historic Financial Statements'!T32,T176*S173) -> 0 | U179: =IF(U6,'Historic Financial Statements'!U32,U176*T173) -> 0 | V179: =IF(V6,'Historic Financial Statements'!V32,V176*U173) -> 0 | W179: =IF(W6,'Historic Financial Statements'!W32,W176*V173) -> 0 | X179: =IF(X6,'Historic Financial Statements'!X32,X176*W173) -> 0 | Y179: =IF(Y6,'Historic Financial Statements'!Y32,Y176*X173) -> 0 | Z179: =IF(Z6,'Historic Financial Statements'!Z32,Z176*Y173) -> 0 | AA179: =IF(AA6,'Historic Financial Statements'!AA32,AA176*Z173) -> 0 | AB179: =IF(AB6,'Historic Financial Statements'!AB32,AB176*AA173) -> 0
D180: Short-term Interest Expense | G180: =IF(G6,0,G177*F174) -> 0 | H180: 0 | I180: 0 | J180: 0 | K180: 0 | L180: 0 | M180: 0 | N180: 0 | O180: 0 | P180: 0 | Q180: 125.872002 | R180: 75.44660601 | S180: 113.6513291 | T180: 129.8572946 | U180: 152.944519 | V180: 168.7678362 | W180: 170.8351903 | X180: 165.9058065 | Y180: 158.7792158 | Z180: 149.838752 | AA180: 146.6580932 | AB180: 145.9833155
D182: Accrued Warranty Costs | G182: =IF(G6,'Historic Financial Statements'!G125,F182) -> 0 | H182: =IF(H6,'Historic Financial Statements'!H125,G182) -> 0 | I182: =IF(I6,'Historic Financial Statements'!I125,H182) -> 0.84758 | J182: =IF(J6,'Historic Financial Statements'!J125,I182) -> 2.619104 | K182: =IF(K6,'Historic Financial Statements'!K125,J182) -> 8.845356 | L182: =IF(L6,'Historic Financial Statements'!L125,K182) -> 22.5 | M182: =IF(M6,'Historic Financial Statements'!M125,L182) -> 41.40000153 | N182: =IF(N6,'Historic Financial Statements'!N125,M182) -> 55.20000076 | O182: =IF(O6,'Historic Financial Statements'!O125,N182) -> 81 | P182: =IF(P6,'Historic Financial Statements'!P125,O182) -> 94.09999847 | Q182: =IF(Q6,'Historic Financial Statements'!Q125,P182) -> 94.09999847 | R182: =IF(R6,'Historic Financial Statements'!R125,Q182) -> 94.09999847 | S182: =IF(S6,'Historic Financial Statements'!S125,R182) -> 94.09999847 | T182: =IF(T6,'Historic Financial Statements'!T125,S182) -> 94.09999847 | U182: =IF(U6,'Historic Financial Statements'!U125,T182) -> 94.09999847 | V182: =IF(V6,'Historic Financial Statements'!V125,U182) -> 94.09999847 | W182: =IF(W6,'Historic Financial Statements'!W125,V182) -> 94.09999847 | X182: =IF(X6,'Historic Financial Statements'!X125,W182) -> 94.09999847 | Y182: =IF(Y6,'Historic Financial Statements'!Y125,X182) -> 94.09999847 | Z182: =IF(Z6,'Historic Financial Statements'!Z125,Y182) -> 94.09999847 | AA182: =IF(AA6,'Historic Financial Statements'!AA125,Z182) -> 94.09999847 | AB182: =IF(AB6,'Historic Financial Statements'!AB125,AA182) -> 94.09999847
D183: Deferred tax liabilities | G183: =IF(G$6,'Historic Financial Statements'!G128,F183) -> 0 | H183: =IF(H$6,'Historic Financial Statements'!H128,G183) -> 0 | I183: =IF(I$6,'Historic Financial Statements'!I128,H183) -> 0 | J183: =IF(J$6,'Historic Financial Statements'!J128,I183) -> 0 | K183: =IF(K$6,'Historic Financial Statements'!K128,J183) -> 4.774711 | L183: =IF(L$6,'Historic Financial Statements'!L128,K183) -> 22.10000038 | M183: =IF(M$6,'Historic Financial Statements'!M128,L183) -> 38.79999924 | N183: =IF(N$6,'Historic Financial Statements'!N128,M183) -> 33.09999847 | O183: =IF(O$6,'Historic Financial Statements'!O128,N183) -> 15.60000038 | P183: =IF(P$6,'Historic Financial Statements'!P128,O183) -> 0 | Q183: =IF(Q$6,'Historic Financial Statements'!Q128,P183) -> 0 | R183: =IF(R$6,'Historic Financial Statements'!R128,Q183) -> 0 | S183: =IF(S$6,'Historic Financial Statements'!S128,R183) -> 0 | T183: =IF(T$6,'Historic Financial Statements'!T128,S183) -> 0 | U183: =IF(U$6,'Historic Financial Statements'!U128,T183) -> 0 | V183: =IF(V$6,'Historic Financial Statements'!V128,U183) -> 0 | W183: =IF(W$6,'Historic Financial Statements'!W128,V183) -> 0 | X183: =IF(X$6,'Historic Financial Statements'!X128,W183) -> 0 | Y183: =IF(Y$6,'Historic Financial Statements'!Y128,X183) -> 0 | Z183: =IF(Z$6,'Historic Financial Statements'!Z128,Y183) -> 0 | AA183: =IF(AA$6,'Historic Financial Statements'!AA128,Z183) -> 0 | AB183: =IF(AB$6,'Historic Financial Statements'!AB128,AA183) -> 0
D184: Retirement benefit obligations | G184: =IF(G$6,'Historic Financial Statements'!G129,F184) -> 0 | H184: =IF(H$6,'Historic Financial Statements'!H129,G184) -> 0 | I184: =IF(I$6,'Historic Financial Statements'!I129,H184) -> 0 | J184: =IF(J$6,'Historic Financial Statements'!J129,I184) -> 0 | K184: =IF(K$6,'Historic Financial Statements'!K129,J184) -> 3.718394 | L184: =IF(L$6,'Historic Financial Statements'!L129,K184) -> 3.599999905 | M184: =IF(M$6,'Historic Financial Statements'!M129,L184) -> 5 | N184: =IF(N$6,'Historic Financial Statements'!N129,M184) -> 3.5 | O184: =IF(O$6,'Historic Financial Statements'!O129,N184) -> 0 | P184: =IF(P$6,'Historic Financial Statements'!P129,O184) -> 0 | Q184: =IF(Q$6,'Historic Financial Statements'!Q129,P184) -> 0 | R184: =IF(R$6,'Historic Financial Statements'!R129,Q184) -> 0 | S184: =IF(S$6,'Historic Financial Statements'!S129,R184) -> 0 | T184: =IF(T$6,'Historic Financial Statements'!T129,S184) -> 0 | U184: =IF(U$6,'Historic Financial Statements'!U129,T184) -> 0 | V184: =IF(V$6,'Historic Financial Statements'!V129,U184) -> 0 | W184: =IF(W$6,'Historic Financial Statements'!W129,V184) -> 0 | X184: =IF(X$6,'Historic Financial Statements'!X129,W184) -> 0 | Y184: =IF(Y$6,'Historic Financial Statements'!Y129,X184) -> 0 | Z184: =IF(Z$6,'Historic Financial Statements'!Z129,Y184) -> 0 | AA184: =IF(AA$6,'Historic Financial Statements'!AA129,Z184) -> 0 | AB184: =IF(AB$6,'Historic Financial Statements'!AB129,AA184) -> 0
D185: Other long-term liabilities | G185: =IF(G$6,'Historic Financial Statements'!G132,F185) -> 0 | H185: =IF(H$6,'Historic Financial Statements'!H132,G185) -> 0 | I185: =IF(I$6,'Historic Financial Statements'!I132,H185) -> 0 | J185: =IF(J$6,'Historic Financial Statements'!J132,I185) -> 0 | K185: =IF(K$6,'Historic Financial Statements'!K132,J185) -> 33.132421 | L185: =IF(L$6,'Historic Financial Statements'!L132,K185) -> 4.099999905 | M185: =IF(M$6,'Historic Financial Statements'!M132,L185) -> 91.89999866 | N185: =IF(N$6,'Historic Financial Statements'!N132,M185) -> 106.0999985 | O185: =IF(O$6,'Historic Financial Statements'!O132,N185) -> 155.8000031 | P185: =IF(P$6,'Historic Financial Statements'!P132,O185) -> 167.3000031 | Q185: =IF(Q$6,'Historic Financial Statements'!Q132,P185) -> 167.3000031 | R185: =IF(R$6,'Historic Financial Statements'!R132,Q185) -> 167.3000031 | S185: =IF(S$6,'Historic Financial Statements'!S132,R185) -> 167.3000031 | T185: =IF(T$6,'Historic Financial Statements'!T132,S185) -> 167.3000031 | U185: =IF(U$6,'Historic Financial Statements'!U132,T185) -> 167.3000031 | V185: =IF(V$6,'Historic Financial Statements'!V132,U185) -> 167.3000031 | W185: =IF(W$6,'Historic Financial Statements'!W132,V185) -> 167.3000031 | X185: =IF(X$6,'Historic Financial Statements'!X132,W185) -> 167.3000031 | Y185: =IF(Y$6,'Historic Financial Statements'!Y132,X185) -> 167.3000031 | Z185: =IF(Z$6,'Historic Financial Statements'!Z132,Y185) -> 167.3000031 | AA185: =IF(AA$6,'Historic Financial Statements'!AA132,Z185) -> 167.3000031 | AB185: =IF(AB$6,'Historic Financial Statements'!AB132,AA185) -> 167.3000031
E186: Total Other Liabilities | G186: =SUM(G182:G185) -> 0 | H186: 0 | I186: 0.84758 | J186: 2.619104 | K186: 50.470882 | L186: 52.30000019 | M186: 177.0999994 | N186: 197.8999977 | O186: 252.4000034 | P186: 261.4000015 | Q186: 261.4000015 | R186: 261.4000015 | S186: 261.4000015 | T186: 261.4000015 | U186: 261.4000015 | V186: 261.4000015 | W186: 261.4000015 | X186: 261.4000015 | Y186: 261.4000015 | Z186: 261.4000015 | AA186: 261.4000015 | AB186: 261.4000015
A189: Profit and Loss
C191: Revenues | G191: =G45 -> 3.025 | H191: 13.888 | I191: 85.30000019 | J191: 226.0000069 | K191: 598.8999939 | L191: 1348.299952 | M191: 1923.500046 | N191: 1693.300049 | O191: 2901.900055 | P191: 3146.600006 | Q191: 1515.163607 | R191: 1640.820112 | S191: 1842.940519 | T191: 2973.311269 | U191: 3612.254623 | V191: 4192.706573 | W191: 4861.024 | X191: 5630.006636 | Y191: 6514.269553 | Z191: 7309.010438 | AA191: 8200.709712 | AB191: 9201.196297
C192: Less: Total Cash Expense | G192: =G68 -> 4.067 | H192: 11.95361 | I192: 63.21337349 | J192: 177.8062918 | K192: 482.6999677 | L192: 1143.399898 | M192: 1698.400092 | N192: 1452.899971 | O192: 2564.10008 | P192: 3068.399851 | Q192: 1520.935061 | R192: 1542.005044 | S192: 1701.195624 | T192: 2781.631344 | U192: 3273.643894 | V192: 3821.020285 | W192: 4304.465907 | X192: 5017.134438 | Y192: 5840.200942 | Z192: 6547.996257 | AA192: 7342.142601 | AB192: 8233.174798
D193: EBITDA | G193: =G191-G192 -> -1.042 | H193: 1.93439 | I193: 22.0866267 | J193: 48.19371516 | K193: 116.2000262 | L193: 204.9000535 | M193: 225.0999537 | N193: 240.4000778 | O193: 337.7999749 | P193: 78.20015471 | Q193: -5.771453658 | R193: 98.81506859 | S193: 141.7448951 | T193: 191.6799253 | U193: 338.6107285 | V193: 371.6862876 | W193: 556.5580936 | X193: 612.8721979 | Y193: 674.0686107 | Z193: 761.014181 | AA193: 858.5671109 | AB193: 968.0214982
C194: Less: Depreciation | G194: =G148 -> 0 | H194: 1.18239 | I194: 1.986626 | J194: 4.193712 | K194: 11.49999962 | L194: 20.90000001 | M194: 42.59999847 | N194: 66.40000153 | O194: 86.00000155 | P194: 141.6000061 | Q194: 109.8439966 | R194: 107.2453168 | S194: 104.8794486 | T194: 102.7563108 | U194: 143.7809939 | V194: 141.0503999 | W194: 138.6576289 | X194: 136.5819671 | Y194: 134.804209 | Z194: 133.3065536 | AA194: 149.3443841 | AB194: 168.40982
D195: EBIT | G195: =G193-G194 -> -1.042 | H195: 0.752 | I195: 20.1000007 | J195: 44.00000316 | K195: 104.7000266 | L195: 184.0000535 | M195: 182.4999552 | N195: 174.0000763 | O195: 251.7999733 | P195: -63.3998514 | Q195: -115.6154502 | R195: -8.430248235 | S195: 36.86544649 | T195: 88.92361452 | U195: 194.8297346 | V195: 230.6358877 | W195: 417.9004647 | X195: 476.2902308 | Y195: 539.2644017 | Z195: 627.7076274 | AA195: 709.2227268 | AB195: 799.6116782
C196: Less: Interest on Long-term Debt | G196: =G166 -> 0 | H196: 0.226593 | I196: 0.997946 | J196: 2.254371 | K196: 5.800000191 | L196: 39.40000153 | M196: 55.70000076 | N196: 122.3000031 | O196: 98.90000153 | P196: 98.80000305 | Q196: 64.27800247 | R196: 64.24200247 | S196: 14.4240022 | T196: 4.000001953 | U196: 3.72750183 | V196: 1.772940161e-06 | W196: 1.772940161e-06 | X196: 1.772940161e-06 | Y196: 1.772940161e-06 | Z196: 1.772940161e-06 | AA196: 1.772940161e-06 | AB196: 1.772940161e-06
C197: Less: Short-term Debt | G197: =G180 -> 0 | H197: 0 | I197: 0 | J197: 0 | K197: 0 | L197: 0 | M197: 0 | N197: 0 | O197: 0 | P197: 0 | Q197: 125.872002 | R197: 75.44660601 | S197: 113.6513291 | T197: 129.8572946 | U197: 152.944519 | V197: 168.7678362 | W197: 170.8351903 | X197: 165.9058065 | Y197: 158.7792158 | Z197: 149.838752 | AA197: 146.6580932 | AB197: 145.9833155
C198: Add: Interest Income | G198: =G179 -> -0.084 | H198: 0.005593 | I198: -0.002054 | J198: -5.345628905 | K198: 11.30000019 | L198: 21.20000076 | M198: -17.79999924 | N198: 28.6000061 | O198: 7 | P198: -37.09999084 | Q198: 15.36200005 | R198: 0 | S198: 0 | T198: 0 | U198: 0 | V198: 0 | W198: 0 | X198: 0 | Y198: 0 | Z198: 0 | AA198: 0 | AB198: 0
C199: Add: Other Income | G199: =G73 -> 0.168 | H199: 0.093 | I199: 0.1000000015 | J199: 0 | K199: 0.6000000238 | L199: 0.200000003 | M199: -62.29999924 | N199: 2.599999905 | O199: -47.70000076 | P199: -133.1000061 | Q199: -10 | R199: -10 | S199: -10 | T199: -10 | U199: -10 | V199: -10 | W199: -10 | X199: -10 | Y199: -10 | Z199: -10 | AA199: -10 | AB199: -10
C200: Add: Non-Controlling Interest | G200: =G74 -> 0 | H200: 0 | I200: 0 | J200: 0 | K200: 0 | L200: -0.6999999881 | M200: 0.3000000119 | N200: -3.299999952 | O200: 250.8000031 | P200: -98.69999695 | Q200: 0 | R200: 0 | S200: 0 | T200: 0 | U200: 0 | V200: 0 | W200: 0 | X200: 0 | Y200: 0 | Z200: 0 | AA200: 0 | AB200: 0
C201: Add: Other Non-Cash | G201: =G75 -> 0 | H201: 0 | I201: 0 | J201: -2.099999905 | K201: 0 | L201: -8.899999619 | M201: -14.39999962 | N201: 8.600000381 | O201: -101.2999992 | P201: -620.0000038 | Q201: 0 | R201: 0 | S201: 0 | T201: 0 | U201: 0 | V201: 0 | W201: 0 | X201: 0 | Y201: 0 | Z201: 0 | AA201: 0 | AB201: 0
D202: EBT | G202: =G195-G196-G197+G198+G199+G200+G201 -> -0.958 | H202: 0.624 | I202: 19.2000007 | J202: 34.30000335 | K202: 110.8000266 | L202: 156.4000531 | M202: 32.59995639 | N202: 88.20007968 | O202: 261.6999748 | P202: -1051.099852 | Q202: -300.4034546 | R202: -158.1188567 | S202: -101.2098848 | T202: -54.93368205 | U202: 28.15771375 | V202: 51.86804971 | W202: 237.0652726 | X202: 300.3844225 | Y202: 370.4851841 | Z202: 467.8688736 | AA202: 552.5646318 | AB202: 643.6283609
C203: Less: Taxes | G203: =G202*'Financial Model Assumptions'!G156 -> -0.061 | H203: =H202*'Financial Model Assumptions'!H156 -> -0.301 | I203: =I202*'Financial Model Assumptions'!I156 -> -0.6000000041 | J203: =J202*'Financial Model Assumptions'!J156 -> 3.80000015 | K203: =K202*'Financial Model Assumptions'!K156 -> 7.199999383 | L203: =L202*'Financial Model Assumptions'!L156 -> 13.2000003 | M203: =M202*'Financial Model Assumptions'!M156 -> 1.599999933 | N203: =N202*'Financial Model Assumptions'!N156 -> 2.5 | O203: =O202*'Financial Model Assumptions'!O156 -> 23.79999688 | P203: =P202*'Financial Model Assumptions'!P156 -> -47.20000019 | Q203: =Q202*'Financial Model Assumptions'!Q156 -> -15.02017273 | R203: =R202*'Financial Model Assumptions'!R156 -> -7.905942836 | S203: =S202*'Financial Model Assumptions'!S156 -> -10.12098848 | T203: =T202*'Financial Model Assumptions'!T156 -> -8.240052308 | U203: =U202*'Financial Model Assumptions'!U156 -> 5.63154275 | V203: =V202*'Financial Model Assumptions'!V156 -> 10.37360994 | W203: =W202*'Financial Model Assumptions'!W156 -> 47.41305453 | X203: =X202*'Financial Model Assumptions'!X156 -> 60.07688451 | Y203: =Y202*'Financial Model Assumptions'!Y156 -> 74.09703682 | Z203: =Z202*'Financial Model Assumptions'!Z156 -> 93.57377471 | AA203: =AA202*'Financial Model Assumptions'!AA156 -> 110.5129264 | AB203: =AB202*'Financial Model Assumptions'!AB156 -> 128.7256722
C204: Less: Discontinued | G204: =-'Historic Financial Statements'!G43 -> 0 | H204: =-'Historic Financial Statements'!H43 -> 0 | I204: =-'Historic Financial Statements'!I43 -> 0 | J204: =-'Historic Financial Statements'!J43 -> 0 | K204: =-'Historic Financial Statements'!K43 -> 0 | L204: =-'Historic Financial Statements'!L43 -> 0 | M204: =-'Historic Financial Statements'!M43 -> 0 | N204: =-'Historic Financial Statements'!N43 -> 0 | O204: =-'Historic Financial Statements'!O43 -> 0 | P204: =-'Historic Financial Statements'!P43 -> 14.10000038
D205: Earnings Before Minority | G205: =G202-G203-G204 -> -0.897 | H205: 0.925 | I205: 19.80000071 | J205: 30.5000032 | K205: 103.6000273 | L205: 143.2000528 | M205: 30.99995645 | N205: 85.70007968 | O205: 237.899978 | P205: -1017.999852 | Q205: =Q202-Q203 -> -285.3832819 | R205: -150.2129139 | S205: -91.08889631 | T205: -46.69362975 | U205: 22.526171 | V205: 41.49443977 | W205: 189.6522181 | X205: 240.307538 | Y205: 296.3881473 | Z205: 374.2950989 | AA205: 442.0517054 | AB205: 514.9026888
C206: Less: Minority Interest | G206: =G205*'Financial Model Assumptions'!G179 -> 0 | H206: =H205*'Financial Model Assumptions'!H179 -> 0 | I206: =I205*'Financial Model Assumptions'!I179 -> 0 | J206: =J205*'Financial Model Assumptions'!J179 -> -0.1000000067 | K206: =K205*'Financial Model Assumptions'!K179 -> -0.9999999408 | L206: =L205*'Financial Model Assumptions'!L179 -> -2.700000148 | M206: =M205*'Financial Model Assumptions'!M179 -> -1.399999896 | N206: =N205*'Financial Model Assumptions'!N179 -> 0.1000000015 | O206: =O205*'Financial Model Assumptions'!O179 -> 0.999999901 | P206: =P205*'Financial Model Assumptions'!P179 -> 0.6000000166 | Q206: =Q205*'Financial Model Assumptions'!Q179 -> -0.2853832819 | R206: =R205*'Financial Model Assumptions'!R179 -> -0.1502129139 | S206: =S205*'Financial Model Assumptions'!S179 -> -0.09108889631 | T206: =T205*'Financial Model Assumptions'!T179 -> -0.04669362975 | U206: =U205*'Financial Model Assumptions'!U179 -> 0.022526171 | V206: =V205*'Financial Model Assumptions'!V179 -> 0.04149443977 | W206: =W205*'Financial Model Assumptions'!W179 -> 0.1896522181 | X206: =X205*'Financial Model Assumptions'!X179 -> 0.240307538 | Y206: =Y205*'Financial Model Assumptions'!Y179 -> 0.2963881473 | Z206: =Z205*'Financial Model Assumptions'!Z179 -> 0.3742950989 | AA206: =AA205*'Financial Model Assumptions'!AA179 -> 0.4420517054 | AB206: =AB205*'Financial Model Assumptions'!AB179 -> 0.5149026888
D207: Earnings to Common | G207: =G205-G206 -> -0.897 | H207: 0.925 | I207: 19.80000071 | J207: 30.60000321 | K207: 104.6000272 | L207: 145.900053 | M207: 32.39995635 | N207: 85.60007968 | O207: 236.8999781 | P207: -1018.599852 | Q207: -285.0978986 | R207: -150.062701 | S207: -90.99780741 | T207: -46.64693612 | U207: 22.50364483 | V207: 41.45294533 | W207: 189.4625659 | X207: 240.0672305 | Y207: 296.0917591 | Z207: 373.9208038 | AA207: 441.6096537 | AB207: 514.3877861
C209: Verification
D210: Historic Earnings | G210: ='Historic Financial Statements'!G47 -> -0.897 | H210: ='Historic Financial Statements'!H47 -> 0.925 | I210: ='Historic Financial Statements'!I47 -> 19.80000136 | J210: ='Historic Financial Statements'!J47 -> 30.60000161 | K210: ='Historic Financial Statements'!K47 -> 104.6000334 | L210: ='Historic Financial Statements'!L47 -> 145.9000476 | M210: ='Historic Financial Statements'!M47 -> 32.39995819 | N210: ='Historic Financial Statements'!N47 -> 85.60007968 | O210: ='Historic Financial Statements'!O47 -> 236.9000015 | P210: ='Historic Financial Statements'!P47 -> -1018.599865 | Q210: ='Historic Financial Statements'!Q47 -> 0 | R210: ='Historic Financial Statements'!R47 -> 0 | S210: ='Historic Financial Statements'!S47 -> 0 | T210: ='Historic Financial Statements'!T47 -> 0 | U210: ='Historic Financial Statements'!U47 -> 0 | V210: ='Historic Financial Statements'!V47 -> 0 | W210: ='Historic Financial Statements'!W47 -> 0 | X210: ='Historic Financial Statements'!X47 -> 0 | Y210: ='Historic Financial Statements'!Y47 -> 0 | Z210: ='Historic Financial Statements'!Z47 -> 0 | AA210: ='Historic Financial Statements'!AA47 -> 0 | AB210: ='Historic Financial Statements'!AB47 -> 0
D211: Difference | G211: =ROUND(G207-G210,0) -> 0 | H211: 0 | I211: 0 | J211: 0 | K211: 0 | L211: 0 | M211: 0 | N211: 0 | O211: 0 | P211: 0 | Q211: -285 | R211: -150 | S211: -91 | T211: -47 | U211: 23 | V211: 41 | W211: 189 | X211: 240 | Y211: 296 | Z211: 374 | AA211: 442 | AB211: 514
D212: Test | G212: =IF(G6,ROUND(G211,0)=0,TRUE) -> TRUE | H212: TRUE | I212: TRUE | J212: TRUE | K212: TRUE | L212: TRUE | M212: TRUE | N212: TRUE | O212: TRUE | P212: TRUE | Q212: TRUE | R212: TRUE | S212: TRUE | T212: TRUE | U212: TRUE | V212: TRUE | W212: TRUE | X212: TRUE | Y212: TRUE | Z212: TRUE | AA212: TRUE | AB212: TRUE
A214: Share Balance
C215: Assumed P/E Ratio | G215: ='Financial Model Assumptions'!$G$195 -> 15 | H215: ='Financial Model Assumptions'!$G$195 -> 15 | I215: ='Financial Model Assumptions'!$G$195 -> 15 | J215: ='Financial Model Assumptions'!$G$195 -> 15 | K215: ='Financial Model Assumptions'!$G$195 -> 15 | L215: ='Financial Model Assumptions'!$G$195 -> 15 | M215: ='Financial Model Assumptions'!$G$195 -> 15 | N215: ='Financial Model Assumptions'!$G$195 -> 15 | O215: ='Financial Model Assumptions'!$G$195 -> 15 | P215: ='Financial Model Assumptions'!$G$195 -> 15 | Q215: ='Financial Model Assumptions'!$G$195 -> 15 | R215: ='Financial Model Assumptions'!$G$195 -> 15 | S215: ='Financial Model Assumptions'!$G$195 -> 15 | T215: ='Financial Model Assumptions'!$G$195 -> 15 | U215: ='Financial Model Assumptions'!$G$195 -> 15 | V215: ='Financial Model Assumptions'!$G$195 -> 15 | W215: ='Financial Model Assumptions'!$G$195 -> 15 | X215: ='Financial Model Assumptions'!$G$195 -> 15 | Y215: ='Financial Model Assumptions'!$G$195 -> 15 | Z215: ='Financial Model Assumptions'!$G$195 -> 15 | AA215: ='Financial Model Assumptions'!$G$195 -> 15 | AB215: ='Financial Model Assumptions'!$G$195 -> 15
